{"text_format":"1","workbook":"xlsx","n_sheets":7,"sheets":["Readme","Example1","Example2","Example3","Example4","Example5","Screenshot"],"not_rendered":{"charts":0,"images":0,"macros":1,"external_links":3,"defined_names":13,"comments":0,"pivot_tables":0},"unopened":[],"bounds":{"document_bytes":16777216,"sheet_cells":100000,"rows_first":2000,"rows_last":500,"rows_between":2000,"halvings":0,"cell_chars":16384,"cell_head_chars":4096},"cells_cut":0,"cells_raw":0,"read":"whole","date_system":"1900"}

{"sheet":"Readme","index":0,"n_rows":67,"n_cols":3,"rows_kept":67,"cut":false,"hidden":false,"merged":[]}
["SLOOKUP and LLOOKUP for Excel"]
["Functions to lookup for similar values"]
[]
["Excel has the LOOKUP,  HLOOKUP,  VLOOKUP and XLOOKUP function to search for values in other ranges",null," VLOOKUP and XLOOKUP function to search for values in other ranges"]
["but they need exact matches. XLOOKUP allows for well defined substrings with wildcard characters"]
["but does not deal random changes. The functions proposed here allow you to do this. Two functions are proposed:"]
["LLOOKUP uses Levenshtein which has a complexity of O(n ln n)."]
["SLOOKUP uses simpleSim which has a complexity of O(n) in best and random cases and O(n^2) in worst case"]
["so it may be faster on larger ranges."]
["Both scan the entire list,  so if you use them in a range, the complexity is O(needles * haystacks)."]
[]
["LLOOKUP(needle, haystack, result, optional threshold = 0.75, optional partialsrtring = true, optional simplestring = true)"]
[" Finds the best match for needle in the haystack range and returns the corresponding item in the result range using the Levensthein similarity"]
[" Needle is interpreted as string."]
[" Haystack and result must be ranges with a single column and equal number of rows."]
[" Haystack can be of any order, but the search stops at an empty cell, if the range is the entire column (eg. A:A)"]
[" Threshold fine tunes the sensitivity (for values between 0 and 1). If the score of no value in haystack exceeds threshold, the result is empty."]
[" Partialstring looks for asymetric matches where needle is included in haystack but the haystack not in needle"]
[" Simplestring uses URL-representation of the needle and the haystack (all lowercase, no special characters)"]
[]
["SLOOKUP(needle, haystack, result, optional threshold = 0.75, optional partialstring = true, optional simplestring = true)"]
[" Finds the best match for needle in the haystack range and returns the corresponding item in the result range using the simpleSim similarity"]
[" Needle is interpreted as string."]
[" Haystack and result must be ranges with a single column and equal number of rows."]
[" Haystack can be of any order, but the search stops at an empty cell, if the range is the entire column (eg. A:A)"]
[" Threshold fine tunes the sensitivity (for values between 0 and 1). If the score of no value in haystack exceeds threshold, the result is empty."]
[" Partialstring looks for asymetric matches where needle is included in haystack but the haystack not in needle"]
[" Simplestring uses URL-representation of the needle and the haystack (all lowercase, no special characters)"]
[]
["LevenshteinDistance(needle, haystack, optional partialstring = true, optional simplestring = true)"]
[" Calculates the edit distance of needle and haystack."]
[" Partialstring looks for asymetric matches where needle is included in haystack but the haystack not in needle"]
[" Simplestring uses URL-representation of the needle and the haystack (all lowercase, no special characters)"]
[]
["LevenshteinSimilarity(needle, haystack, optional partialstring = true, optional simplestring = true)"]
[" Calculates the edit distance of needle and haystack as a similarity measure (0 not similar, 1 identical)"]
[" Partialstring looks for asymetric matches where needle is included in haystack but the haystack not in needle"]
[" Simplestring uses URL-representation of the needle and the haystack (all lowercase, no special characters)"]
[]
["SimpleSimilarity(needle, haystack, result, optional partialstring = true, optional simplestring = true, optional threshold = 0.0)"]
[" Calculates the similarity of needle with haystack between 0 (not at all similar) and 1 (identical) based on custom algorithm"]
[" Partialstring looks for asymetric matches where needle is included in haystack but the haystack not in needle"]
[" Simplestring uses URL-representation of the needle and the haystack (all lowercase, no special characters)"]
[" Threshold allows to stop the calculation when it is clear the threshold cannot be achieved"]
[]
["SimpleURL(text)"]
[" Converts a text to an URL-compatible form (all lowercase and all non-alphanumeric characters replaced by \"-\")"]
[]
["The functions do not have side effects"]
[]
["About the simpleSim algorithm"]
["The score is set to 0."]
["The offset is set to 1"]
["position is set to 0"]
["The first character of needle is compared to the characters in the haystack starting at offset"]
["If a match is found, the position is set to the position of the character in the haystack"]
["A search back starting from offset-2 to the beginning is executed "]
["If a match is found and the position is nearer to offset, that position is retained."]
["If position is found, the score is augmented by 1/(abs(position-offset) + 1), means 1 for continous text and less in other cases"]
["If there is a threshold and it is clear that the threshold cannot be achieved, the procedure is stopped now."]
["The procedure is repeated for each character in the needle"]
["The result is the score divided by the needle"]
[]
["Freeware"]
["Version 1.1 2025-02-14"]
["Version 1.0 2024-06-14"]
["Author: matti@belle-nuit.com 2025"]

{"sheet":"Example1","index":1,"n_rows":266,"n_cols":11,"rows_kept":266,"cut":false,"hidden":false,"merged":[]}
["Website","=SLOOKUP(A1,H:H;H:H,0.6)","=simpleSim(A1,B1)",null,"=LLOOKUP(A1,H:H,H:H,0.6,0)","=LevenshteinSimilarity(A1,K1)",null,"Company Name","Zip"]
["23andme.com",{"$f":"SLOOKUP(A2,H:H,H:H,0.6,0)","v":"23andMe"},{"$f":"IF(B2<>\"\",SimpleSim(A2,B2),\"\")","v":0.65151515151515149},null,{"$f":"LLOOKUP(A2,H:H,H:H,0.6,0)","v":"23andMe"},{"$f":"IF(E2<>\"\",LevenshteinSimilarity(A2,E2),\"\")","v":0.63636363636363635},null,"23andMe",94041,null,"The example looks up company names (column H) by Website (column A)"]
["280group.com",{"$f":"SLOOKUP(A3,H:H,H:H,0.6,0)","v":"280 Group"},{"$f":"IF(B3<>\"\",SimpleSim(A3,B3),\"\")","v":0.64880952380952384},null,{"$f":"LLOOKUP(A3,H:H,H:H,0.6,0)","v":""},{"$f":"IF(E3<>\"\",LevenshteinSimilarity(A3,E3),\"\")","v":""},null,"280 Group",95030]
["2go.com",{"$f":"SLOOKUP(A4,H:H,H:H,0.6,0)","v":""},{"$f":"IF(B4<>\"\",SimpleSim(A4,B4),\"\")","v":""},null,{"$f":"LLOOKUP(A4,H:H,H:H,0.6,0)","v":""},{"$f":"IF(E4<>\"\",LevenshteinSimilarity(A4,E4),\"\")","v":""},null,"5AM Ventures",94025,null,"Column B shows the SLOOKUP result, column E the LLOOKUP"]
["5amventures.com",{"$f":"SLOOKUP(A5,H:H,H:H,0.6,0)","v":"5AM Ventures"},{"$f":"IF(B5<>\"\",SimpleSim(A5,B5),\"\")","v":0.72888888888888892},null,{"$f":"LLOOKUP(A5,H:H,H:H,0.6,0)","v":"5AM Ventures"},{"$f":"IF(E5<>\"\",LevenshteinSimilarity(A5,E5),\"\")","v":0.66666666666666663},null,"Accel",94025]
["a16z.com",{"$f":"SLOOKUP(A6,H:H,H:H,0.6,0)","v":""},{"$f":"IF(B6<>\"\",SimpleSim(A6,B6),\"\")","v":""},null,{"$f":"LLOOKUP(A6,H:H,H:H,0.6,0)","v":""},{"$f":"IF(E6<>\"\",LevenshteinSimilarity(A6,E6),\"\")","v":""},null,"Addepar",94041,null,"The calculation may take some time. See percentage of the status bar"]
["about.flipboard.com",{"$f":"SLOOKUP(A7,H:H,H:H,0.6,0)","v":""},{"$f":"IF(B7<>\"\",SimpleSim(A7,B7),\"\")","v":""},null,{"$f":"LLOOKUP(A7,H:H,H:H,0.6,0)","v":""},{"$f":"IF(E7<>\"\",LevenshteinSimilarity(A7,E7),\"\")","v":""},null,"Adecco Group",94066]
["acquia.com",{"$f":"SLOOKUP(A8,H:H,H:H,0.6,0)","v":""},{"$f":"IF(B8<>\"\",SimpleSim(A8,B8),\"\")","v":""},null,{"$f":"LLOOKUP(A8,H:H,H:H,0.6,0)","v":""},{"$f":"IF(E8<>\"\",LevenshteinSimilarity(A8,E8),\"\")","v":""},null,"Adobe",94103,null,"On a first search, LLOOKUP finds more results than SLOOKUP"]
["addepar.com",{"$f":"SLOOKUP(A9,H:H,H:H,0.6,0)","v":"Addepar"},{"$f":"IF(B9<>\"\",SimpleSim(A9,B9),\"\")","v":0.63636363636363635},null,{"$f":"LLOOKUP(A9,H:H,H:H,0.6,0)","v":"Addepar"},{"$f":"IF(E9<>\"\",LevenshteinSimilarity(A9,E9),\"\")","v":0.63636363636363635},null,"AgilOne",94085,null,"Both searches uses a thresholld of 0.6"]
["alation.com",{"$f":"SLOOKUP(A10,H:H,H:H,0.6,0)","v":"reputation.com"},{"$f":"IF(B10<>\"\",SimpleSim(A10,B10),\"\")","v":0.75757575757575746},null,{"$f":"LLOOKUP(A10,H:H,H:H,0.6,0)","v":"Inflection.com"},{"$f":"IF(E10<>\"\",LevenshteinSimilarity(A10,E10),\"\")","v":0.72727272727272729},null,"Alation",94063,null,"There are some false positives (yellow)"]
["amazon.com",{"$f":"SLOOKUP(A11,H:H,H:H,0.6,0)","v":"Amazon"},{"$f":"IF(B11<>\"\",SimpleSim(A11,B11),\"\")","v":0.64},null,{"$f":"LLOOKUP(A11,H:H,H:H,0.6,0)","v":"Amazon"},{"$f":"IF(E11<>\"\",LevenshteinSimilarity(A11,E11),\"\")","v":0.6},null,"AlienVault",94403]
["ambient.ai",{"$f":"SLOOKUP(A12,H:H,H:H,0.6,0)","v":"Ambient.ai"},{"$f":"IF(B12<>\"\",SimpleSim(A12,B12),\"\")","v":1},null,{"$f":"LLOOKUP(A12,H:H,H:H,0.6,0)","v":"Ambient.ai"},{"$f":"IF(E12<>\"\",LevenshteinSimilarity(A12,E12),\"\")","v":1},null,"Altimeter Capital",94025,null,"The results are impacted that the URL is short and has www and com as noise"]
["anomali.com",{"$f":"SLOOKUP(A13,H:H,H:H,0.6,0)","v":"Anomali"},{"$f":"IF(B13<>\"\",SimpleSim(A13,B13),\"\")","v":0.75757575757575746},null,{"$f":"LLOOKUP(A13,H:H,H:H,0.6,0)","v":"Anomali"},{"$f":"IF(E13<>\"\",LevenshteinSimilarity(A13,E13),\"\")","v":0.63636363636363635},null,"Altos Ventures",94025,null,"The example 2 will use a prefiltered approach"]
["apttus.com",{"$f":"SLOOKUP(A14,H:H,H:H,0.6,0)","v":"Apttus"},{"$f":"IF(B14<>\"\",SimpleSim(A14,B14),\"\")","v":0.6},null,{"$f":"LLOOKUP(A14,H:H,H:H,0.6,0)","v":"Apttus"},{"$f":"IF(E14<>\"\",LevenshteinSimilarity(A14,E14),\"\")","v":0.6},null,"Amazon",94303]
["arista.com",{"$f":"SLOOKUP(A15,H:H,H:H,0.6,0)","v":"Arista"},{"$f":"IF(B15<>\"\",SimpleSim(A15,B15),\"\")","v":0.6},null,{"$f":"LLOOKUP(A15,H:H,H:H,0.6,0)","v":"Arista"},{"$f":"IF(E15<>\"\",LevenshteinSimilarity(A15,E15),\"\")","v":0.6},null,"Ambient.ai",94301]
["avast.com",{"$f":"SLOOKUP(A16,H:H,H:H,0.6,0)","v":""},{"$f":"IF(B16<>\"\",SimpleSim(A16,B16),\"\")","v":""},null,{"$f":"LLOOKUP(A16,H:H,H:H,0.6,0)","v":""},{"$f":"IF(E16<>\"\",LevenshteinSimilarity(A16,E16),\"\")","v":""},null,"AMD",95054]
["benevity.com",{"$f":"SLOOKUP(A17,H:H,H:H,0.6,0)","v":"Benevity"},{"$f":"IF(B17<>\"\",SimpleSim(A17,B17),\"\")","v":0.66666666666666663},null,{"$f":"LLOOKUP(A17,H:H,H:H,0.6,0)","v":"Benevity"},{"$f":"IF(E17<>\"\",LevenshteinSimilarity(A17,E17),\"\")","v":0.66666666666666663},null,"Amply Power",94043]
["betterworks.com",{"$f":"SLOOKUP(A18,H:H,H:H,0.6,0)","v":"Betterworks"},{"$f":"IF(B18<>\"\",SimpleSim(A18,B18),\"\")","v":0.7416666666666667},null,{"$f":"LLOOKUP(A18,H:H,H:H,0.6,0)","v":"Betterworks"},{"$f":"IF(E18<>\"\",LevenshteinSimilarity(A18,E18),\"\")","v":0.73333333333333328},null,"Andreessen Horowitz",94025]
["bluevine.com",{"$f":"SLOOKUP(A19,H:H,H:H,0.6,0)","v":"BlueVine"},{"$f":"IF(B19<>\"\",SimpleSim(A19,B19),\"\")","v":0.66666666666666663},null,{"$f":"LLOOKUP(A19,H:H,H:H,0.6,0)","v":"BlueVine"},{"$f":"IF(E19<>\"\",LevenshteinSimilarity(A19,E19),\"\")","v":0.66666666666666663},null,"Anomali",94063]
["box.com",{"$f":"SLOOKUP(A20,H:H,H:H,0.6,0)","v":""},{"$f":"IF(B20<>\"\",SimpleSim(A20,B20),\"\")","v":""},null,{"$f":"LLOOKUP(A20,H:H,H:H,0.6,0)","v":"Broadcom"},{"$f":"IF(E20<>\"\",LevenshteinSimilarity(A20,E20),\"\")","v":0.5714285714285714},null,"Apple",95014]
["branch.io",{"$f":"SLOOKUP(A21,H:H,H:H,0.6,0)","v":"Branch"},{"$f":"IF(B21<>\"\",SimpleSim(A21,B21),\"\")","v":0.66666666666666663},null,{"$f":"LLOOKUP(A21,H:H,H:H,0.6,0)","v":"Branch"},{"$f":"IF(E21<>\"\",LevenshteinSimilarity(A21,E21),\"\")","v":0.66666666666666663},null,"Apttus",94404]
["c3.ai",{"$f":"SLOOKUP(A22,H:H,H:H,0.6,0)","v":""},{"$f":"IF(B22<>\"\",SimpleSim(A22,B22),\"\")","v":""},null,{"$f":"LLOOKUP(A22,H:H,H:H,0.6,0)","v":""},{"$f":"IF(E22<>\"\",LevenshteinSimilarity(A22,E22),\"\")","v":""},null,"Arista",95054]
["carbon3d.com",{"$f":"SLOOKUP(A23,H:H,H:H,0.6,0)","v":"Carbon"},{"$f":"IF(B23<>\"\",SimpleSim(A23,B23),\"\")","v":0.60416666666666663},null,{"$f":"LLOOKUP(A23,H:H,H:H,0.6,0)","v":""},{"$f":"IF(E23<>\"\",LevenshteinSimilarity(A23,E23),\"\")","v":""},null,"Armory",94401]
["carta.com",{"$f":"SLOOKUP(A24,H:H,H:H,0.6,0)","v":"Carta"},{"$f":"IF(B24<>\"\",SimpleSim(A24,B24),\"\")","v":0.66666666666666663},null,{"$f":"LLOOKUP(A24,H:H,H:H,0.6,0)","v":""},{"$f":"IF(E24<>\"\",LevenshteinSimilarity(A24,E24),\"\")","v":""},null,"Ascend"]
["ciphercloud.com",{"$f":"SLOOKUP(A25,H:H,H:H,0.6,0)","v":"CipherCloud"},{"$f":"IF(B25<>\"\",SimpleSim(A25,B25),\"\")","v":0.80833333333333335},null,{"$f":"LLOOKUP(A25,H:H,H:H,0.6,0)","v":"CipherCloud"},{"$f":"IF(E25<>\"\",LevenshteinSimilarity(A25,E25),\"\")","v":0.73333333333333328},null,"ASUS",94538]
["cisco.com",{"$f":"SLOOKUP(A26,H:H,H:H,0.6,0)","v":"Cisco"},{"$f":"IF(B26<>\"\",SimpleSim(A26,B26),\"\")","v":0.69444444444444442},null,{"$f":"LLOOKUP(A26,H:H,H:H,0.6,0)","v":""},{"$f":"IF(E26<>\"\",LevenshteinSimilarity(A26,E26),\"\")","v":""},null,"Avast",94063]
["clover.com",{"$f":"SLOOKUP(A27,H:H,H:H,0.6,0)","v":"Clover Network"},{"$f":"IF(B27<>\"\",SimpleSim(A27,B27),\"\")","v":0.76249999999999996},null,{"$f":"LLOOKUP(A27,H:H,H:H,0.6,0)","v":""},{"$f":"IF(E27<>\"\",LevenshteinSimilarity(A27,E27),\"\")","v":""},null,"Baidu USA",94089]
["codexis.com",{"$f":"SLOOKUP(A28,H:H,H:H,0.6,0)","v":"Codexis"},{"$f":"IF(B28<>\"\",SimpleSim(A28,B28),\"\")","v":0.81818181818181823},null,{"$f":"LLOOKUP(A28,H:H,H:H,0.6,0)","v":"Codexis"},{"$f":"IF(E28<>\"\",LevenshteinSimilarity(A28,E28),\"\")","v":0.63636363636363635},null,"Barracuda",95008]
["colortokens.com",{"$f":"SLOOKUP(A29,H:H,H:H,0.6,0)","v":"ColorTokens"},{"$f":"IF(B29<>\"\",SimpleSim(A29,B29),\"\")","v":0.8666666666666667},null,{"$f":"LLOOKUP(A29,H:H,H:H,0.6,0)","v":"ColorTokens"},{"$f":"IF(E29<>\"\",LevenshteinSimilarity(A29,E29),\"\")","v":0.73333333333333328},null,"Battery Ventures",94025]
["commongenius.com",{"$f":"SLOOKUP(A30,H:H,H:H,0.6,0)","v":"CommonGenius"},{"$f":"IF(B30<>\"\",SimpleSim(A30,B30),\"\")","v":0.9375},null,{"$f":"LLOOKUP(A30,H:H,H:H,0.6,0)","v":"CommonGenius"},{"$f":"IF(E30<>\"\",LevenshteinSimilarity(A30,E30),\"\")","v":0.75},null,"Benevity",94403]
["confidentcannabis.com",{"$f":"SLOOKUP(A31,H:H,H:H,0.6,0)","v":"Confident Cannabis"},{"$f":"IF(B31<>\"\",SimpleSim(A31,B31),\"\")","v":0.84242424242424241},null,{"$f":"LLOOKUP(A31,H:H,H:H,0.6,0)","v":"Confident Cannabis"},{"$f":"IF(E31<>\"\",LevenshteinSimilarity(A31,E31),\"\")","v":0.76190476190476186},null,"Betterworks",94063]
["cradlepoint.com",{"$f":"SLOOKUP(A32,H:H,H:H,0.6,0)","v":"Cradlepoint"},{"$f":"IF(B32<>\"\",SimpleSim(A32,B32),\"\")","v":0.80952380952380953},null,{"$f":"LLOOKUP(A32,H:H,H:H,0.6,0)","v":"Cradlepoint"},{"$f":"IF(E32<>\"\",LevenshteinSimilarity(A32,E32),\"\")","v":0.73333333333333328},null,"Blue River Technology",94085]
["crossoverhub.com",{"$f":"SLOOKUP(A33,H:H,H:H,0.6,0)","v":"Crossover Hub"},{"$f":"IF(B33<>\"\",SimpleSim(A33,B33),\"\")","v":0.76818181818181819},null,{"$f":"LLOOKUP(A33,H:H,H:H,0.6,0)","v":"Crossover Hub"},{"$f":"IF(E33<>\"\",LevenshteinSimilarity(A33,E33),\"\")","v":0.6875},null,"BlueJeans",94043]
["datastax.com",{"$f":"SLOOKUP(A34,H:H,H:H,0.6,0)","v":"DataStax"},{"$f":"IF(B34<>\"\",SimpleSim(A34,B34),\"\")","v":0.66666666666666663},null,{"$f":"LLOOKUP(A34,H:H,H:H,0.6,0)","v":"DataStax"},{"$f":"IF(E34<>\"\",LevenshteinSimilarity(A34,E34),\"\")","v":0.66666666666666663},null,"BlueVine",94063]
["datavisor.com",{"$f":"SLOOKUP(A35,H:H,H:H,0.6,0)","v":"Datavisor"},{"$f":"IF(B35<>\"\",SimpleSim(A35,B35),\"\")","v":0.70192307692307687},null,{"$f":"LLOOKUP(A35,H:H,H:H,0.6,0)","v":"Datavisor"},{"$f":"IF(E35<>\"\",LevenshteinSimilarity(A35,E35),\"\")","v":0.69230769230769229},null,"Box",94063]
["datrium.com",{"$f":"SLOOKUP(A36,H:H,H:H,0.6,0)","v":"Datrium"},{"$f":"IF(B36<>\"\",SimpleSim(A36,B36),\"\")","v":0.64935064935064934},null,{"$f":"LLOOKUP(A36,H:H,H:H,0.6,0)","v":"Datrium"},{"$f":"IF(E36<>\"\",LevenshteinSimilarity(A36,E36),\"\")","v":0.63636363636363635},null,"Branch",94063]
["delphix.com",{"$f":"SLOOKUP(A37,H:H,H:H,0.6,0)","v":"Delphix"},{"$f":"IF(B37<>\"\",SimpleSim(A37,B37),\"\")","v":0.63636363636363635},null,{"$f":"LLOOKUP(A37,H:H,H:H,0.6,0)","v":"Delphix"},{"$f":"IF(E37<>\"\",LevenshteinSimilarity(A37,E37),\"\")","v":0.63636363636363635},null,"Bright Capital",94025]
["didi-labs.com",{"$f":"SLOOKUP(A38,H:H,H:H,0.6,0)","v":"DiDi Labs"},{"$f":"IF(B38<>\"\",SimpleSim(A38,B38),\"\")","v":0.70512820512820507},null,{"$f":"LLOOKUP(A38,H:H,H:H,0.6,0)","v":"DiDi Labs"},{"$f":"IF(E38<>\"\",LevenshteinSimilarity(A38,E38),\"\")","v":0.69230769230769229},null,"Brillio",95054]
["dnanexusconnect.com",{"$f":"SLOOKUP(A39,H:H,H:H,0.6,0)","v":""},{"$f":"IF(B39<>\"\",SimpleSim(A39,B39),\"\")","v":""},null,{"$f":"LLOOKUP(A39,H:H,H:H,0.6,0)","v":""},{"$f":"IF(E39<>\"\",LevenshteinSimilarity(A39,E39),\"\")","v":""},null,"Broadcom",95131]
["dokkio.com",{"$f":"SLOOKUP(A40,H:H,H:H,0.6,0)","v":"Dokkio"},{"$f":"IF(B40<>\"\",SimpleSim(A40,B40),\"\")","v":0.65},null,{"$f":"LLOOKUP(A40,H:H,H:H,0.6,0)","v":"Dokkio"},{"$f":"IF(E40<>\"\",LevenshteinSimilarity(A40,E40),\"\")","v":0.6},null,"C3",94063]
["ea.com",{"$f":"SLOOKUP(A41,H:H,H:H,0.6,0)","v":"reputation.com"},{"$f":"IF(B41<>\"\",SimpleSim(A41,B41),\"\")","v":0.65833333333333333},null,{"$f":"LLOOKUP(A41,H:H,H:H,0.6,0)","v":""},{"$f":"IF(E41<>\"\",LevenshteinSimilarity(A41,E41),\"\")","v":""},null,"Cadence Design Systems",95134]
["egnyte.com",{"$f":"SLOOKUP(A42,H:H,H:H,0.6,0)","v":"Egnyte"},{"$f":"IF(B42<>\"\",SimpleSim(A42,B42),\"\")","v":0.6},null,{"$f":"LLOOKUP(A42,H:H,H:H,0.6,0)","v":"Egnyte"},{"$f":"IF(E42<>\"\",LevenshteinSimilarity(A42,E42),\"\")","v":0.6},null,"Canaan Partners",94025]
["elastic.co",{"$f":"SLOOKUP(A43,H:H,H:H,0.6,0)","v":"Elastic"},{"$f":"IF(B43<>\"\",SimpleSim(A43,B43),\"\")","v":0.7142857142857143},null,{"$f":"LLOOKUP(A43,H:H,H:H,0.6,0)","v":"Elastic"},{"$f":"IF(E43<>\"\",LevenshteinSimilarity(A43,E43),\"\")","v":0.7},null,"Carbon",94063]
["emc.com",{"$f":"SLOOKUP(A44,H:H,H:H,0.6,0)","v":"EMC Data Domain"},{"$f":"IF(B44<>\"\",SimpleSim(A44,B44),\"\")","v":0.77976190476190477},null,{"$f":"LLOOKUP(A44,H:H,H:H,0.6,0)","v":""},{"$f":"IF(E44<>\"\",LevenshteinSimilarity(A44,E44),\"\")","v":""},null,"Carta",94306]
["equinix.com",{"$f":"SLOOKUP(A45,H:H,H:H,0.6,0)","v":"Equinix"},{"$f":"IF(B45<>\"\",SimpleSim(A45,B45),\"\")","v":0.63636363636363635},null,{"$f":"LLOOKUP(A45,H:H,H:H,0.6,0)","v":"Equinix"},{"$f":"IF(E45<>\"\",LevenshteinSimilarity(A45,E45),\"\")","v":0.63636363636363635},null,"Charles River Ventures",94025]
["evernote.com",{"$f":"SLOOKUP(A46,H:H,H:H,0.6,0)","v":"Evernote"},{"$f":"IF(B46<>\"\",SimpleSim(A46,B46),\"\")","v":0.68055555555555547},null,{"$f":"LLOOKUP(A46,H:H,H:H,0.6,0)","v":"Evernote"},{"$f":"IF(E46<>\"\",LevenshteinSimilarity(A46,E46),\"\")","v":0.66666666666666663},null,"Chegg",95054]
["fanatics.com",{"$f":"SLOOKUP(A47,H:H,H:H,0.6,0)","v":"Fanatics"},{"$f":"IF(B47<>\"\",SimpleSim(A47,B47),\"\")","v":0.67857142857142849},null,{"$f":"LLOOKUP(A47,H:H,H:H,0.6,0)","v":"Fanatics"},{"$f":"IF(E47<>\"\",LevenshteinSimilarity(A47,E47),\"\")","v":0.66666666666666663},null,"CipherCloud",95110]
["forcepoint.com",{"$f":"SLOOKUP(A48,H:H,H:H,0.6,0)","v":"Forcepoint"},{"$f":"IF(B48<>\"\",SimpleSim(A48,B48),\"\")","v":0.75595238095238104},null,{"$f":"LLOOKUP(A48,H:H,H:H,0.6,0)","v":"Forcepoint"},{"$f":"IF(E48<>\"\",LevenshteinSimilarity(A48,E48),\"\")","v":0.7142857142857143},null,"Cisco",95134]
["gainsight.com",{"$f":"SLOOKUP(A49,H:H,H:H,0.6,0)","v":"Gainsight"},{"$f":"IF(B49<>\"\",SimpleSim(A49,B49),\"\")","v":0.69230769230769229},null,{"$f":"LLOOKUP(A49,H:H,H:H,0.6,0)","v":"Gainsight"},{"$f":"IF(E49<>\"\",LevenshteinSimilarity(A49,E49),\"\")","v":0.69230769230769229},null,"Clara Analytics",95050]
["garagescript.org",{"$f":"SLOOKUP(A50,H:H,H:H,0.6,0)","v":"GarageScript"},{"$f":"IF(B50<>\"\",SimpleSim(A50,B50),\"\")","v":0.80208333333333337},null,{"$f":"LLOOKUP(A50,H:H,H:H,0.6,0)","v":"GarageScript"},{"$f":"IF(E50<>\"\",LevenshteinSimilarity(A50,E50),\"\")","v":0.75},null,"Cloudbees",95110]
["genapsys.com",{"$f":"SLOOKUP(A51,H:H,H:H,0.6,0)","v":"GenapSys"},{"$f":"IF(B51<>\"\",SimpleSim(A51,B51),\"\")","v":0.66666666666666663},null,{"$f":"LLOOKUP(A51,H:H,H:H,0.6,0)","v":"GenapSys"},{"$f":"IF(E51<>\"\",LevenshteinSimilarity(A51,E51),\"\")","v":0.66666666666666663},null,"Clover Network",94085]
["genomichealth.com",{"$f":"SLOOKUP(A52,H:H,H:H,0.6,0)","v":"Genomic Health"},{"$f":"IF(B52<>\"\",SimpleSim(A52,B52),\"\")","v":0.832843137254902},null,{"$f":"LLOOKUP(A52,H:H,H:H,0.6,0)","v":"Genomic Health"},{"$f":"IF(E52<>\"\",LevenshteinSimilarity(A52,E52),\"\")","v":0.70588235294117652},null,"Codexis",94063]
["getmiles.com",{"$f":"SLOOKUP(A53,H:H,H:H,0.6,0)","v":""},{"$f":"IF(B53<>\"\",SimpleSim(A53,B53),\"\")","v":""},null,{"$f":"LLOOKUP(A53,H:H,H:H,0.6,0)","v":""},{"$f":"IF(E53<>\"\",LevenshteinSimilarity(A53,E53),\"\")","v":""},null,"ColorTokens",95054]
["gigya.com",{"$f":"SLOOKUP(A54,H:H,H:H,0.6,0)","v":""},{"$f":"IF(B54<>\"\",SimpleSim(A54,B54),\"\")","v":""},null,{"$f":"LLOOKUP(A54,H:H,H:H,0.6,0)","v":""},{"$f":"IF(E54<>\"\",LevenshteinSimilarity(A54,E54),\"\")","v":""},null,"Columbus Nova",94025]
["globalfoundries.com",{"$f":"SLOOKUP(A55,H:H,H:H,0.6,0)","v":"Globalfoundries"},{"$f":"IF(B55<>\"\",SimpleSim(A55,B55),\"\")","v":0.80701754385964919},null,{"$f":"LLOOKUP(A55,H:H,H:H,0.6,0)","v":"Globalfoundries"},{"$f":"IF(E55<>\"\",LevenshteinSimilarity(A55,E55),\"\")","v":0.78947368421052633},null,"CommonGenius",95113]
["go.wepay.com",{"$f":"SLOOKUP(A56,H:H,H:H,0.6,0)","v":""},{"$f":"IF(B56<>\"\",SimpleSim(A56,B56),\"\")","v":""},null,{"$f":"LLOOKUP(A56,H:H,H:H,0.6,0)","v":""},{"$f":"IF(E56<>\"\",LevenshteinSimilarity(A56,E56),\"\")","v":""},null,"Confident Cannabis"]
["goodrx.com",{"$f":"SLOOKUP(A57,H:H,H:H,0.6,0)","v":"GoodRx"},{"$f":"IF(B57<>\"\",SimpleSim(A57,B57),\"\")","v":0.65},null,{"$f":"LLOOKUP(A57,H:H,H:H,0.6,0)","v":"GoodRx"},{"$f":"IF(E57<>\"\",LevenshteinSimilarity(A57,E57),\"\")","v":0.6},null,"Course Hero",94063]
["google.com",{"$f":"SLOOKUP(A58,H:H,H:H,0.6,0)","v":"Google"},{"$f":"IF(B58<>\"\",SimpleSim(A58,B58),\"\")","v":0.65},null,{"$f":"LLOOKUP(A58,H:H,H:H,0.6,0)","v":"Google"},{"$f":"IF(E58<>\"\",LevenshteinSimilarity(A58,E58),\"\")","v":0.6},null,"Coursera",94041]
["greenfieldlabs.com",{"$f":"SLOOKUP(A59,H:H,H:H,0.6,0)","v":"Greenfield Labs"},{"$f":"IF(B59<>\"\",SimpleSim(A59,B59),\"\")","v":0.75925925925925919},null,{"$f":"LLOOKUP(A59,H:H,H:H,0.6,0)","v":"Greenfield Labs"},{"$f":"IF(E59<>\"\",LevenshteinSimilarity(A59,E59),\"\")","v":0.72222222222222221},null,"Cradlepoint",95032]
["greylock.com",{"$f":"SLOOKUP(A60,H:H,H:H,0.6,0)","v":"Greylock Partners"},{"$f":"IF(B60<>\"\",SimpleSim(A60,B60),\"\")","v":0.79861111111111116},null,{"$f":"LLOOKUP(A60,H:H,H:H,0.6,0)","v":""},{"$f":"IF(E60<>\"\",LevenshteinSimilarity(A60,E60),\"\")","v":""},null,"Crossover Hub",94538]
["groupon.com",{"$f":"SLOOKUP(A61,H:H,H:H,0.6,0)","v":"Groupon"},{"$f":"IF(B61<>\"\",SimpleSim(A61,B61),\"\")","v":0.66666666666666663},null,{"$f":"LLOOKUP(A61,H:H,H:H,0.6,0)","v":"Groupon"},{"$f":"IF(E61<>\"\",LevenshteinSimilarity(A61,E61),\"\")","v":0.63636363636363635},null,"DataStax",95054]
["hackerrank.com",{"$f":"SLOOKUP(A62,H:H,H:H,0.6,0)","v":"HackerRank"},{"$f":"IF(B62<>\"\",SimpleSim(A62,B62),\"\")","v":0.73809523809523814},null,{"$f":"LLOOKUP(A62,H:H,H:H,0.6,0)","v":"HackerRank"},{"$f":"IF(E62<>\"\",LevenshteinSimilarity(A62,E62),\"\")","v":0.7142857142857143},null,"Datavisor",94043]
["harmonicinc.com",{"$f":"SLOOKUP(A63,H:H,H:H,0.6,0)","v":"Harmonic"},{"$f":"IF(B63<>\"\",SimpleSim(A63,B63),\"\")","v":0.65500000000000003},null,{"$f":"LLOOKUP(A63,H:H,H:H,0.6,0)","v":""},{"$f":"IF(E63<>\"\",LevenshteinSimilarity(A63,E63),\"\")","v":""},null,"Datrium",94089]
["healthgorilla.com",{"$f":"SLOOKUP(A64,H:H,H:H,0.6,0)","v":"Health Gorilla"},{"$f":"IF(B64<>\"\",SimpleSim(A64,B64),\"\")","v":0.74836601307189543},null,{"$f":"LLOOKUP(A64,H:H,H:H,0.6,0)","v":"Health Gorilla"},{"$f":"IF(E64<>\"\",LevenshteinSimilarity(A64,E64),\"\")","v":0.70588235294117652},null,"DCM Ventures",94025]
["heartflow.com",{"$f":"SLOOKUP(A65,H:H,H:H,0.6,0)","v":"HeartFlow"},{"$f":"IF(B65<>\"\",SimpleSim(A65,B65),\"\")","v":0.70192307692307687},null,{"$f":"LLOOKUP(A65,H:H,H:H,0.6,0)","v":"HeartFlow"},{"$f":"IF(E65<>\"\",LevenshteinSimilarity(A65,E65),\"\")","v":0.69230769230769229},null,"Delphix",94063]
["hivemapper.com",{"$f":"SLOOKUP(A66,H:H,H:H,0.6,0)","v":"Hivemapper"},{"$f":"IF(B66<>\"\",SimpleSim(A66,B66),\"\")","v":0.72857142857142854},null,{"$f":"LLOOKUP(A66,H:H,H:H,0.6,0)","v":"Hivemapper"},{"$f":"IF(E66<>\"\",LevenshteinSimilarity(A66,E66),\"\")","v":0.7142857142857143},null,"DiDi Labs",94043]
["houzz.com",{"$f":"SLOOKUP(A67,H:H,H:H,0.6,0)","v":"Houzz"},{"$f":"IF(B67<>\"\",SimpleSim(A67,B67),\"\")","v":0.61111111111111116},null,{"$f":"LLOOKUP(A67,H:H,H:H,0.6,0)","v":""},{"$f":"IF(E67<>\"\",LevenshteinSimilarity(A67,E67),\"\")","v":""},null,"Diffbot",94025]
["hp.com",{"$f":"SLOOKUP(A68,H:H,H:H,0.6,0)","v":""},{"$f":"IF(B68<>\"\",SimpleSim(A68,B68),\"\")","v":""},null,{"$f":"LLOOKUP(A68,H:H,H:H,0.6,0)","v":""},{"$f":"IF(E68<>\"\",LevenshteinSimilarity(A68,E68),\"\")","v":""},null,"DNAnexus",94040]
["hpe.com",{"$f":"SLOOKUP(A69,H:H,H:H,0.6,0)","v":"Snowflake Computing"},{"$f":"IF(B69<>\"\",SimpleSim(A69,B69),\"\")","v":0.60204081632653061},null,{"$f":"LLOOKUP(A69,H:H,H:H,0.6,0)","v":""},{"$f":"IF(E69<>\"\",LevenshteinSimilarity(A69,E69),\"\")","v":""},null,"Dokkio",94403]
["ibm.com",{"$f":"SLOOKUP(A70,H:H,H:H,0.6,0)","v":"Inflection.com"},{"$f":"IF(B70<>\"\",SimpleSim(A70,B70),\"\")","v":0.61020408163265305},null,{"$f":"LLOOKUP(A70,H:H,H:H,0.6,0)","v":""},{"$f":"IF(E70<>\"\",LevenshteinSimilarity(A70,E70),\"\")","v":""},null,"Draper Fisher Jurvetson",94025]
["imperva.com",{"$f":"SLOOKUP(A71,H:H,H:H,0.6,0)","v":"Imperva"},{"$f":"IF(B71<>\"\",SimpleSim(A71,B71),\"\")","v":0.68181818181818177},null,{"$f":"LLOOKUP(A71,H:H,H:H,0.6,0)","v":"Imperva"},{"$f":"IF(E71<>\"\",LevenshteinSimilarity(A71,E71),\"\")","v":0.63636363636363635},null,"eBay",95125]
["incorta.com",{"$f":"SLOOKUP(A72,H:H,H:H,0.6,0)","v":"Incorta"},{"$f":"IF(B72<>\"\",SimpleSim(A72,B72),\"\")","v":0.75757575757575746},null,{"$f":"LLOOKUP(A72,H:H,H:H,0.6,0)","v":"Incorta"},{"$f":"IF(E72<>\"\",LevenshteinSimilarity(A72,E72),\"\")","v":0.63636363636363635},null,"Egnyte",94043]
["inflection.com",{"$f":"SLOOKUP(A73,H:H,H:H,0.6,0)","v":"Inflection.com"},{"$f":"IF(B73<>\"\",SimpleSim(A73,B73),\"\")","v":1},null,{"$f":"LLOOKUP(A73,H:H,H:H,0.6,0)","v":"Inflection.com"},{"$f":"IF(E73<>\"\",LevenshteinSimilarity(A73,E73),\"\")","v":1},null,"Elastic",94040]
["infogain.com",{"$f":"SLOOKUP(A74,H:H,H:H,0.6,0)","v":"Inflection.com"},{"$f":"IF(B74<>\"\",SimpleSim(A74,B74),\"\")","v":0.68981481481481477},null,{"$f":"LLOOKUP(A74,H:H,H:H,0.6,0)","v":"Infogain"},{"$f":"IF(E74<>\"\",LevenshteinSimilarity(A74,E74),\"\")","v":0.66666666666666663},null,"Electronic Arts",94065]
["informatica.com",{"$f":"SLOOKUP(A75,H:H,H:H,0.6,0)","v":"Informatica"},{"$f":"IF(B75<>\"\",SimpleSim(A75,B75),\"\")","v":0.78166666666666662},null,{"$f":"LLOOKUP(A75,H:H,H:H,0.6,0)","v":"Informatica"},{"$f":"IF(E75<>\"\",LevenshteinSimilarity(A75,E75),\"\")","v":0.73333333333333328},null,"EMC Data Domain",95054]
["intel.com",{"$f":"SLOOKUP(A76,H:H,H:H,0.6,0)","v":"Sterling Communications"},{"$f":"IF(B76<>\"\",SimpleSim(A76,B76),\"\")","v":0.67328042328042326},null,{"$f":"LLOOKUP(A76,H:H,H:H,0.6,0)","v":""},{"$f":"IF(E76<>\"\",LevenshteinSimilarity(A76,E76),\"\")","v":""},null,"Equinix",94065]
["intelliswift.com",{"$f":"SLOOKUP(A77,H:H,H:H,0.6,0)","v":"Intelliswift"},{"$f":"IF(B77<>\"\",SimpleSim(A77,B77),\"\")","v":0.75},null,{"$f":"LLOOKUP(A77,H:H,H:H,0.6,0)","v":"Intelliswift"},{"$f":"IF(E77<>\"\",LevenshteinSimilarity(A77,E77),\"\")","v":0.75},null,"Evernote",94063]
["jasper.com",{"$f":"SLOOKUP(A78,H:H,H:H,0.6,0)","v":"Jasper Wireless"},{"$f":"IF(B78<>\"\",SimpleSim(A78,B78),\"\")","v":0.7},null,{"$f":"LLOOKUP(A78,H:H,H:H,0.6,0)","v":""},{"$f":"IF(E78<>\"\",LevenshteinSimilarity(A78,E78),\"\")","v":""},null,"Facebook",94025]
["jobvite.com",{"$f":"SLOOKUP(A79,H:H,H:H,0.6,0)","v":"Jobvite"},{"$f":"IF(B79<>\"\",SimpleSim(A79,B79),\"\")","v":0.68181818181818177},null,{"$f":"LLOOKUP(A79,H:H,H:H,0.6,0)","v":"Jobvite"},{"$f":"IF(E79<>\"\",LevenshteinSimilarity(A79,E79),\"\")","v":0.63636363636363635},null,"Fanatics",94403]
["juniper.net",{"$f":"SLOOKUP(A80,H:H,H:H,0.6,0)","v":"Juniper Networks"},{"$f":"IF(B80<>\"\",SimpleSim(A80,B80),\"\")","v":1},null,{"$f":"LLOOKUP(A80,H:H,H:H,0.6,0)","v":"Juniper Networks"},{"$f":"IF(E80<>\"\",LevenshteinSimilarity(A80,E80),\"\")","v":1},null,"FileMaker",95054]
["khoslaventures.com",{"$f":"SLOOKUP(A81,H:H,H:H,0.6,0)","v":"Khosla Ventures"},{"$f":"IF(B81<>\"\",SimpleSim(A81,B81),\"\")","v":0.77407407407407414},null,{"$f":"LLOOKUP(A81,H:H,H:H,0.6,0)","v":"Khosla Ventures"},{"$f":"IF(E81<>\"\",LevenshteinSimilarity(A81,E81),\"\")","v":0.72222222222222221},null,"Flipboard",94301]
["kkr.com",{"$f":"SLOOKUP(A82,H:H,H:H,0.6,0)","v":""},{"$f":"IF(B82<>\"\",SimpleSim(A82,B82),\"\")","v":""},null,{"$f":"LLOOKUP(A82,H:H,H:H,0.6,0)","v":""},{"$f":"IF(E82<>\"\",LevenshteinSimilarity(A82,E82),\"\")","v":""},null,"Forcepoint",95032]
["lab126.com",{"$f":"SLOOKUP(A83,H:H,H:H,0.6,0)","v":"Lab126"},{"$f":"IF(B83<>\"\",SimpleSim(A83,B83),\"\")","v":0.6},null,{"$f":"LLOOKUP(A83,H:H,H:H,0.6,0)","v":"Lab126"},{"$f":"IF(E83<>\"\",LevenshteinSimilarity(A83,E83),\"\")","v":0.6},null,"Gainsight",94065]
["leetcode.com",{"$f":"SLOOKUP(A84,H:H,H:H,0.6,0)","v":"Leetcode"},{"$f":"IF(B84<>\"\",SimpleSim(A84,B84),\"\")","v":0.76666666666666661},null,{"$f":"LLOOKUP(A84,H:H,H:H,0.6,0)","v":"Leetcode"},{"$f":"IF(E84<>\"\",LevenshteinSimilarity(A84,E84),\"\")","v":0.66666666666666663},null,"GarageScript",95110]
["livongo.com",{"$f":"SLOOKUP(A85,H:H,H:H,0.6,0)","v":"Livongo"},{"$f":"IF(B85<>\"\",SimpleSim(A85,B85),\"\")","v":0.65909090909090906},null,{"$f":"LLOOKUP(A85,H:H,H:H,0.6,0)","v":"Livongo"},{"$f":"IF(E85<>\"\",LevenshteinSimilarity(A85,E85),\"\")","v":0.63636363636363635},null,"GenapSys",94063]
["logitech.com",{"$f":"SLOOKUP(A86,H:H,H:H,0.6,0)","v":"Logitech"},{"$f":"IF(B86<>\"\",SimpleSim(A86,B86),\"\")","v":0.69047619047619035},null,{"$f":"LLOOKUP(A86,H:H,H:H,0.6,0)","v":"Logitech"},{"$f":"IF(E86<>\"\",LevenshteinSimilarity(A86,E86),\"\")","v":0.66666666666666663},null,"Genomic Health",94063]
["lohika.com",{"$f":"SLOOKUP(A87,H:H,H:H,0.6,0)","v":"Lohika"},{"$f":"IF(B87<>\"\",SimpleSim(A87,B87),\"\")","v":0.65},null,{"$f":"LLOOKUP(A87,H:H,H:H,0.6,0)","v":"Lohika"},{"$f":"IF(E87<>\"\",LevenshteinSimilarity(A87,E87),\"\")","v":0.6},null,"GGV Capital",94025]
["lsvp.com",{"$f":"SLOOKUP(A88,H:H,H:H,0.6,0)","v":""},{"$f":"IF(B88<>\"\",SimpleSim(A88,B88),\"\")","v":""},null,{"$f":"LLOOKUP(A88,H:H,H:H,0.6,0)","v":""},{"$f":"IF(E88<>\"\",LevenshteinSimilarity(A88,E88),\"\")","v":""},null,"GI Partners",94025]
["mapr.com",{"$f":"SLOOKUP(A89,H:H,H:H,0.6,0)","v":"MapR Technologies"},{"$f":"IF(B89<>\"\",SimpleSim(A89,B89),\"\")","v":0.71874999999999989},null,{"$f":"LLOOKUP(A89,H:H,H:H,0.6,0)","v":""},{"$f":"IF(E89<>\"\",LevenshteinSimilarity(A89,E89),\"\")","v":""},null,"Gigya",94303]
["marketo.com",{"$f":"SLOOKUP(A90,H:H,H:H,0.6,0)","v":"Marketo"},{"$f":"IF(B90<>\"\",SimpleSim(A90,B90),\"\")","v":0.6607142857142857},null,{"$f":"LLOOKUP(A90,H:H,H:H,0.6,0)","v":"Marketo"},{"$f":"IF(E90<>\"\",LevenshteinSimilarity(A90,E90),\"\")","v":0.63636363636363635},null,"Globalfoundries",95054]
["marklogic.com",{"$f":"SLOOKUP(A91,H:H,H:H,0.6,0)","v":"MarkLogic"},{"$f":"IF(B91<>\"\",SimpleSim(A91,B91),\"\")","v":0.72722832722832709},null,{"$f":"LLOOKUP(A91,H:H,H:H,0.6,0)","v":"MarkLogic"},{"$f":"IF(E91<>\"\",LevenshteinSimilarity(A91,E91),\"\")","v":0.69230769230769229},null,"GoFundMe",94063]
["marvell.com",{"$f":"SLOOKUP(A92,H:H,H:H,0.6,0)","v":"Marvell"},{"$f":"IF(B92<>\"\",SimpleSim(A92,B92),\"\")","v":0.72727272727272729},null,{"$f":"LLOOKUP(A92,H:H,H:H,0.6,0)","v":"Marvell"},{"$f":"IF(E92<>\"\",LevenshteinSimilarity(A92,E92),\"\")","v":0.63636363636363635},null,"Gong.io",94403]
["mattermost.com",{"$f":"SLOOKUP(A93,H:H,H:H,0.6,0)","v":"Mattermost"},{"$f":"IF(B93<>\"\",SimpleSim(A93,B93),\"\")","v":0.74702380952380953},null,{"$f":"LLOOKUP(A93,H:H,H:H,0.6,0)","v":"Mattermost"},{"$f":"IF(E93<>\"\",LevenshteinSimilarity(A93,E93),\"\")","v":0.7142857142857143},null,"GoodRx",94107]
["mcafee.com",{"$f":"SLOOKUP(A94,H:H,H:H,0.6,0)","v":"McAfee"},{"$f":"IF(B94<>\"\",SimpleSim(A94,B94),\"\")","v":0.75},null,{"$f":"LLOOKUP(A94,H:H,H:H,0.6,0)","v":"McAfee"},{"$f":"IF(E94<>\"\",LevenshteinSimilarity(A94,E94),\"\")","v":0.6},null,"Google"]
["mentor.com",{"$f":"SLOOKUP(A95,H:H,H:H,0.6,0)","v":"Mentor Graphics"},{"$f":"IF(B95<>\"\",SimpleSim(A95,B95),\"\")","v":0.74004329004329006},null,{"$f":"LLOOKUP(A95,H:H,H:H,0.6,0)","v":""},{"$f":"IF(E95<>\"\",LevenshteinSimilarity(A95,E95),\"\")","v":""},null,"Green Bits",95113]
["metricstream.com",{"$f":"SLOOKUP(A96,H:H,H:H,0.6,0)","v":"MetricStream"},{"$f":"IF(B96<>\"\",SimpleSim(A96,B96),\"\")","v":0.82291666666666663},null,{"$f":"LLOOKUP(A96,H:H,H:H,0.6,0)","v":"MetricStream"},{"$f":"IF(E96<>\"\",LevenshteinSimilarity(A96,E96),\"\")","v":0.75},null,"Greenfield Labs",94304]
["mindsource.com",{"$f":"SLOOKUP(A97,H:H,H:H,0.6,0)","v":"Mindsource"},{"$f":"IF(B97<>\"\",SimpleSim(A97,B97),\"\")","v":0.74671201814058941},null,{"$f":"LLOOKUP(A97,H:H,H:H,0.6,0)","v":"Mindsource"},{"$f":"IF(E97<>\"\",LevenshteinSimilarity(A97,E97),\"\")","v":0.7142857142857143},null,"Greylock Partners",94025]
["modeln.com",{"$f":"SLOOKUP(A98,H:H,H:H,0.6,0)","v":"Model N"},{"$f":"IF(B98<>\"\",SimpleSim(A98,B98),\"\")","v":0.66666666666666663},null,{"$f":"LLOOKUP(A98,H:H,H:H,0.6,0)","v":"Model N"},{"$f":"IF(E98<>\"\",LevenshteinSimilarity(A98,E98),\"\")","v":0.6},null,"Groupon",95054]
["mongodb.com",{"$f":"SLOOKUP(A99,H:H,H:H,0.6,0)","v":"MongoDB"},{"$f":"IF(B99<>\"\",SimpleSim(A99,B99),\"\")","v":0.71212121212121204},null,{"$f":"LLOOKUP(A99,H:H,H:H,0.6,0)","v":"MongoDB"},{"$f":"IF(E99<>\"\",LevenshteinSimilarity(A99,E99),\"\")","v":0.63636363636363635},null,"GSR Ventures",94301]
["netapp.com",{"$f":"SLOOKUP(A100,H:H,H:H,0.6,0)","v":"NetApp"},{"$f":"IF(B100<>\"\",SimpleSim(A100,B100),\"\")","v":0.6},null,{"$f":"LLOOKUP(A100,H:H,H:H,0.6,0)","v":"NetApp"},{"$f":"IF(E100<>\"\",LevenshteinSimilarity(A100,E100),\"\")","v":0.6},null,"GV"]
["netflix.com",{"$f":"SLOOKUP(A101,H:H,H:H,0.6,0)","v":"Netflix"},{"$f":"IF(B101<>\"\",SimpleSim(A101,B101),\"\")","v":0.63636363636363635},null,{"$f":"LLOOKUP(A101,H:H,H:H,0.6,0)","v":"Netflix"},{"$f":"IF(E101<>\"\",LevenshteinSimilarity(A101,E101),\"\")","v":0.63636363636363635},null,"HackerRank",94041]
["netspring.io",{"$f":"SLOOKUP(A102,H:H,H:H,0.6,0)","v":"NetSpring"},{"$f":"IF(B102<>\"\",SimpleSim(A102,B102),\"\")","v":0.76190476190476186},null,{"$f":"LLOOKUP(A102,H:H,H:H,0.6,0)","v":"NetSpring"},{"$f":"IF(E102<>\"\",LevenshteinSimilarity(A102,E102),\"\")","v":0.75},null,"Harmonic",95134]
["nexgent.com",{"$f":"SLOOKUP(A103,H:H,H:H,0.6,0)","v":"NexGenT"},{"$f":"IF(B103<>\"\",SimpleSim(A103,B103),\"\")","v":0.63636363636363635},null,{"$f":"LLOOKUP(A103,H:H,H:H,0.6,0)","v":"NexGenT"},{"$f":"IF(E103<>\"\",LevenshteinSimilarity(A103,E103),\"\")","v":0.63636363636363635},null,"Health Gorilla",94086]
["nuro.ai",{"$f":"SLOOKUP(A104,H:H,H:H,0.6,0)","v":""},{"$f":"IF(B104<>\"\",SimpleSim(A104,B104),\"\")","v":""},null,{"$f":"LLOOKUP(A104,H:H,H:H,0.6,0)","v":""},{"$f":"IF(E104<>\"\",LevenshteinSimilarity(A104,E104),\"\")","v":""},null,"HeartFlow",94063]
["nutanix.com",{"$f":"SLOOKUP(A105,H:H,H:H,0.6,0)","v":"Nutanix"},{"$f":"IF(B105<>\"\",SimpleSim(A105,B105),\"\")","v":0.63636363636363635},null,{"$f":"LLOOKUP(A105,H:H,H:H,0.6,0)","v":"Nutanix"},{"$f":"IF(E105<>\"\",LevenshteinSimilarity(A105,E105),\"\")","v":0.63636363636363635},null,"Hewlett Packard",94304]
["nvidia.com",{"$f":"SLOOKUP(A106,H:H,H:H,0.6,0)","v":"NVIDIA"},{"$f":"IF(B106<>\"\",SimpleSim(A106,B106),\"\")","v":0.6},null,{"$f":"LLOOKUP(A106,H:H,H:H,0.6,0)","v":"NVIDIA"},{"$f":"IF(E106<>\"\",LevenshteinSimilarity(A106,E106),\"\")","v":0.6},null,"Hewlett-Packard Enterprise",95002]
["onesignal.com",{"$f":"SLOOKUP(A107,H:H,H:H,0.6,0)","v":"Onesignal"},{"$f":"IF(B107<>\"\",SimpleSim(A107,B107),\"\")","v":0.76923076923076927},null,{"$f":"LLOOKUP(A107,H:H,H:H,0.6,0)","v":"Onesignal"},{"$f":"IF(E107<>\"\",LevenshteinSimilarity(A107,E107),\"\")","v":0.69230769230769229},null,"Highland Capital Partners",94025]
["outreachcircle.com",{"$f":"SLOOKUP(A108,H:H,H:H,0.6,0)","v":"OutreachCircle"},{"$f":"IF(B108<>\"\",SimpleSim(A108,B108),\"\")","v":0.79265873015873012},null,{"$f":"LLOOKUP(A108,H:H,H:H,0.6,0)","v":"OutreachCircle"},{"$f":"IF(E108<>\"\",LevenshteinSimilarity(A108,E108),\"\")","v":0.77777777777777779},null,"Hiretual",94043]
["palantir.com",{"$f":"SLOOKUP(A109,H:H,H:H,0.6,0)","v":"Palantir"},{"$f":"IF(B109<>\"\",SimpleSim(A109,B109),\"\")","v":0.66666666666666663},null,{"$f":"LLOOKUP(A109,H:H,H:H,0.6,0)","v":"Palantir"},{"$f":"IF(E109<>\"\",LevenshteinSimilarity(A109,E109),\"\")","v":0.66666666666666663},null,"Hivemapper",94010]
["planful.com",{"$f":"SLOOKUP(A110,H:H,H:H,0.6,0)","v":"Planful"},{"$f":"IF(B110<>\"\",SimpleSim(A110,B110),\"\")","v":0.63636363636363635},null,{"$f":"LLOOKUP(A110,H:H,H:H,0.6,0)","v":"Planful"},{"$f":"IF(E110<>\"\",LevenshteinSimilarity(A110,E110),\"\")","v":0.63636363636363635},null,"Houzz",94301]
["poshmark.com",{"$f":"SLOOKUP(A111,H:H,H:H,0.6,0)","v":"Poshmark"},{"$f":"IF(B111<>\"\",SimpleSim(A111,B111),\"\")","v":0.73611111111111116},null,{"$f":"LLOOKUP(A111,H:H,H:H,0.6,0)","v":"Poshmark"},{"$f":"IF(E111<>\"\",LevenshteinSimilarity(A111,E111),\"\")","v":0.66666666666666663},null,"IBM",95141]
["proofpoint.com",{"$f":"SLOOKUP(A112,H:H,H:H,0.6,0)","v":"Proofpoint"},{"$f":"IF(B112<>\"\",SimpleSim(A112,B112),\"\")","v":0.73809523809523814},null,{"$f":"LLOOKUP(A112,H:H,H:H,0.6,0)","v":"Proofpoint"},{"$f":"IF(E112<>\"\",LevenshteinSimilarity(A112,E112),\"\")","v":0.7142857142857143},null,"Imperva",94065]
["qualys.com",{"$f":"SLOOKUP(A113,H:H,H:H,0.6,0)","v":"Qualys"},{"$f":"IF(B113<>\"\",SimpleSim(A113,B113),\"\")","v":0.6},null,{"$f":"LLOOKUP(A113,H:H,H:H,0.6,0)","v":"Qualys"},{"$f":"IF(E113<>\"\",LevenshteinSimilarity(A113,E113),\"\")","v":0.6},null,"Incorta",94403]
["quora.com",{"$f":"SLOOKUP(A114,H:H,H:H,0.6,0)","v":""},{"$f":"IF(B114<>\"\",SimpleSim(A114,B114),\"\")","v":""},null,{"$f":"LLOOKUP(A114,H:H,H:H,0.6,0)","v":""},{"$f":"IF(E114<>\"\",LevenshteinSimilarity(A114,E114),\"\")","v":""},null,"Inflection.com",94065]
["qwilt.com",{"$f":"SLOOKUP(A115,H:H,H:H,0.6,0)","v":""},{"$f":"IF(B115<>\"\",SimpleSim(A115,B115),\"\")","v":""},null,{"$f":"LLOOKUP(A115,H:H,H:H,0.6,0)","v":""},{"$f":"IF(E115<>\"\",LevenshteinSimilarity(A115,E115),\"\")","v":""},null,"Infogain",95032]
["reputation.com",{"$f":"SLOOKUP(A116,H:H,H:H,0.6,0)","v":"reputation.com"},{"$f":"IF(B116<>\"\",SimpleSim(A116,B116),\"\")","v":1},null,{"$f":"LLOOKUP(A116,H:H,H:H,0.6,0)","v":"reputation.com"},{"$f":"IF(E116<>\"\",LevenshteinSimilarity(A116,E116),\"\")","v":1},null,"Informatica",94063]
["robinhood.com",{"$f":"SLOOKUP(A117,H:H,H:H,0.6,0)","v":"Robinhood"},{"$f":"IF(B117<>\"\",SimpleSim(A117,B117),\"\")","v":0.73076923076923073},null,{"$f":"LLOOKUP(A117,H:H,H:H,0.6,0)","v":"Robinhood"},{"$f":"IF(E117<>\"\",LevenshteinSimilarity(A117,E117),\"\")","v":0.69230769230769229},null,"Institutional Venture Partners",94025]
["roblox.com",{"$f":"SLOOKUP(A118,H:H,H:H,0.6,0)","v":"Roblox"},{"$f":"IF(B118<>\"\",SimpleSim(A118,B118),\"\")","v":0.65},null,{"$f":"LLOOKUP(A118,H:H,H:H,0.6,0)","v":"Roblox"},{"$f":"IF(E118<>\"\",LevenshteinSimilarity(A118,E118),\"\")","v":0.6},null,"Intel",95054]
["roku.com",{"$f":"SLOOKUP(A119,H:H,H:H,0.6,0)","v":""},{"$f":"IF(B119<>\"\",SimpleSim(A119,B119),\"\")","v":""},null,{"$f":"LLOOKUP(A119,H:H,H:H,0.6,0)","v":""},{"$f":"IF(E119<>\"\",LevenshteinSimilarity(A119,E119),\"\")","v":""},null,"Intelliswift",94560]
["sandisk.com",{"$f":"SLOOKUP(A120,H:H,H:H,0.6,0)","v":"Sandisk"},{"$f":"IF(B120<>\"\",SimpleSim(A120,B120),\"\")","v":0.63636363636363635},null,{"$f":"LLOOKUP(A120,H:H,H:H,0.6,0)","v":"Sandisk"},{"$f":"IF(E120<>\"\",LevenshteinSimilarity(A120,E120),\"\")","v":0.63636363636363635},null,"InterWest Partners",94025]
["sap.com",{"$f":"SLOOKUP(A121,H:H,H:H,0.6,0)","v":"Snowflake Computing"},{"$f":"IF(B121<>\"\",SimpleSim(A121,B121),\"\")","v":0.63945578231292521},null,{"$f":"LLOOKUP(A121,H:H,H:H,0.6,0)","v":""},{"$f":"IF(E121<>\"\",LevenshteinSimilarity(A121,E121),\"\")","v":""},null,"Intuit",94043]
["scalyr.com",{"$f":"SLOOKUP(A122,H:H,H:H,0.6,0)","v":"Scalyr"},{"$f":"IF(B122<>\"\",SimpleSim(A122,B122),\"\")","v":0.65},null,{"$f":"LLOOKUP(A122,H:H,H:H,0.6,0)","v":"Scalyr"},{"$f":"IF(E122<>\"\",LevenshteinSimilarity(A122,E122),\"\")","v":0.6},null,"Invoice2go",94063]
["seagate.com",{"$f":"SLOOKUP(A123,H:H,H:H,0.6,0)","v":"Seagate"},{"$f":"IF(B123<>\"\",SimpleSim(A123,B123),\"\")","v":0.63636363636363635},null,{"$f":"LLOOKUP(A123,H:H,H:H,0.6,0)","v":"Seagate"},{"$f":"IF(E123<>\"\",LevenshteinSimilarity(A123,E123),\"\")","v":0.63636363636363635},null,"Jasper Wireless",94043]
["securly.com",{"$f":"SLOOKUP(A124,H:H,H:H,0.6,0)","v":"Securly"},{"$f":"IF(B124<>\"\",SimpleSim(A124,B124),\"\")","v":0.66666666666666663},null,{"$f":"LLOOKUP(A124,H:H,H:H,0.6,0)","v":"Securly"},{"$f":"IF(E124<>\"\",LevenshteinSimilarity(A124,E124),\"\")","v":0.63636363636363635},null,"Jobvite",94402]
["sendbird.com",{"$f":"SLOOKUP(A125,H:H,H:H,0.6,0)","v":"Sendbird"},{"$f":"IF(B125<>\"\",SimpleSim(A125,B125),\"\")","v":0.66666666666666663},null,{"$f":"LLOOKUP(A125,H:H,H:H,0.6,0)","v":"Sendbird"},{"$f":"IF(E125<>\"\",LevenshteinSimilarity(A125,E125),\"\")","v":0.66666666666666663},null,"Juniper Networks",94089]
["sendgrid.com",{"$f":"SLOOKUP(A126,H:H,H:H,0.6,0)","v":"Sendgrid"},{"$f":"IF(B126<>\"\",SimpleSim(A126,B126),\"\")","v":0.66666666666666663},null,{"$f":"LLOOKUP(A126,H:H,H:H,0.6,0)","v":"Sendgrid"},{"$f":"IF(E126<>\"\",LevenshteinSimilarity(A126,E126),\"\")","v":0.66666666666666663},null,"Katerra",94025]
["sentinelone.com",{"$f":"SLOOKUP(A127,H:H,H:H,0.6,0)","v":"SentinelOne"},{"$f":"IF(B127<>\"\",SimpleSim(A127,B127),\"\")","v":0.7407407407407407},null,{"$f":"LLOOKUP(A127,H:H,H:H,0.6,0)","v":"SentinelOne"},{"$f":"IF(E127<>\"\",LevenshteinSimilarity(A127,E127),\"\")","v":0.73333333333333328},null,"Khan Academy",94043]
["sequoiacap.com",{"$f":"SLOOKUP(A128,H:H,H:H,0.6,0)","v":"Sequoia Capital"},{"$f":"IF(B128<>\"\",SimpleSim(A128,B128),\"\")","v":0.7761904761904761},null,{"$f":"LLOOKUP(A128,H:H,H:H,0.6,0)","v":"Sequoia Capital"},{"$f":"IF(E128<>\"\",LevenshteinSimilarity(A128,E128),\"\")","v":0.6428571428571429},null,"Khosla Ventures",94025]
["shastaventures.com",{"$f":"SLOOKUP(A129,H:H,H:H,0.6,0)","v":"Shasta Ventures"},{"$f":"IF(B129<>\"\",SimpleSim(A129,B129),\"\")","v":0.75555555555555554},null,{"$f":"LLOOKUP(A129,H:H,H:H,0.6,0)","v":"Shasta Ventures"},{"$f":"IF(E129<>\"\",LevenshteinSimilarity(A129,E129),\"\")","v":0.72222222222222221},null,"Kleiner Perkins",94025]
["shazam.com",{"$f":"SLOOKUP(A130,H:H,H:H,0.6,0)","v":"Shazam"},{"$f":"IF(B130<>\"\",SimpleSim(A130,B130),\"\")","v":0.6166666666666667},null,{"$f":"LLOOKUP(A130,H:H,H:H,0.6,0)","v":"Shazam"},{"$f":"IF(E130<>\"\",LevenshteinSimilarity(A130,E130),\"\")","v":0.6},null,"Kohlberg Kravis Roberts",94025]
["shutterfly.com",{"$f":"SLOOKUP(A131,H:H,H:H,0.6,0)","v":"Shutterfly"},{"$f":"IF(B131<>\"\",SimpleSim(A131,B131),\"\")","v":0.7142857142857143},null,{"$f":"LLOOKUP(A131,H:H,H:H,0.6,0)","v":"Shutterfly"},{"$f":"IF(E131<>\"\",LevenshteinSimilarity(A131,E131),\"\")","v":0.7142857142857143},null,"Lab126",95014]
["sibly.co",{"$f":"SLOOKUP(A132,H:H,H:H,0.6,0)","v":"Sibly"},{"$f":"IF(B132<>\"\",SimpleSim(A132,B132),\"\")","v":0.625},null,{"$f":"LLOOKUP(A132,H:H,H:H,0.6,0)","v":"Sibly"},{"$f":"IF(E132<>\"\",LevenshteinSimilarity(A132,E132),\"\")","v":0.625},null,"Leetcode",94303]
["signalfx.com",{"$f":"SLOOKUP(A133,H:H,H:H,0.6,0)","v":"SignalFx"},{"$f":"IF(B133<>\"\",SimpleSim(A133,B133),\"\")","v":0.66666666666666663},null,{"$f":"LLOOKUP(A133,H:H,H:H,0.6,0)","v":"SignalFx"},{"$f":"IF(E133<>\"\",LevenshteinSimilarity(A133,E133),\"\")","v":0.66666666666666663},null,"Lightspeed Venture Partners",94025]
["sizmek.com",{"$f":"SLOOKUP(A134,H:H,H:H,0.6,0)","v":"Sizmek"},{"$f":"IF(B134<>\"\",SimpleSim(A134,B134),\"\")","v":0.625},null,{"$f":"LLOOKUP(A134,H:H,H:H,0.6,0)","v":"Sizmek"},{"$f":"IF(E134<>\"\",LevenshteinSimilarity(A134,E134),\"\")","v":0.6},null,"Livongo",94041]
["smugmug.com",{"$f":"SLOOKUP(A135,H:H,H:H,0.6,0)","v":"SmugMug"},{"$f":"IF(B135<>\"\",SimpleSim(A135,B135),\"\")","v":0.68181818181818177},null,{"$f":"LLOOKUP(A135,H:H,H:H,0.6,0)","v":"SmugMug"},{"$f":"IF(E135<>\"\",LevenshteinSimilarity(A135,E135),\"\")","v":0.63636363636363635},null,"Logitech",94560]
["snaplogic.com",{"$f":"SLOOKUP(A136,H:H,H:H,0.6,0)","v":"SnapLogic"},{"$f":"IF(B136<>\"\",SimpleSim(A136,B136),\"\")","v":0.71623931623931614},null,{"$f":"LLOOKUP(A136,H:H,H:H,0.6,0)","v":"SnapLogic"},{"$f":"IF(E136<>\"\",LevenshteinSimilarity(A136,E136),\"\")","v":0.69230769230769229},null,"Lohika",94402]
["snowflake.com",{"$f":"SLOOKUP(A137,H:H,H:H,0.6,0)","v":"Snowflake Computing"},{"$f":"IF(B137<>\"\",SimpleSim(A137,B137),\"\")","v":1},null,{"$f":"LLOOKUP(A137,H:H,H:H,0.6,0)","v":"Snowflake Computing"},{"$f":"IF(E137<>\"\",LevenshteinSimilarity(A137,E137),\"\")","v":1},null,"Machine Zone",94303]
["sslmda.com",{"$f":"SLOOKUP(A138,H:H,H:H,0.6,0)","v":""},{"$f":"IF(B138<>\"\",SimpleSim(A138,B138),\"\")","v":""},null,{"$f":"LLOOKUP(A138,H:H,H:H,0.6,0)","v":""},{"$f":"IF(E138<>\"\",LevenshteinSimilarity(A138,E138),\"\")","v":""},null,"Makena Capital Management",94025]
["sterlingpr.com",{"$f":"SLOOKUP(A139,H:H,H:H,0.6,0)","v":"Sterling Communications"},{"$f":"IF(B139<>\"\",SimpleSim(A139,B139),\"\")","v":0.81785714285714284},null,{"$f":"LLOOKUP(A139,H:H,H:H,0.6,0)","v":""},{"$f":"IF(E139<>\"\",LevenshteinSimilarity(A139,E139),\"\")","v":""},null,"MapR Technologies",95134]
["stormventures.com",{"$f":"SLOOKUP(A140,H:H,H:H,0.6,0)","v":"Storm Ventures"},{"$f":"IF(B140<>\"\",SimpleSim(A140,B140),\"\")","v":0.79019607843137252},null,{"$f":"LLOOKUP(A140,H:H,H:H,0.6,0)","v":"Storm Ventures"},{"$f":"IF(E140<>\"\",LevenshteinSimilarity(A140,E140),\"\")","v":0.70588235294117652},null,"Marketo",94404]
["sumologic.com",{"$f":"SLOOKUP(A141,H:H,H:H,0.6,0)","v":"Sumo Logic"},{"$f":"IF(B141<>\"\",SimpleSim(A141,B141),\"\")","v":0.70842490842490824},null,{"$f":"LLOOKUP(A141,H:H,H:H,0.6,0)","v":"Sumo Logic"},{"$f":"IF(E141<>\"\",LevenshteinSimilarity(A141,E141),\"\")","v":0.61538461538461542},null,"MarkLogic",94070]
["surveymonkey.com",{"$f":"SLOOKUP(A142,H:H,H:H,0.6,0)","v":"SurveyMonkey"},{"$f":"IF(B142<>\"\",SimpleSim(A142,B142),\"\")","v":0.77864583333333337},null,{"$f":"LLOOKUP(A142,H:H,H:H,0.6,0)","v":"SurveyMonkey"},{"$f":"IF(E142<>\"\",LevenshteinSimilarity(A142,E142),\"\")","v":0.75},null,"Marvell",95054]
["svgventures.com",{"$f":"SLOOKUP(A143,H:H,H:H,0.6,0)","v":"SVG Ventures"},{"$f":"IF(B143<>\"\",SimpleSim(A143,B143),\"\")","v":0.70666666666666667},null,{"$f":"LLOOKUP(A143,H:H,H:H,0.6,0)","v":"SVG Ventures"},{"$f":"IF(E143<>\"\",LevenshteinSimilarity(A143,E143),\"\")","v":0.66666666666666663},null,"Mattermost",94301]
["syllable.ai",{"$f":"SLOOKUP(A144,H:H,H:H,0.6,0)","v":"Syllable.ai"},{"$f":"IF(B144<>\"\",SimpleSim(A144,B144),\"\")","v":1},null,{"$f":"LLOOKUP(A144,H:H,H:H,0.6,0)","v":"Syllable.ai"},{"$f":"IF(E144<>\"\",LevenshteinSimilarity(A144,E144),\"\")","v":1},null,"Mayfield Fund",94025]
["symantec.com",{"$f":"SLOOKUP(A145,H:H,H:H,0.6,0)","v":"Symantec"},{"$f":"IF(B145<>\"\",SimpleSim(A145,B145),\"\")","v":0.70486111111111116},null,{"$f":"LLOOKUP(A145,H:H,H:H,0.6,0)","v":"Symantec"},{"$f":"IF(E145<>\"\",LevenshteinSimilarity(A145,E145),\"\")","v":0.66666666666666663},null,"McAfee",95054]
["synopsys.com",{"$f":"SLOOKUP(A146,H:H,H:H,0.6,0)","v":"Synopsys"},{"$f":"IF(B146<>\"\",SimpleSim(A146,B146),\"\")","v":0.6875},null,{"$f":"LLOOKUP(A146,H:H,H:H,0.6,0)","v":"Synopsys"},{"$f":"IF(E146<>\"\",LevenshteinSimilarity(A146,E146),\"\")","v":0.66666666666666663},null,"Menlo Ventures",94025]
["talentseer.com",{"$f":"SLOOKUP(A147,H:H,H:H,0.6,0)","v":"TalentSeer"},{"$f":"IF(B147<>\"\",SimpleSim(A147,B147),\"\")","v":0.7142857142857143},null,{"$f":"LLOOKUP(A147,H:H,H:H,0.6,0)","v":"TalentSeer"},{"$f":"IF(E147<>\"\",LevenshteinSimilarity(A147,E147),\"\")","v":0.7142857142857143},null,"Mentor Graphics",94538]
["taos.com",{"$f":"SLOOKUP(A148,H:H,H:H,0.6,0)","v":"Tata Consultancy Services"},{"$f":"IF(B148<>\"\",SimpleSim(A148,B148),\"\")","v":0.60833333333333339},null,{"$f":"LLOOKUP(A148,H:H,H:H,0.6,0)","v":""},{"$f":"IF(E148<>\"\",LevenshteinSimilarity(A148,E148),\"\")","v":""},null,"MetaVision",94403]
["tascent.com",{"$f":"SLOOKUP(A149,H:H,H:H,0.6,0)","v":"Tascent"},{"$f":"IF(B149<>\"\",SimpleSim(A149,B149),\"\")","v":0.65909090909090906},null,{"$f":"LLOOKUP(A149,H:H,H:H,0.6,0)","v":"Tascent"},{"$f":"IF(E149<>\"\",LevenshteinSimilarity(A149,E149),\"\")","v":0.63636363636363635},null,"MetricStream",94303]
["tcs.com",{"$f":"SLOOKUP(A150,H:H,H:H,0.6,0)","v":""},{"$f":"IF(B150<>\"\",SimpleSim(A150,B150),\"\")","v":""},null,{"$f":"LLOOKUP(A150,H:H,H:H,0.6,0)","v":""},{"$f":"IF(E150<>\"\",LevenshteinSimilarity(A150,E150),\"\")","v":""},null,"Miles",95113]
["tibco.com",{"$f":"SLOOKUP(A151,H:H,H:H,0.6,0)","v":"TIBCO Software"},{"$f":"IF(B151<>\"\",SimpleSim(A151,B151),\"\")","v":0.80555555555555558},null,{"$f":"LLOOKUP(A151,H:H,H:H,0.6,0)","v":""},{"$f":"IF(E151<>\"\",LevenshteinSimilarity(A151,E151),\"\")","v":""},null,"Mindsource",94043]
["triplepointcapital.com",{"$f":"SLOOKUP(A152,H:H,H:H,0.6,0)","v":"TriplePoint Capital"},{"$f":"IF(B152<>\"\",SimpleSim(A152,B152),\"\")","v":0.85245310245310246},null,{"$f":"LLOOKUP(A152,H:H,H:H,0.6,0)","v":"TriplePoint Capital"},{"$f":"IF(E152<>\"\",LevenshteinSimilarity(A152,E152),\"\")","v":0.77272727272727271},null,"Model N",94404]
["tryascend.com",{"$f":"SLOOKUP(A153,H:H,H:H,0.6,0)","v":""},{"$f":"IF(B153<>\"\",SimpleSim(A153,B153),\"\")","v":""},null,{"$f":"LLOOKUP(A153,H:H,H:H,0.6,0)","v":""},{"$f":"IF(E153<>\"\",LevenshteinSimilarity(A153,E153),\"\")","v":""},null,"Mohr Davidow Ventures",94025]
["tunein.com",{"$f":"SLOOKUP(A154,H:H,H:H,0.6,0)","v":"Sterling Communications"},{"$f":"IF(B154<>\"\",SimpleSim(A154,B154),\"\")","v":0.64880952380952384},null,{"$f":"LLOOKUP(A154,H:H,H:H,0.6,0)","v":"TuneIn"},{"$f":"IF(E154<>\"\",LevenshteinSimilarity(A154,E154),\"\")","v":0.6},null,"MongoDB",94301]
["unitq.com",{"$f":"SLOOKUP(A155,H:H,H:H,0.6,0)","v":"Sterling Communications"},{"$f":"IF(B155<>\"\",SimpleSim(A155,B155),\"\")","v":0.6128747795414462},null,{"$f":"LLOOKUP(A155,H:H,H:H,0.6,0)","v":""},{"$f":"IF(E155<>\"\",LevenshteinSimilarity(A155,E155),\"\")","v":""},null,"Morgenthaler",94025]
["usa.baidu.com",{"$f":"SLOOKUP(A156,H:H,H:H,0.6,0)","v":""},{"$f":"IF(B156<>\"\",SimpleSim(A156,B156),\"\")","v":""},null,{"$f":"LLOOKUP(A156,H:H,H:H,0.6,0)","v":""},{"$f":"IF(E156<>\"\",LevenshteinSimilarity(A156,E156),\"\")","v":""},null,"Mountain View Staffing",94303]
["usa.visa.com",{"$f":"SLOOKUP(A157,H:H,H:H,0.6,0)","v":""},{"$f":"IF(B157<>\"\",SimpleSim(A157,B157),\"\")","v":""},null,{"$f":"LLOOKUP(A157,H:H,H:H,0.6,0)","v":""},{"$f":"IF(E157<>\"\",LevenshteinSimilarity(A157,E157),\"\")","v":""},null,"NetApp",94089]
["verkada.com",{"$f":"SLOOKUP(A158,H:H,H:H,0.6,0)","v":"Verkada"},{"$f":"IF(B158<>\"\",SimpleSim(A158,B158),\"\")","v":0.63636363636363635},null,{"$f":"LLOOKUP(A158,H:H,H:H,0.6,0)","v":"Verkada"},{"$f":"IF(E158<>\"\",LevenshteinSimilarity(A158,E158),\"\")","v":0.63636363636363635},null,"Netflix",95032]
["virtusa.com",{"$f":"SLOOKUP(A159,H:H,H:H,0.6,0)","v":"Virtusa"},{"$f":"IF(B159<>\"\",SimpleSim(A159,B159),\"\")","v":0.63636363636363635},null,{"$f":"LLOOKUP(A159,H:H,H:H,0.6,0)","v":"Virtusa"},{"$f":"IF(E159<>\"\",LevenshteinSimilarity(A159,E159),\"\")","v":0.63636363636363635},null,"NetSpring",94040]
["wealthfront.com",{"$f":"SLOOKUP(A160,H:H,H:H,0.6,0)","v":"Wealthfront"},{"$f":"IF(B160<>\"\",SimpleSim(A160,B160),\"\")","v":0.7407407407407407},null,{"$f":"LLOOKUP(A160,H:H,H:H,0.6,0)","v":"Wealthfront"},{"$f":"IF(E160<>\"\",LevenshteinSimilarity(A160,E160),\"\")","v":0.73333333333333328},null,"New Enterprise Associates",94025]
["whatsapp.com",{"$f":"SLOOKUP(A161,H:H,H:H,0.6,0)","v":"WhatsApp"},{"$f":"IF(B161<>\"\",SimpleSim(A161,B161),\"\")","v":0.66666666666666663},null,{"$f":"LLOOKUP(A161,H:H,H:H,0.6,0)","v":"WhatsApp"},{"$f":"IF(E161<>\"\",LevenshteinSimilarity(A161,E161),\"\")","v":0.66666666666666663},null,"NexGenT",95110]
["wiser.com",{"$f":"SLOOKUP(A162,H:H,H:H,0.6,0)","v":"Wiser Solutions"},{"$f":"IF(B162<>\"\",SimpleSim(A162,B162),\"\")","v":0.68055555555555558},null,{"$f":"LLOOKUP(A162,H:H,H:H,0.6,0)","v":""},{"$f":"IF(E162<>\"\",LevenshteinSimilarity(A162,E162),\"\")","v":""},null,"Nextgen Technologies",95112]
["workboard.com",{"$f":"SLOOKUP(A163,H:H,H:H,0.6,0)","v":"WorkBoard"},{"$f":"IF(B163<>\"\",SimpleSim(A163,B163),\"\")","v":0.73076923076923073},null,{"$f":"LLOOKUP(A163,H:H,H:H,0.6,0)","v":"WorkBoard"},{"$f":"IF(E163<>\"\",LevenshteinSimilarity(A163,E163),\"\")","v":0.69230769230769229},null,"Nexus Venture Partners",94025]
["www.accel.com",{"$f":"SLOOKUP(A164,H:H,H:H,0.6,0)","v":""},{"$f":"IF(B164<>\"\",SimpleSim(A164,B164),\"\")","v":""},null,{"$f":"LLOOKUP(A164,H:H,H:H,0.6,0)","v":""},{"$f":"IF(E164<>\"\",LevenshteinSimilarity(A164,E164),\"\")","v":""},null,"Nuance Communications",94085]
["www.adeccogroup.com",{"$f":"SLOOKUP(A165,H:H,H:H,0.6,0)","v":""},{"$f":"IF(B165<>\"\",SimpleSim(A165,B165),\"\")","v":""},null,{"$f":"LLOOKUP(A165,H:H,H:H,0.6,0)","v":""},{"$f":"IF(E165<>\"\",LevenshteinSimilarity(A165,E165),\"\")","v":""},null,"Nuro",94043]
["www.adobe.com",{"$f":"SLOOKUP(A166,H:H,H:H,0.6,0)","v":""},{"$f":"IF(B166<>\"\",SimpleSim(A166,B166),\"\")","v":""},null,{"$f":"LLOOKUP(A166,H:H,H:H,0.6,0)","v":""},{"$f":"IF(E166<>\"\",LevenshteinSimilarity(A166,E166),\"\")","v":""},null,"Nutanix",95112]
["www.alienvault.com",{"$f":"SLOOKUP(A167,H:H,H:H,0.6,0)","v":""},{"$f":"IF(B167<>\"\",SimpleSim(A167,B167),\"\")","v":""},null,{"$f":"LLOOKUP(A167,H:H,H:H,0.6,0)","v":""},{"$f":"IF(E167<>\"\",LevenshteinSimilarity(A167,E167),\"\")","v":""},null,"NVIDIA",95050]
["www.amd.com",{"$f":"SLOOKUP(A168,H:H,H:H,0.6,0)","v":""},{"$f":"IF(B168<>\"\",SimpleSim(A168,B168),\"\")","v":""},null,{"$f":"LLOOKUP(A168,H:H,H:H,0.6,0)","v":""},{"$f":"IF(E168<>\"\",LevenshteinSimilarity(A168,E168),\"\")","v":""},null,"Onesignal",94402]
["www.amplypower.com",{"$f":"SLOOKUP(A169,H:H,H:H,0.6,0)","v":""},{"$f":"IF(B169<>\"\",SimpleSim(A169,B169),\"\")","v":""},null,{"$f":"LLOOKUP(A169,H:H,H:H,0.6,0)","v":""},{"$f":"IF(E169<>\"\",LevenshteinSimilarity(A169,E169),\"\")","v":""},null,"Onset Ventures",94025]
["www.apple.com",{"$f":"SLOOKUP(A170,H:H,H:H,0.6,0)","v":""},{"$f":"IF(B170<>\"\",SimpleSim(A170,B170),\"\")","v":""},null,{"$f":"LLOOKUP(A170,H:H,H:H,0.6,0)","v":""},{"$f":"IF(E170<>\"\",LevenshteinSimilarity(A170,E170),\"\")","v":""},null,"Oracle",94065]
["www.armory.io",{"$f":"SLOOKUP(A171,H:H,H:H,0.6,0)","v":""},{"$f":"IF(B171<>\"\",SimpleSim(A171,B171),\"\")","v":""},null,{"$f":"LLOOKUP(A171,H:H,H:H,0.6,0)","v":""},{"$f":"IF(E171<>\"\",LevenshteinSimilarity(A171,E171),\"\")","v":""},null,"OutreachCircle",94022]
["www.asus.com",{"$f":"SLOOKUP(A172,H:H,H:H,0.6,0)","v":""},{"$f":"IF(B172<>\"\",SimpleSim(A172,B172),\"\")","v":""},null,{"$f":"LLOOKUP(A172,H:H,H:H,0.6,0)","v":""},{"$f":"IF(E172<>\"\",LevenshteinSimilarity(A172,E172),\"\")","v":""},null,"Palantir",94301]
["www.barracuda.com",{"$f":"SLOOKUP(A173,H:H,H:H,0.6,0)","v":""},{"$f":"IF(B173<>\"\",SimpleSim(A173,B173),\"\")","v":""},null,{"$f":"LLOOKUP(A173,H:H,H:H,0.6,0)","v":""},{"$f":"IF(E173<>\"\",LevenshteinSimilarity(A173,E173),\"\")","v":""},null,"Palo Alto Staffing",94303]
["www.bluejeans.com",{"$f":"SLOOKUP(A174,H:H,H:H,0.6,0)","v":""},{"$f":"IF(B174<>\"\",SimpleSim(A174,B174),\"\")","v":""},null,{"$f":"LLOOKUP(A174,H:H,H:H,0.6,0)","v":""},{"$f":"IF(E174<>\"\",LevenshteinSimilarity(A174,E174),\"\")","v":""},null,"PayPal",95131]
["www.bluerivertechnology.com",{"$f":"SLOOKUP(A175,H:H,H:H,0.6,0)","v":"Blue River Technology"},{"$f":"IF(B175<>\"\",SimpleSim(A175,B175),\"\")","v":0.6709876543209875},null,{"$f":"LLOOKUP(A175,H:H,H:H,0.6,0)","v":"Blue River Technology"},{"$f":"IF(E175<>\"\",LevenshteinSimilarity(A175,E175),\"\")","v":0.62962962962962965},null,"Planful",94065]
["www.brillio.com",{"$f":"SLOOKUP(A176,H:H,H:H,0.6,0)","v":""},{"$f":"IF(B176<>\"\",SimpleSim(A176,B176),\"\")","v":""},null,{"$f":"LLOOKUP(A176,H:H,H:H,0.6,0)","v":""},{"$f":"IF(E176<>\"\",LevenshteinSimilarity(A176,E176),\"\")","v":""},null,"Poshmark",94065]
["www.broadcom.com",{"$f":"SLOOKUP(A177,H:H,H:H,0.6,0)","v":"Broadcom"},{"$f":"IF(B177<>\"\",SimpleSim(A177,B177),\"\")","v":0.63541666666666663},null,{"$f":"LLOOKUP(A177,H:H,H:H,0.6,0)","v":""},{"$f":"IF(E177<>\"\",LevenshteinSimilarity(A177,E177),\"\")","v":""},null,"Proofpoint",94089]
["www.cadence.com",{"$f":"SLOOKUP(A178,H:H,H:H,0.6,0)","v":""},{"$f":"IF(B178<>\"\",SimpleSim(A178,B178),\"\")","v":""},null,{"$f":"LLOOKUP(A178,H:H,H:H,0.6,0)","v":""},{"$f":"IF(E178<>\"\",LevenshteinSimilarity(A178,E178),\"\")","v":""},null,"Proteus Digital Health",94065]
["www.chegg.com",{"$f":"SLOOKUP(A179,H:H,H:H,0.6,0)","v":""},{"$f":"IF(B179<>\"\",SimpleSim(A179,B179),\"\")","v":""},null,{"$f":"LLOOKUP(A179,H:H,H:H,0.6,0)","v":""},{"$f":"IF(E179<>\"\",LevenshteinSimilarity(A179,E179),\"\")","v":""},null,"Qualys",94404]
["www.claraanalytics.com",{"$f":"SLOOKUP(A180,H:H,H:H,0.6,0)","v":""},{"$f":"IF(B180<>\"\",SimpleSim(A180,B180),\"\")","v":""},null,{"$f":"LLOOKUP(A180,H:H,H:H,0.6,0)","v":""},{"$f":"IF(E180<>\"\",LevenshteinSimilarity(A180,E180),\"\")","v":""},null,"Quora",94041]
["www.cloudbees.com",{"$f":"SLOOKUP(A181,H:H,H:H,0.6,0)","v":"Cloudbees"},{"$f":"IF(B181<>\"\",SimpleSim(A181,B181),\"\")","v":0.61764705882352944},null,{"$f":"LLOOKUP(A181,H:H,H:H,0.6,0)","v":""},{"$f":"IF(E181<>\"\",LevenshteinSimilarity(A181,E181),\"\")","v":""},null,"Qwilt",94065]
["www.coursehero.com",{"$f":"SLOOKUP(A182,H:H,H:H,0.6,0)","v":""},{"$f":"IF(B182<>\"\",SimpleSim(A182,B182),\"\")","v":""},null,{"$f":"LLOOKUP(A182,H:H,H:H,0.6,0)","v":""},{"$f":"IF(E182<>\"\",LevenshteinSimilarity(A182,E182),\"\")","v":""},null,"Red Oak Technologies",95110]
["www.coursera.org",{"$f":"SLOOKUP(A183,H:H,H:H,0.6,0)","v":""},{"$f":"IF(B183<>\"\",SimpleSim(A183,B183),\"\")","v":""},null,{"$f":"LLOOKUP(A183,H:H,H:H,0.6,0)","v":""},{"$f":"IF(E183<>\"\",LevenshteinSimilarity(A183,E183),\"\")","v":""},null,"Redpoint Ventures",94107]
["www.diffbot.com",{"$f":"SLOOKUP(A184,H:H,H:H,0.6,0)","v":""},{"$f":"IF(B184<>\"\",SimpleSim(A184,B184),\"\")","v":""},null,{"$f":"LLOOKUP(A184,H:H,H:H,0.6,0)","v":""},{"$f":"IF(E184<>\"\",LevenshteinSimilarity(A184,E184),\"\")","v":""},null,"Relay Ventures",94025]
["www.ebay.com",{"$f":"SLOOKUP(A185,H:H,H:H,0.6,0)","v":""},{"$f":"IF(B185<>\"\",SimpleSim(A185,B185),\"\")","v":""},null,{"$f":"LLOOKUP(A185,H:H,H:H,0.6,0)","v":""},{"$f":"IF(E185<>\"\",LevenshteinSimilarity(A185,E185),\"\")","v":""},null,"reputation.com",94063]
["www.facebook.com",{"$f":"SLOOKUP(A186,H:H,H:H,0.6,0)","v":""},{"$f":"IF(B186<>\"\",SimpleSim(A186,B186),\"\")","v":""},null,{"$f":"LLOOKUP(A186,H:H,H:H,0.6,0)","v":""},{"$f":"IF(E186<>\"\",LevenshteinSimilarity(A186,E186),\"\")","v":""},null,"RingCentral",94002]
["www.filemaker.com",{"$f":"SLOOKUP(A187,H:H,H:H,0.6,0)","v":""},{"$f":"IF(B187<>\"\",SimpleSim(A187,B187),\"\")","v":""},null,{"$f":"LLOOKUP(A187,H:H,H:H,0.6,0)","v":""},{"$f":"IF(E187<>\"\",LevenshteinSimilarity(A187,E187),\"\")","v":""},null,"Robinhood",94306]
["www.gofundme.com",{"$f":"SLOOKUP(A188,H:H,H:H,0.6,0)","v":""},{"$f":"IF(B188<>\"\",SimpleSim(A188,B188),\"\")","v":""},null,{"$f":"LLOOKUP(A188,H:H,H:H,0.6,0)","v":""},{"$f":"IF(E188<>\"\",LevenshteinSimilarity(A188,E188),\"\")","v":""},null,"Roblox",94403]
["www.gong.io",{"$f":"SLOOKUP(A189,H:H,H:H,0.6,0)","v":""},{"$f":"IF(B189<>\"\",SimpleSim(A189,B189),\"\")","v":""},null,{"$f":"LLOOKUP(A189,H:H,H:H,0.6,0)","v":"Gong.io"},{"$f":"IF(E189<>\"\",LevenshteinSimilarity(A189,E189),\"\")","v":0.63636363636363635},null,"Roku",95032]
["www.greenbits.com",{"$f":"SLOOKUP(A190,H:H,H:H,0.6,0)","v":""},{"$f":"IF(B190<>\"\",SimpleSim(A190,B190),\"\")","v":""},null,{"$f":"LLOOKUP(A190,H:H,H:H,0.6,0)","v":""},{"$f":"IF(E190<>\"\",LevenshteinSimilarity(A190,E190),\"\")","v":""},null,"Sandisk",95035]
["www.gsrventures.com",{"$f":"SLOOKUP(A191,H:H,H:H,0.6,0)","v":""},{"$f":"IF(B191<>\"\",SimpleSim(A191,B191),\"\")","v":""},null,{"$f":"LLOOKUP(A191,H:H,H:H,0.6,0)","v":""},{"$f":"IF(E191<>\"\",LevenshteinSimilarity(A191,E191),\"\")","v":""},null,"SAP",94304]
["www.gv.com",{"$f":"SLOOKUP(A192,H:H,H:H,0.6,0)","v":""},{"$f":"IF(B192<>\"\",SimpleSim(A192,B192),\"\")","v":""},null,{"$f":"LLOOKUP(A192,H:H,H:H,0.6,0)","v":""},{"$f":"IF(E192<>\"\",LevenshteinSimilarity(A192,E192),\"\")","v":""},null,"Scalyr",94401]
["www.hiretual.com",{"$f":"SLOOKUP(A193,H:H,H:H,0.6,0)","v":""},{"$f":"IF(B193<>\"\",SimpleSim(A193,B193),\"\")","v":""},null,{"$f":"LLOOKUP(A193,H:H,H:H,0.6,0)","v":""},{"$f":"IF(E193<>\"\",LevenshteinSimilarity(A193,E193),\"\")","v":""},null,"Seagate",95014]
["www.intuit.com",{"$f":"SLOOKUP(A194,H:H,H:H,0.6,0)","v":""},{"$f":"IF(B194<>\"\",SimpleSim(A194,B194),\"\")","v":""},null,{"$f":"LLOOKUP(A194,H:H,H:H,0.6,0)","v":""},{"$f":"IF(E194<>\"\",LevenshteinSimilarity(A194,E194),\"\")","v":""},null,"Securly",95113]
["www.katerra.com",{"$f":"SLOOKUP(A195,H:H,H:H,0.6,0)","v":""},{"$f":"IF(B195<>\"\",SimpleSim(A195,B195),\"\")","v":""},null,{"$f":"LLOOKUP(A195,H:H,H:H,0.6,0)","v":""},{"$f":"IF(E195<>\"\",LevenshteinSimilarity(A195,E195),\"\")","v":""},null,"Sendbird",94401]
["www.khanacademy.org",{"$f":"SLOOKUP(A196,H:H,H:H,0.6,0)","v":""},{"$f":"IF(B196<>\"\",SimpleSim(A196,B196),\"\")","v":""},null,{"$f":"LLOOKUP(A196,H:H,H:H,0.6,0)","v":""},{"$f":"IF(E196<>\"\",LevenshteinSimilarity(A196,E196),\"\")","v":""},null,"Sendgrid",94063]
["www.menlovc.com",{"$f":"SLOOKUP(A197,H:H,H:H,0.6,0)","v":""},{"$f":"IF(B197<>\"\",SimpleSim(A197,B197),\"\")","v":""},null,{"$f":"LLOOKUP(A197,H:H,H:H,0.6,0)","v":""},{"$f":"IF(E197<>\"\",LevenshteinSimilarity(A197,E197),\"\")","v":""},null,"SentinelOne",94043]
["www.metavision.com",{"$f":"SLOOKUP(A198,H:H,H:H,0.6,0)","v":""},{"$f":"IF(B198<>\"\",SimpleSim(A198,B198),\"\")","v":""},null,{"$f":"LLOOKUP(A198,H:H,H:H,0.6,0)","v":""},{"$f":"IF(E198<>\"\",LevenshteinSimilarity(A198,E198),\"\")","v":""},null,"Sequoia Capital",94025]
["www.mountainviewstaffing.com",{"$f":"SLOOKUP(A199,H:H,H:H,0.6,0)","v":"Mountain View Staffing"},{"$f":"IF(B199<>\"\",SimpleSim(A199,B199),\"\")","v":0.71978021978021978},null,{"$f":"LLOOKUP(A199,H:H,H:H,0.6,0)","v":"Mountain View Staffing"},{"$f":"IF(E199<>\"\",LevenshteinSimilarity(A199,E199),\"\")","v":0.6428571428571429},null,"Shasta Ventures",94025]
["www.mz.com",{"$f":"SLOOKUP(A200,H:H,H:H,0.6,0)","v":""},{"$f":"IF(B200<>\"\",SimpleSim(A200,B200),\"\")","v":""},null,{"$f":"LLOOKUP(A200,H:H,H:H,0.6,0)","v":""},{"$f":"IF(E200<>\"\",LevenshteinSimilarity(A200,E200),\"\")","v":""},null,"Shazam",94063]
["www.nextgentechinc.com",{"$f":"SLOOKUP(A201,H:H,H:H,0.6,0)","v":""},{"$f":"IF(B201<>\"\",SimpleSim(A201,B201),\"\")","v":""},null,{"$f":"LLOOKUP(A201,H:H,H:H,0.6,0)","v":""},{"$f":"IF(E201<>\"\",LevenshteinSimilarity(A201,E201),\"\")","v":""},null,"Shutterfly",94065]
["www.nuance.com",{"$f":"SLOOKUP(A202,H:H,H:H,0.6,0)","v":"Nuance Communications"},{"$f":"IF(B202<>\"\",SimpleSim(A202,B202),\"\")","v":0.61377551020408172},null,{"$f":"LLOOKUP(A202,H:H,H:H,0.6,0)","v":""},{"$f":"IF(E202<>\"\",LevenshteinSimilarity(A202,E202),\"\")","v":""},null,"Sibly",94063]
["www.oracle.com",{"$f":"SLOOKUP(A203,H:H,H:H,0.6,0)","v":""},{"$f":"IF(B203<>\"\",SimpleSim(A203,B203),\"\")","v":""},null,{"$f":"LLOOKUP(A203,H:H,H:H,0.6,0)","v":""},{"$f":"IF(E203<>\"\",LevenshteinSimilarity(A203,E203),\"\")","v":""},null,"Sierra Ventures",94025]
["www.paloaltostaffing.com",{"$f":"SLOOKUP(A204,H:H,H:H,0.6,0)","v":"Palo Alto Staffing"},{"$f":"IF(B204<>\"\",SimpleSim(A204,B204),\"\")","v":0.61319444444444449},null,{"$f":"LLOOKUP(A204,H:H,H:H,0.6,0)","v":""},{"$f":"IF(E204<>\"\",LevenshteinSimilarity(A204,E204),\"\")","v":""},null,"SignalFx",94401]
["www.paypal.com",{"$f":"SLOOKUP(A205,H:H,H:H,0.6,0)","v":""},{"$f":"IF(B205<>\"\",SimpleSim(A205,B205),\"\")","v":""},null,{"$f":"LLOOKUP(A205,H:H,H:H,0.6,0)","v":""},{"$f":"IF(E205<>\"\",LevenshteinSimilarity(A205,E205),\"\")","v":""},null,"Silver Lake Partners",94025]
["www.proteus.com",{"$f":"SLOOKUP(A206,H:H,H:H,0.6,0)","v":""},{"$f":"IF(B206<>\"\",SimpleSim(A206,B206),\"\")","v":""},null,{"$f":"LLOOKUP(A206,H:H,H:H,0.6,0)","v":""},{"$f":"IF(E206<>\"\",LevenshteinSimilarity(A206,E206),\"\")","v":""},null,"Sizmek",94063]
["www.redoaktech.com",{"$f":"SLOOKUP(A207,H:H,H:H,0.6,0)","v":""},{"$f":"IF(B207<>\"\",SimpleSim(A207,B207),\"\")","v":""},null,{"$f":"LLOOKUP(A207,H:H,H:H,0.6,0)","v":""},{"$f":"IF(E207<>\"\",LevenshteinSimilarity(A207,E207),\"\")","v":""},null,"SmugMug",94041]
["www.redpoint.com",{"$f":"SLOOKUP(A208,H:H,H:H,0.6,0)","v":""},{"$f":"IF(B208<>\"\",SimpleSim(A208,B208),\"\")","v":""},null,{"$f":"LLOOKUP(A208,H:H,H:H,0.6,0)","v":""},{"$f":"IF(E208<>\"\",LevenshteinSimilarity(A208,E208),\"\")","v":""},null,"SnapLogic",94402]
["www.ringcentral.com",{"$f":"SLOOKUP(A209,H:H,H:H,0.6,0)","v":""},{"$f":"IF(B209<>\"\",SimpleSim(A209,B209),\"\")","v":""},null,{"$f":"LLOOKUP(A209,H:H,H:H,0.6,0)","v":""},{"$f":"IF(E209<>\"\",LevenshteinSimilarity(A209,E209),\"\")","v":""},null,"Snowflake Computing",94401]
["www.socialcapital.com",{"$f":"SLOOKUP(A210,H:H,H:H,0.6,0)","v":"Social Capital"},{"$f":"IF(B210<>\"\",SimpleSim(A210,B210),\"\")","v":0.61923658352229771},null,{"$f":"LLOOKUP(A210,H:H,H:H,0.6,0)","v":""},{"$f":"IF(E210<>\"\",LevenshteinSimilarity(A210,E210),\"\")","v":""},null,"Social Capital",94301]
["www.sparkcapital.com",{"$f":"SLOOKUP(A211,H:H,H:H,0.6,0)","v":""},{"$f":"IF(B211<>\"\",SimpleSim(A211,B211),\"\")","v":""},null,{"$f":"LLOOKUP(A211,H:H,H:H,0.6,0)","v":""},{"$f":"IF(E211<>\"\",LevenshteinSimilarity(A211,E211),\"\")","v":""},null,"Sofinnova Ventures",94025]
["www.tenable.com",{"$f":"SLOOKUP(A212,H:H,H:H,0.6,0)","v":""},{"$f":"IF(B212<>\"\",SimpleSim(A212,B212),\"\")","v":""},null,{"$f":"LLOOKUP(A212,H:H,H:H,0.6,0)","v":""},{"$f":"IF(E212<>\"\",LevenshteinSimilarity(A212,E212),\"\")","v":""},null,"Space Systems Loral",94303]
["www.tesla.com",{"$f":"SLOOKUP(A213,H:H,H:H,0.6,0)","v":""},{"$f":"IF(B213<>\"\",SimpleSim(A213,B213),\"\")","v":""},null,{"$f":"LLOOKUP(A213,H:H,H:H,0.6,0)","v":""},{"$f":"IF(E213<>\"\",LevenshteinSimilarity(A213,E213),\"\")","v":""},null,"Spark Capital",94104]
["www.tynker.com",{"$f":"SLOOKUP(A214,H:H,H:H,0.6,0)","v":""},{"$f":"IF(B214<>\"\",SimpleSim(A214,B214),\"\")","v":""},null,{"$f":"LLOOKUP(A214,H:H,H:H,0.6,0)","v":""},{"$f":"IF(E214<>\"\",LevenshteinSimilarity(A214,E214),\"\")","v":""},null,"Sterling Communications",95032]
["www.udacity.com",{"$f":"SLOOKUP(A215,H:H,H:H,0.6,0)","v":""},{"$f":"IF(B215<>\"\",SimpleSim(A215,B215),\"\")","v":""},null,{"$f":"LLOOKUP(A215,H:H,H:H,0.6,0)","v":""},{"$f":"IF(E215<>\"\",LevenshteinSimilarity(A215,E215),\"\")","v":""},null,"Storm Ventures",94025]
["www.veev.com",{"$f":"SLOOKUP(A216,H:H,H:H,0.6,0)","v":""},{"$f":"IF(B216<>\"\",SimpleSim(A216,B216),\"\")","v":""},null,{"$f":"LLOOKUP(A216,H:H,H:H,0.6,0)","v":""},{"$f":"IF(E216<>\"\",LevenshteinSimilarity(A216,E216),\"\")","v":""},null,"Sumo Logic",94063]
["www.vmware.com",{"$f":"SLOOKUP(A217,H:H,H:H,0.6,0)","v":""},{"$f":"IF(B217<>\"\",SimpleSim(A217,B217),\"\")","v":""},null,{"$f":"LLOOKUP(A217,H:H,H:H,0.6,0)","v":""},{"$f":"IF(E217<>\"\",LevenshteinSimilarity(A217,E217),\"\")","v":""},null,"SurveyMonkey",94301]
["www.volt.com",{"$f":"SLOOKUP(A218,H:H,H:H,0.6,0)","v":""},{"$f":"IF(B218<>\"\",SimpleSim(A218,B218),\"\")","v":""},null,{"$f":"LLOOKUP(A218,H:H,H:H,0.6,0)","v":""},{"$f":"IF(E218<>\"\",LevenshteinSimilarity(A218,E218),\"\")","v":""},null,"SVG Ventures",95032]
["www.walmartlabs.com",{"$f":"SLOOKUP(A219,H:H,H:H,0.6,0)","v":"Walmart Labs"},{"$f":"IF(B219<>\"\",SimpleSim(A219,B219),\"\")","v":0.64055973266499577},null,{"$f":"LLOOKUP(A219,H:H,H:H,0.6,0)","v":""},{"$f":"IF(E219<>\"\",LevenshteinSimilarity(A219,E219),\"\")","v":""},null,"Syllable.ai",94087]
["www.wellpay.care",{"$f":"SLOOKUP(A220,H:H,H:H,0.6,0)","v":"WellPay"},{"$f":"IF(B220<>\"\",SimpleSim(A220,B220),\"\")","v":0.60416666666666663},null,{"$f":"LLOOKUP(A220,H:H,H:H,0.6,0)","v":""},{"$f":"IF(E220<>\"\",LevenshteinSimilarity(A220,E220),\"\")","v":""},null,"Symantec",94043]
["www.workato.com",{"$f":"SLOOKUP(A221,H:H,H:H,0.6,0)","v":"Workato"},{"$f":"IF(B221<>\"\",SimpleSim(A221,B221),\"\")","v":0.6333333333333333},null,{"$f":"LLOOKUP(A221,H:H,H:H,0.6,0)","v":""},{"$f":"IF(E221<>\"\",LevenshteinSimilarity(A221,E221),\"\")","v":""},null,"Synopsys",94043]
["www.yummly.com",{"$f":"SLOOKUP(A222,H:H,H:H,0.6,0)","v":""},{"$f":"IF(B222<>\"\",SimpleSim(A222,B222),\"\")","v":""},null,{"$f":"LLOOKUP(A222,H:H,H:H,0.6,0)","v":""},{"$f":"IF(E222<>\"\",LevenshteinSimilarity(A222,E222),\"\")","v":""},null,"TalentSeer",94085]
["xilinx.com",{"$f":"SLOOKUP(A223,H:H,H:H,0.6,0)","v":"Xilinx"},{"$f":"IF(B223<>\"\",SimpleSim(A223,B223),\"\")","v":0.6},null,{"$f":"LLOOKUP(A223,H:H,H:H,0.6,0)","v":"Xilinx"},{"$f":"IF(E223<>\"\",LevenshteinSimilarity(A223,E223),\"\")","v":0.6},null,"Taos",95134]
["xoriant.com",{"$f":"SLOOKUP(A224,H:H,H:H,0.6,0)","v":"Xoriant"},{"$f":"IF(B224<>\"\",SimpleSim(A224,B224),\"\")","v":0.68181818181818177},null,{"$f":"LLOOKUP(A224,H:H,H:H,0.6,0)","v":"Xoriant"},{"$f":"IF(E224<>\"\",LevenshteinSimilarity(A224,E224),\"\")","v":0.63636363636363635},null,"Tascent",95032]
["yahoo.com",{"$f":"SLOOKUP(A225,H:H,H:H,0.6,0)","v":""},{"$f":"IF(B225<>\"\",SimpleSim(A225,B225),\"\")","v":""},null,{"$f":"LLOOKUP(A225,H:H,H:H,0.6,0)","v":""},{"$f":"IF(E225<>\"\",LevenshteinSimilarity(A225,E225),\"\")","v":""},null,"Tata Consultancy Services",95054]
["yodlee.com",{"$f":"SLOOKUP(A226,H:H,H:H,0.6,0)","v":"Yodlee"},{"$f":"IF(B226<>\"\",SimpleSim(A226,B226),\"\")","v":0.65},null,{"$f":"LLOOKUP(A226,H:H,H:H,0.6,0)","v":"Yodlee"},{"$f":"IF(E226<>\"\",LevenshteinSimilarity(A226,E226),\"\")","v":0.6},null,"Tenable",95113]
["youtube.com",{"$f":"SLOOKUP(A227,H:H,H:H,0.6,0)","v":"YouTube"},{"$f":"IF(B227<>\"\",SimpleSim(A227,B227),\"\")","v":0.68181818181818177},null,{"$f":"LLOOKUP(A227,H:H,H:H,0.6,0)","v":"YouTube"},{"$f":"IF(E227<>\"\",LevenshteinSimilarity(A227,E227),\"\")","v":0.63636363636363635},null,"Tesla",94304]
["zazzle.com",{"$f":"SLOOKUP(A228,H:H,H:H,0.6,0)","v":"Zazzle"},{"$f":"IF(B228<>\"\",SimpleSim(A228,B228),\"\")","v":0.6},null,{"$f":"LLOOKUP(A228,H:H,H:H,0.6,0)","v":"Zazzle"},{"$f":"IF(E228<>\"\",LevenshteinSimilarity(A228,E228),\"\")","v":0.6},null,"The Blackstone Group",94025]
["zicasso.com",{"$f":"SLOOKUP(A229,H:H,H:H,0.6,0)","v":"Zicasso"},{"$f":"IF(B229<>\"\",SimpleSim(A229,B229),\"\")","v":0.68939393939393934},null,{"$f":"LLOOKUP(A229,H:H,H:H,0.6,0)","v":"Zicasso"},{"$f":"IF(E229<>\"\",LevenshteinSimilarity(A229,E229),\"\")","v":0.63636363636363635},null,"The Westly Group",94025]
["zipcar.com",{"$f":"SLOOKUP(A230,H:H,H:H,0.6,0)","v":"Zipcar"},{"$f":"IF(B230<>\"\",SimpleSim(A230,B230),\"\")","v":0.625},null,{"$f":"LLOOKUP(A230,H:H,H:H,0.6,0)","v":"Zipcar"},{"$f":"IF(E230<>\"\",LevenshteinSimilarity(A230,E230),\"\")","v":0.6},null,"TIBCO Software",94304]
["zscaler.com",{"$f":"SLOOKUP(A231,H:H,H:H,0.6,0)","v":"Zscaler"},{"$f":"IF(B231<>\"\",SimpleSim(A231,B231),\"\")","v":0.66666666666666663},null,{"$f":"LLOOKUP(A231,H:H,H:H,0.6,0)","v":"Zscaler"},{"$f":"IF(E231<>\"\",LevenshteinSimilarity(A231,E231),\"\")","v":0.63636363636363635},null,"Trinity Ventures",94025]
["zumepizza.com",{"$f":"SLOOKUP(A232,H:H,H:H,0.6,0)","v":"Zume Pizza"},{"$f":"IF(B232<>\"\",SimpleSim(A232,B232),\"\")","v":0.69047619047619047},null,{"$f":"LLOOKUP(A232,H:H,H:H,0.6,0)","v":"Zume Pizza"},{"$f":"IF(E232<>\"\",LevenshteinSimilarity(A232,E232),\"\")","v":0.61538461538461542},null,"TriplePoint Capital",94025]
["zuora.com",{"$f":"SLOOKUP(A233,H:H,H:H,0.6,0)","v":""},{"$f":"IF(B233<>\"\",SimpleSim(A233,B233),\"\")","v":""},null,{"$f":"LLOOKUP(A233,H:H,H:H,0.6,0)","v":""},{"$f":"IF(E233<>\"\",LevenshteinSimilarity(A233,E233),\"\")","v":""},null,"TuneIn",94107]
[null,{"$f":"SLOOKUP(A234,H:H,H:H,0.5)","v":""},null,null,null,{"$f":"IF(E234<>\"\",LevenshteinSimilarity(A234,E234),\"\")","v":""},null,"Tynker",94040]
[null,{"$f":"SLOOKUP(A235,H:H,H:H,0.5)","v":""},null,null,null,{"$f":"IF(E235<>\"\",LevenshteinSimilarity(A235,E235),\"\")","v":""},null,"U.S. Venture Partners",94025]
[null,{"$f":"SLOOKUP(A236,H:H,H:H,0.5)","v":""},null,null,null,{"$f":"IF(E236<>\"\",LevenshteinSimilarity(A236,E236),\"\")","v":""},null,"Udacity",94040]
[null,{"$f":"SLOOKUP(A237,H:H,H:H,0.5)","v":""},null,null,null,{"$f":"IF(E237<>\"\",LevenshteinSimilarity(A237,E237),\"\")","v":""},null,"unitQ",94401]
[null,{"$f":"SLOOKUP(A238,H:H,H:H,0.5)","v":""},null,null,null,{"$f":"IF(E238<>\"\",LevenshteinSimilarity(A238,E238),\"\")","v":""},null,"Veev",94404]
[null,{"$f":"SLOOKUP(A239,H:H,H:H,0.5)","v":""},null,null,null,{"$f":"IF(E239<>\"\",LevenshteinSimilarity(A239,E239),\"\")","v":""},null,"Verkada",94401]
[null,{"$f":"SLOOKUP(A240,H:H,H:H,0.5)","v":""},null,null,null,{"$f":"IF(E240<>\"\",LevenshteinSimilarity(A240,E240),\"\")","v":""},null,"Virtusa",94555]
[null,{"$f":"SLOOKUP(A241,H:H,H:H,0.5)","v":""},null,null,null,{"$f":"IF(E241<>\"\",LevenshteinSimilarity(A241,E241),\"\")","v":""},null,"Visa",94404]
[null,{"$f":"SLOOKUP(A242,H:H,H:H,0.5)","v":""},null,null,null,{"$f":"IF(E242<>\"\",LevenshteinSimilarity(A242,E242),\"\")","v":""},null,"VMWare",94304]
[null,{"$f":"SLOOKUP(A243,H:H,H:H,0.5)","v":""},null,null,null,{"$f":"IF(E243<>\"\",LevenshteinSimilarity(A243,E243),\"\")","v":""},null,"Volt Workforce Solutions",94538]
[null,{"$f":"SLOOKUP(A244,H:H,H:H,0.5)","v":""},null,null,null,{"$f":"IF(E244<>\"\",LevenshteinSimilarity(A244,E244),\"\")","v":""},null,"Walmart Labs",94086]
[null,{"$f":"SLOOKUP(A245,H:H,H:H,0.5)","v":""},null,null,null,{"$f":"IF(E245<>\"\",LevenshteinSimilarity(A245,E245),\"\")","v":""},null,"Wealthfront",94063]
[null,{"$f":"SLOOKUP(A246,H:H,H:H,0.5)","v":""},null,null,null,{"$f":"IF(E246<>\"\",LevenshteinSimilarity(A246,E246),\"\")","v":""},null,"WellPay"]
[null,{"$f":"SLOOKUP(A247,H:H,H:H,0.5)","v":""},null,null,null,{"$f":"IF(E247<>\"\",LevenshteinSimilarity(A247,E247),\"\")","v":""},null,"WePay",94063]
[null,{"$f":"SLOOKUP(A248,H:H,H:H,0.5)","v":""},null,null,null,{"$f":"IF(E248<>\"\",LevenshteinSimilarity(A248,E248),\"\")","v":""},null,"WhatsApp",94041]
[null,{"$f":"SLOOKUP(A249,H:H,H:H,0.5)","v":""},null,null,null,{"$f":"IF(E249<>\"\",LevenshteinSimilarity(A249,E249),\"\")","v":""},null,"Wiser Solutions",94402]
[null,{"$f":"SLOOKUP(A250,H:H,H:H,0.5)","v":""},null,null,null,{"$f":"IF(E250<>\"\",LevenshteinSimilarity(A250,E250),\"\")","v":""},null,"Workato",94041]
[null,{"$f":"SLOOKUP(A251,H:H,H:H,0.5)","v":""},null,null,null,{"$f":"IF(E251<>\"\",LevenshteinSimilarity(A251,E251),\"\")","v":""},null,"WorkBoard",94063]
[null,{"$f":"SLOOKUP(A252,H:H,H:H,0.5)","v":""},null,null,null,{"$f":"IF(E252<>\"\",LevenshteinSimilarity(A252,E252),\"\")","v":""},null,"Xilinx",95124]
[null,{"$f":"SLOOKUP(A253,H:H,H:H,0.5)","v":""},null,null,null,{"$f":"IF(E253<>\"\",LevenshteinSimilarity(A253,E253),\"\")","v":""},null,"Xoriant",94089]
[null,{"$f":"SLOOKUP(A254,H:H,H:H,0.5)","v":""},null,null,null,{"$f":"IF(E254<>\"\",LevenshteinSimilarity(A254,E254),\"\")","v":""},null,"Yahoo",94089]
[null,{"$f":"SLOOKUP(A255,H:H,H:H,0.5)","v":""},null,null,null,{"$f":"IF(E255<>\"\",LevenshteinSimilarity(A255,E255),\"\")","v":""},null,"Yodlee",94065]
[null,{"$f":"SLOOKUP(A256,H:H,H:H,0.5)","v":""},null,null,null,{"$f":"IF(E256<>\"\",LevenshteinSimilarity(A256,E256),\"\")","v":""},null,"YouTube",94066]
[null,{"$f":"SLOOKUP(A257,H:H,H:H,0.5)","v":""},null,null,null,{"$f":"IF(E257<>\"\",LevenshteinSimilarity(A257,E257),\"\")","v":""},null,"Yummly",94306]
[null,{"$f":"SLOOKUP(A258,H:H,H:H,0.5)","v":""},null,null,null,{"$f":"IF(E258<>\"\",LevenshteinSimilarity(A258,E258),\"\")","v":""},null,"Zazzle",94063]
[null,{"$f":"SLOOKUP(A259,H:H,H:H,0.5)","v":""},null,null,null,{"$f":"IF(E259<>\"\",LevenshteinSimilarity(A259,E259),\"\")","v":""},null,"Zicasso",94040]
[null,{"$f":"SLOOKUP(A260,H:H,H:H,0.5)","v":""},null,null,null,{"$f":"IF(E260<>\"\",LevenshteinSimilarity(A260,E260),\"\")","v":""},null,"Zipcar",94401]
[null,{"$f":"SLOOKUP(A261,H:H,H:H,0.5)","v":""},null,null,null,{"$f":"IF(E261<>\"\",LevenshteinSimilarity(A261,E261),\"\")","v":""},null,"Zscaler",95134]
[null,{"$f":"SLOOKUP(A262,H:H,H:H,0.5)","v":""},null,null,null,{"$f":"IF(E262<>\"\",LevenshteinSimilarity(A262,E262),\"\")","v":""},null,"Zume Pizza",94043]
[null,{"$f":"SLOOKUP(A263,H:H,H:H,0.5)","v":""},null,null,null,{"$f":"IF(E263<>\"\",LevenshteinSimilarity(A263,E263),\"\")","v":""},null,"Zuora",94403]
[null,{"$f":"SLOOKUP(A264,H:H,H:H,0.5)","v":""}]
[null,{"$f":"SLOOKUP(A265,H:H,H:H,0.5)","v":""}]
[null,{"$f":"SLOOKUP(A266,H:H,H:H,0.5)","v":""}]

{"sheet":"Example2","index":2,"n_rows":266,"n_cols":11,"rows_kept":266,"cut":false,"hidden":false,"merged":[]}
["Website filtered","=SLOOKUP(A1,H:H;H:H,0.6)","=simpleSim(A1,B1)",null,"=LLOOKUP(A1,M:M,O:O;0.6)","=LevenshteinSimilarity(A1,K1)",null,"Company Name","Zip"]
[{"$f":"SUBSTITUTE(SUBSTITUTE(Example1!A2,\"www.\",\"\"),\".com\",\"\")","v":"23andme"},{"$f":"SLOOKUP(A2,H:H,H:H,0.6,0)","v":"23andMe"},{"$f":"IF(B2<>\"\",SimpleSim(A2,B2),\"\")","v":1},null,{"$f":"LLOOKUP(A2,H:H,H:H,0.6,0)","v":"23andMe"},{"$f":"IF(E2<>\"\",LevenshteinSimilarity(A2,E2),\"\")","v":1},null,"23andMe",94041]
[{"$f":"SUBSTITUTE(SUBSTITUTE(Example1!A3,\"www.\",\"\"),\".com\",\"\")","v":"280group"},{"$f":"SLOOKUP(A3,H:H,H:H,0.6,0)","v":"280 Group"},{"$f":"IF(B3<>\"\",SimpleSim(A3,B3),\"\")","v":0.9375},null,{"$f":"LLOOKUP(A3,H:H,H:H,0.6,0)","v":"280 Group"},{"$f":"IF(E3<>\"\",LevenshteinSimilarity(A3,E3),\"\")","v":0.875},null,"280 Group",95030,null,"The second example removes www and com from the websites "]
[{"$f":"SUBSTITUTE(SUBSTITUTE(Example1!A4,\"www.\",\"\"),\".com\",\"\")","v":"2go"},{"$f":"SLOOKUP(A4,H:H,H:H,0.6,0)","v":"Invoice2go"},{"$f":"IF(B4<>\"\",SimpleSim(A4,B4),\"\")","v":0.70833333333333337},null,{"$f":"LLOOKUP(A4,H:H,H:H,0.6,0)","v":""},{"$f":"IF(E4<>\"\",LevenshteinSimilarity(A4,E4),\"\")","v":""},null,"5AM Ventures",94025]
[{"$f":"SUBSTITUTE(SUBSTITUTE(Example1!A5,\"www.\",\"\"),\".com\",\"\")","v":"5amventures"},{"$f":"SLOOKUP(A5,H:H,H:H,0.6,0)","v":"5AM Ventures"},{"$f":"IF(B5<>\"\",SimpleSim(A5,B5),\"\")","v":0.95454545454545459},null,{"$f":"LLOOKUP(A5,H:H,H:H,0.6,0)","v":"5AM Ventures"},{"$f":"IF(E5<>\"\",LevenshteinSimilarity(A5,E5),\"\")","v":0.90909090909090906},null,"Accel",94025,null,"The results are much more reliable"]
[{"$f":"SUBSTITUTE(SUBSTITUTE(Example1!A6,\"www.\",\"\"),\".com\",\"\")","v":"a16z"},{"$f":"SLOOKUP(A6,H:H,H:H,0.6,0)","v":""},{"$f":"IF(B6<>\"\",SimpleSim(A6,B6),\"\")","v":""},null,{"$f":"LLOOKUP(A6,H:H,H:H,0.6,0)","v":""},{"$f":"IF(E6<>\"\",LevenshteinSimilarity(A6,E6),\"\")","v":""},null,"Addepar",94041]
[{"$f":"SUBSTITUTE(SUBSTITUTE(Example1!A7,\"www.\",\"\"),\".com\",\"\")","v":"about.flipboard"},{"$f":"SLOOKUP(A7,H:H,H:H,0.6,0)","v":"Flipboard"},{"$f":"IF(B7<>\"\",SimpleSim(A7,B7),\"\")","v":0.69285714285714284},null,{"$f":"LLOOKUP(A7,H:H,H:H,0.6,0)","v":"Flipboard"},{"$f":"IF(E7<>\"\",LevenshteinSimilarity(A7,E7),\"\")","v":0.6},null,"Adecco Group",94066,null,"This shows that the algorithm works better with high similarity."]
[{"$f":"SUBSTITUTE(SUBSTITUTE(Example1!A8,\"www.\",\"\"),\".com\",\"\")","v":"acquia"},{"$f":"SLOOKUP(A8,H:H,H:H,0.6,0)","v":""},{"$f":"IF(B8<>\"\",SimpleSim(A8,B8),\"\")","v":""},null,{"$f":"LLOOKUP(A8,H:H,H:H,0.6,0)","v":""},{"$f":"IF(E8<>\"\",LevenshteinSimilarity(A8,E8),\"\")","v":""},null,"Adobe",94103,null,"If there is too much noise, it fails"]
[{"$f":"SUBSTITUTE(SUBSTITUTE(Example1!A9,\"www.\",\"\"),\".com\",\"\")","v":"addepar"},{"$f":"SLOOKUP(A9,H:H,H:H,0.6,0)","v":"Addepar"},{"$f":"IF(B9<>\"\",SimpleSim(A9,B9),\"\")","v":1},null,{"$f":"LLOOKUP(A9,H:H,H:H,0.6,0)","v":"Addepar"},{"$f":"IF(E9<>\"\",LevenshteinSimilarity(A9,E9),\"\")","v":1},null,"AgilOne",94085]
[{"$f":"SUBSTITUTE(SUBSTITUTE(Example1!A10,\"www.\",\"\"),\".com\",\"\")","v":"alation"},{"$f":"SLOOKUP(A10,H:H,H:H,0.6,0)","v":"Alation"},{"$f":"IF(B10<>\"\",SimpleSim(A10,B10),\"\")","v":1},null,{"$f":"LLOOKUP(A10,H:H,H:H,0.6,0)","v":"Alation"},{"$f":"IF(E10<>\"\",LevenshteinSimilarity(A10,E10),\"\")","v":1},null,"Alation",94063]
[{"$f":"SUBSTITUTE(SUBSTITUTE(Example1!A11,\"www.\",\"\"),\".com\",\"\")","v":"amazon"},{"$f":"SLOOKUP(A11,H:H,H:H,0.6,0)","v":"Amazon"},{"$f":"IF(B11<>\"\",SimpleSim(A11,B11),\"\")","v":1},null,{"$f":"LLOOKUP(A11,H:H,H:H,0.6,0)","v":"Amazon"},{"$f":"IF(E11<>\"\",LevenshteinSimilarity(A11,E11),\"\")","v":1},null,"AlienVault",94403]
[{"$f":"SUBSTITUTE(SUBSTITUTE(Example1!A12,\"www.\",\"\"),\".com\",\"\")","v":"ambient.ai"},{"$f":"SLOOKUP(A12,H:H,H:H,0.6,0)","v":"Ambient.ai"},{"$f":"IF(B12<>\"\",SimpleSim(A12,B12),\"\")","v":1},null,{"$f":"LLOOKUP(A12,H:H,H:H,0.6,0)","v":"Ambient.ai"},{"$f":"IF(E12<>\"\",LevenshteinSimilarity(A12,E12),\"\")","v":1},null,"Altimeter Capital",94025]
[{"$f":"SUBSTITUTE(SUBSTITUTE(Example1!A13,\"www.\",\"\"),\".com\",\"\")","v":"anomali"},{"$f":"SLOOKUP(A13,H:H,H:H,0.6,0)","v":"Anomali"},{"$f":"IF(B13<>\"\",SimpleSim(A13,B13),\"\")","v":1},null,{"$f":"LLOOKUP(A13,H:H,H:H,0.6,0)","v":"Anomali"},{"$f":"IF(E13<>\"\",LevenshteinSimilarity(A13,E13),\"\")","v":1},null,"Altos Ventures",94025]
[{"$f":"SUBSTITUTE(SUBSTITUTE(Example1!A14,\"www.\",\"\"),\".com\",\"\")","v":"apttus"},{"$f":"SLOOKUP(A14,H:H,H:H,0.6,0)","v":"Apttus"},{"$f":"IF(B14<>\"\",SimpleSim(A14,B14),\"\")","v":1},null,{"$f":"LLOOKUP(A14,H:H,H:H,0.6,0)","v":"Apttus"},{"$f":"IF(E14<>\"\",LevenshteinSimilarity(A14,E14),\"\")","v":1},null,"Amazon",94303]
[{"$f":"SUBSTITUTE(SUBSTITUTE(Example1!A15,\"www.\",\"\"),\".com\",\"\")","v":"arista"},{"$f":"SLOOKUP(A15,H:H,H:H,0.6,0)","v":"Arista"},{"$f":"IF(B15<>\"\",SimpleSim(A15,B15),\"\")","v":1},null,{"$f":"LLOOKUP(A15,H:H,H:H,0.6,0)","v":"Arista"},{"$f":"IF(E15<>\"\",LevenshteinSimilarity(A15,E15),\"\")","v":1},null,"Ambient.ai",94301]
[{"$f":"SUBSTITUTE(SUBSTITUTE(Example1!A16,\"www.\",\"\"),\".com\",\"\")","v":"avast"},{"$f":"SLOOKUP(A16,H:H,H:H,0.6,0)","v":"Avast"},{"$f":"IF(B16<>\"\",SimpleSim(A16,B16),\"\")","v":1},null,{"$f":"LLOOKUP(A16,H:H,H:H,0.6,0)","v":"Avast"},{"$f":"IF(E16<>\"\",LevenshteinSimilarity(A16,E16),\"\")","v":1},null,"AMD",95054]
[{"$f":"SUBSTITUTE(SUBSTITUTE(Example1!A17,\"www.\",\"\"),\".com\",\"\")","v":"benevity"},{"$f":"SLOOKUP(A17,H:H,H:H,0.6,0)","v":"Benevity"},{"$f":"IF(B17<>\"\",SimpleSim(A17,B17),\"\")","v":1},null,{"$f":"LLOOKUP(A17,H:H,H:H,0.6,0)","v":"Benevity"},{"$f":"IF(E17<>\"\",LevenshteinSimilarity(A17,E17),\"\")","v":1},null,"Amply Power",94043]
[{"$f":"SUBSTITUTE(SUBSTITUTE(Example1!A18,\"www.\",\"\"),\".com\",\"\")","v":"betterworks"},{"$f":"SLOOKUP(A18,H:H,H:H,0.6,0)","v":"Betterworks"},{"$f":"IF(B18<>\"\",SimpleSim(A18,B18),\"\")","v":1},null,{"$f":"LLOOKUP(A18,H:H,H:H,0.6,0)","v":"Betterworks"},{"$f":"IF(E18<>\"\",LevenshteinSimilarity(A18,E18),\"\")","v":1},null,"Andreessen Horowitz",94025]
[{"$f":"SUBSTITUTE(SUBSTITUTE(Example1!A19,\"www.\",\"\"),\".com\",\"\")","v":"bluevine"},{"$f":"SLOOKUP(A19,H:H,H:H,0.6,0)","v":"BlueVine"},{"$f":"IF(B19<>\"\",SimpleSim(A19,B19),\"\")","v":1},null,{"$f":"LLOOKUP(A19,H:H,H:H,0.6,0)","v":"BlueVine"},{"$f":"IF(E19<>\"\",LevenshteinSimilarity(A19,E19),\"\")","v":1},null,"Anomali",94063]
[{"$f":"SUBSTITUTE(SUBSTITUTE(Example1!A20,\"www.\",\"\"),\".com\",\"\")","v":"box"},{"$f":"SLOOKUP(A20,H:H,H:H,0.6,0)","v":"Box"},{"$f":"IF(B20<>\"\",SimpleSim(A20,B20),\"\")","v":1},null,{"$f":"LLOOKUP(A20,H:H,H:H,0.6,0)","v":"Box"},{"$f":"IF(E20<>\"\",LevenshteinSimilarity(A20,E20),\"\")","v":1},null,"Apple",95014]
[{"$f":"SUBSTITUTE(SUBSTITUTE(Example1!A21,\"www.\",\"\"),\".com\",\"\")","v":"branch.io"},{"$f":"SLOOKUP(A21,H:H,H:H,0.6,0)","v":"Branch"},{"$f":"IF(B21<>\"\",SimpleSim(A21,B21),\"\")","v":0.66666666666666663},null,{"$f":"LLOOKUP(A21,H:H,H:H,0.6,0)","v":"Branch"},{"$f":"IF(E21<>\"\",LevenshteinSimilarity(A21,E21),\"\")","v":0.66666666666666663},null,"Apttus",94404]
[{"$f":"SUBSTITUTE(SUBSTITUTE(Example1!A22,\"www.\",\"\"),\".com\",\"\")","v":"c3.ai"},{"$f":"SLOOKUP(A22,H:H,H:H,0.6,0)","v":""},{"$f":"IF(B22<>\"\",SimpleSim(A22,B22),\"\")","v":""},null,{"$f":"LLOOKUP(A22,H:H,H:H,0.6,0)","v":""},{"$f":"IF(E22<>\"\",LevenshteinSimilarity(A22,E22),\"\")","v":""},null,"Arista",95054]
[{"$f":"SUBSTITUTE(SUBSTITUTE(Example1!A23,\"www.\",\"\"),\".com\",\"\")","v":"carbon3d"},{"$f":"SLOOKUP(A23,H:H,H:H,0.6,0)","v":"Carbon"},{"$f":"IF(B23<>\"\",SimpleSim(A23,B23),\"\")","v":0.75},null,{"$f":"LLOOKUP(A23,H:H,H:H,0.6,0)","v":"Carbon"},{"$f":"IF(E23<>\"\",LevenshteinSimilarity(A23,E23),\"\")","v":0.75},null,"Armory",94401]
[{"$f":"SUBSTITUTE(SUBSTITUTE(Example1!A24,\"www.\",\"\"),\".com\",\"\")","v":"carta"},{"$f":"SLOOKUP(A24,H:H,H:H,0.6,0)","v":"Carta"},{"$f":"IF(B24<>\"\",SimpleSim(A24,B24),\"\")","v":1},null,{"$f":"LLOOKUP(A24,H:H,H:H,0.6,0)","v":"Carta"},{"$f":"IF(E24<>\"\",LevenshteinSimilarity(A24,E24),\"\")","v":1},null,"Ascend"]
[{"$f":"SUBSTITUTE(SUBSTITUTE(Example1!A25,\"www.\",\"\"),\".com\",\"\")","v":"ciphercloud"},{"$f":"SLOOKUP(A25,H:H,H:H,0.6,0)","v":"CipherCloud"},{"$f":"IF(B25<>\"\",SimpleSim(A25,B25),\"\")","v":1},null,{"$f":"LLOOKUP(A25,H:H,H:H,0.6,0)","v":"CipherCloud"},{"$f":"IF(E25<>\"\",LevenshteinSimilarity(A25,E25),\"\")","v":1},null,"ASUS",94538]
[{"$f":"SUBSTITUTE(SUBSTITUTE(Example1!A26,\"www.\",\"\"),\".com\",\"\")","v":"cisco"},{"$f":"SLOOKUP(A26,H:H,H:H,0.6,0)","v":"Cisco"},{"$f":"IF(B26<>\"\",SimpleSim(A26,B26),\"\")","v":1},null,{"$f":"LLOOKUP(A26,H:H,H:H,0.6,0)","v":"Cisco"},{"$f":"IF(E26<>\"\",LevenshteinSimilarity(A26,E26),\"\")","v":1},null,"Avast",94063]
[{"$f":"SUBSTITUTE(SUBSTITUTE(Example1!A27,\"www.\",\"\"),\".com\",\"\")","v":"clover"},{"$f":"SLOOKUP(A27,H:H,H:H,0.6,0)","v":"Clover Network"},{"$f":"IF(B27<>\"\",SimpleSim(A27,B27),\"\")","v":1},null,{"$f":"LLOOKUP(A27,H:H,H:H,0.6,0)","v":""},{"$f":"IF(E27<>\"\",LevenshteinSimilarity(A27,E27),\"\")","v":""},null,"Baidu USA",94089]
[{"$f":"SUBSTITUTE(SUBSTITUTE(Example1!A28,\"www.\",\"\"),\".com\",\"\")","v":"codexis"},{"$f":"SLOOKUP(A28,H:H,H:H,0.6,0)","v":"Codexis"},{"$f":"IF(B28<>\"\",SimpleSim(A28,B28),\"\")","v":1},null,{"$f":"LLOOKUP(A28,H:H,H:H,0.6,0)","v":"Codexis"},{"$f":"IF(E28<>\"\",LevenshteinSimilarity(A28,E28),\"\")","v":1},null,"Barracuda",95008]
[{"$f":"SUBSTITUTE(SUBSTITUTE(Example1!A29,\"www.\",\"\"),\".com\",\"\")","v":"colortokens"},{"$f":"SLOOKUP(A29,H:H,H:H,0.6,0)","v":"ColorTokens"},{"$f":"IF(B29<>\"\",SimpleSim(A29,B29),\"\")","v":1},null,{"$f":"LLOOKUP(A29,H:H,H:H,0.6,0)","v":"ColorTokens"},{"$f":"IF(E29<>\"\",LevenshteinSimilarity(A29,E29),\"\")","v":1},null,"Battery Ventures",94025]
[{"$f":"SUBSTITUTE(SUBSTITUTE(Example1!A30,\"www.\",\"\"),\".com\",\"\")","v":"commongenius"},{"$f":"SLOOKUP(A30,H:H,H:H,0.6,0)","v":"CommonGenius"},{"$f":"IF(B30<>\"\",SimpleSim(A30,B30),\"\")","v":1},null,{"$f":"LLOOKUP(A30,H:H,H:H,0.6,0)","v":"CommonGenius"},{"$f":"IF(E30<>\"\",LevenshteinSimilarity(A30,E30),\"\")","v":1},null,"Benevity",94403]
[{"$f":"SUBSTITUTE(SUBSTITUTE(Example1!A31,\"www.\",\"\"),\".com\",\"\")","v":"confidentcannabis"},{"$f":"SLOOKUP(A31,H:H,H:H,0.6,0)","v":"Confident Cannabis"},{"$f":"IF(B31<>\"\",SimpleSim(A31,B31),\"\")","v":0.97058823529411764},null,{"$f":"LLOOKUP(A31,H:H,H:H,0.6,0)","v":"Confident Cannabis"},{"$f":"IF(E31<>\"\",LevenshteinSimilarity(A31,E31),\"\")","v":0.94117647058823528},null,"Betterworks",94063]
[{"$f":"SUBSTITUTE(SUBSTITUTE(Example1!A32,\"www.\",\"\"),\".com\",\"\")","v":"cradlepoint"},{"$f":"SLOOKUP(A32,H:H,H:H,0.6,0)","v":"Cradlepoint"},{"$f":"IF(B32<>\"\",SimpleSim(A32,B32),\"\")","v":1},null,{"$f":"LLOOKUP(A32,H:H,H:H,0.6,0)","v":"Cradlepoint"},{"$f":"IF(E32<>\"\",LevenshteinSimilarity(A32,E32),\"\")","v":1},null,"Blue River Technology",94085]
[{"$f":"SUBSTITUTE(SUBSTITUTE(Example1!A33,\"www.\",\"\"),\".com\",\"\")","v":"crossoverhub"},{"$f":"SLOOKUP(A33,H:H,H:H,0.6,0)","v":"Crossover Hub"},{"$f":"IF(B33<>\"\",SimpleSim(A33,B33),\"\")","v":0.95833333333333337},null,{"$f":"LLOOKUP(A33,H:H,H:H,0.6,0)","v":"Crossover Hub"},{"$f":"IF(E33<>\"\",LevenshteinSimilarity(A33,E33),\"\")","v":0.91666666666666663},null,"BlueJeans",94043]
[{"$f":"SUBSTITUTE(SUBSTITUTE(Example1!A34,\"www.\",\"\"),\".com\",\"\")","v":"datastax"},{"$f":"SLOOKUP(A34,H:H,H:H,0.6,0)","v":"DataStax"},{"$f":"IF(B34<>\"\",SimpleSim(A34,B34),\"\")","v":1},null,{"$f":"LLOOKUP(A34,H:H,H:H,0.6,0)","v":"DataStax"},{"$f":"IF(E34<>\"\",LevenshteinSimilarity(A34,E34),\"\")","v":1},null,"BlueVine",94063]
[{"$f":"SUBSTITUTE(SUBSTITUTE(Example1!A35,\"www.\",\"\"),\".com\",\"\")","v":"datavisor"},{"$f":"SLOOKUP(A35,H:H,H:H,0.6,0)","v":"Datavisor"},{"$f":"IF(B35<>\"\",SimpleSim(A35,B35),\"\")","v":1},null,{"$f":"LLOOKUP(A35,H:H,H:H,0.6,0)","v":"Datavisor"},{"$f":"IF(E35<>\"\",LevenshteinSimilarity(A35,E35),\"\")","v":1},null,"Box",94063]
[{"$f":"SUBSTITUTE(SUBSTITUTE(Example1!A36,\"www.\",\"\"),\".com\",\"\")","v":"datrium"},{"$f":"SLOOKUP(A36,H:H,H:H,0.6,0)","v":"Datrium"},{"$f":"IF(B36<>\"\",SimpleSim(A36,B36),\"\")","v":1},null,{"$f":"LLOOKUP(A36,H:H,H:H,0.6,0)","v":"Datrium"},{"$f":"IF(E36<>\"\",LevenshteinSimilarity(A36,E36),\"\")","v":1},null,"Branch",94063]
[{"$f":"SUBSTITUTE(SUBSTITUTE(Example1!A37,\"www.\",\"\"),\".com\",\"\")","v":"delphix"},{"$f":"SLOOKUP(A37,H:H,H:H,0.6,0)","v":"Delphix"},{"$f":"IF(B37<>\"\",SimpleSim(A37,B37),\"\")","v":1},null,{"$f":"LLOOKUP(A37,H:H,H:H,0.6,0)","v":"Delphix"},{"$f":"IF(E37<>\"\",LevenshteinSimilarity(A37,E37),\"\")","v":1},null,"Bright Capital",94025]
[{"$f":"SUBSTITUTE(SUBSTITUTE(Example1!A38,\"www.\",\"\"),\".com\",\"\")","v":"didi-labs"},{"$f":"SLOOKUP(A38,H:H,H:H,0.6,0)","v":"DiDi Labs"},{"$f":"IF(B38<>\"\",SimpleSim(A38,B38),\"\")","v":1},null,{"$f":"LLOOKUP(A38,H:H,H:H,0.6,0)","v":"DiDi Labs"},{"$f":"IF(E38<>\"\",LevenshteinSimilarity(A38,E38),\"\")","v":1},null,"Brillio",95054]
[{"$f":"SUBSTITUTE(SUBSTITUTE(Example1!A39,\"www.\",\"\"),\".com\",\"\")","v":"dnanexusconnect"},{"$f":"SLOOKUP(A39,H:H,H:H,0.6,0)","v":"DNAnexus"},{"$f":"IF(B39<>\"\",SimpleSim(A39,B39),\"\")","v":0.66666666666666663},null,{"$f":"LLOOKUP(A39,H:H,H:H,0.6,0)","v":""},{"$f":"IF(E39<>\"\",LevenshteinSimilarity(A39,E39),\"\")","v":""},null,"Broadcom",95131]
[{"$f":"SUBSTITUTE(SUBSTITUTE(Example1!A40,\"www.\",\"\"),\".com\",\"\")","v":"dokkio"},{"$f":"SLOOKUP(A40,H:H,H:H,0.6,0)","v":"Dokkio"},{"$f":"IF(B40<>\"\",SimpleSim(A40,B40),\"\")","v":1},null,{"$f":"LLOOKUP(A40,H:H,H:H,0.6,0)","v":"Dokkio"},{"$f":"IF(E40<>\"\",LevenshteinSimilarity(A40,E40),\"\")","v":1},null,"C3",94063]
[{"$f":"SUBSTITUTE(SUBSTITUTE(Example1!A41,\"www.\",\"\"),\".com\",\"\")","v":"ea"},{"$f":"SLOOKUP(A41,H:H,H:H,0.6,0)","v":"eBay"},{"$f":"IF(B41<>\"\",SimpleSim(A41,B41),\"\")","v":0.75},null,{"$f":"LLOOKUP(A41,H:H,H:H,0.6,0)","v":""},{"$f":"IF(E41<>\"\",LevenshteinSimilarity(A41,E41),\"\")","v":""},null,"Cadence Design Systems",95134]
[{"$f":"SUBSTITUTE(SUBSTITUTE(Example1!A42,\"www.\",\"\"),\".com\",\"\")","v":"egnyte"},{"$f":"SLOOKUP(A42,H:H,H:H,0.6,0)","v":"Egnyte"},{"$f":"IF(B42<>\"\",SimpleSim(A42,B42),\"\")","v":1},null,{"$f":"LLOOKUP(A42,H:H,H:H,0.6,0)","v":"Egnyte"},{"$f":"IF(E42<>\"\",LevenshteinSimilarity(A42,E42),\"\")","v":1},null,"Canaan Partners",94025]
[{"$f":"SUBSTITUTE(SUBSTITUTE(Example1!A43,\"www.\",\"\"),\".com\",\"\")","v":"elastic.co"},{"$f":"SLOOKUP(A43,H:H,H:H,0.6,0)","v":"Elastic"},{"$f":"IF(B43<>\"\",SimpleSim(A43,B43),\"\")","v":0.7142857142857143},null,{"$f":"LLOOKUP(A43,H:H,H:H,0.6,0)","v":"Elastic"},{"$f":"IF(E43<>\"\",LevenshteinSimilarity(A43,E43),\"\")","v":0.7},null,"Carbon",94063]
[{"$f":"SUBSTITUTE(SUBSTITUTE(Example1!A44,\"www.\",\"\"),\".com\",\"\")","v":"emc"},{"$f":"SLOOKUP(A44,H:H,H:H,0.6,0)","v":"EMC Data Domain"},{"$f":"IF(B44<>\"\",SimpleSim(A44,B44),\"\")","v":1},null,{"$f":"LLOOKUP(A44,H:H,H:H,0.6,0)","v":""},{"$f":"IF(E44<>\"\",LevenshteinSimilarity(A44,E44),\"\")","v":""},null,"Carta",94306]
[{"$f":"SUBSTITUTE(SUBSTITUTE(Example1!A45,\"www.\",\"\"),\".com\",\"\")","v":"equinix"},{"$f":"SLOOKUP(A45,H:H,H:H,0.6,0)","v":"Equinix"},{"$f":"IF(B45<>\"\",SimpleSim(A45,B45),\"\")","v":1},null,{"$f":"LLOOKUP(A45,H:H,H:H,0.6,0)","v":"Equinix"},{"$f":"IF(E45<>\"\",LevenshteinSimilarity(A45,E45),\"\")","v":1},null,"Charles River Ventures",94025]
[{"$f":"SUBSTITUTE(SUBSTITUTE(Example1!A46,\"www.\",\"\"),\".com\",\"\")","v":"evernote"},{"$f":"SLOOKUP(A46,H:H,H:H,0.6,0)","v":"Evernote"},{"$f":"IF(B46<>\"\",SimpleSim(A46,B46),\"\")","v":1},null,{"$f":"LLOOKUP(A46,H:H,H:H,0.6,0)","v":"Evernote"},{"$f":"IF(E46<>\"\",LevenshteinSimilarity(A46,E46),\"\")","v":1},null,"Chegg",95054]
[{"$f":"SUBSTITUTE(SUBSTITUTE(Example1!A47,\"www.\",\"\"),\".com\",\"\")","v":"fanatics"},{"$f":"SLOOKUP(A47,H:H,H:H,0.6,0)","v":"Fanatics"},{"$f":"IF(B47<>\"\",SimpleSim(A47,B47),\"\")","v":1},null,{"$f":"LLOOKUP(A47,H:H,H:H,0.6,0)","v":"Fanatics"},{"$f":"IF(E47<>\"\",LevenshteinSimilarity(A47,E47),\"\")","v":1},null,"CipherCloud",95110]
[{"$f":"SUBSTITUTE(SUBSTITUTE(Example1!A48,\"www.\",\"\"),\".com\",\"\")","v":"forcepoint"},{"$f":"SLOOKUP(A48,H:H,H:H,0.6,0)","v":"Forcepoint"},{"$f":"IF(B48<>\"\",SimpleSim(A48,B48),\"\")","v":1},null,{"$f":"LLOOKUP(A48,H:H,H:H,0.6,0)","v":"Forcepoint"},{"$f":"IF(E48<>\"\",LevenshteinSimilarity(A48,E48),\"\")","v":1},null,"Cisco",95134]
[{"$f":"SUBSTITUTE(SUBSTITUTE(Example1!A49,\"www.\",\"\"),\".com\",\"\")","v":"gainsight"},{"$f":"SLOOKUP(A49,H:H,H:H,0.6,0)","v":"Gainsight"},{"$f":"IF(B49<>\"\",SimpleSim(A49,B49),\"\")","v":1},null,{"$f":"LLOOKUP(A49,H:H,H:H,0.6,0)","v":"Gainsight"},{"$f":"IF(E49<>\"\",LevenshteinSimilarity(A49,E49),\"\")","v":1},null,"Clara Analytics",95050]
[{"$f":"SUBSTITUTE(SUBSTITUTE(Example1!A50,\"www.\",\"\"),\".com\",\"\")","v":"garagescript.org"},{"$f":"SLOOKUP(A50,H:H,H:H,0.6,0)","v":"GarageScript"},{"$f":"IF(B50<>\"\",SimpleSim(A50,B50),\"\")","v":0.80208333333333337},null,{"$f":"LLOOKUP(A50,H:H,H:H,0.6,0)","v":"GarageScript"},{"$f":"IF(E50<>\"\",LevenshteinSimilarity(A50,E50),\"\")","v":0.75},null,"Cloudbees",95110]
[{"$f":"SUBSTITUTE(SUBSTITUTE(Example1!A51,\"www.\",\"\"),\".com\",\"\")","v":"genapsys"},{"$f":"SLOOKUP(A51,H:H,H:H,0.6,0)","v":"GenapSys"},{"$f":"IF(B51<>\"\",SimpleSim(A51,B51),\"\")","v":1},null,{"$f":"LLOOKUP(A51,H:H,H:H,0.6,0)","v":"GenapSys"},{"$f":"IF(E51<>\"\",LevenshteinSimilarity(A51,E51),\"\")","v":1},null,"Clover Network",94085]
[{"$f":"SUBSTITUTE(SUBSTITUTE(Example1!A52,\"www.\",\"\"),\".com\",\"\")","v":"genomichealth"},{"$f":"SLOOKUP(A52,H:H,H:H,0.6,0)","v":"Genomic Health"},{"$f":"IF(B52<>\"\",SimpleSim(A52,B52),\"\")","v":0.96153846153846156},null,{"$f":"LLOOKUP(A52,H:H,H:H,0.6,0)","v":"Genomic Health"},{"$f":"IF(E52<>\"\",LevenshteinSimilarity(A52,E52),\"\")","v":0.92307692307692313},null,"Codexis",94063]
[{"$f":"SUBSTITUTE(SUBSTITUTE(Example1!A53,\"www.\",\"\"),\".com\",\"\")","v":"getmiles"},{"$f":"SLOOKUP(A53,H:H,H:H,0.6,0)","v":"Miles"},{"$f":"IF(B53<>\"\",SimpleSim(A53,B53),\"\")","v":0.65625},null,{"$f":"LLOOKUP(A53,H:H,H:H,0.6,0)","v":"Miles"},{"$f":"IF(E53<>\"\",LevenshteinSimilarity(A53,E53),\"\")","v":0.625},null,"ColorTokens",95054]
[{"$f":"SUBSTITUTE(SUBSTITUTE(Example1!A54,\"www.\",\"\"),\".com\",\"\")","v":"gigya"},{"$f":"SLOOKUP(A54,H:H,H:H,0.6,0)","v":"Gigya"},{"$f":"IF(B54<>\"\",SimpleSim(A54,B54),\"\")","v":1},null,{"$f":"LLOOKUP(A54,H:H,H:H,0.6,0)","v":"Gigya"},{"$f":"IF(E54<>\"\",LevenshteinSimilarity(A54,E54),\"\")","v":1},null,"Columbus Nova",94025]
[{"$f":"SUBSTITUTE(SUBSTITUTE(Example1!A55,\"www.\",\"\"),\".com\",\"\")","v":"globalfoundries"},{"$f":"SLOOKUP(A55,H:H,H:H,0.6,0)","v":"Globalfoundries"},{"$f":"IF(B55<>\"\",SimpleSim(A55,B55),\"\")","v":1},null,{"$f":"LLOOKUP(A55,H:H,H:H,0.6,0)","v":"Globalfoundries"},{"$f":"IF(E55<>\"\",LevenshteinSimilarity(A55,E55),\"\")","v":1},null,"CommonGenius",95113]
[{"$f":"SUBSTITUTE(SUBSTITUTE(Example1!A56,\"www.\",\"\"),\".com\",\"\")","v":"go.wepay"},{"$f":"SLOOKUP(A56,H:H,H:H,0.6,0)","v":"WePay"},{"$f":"IF(B56<>\"\",SimpleSim(A56,B56),\"\")","v":0.625},null,{"$f":"LLOOKUP(A56,H:H,H:H,0.6,0)","v":"WePay"},{"$f":"IF(E56<>\"\",LevenshteinSimilarity(A56,E56),\"\")","v":0.625},null,"Confident Cannabis"]
[{"$f":"SUBSTITUTE(SUBSTITUTE(Example1!A57,\"www.\",\"\"),\".com\",\"\")","v":"goodrx"},{"$f":"SLOOKUP(A57,H:H,H:H,0.6,0)","v":"GoodRx"},{"$f":"IF(B57<>\"\",SimpleSim(A57,B57),\"\")","v":1},null,{"$f":"LLOOKUP(A57,H:H,H:H,0.6,0)","v":"GoodRx"},{"$f":"IF(E57<>\"\",LevenshteinSimilarity(A57,E57),\"\")","v":1},null,"Course Hero",94063]
[{"$f":"SUBSTITUTE(SUBSTITUTE(Example1!A58,\"www.\",\"\"),\".com\",\"\")","v":"google"},{"$f":"SLOOKUP(A58,H:H,H:H,0.6,0)","v":"Google"},{"$f":"IF(B58<>\"\",SimpleSim(A58,B58),\"\")","v":1},null,{"$f":"LLOOKUP(A58,H:H,H:H,0.6,0)","v":"Google"},{"$f":"IF(E58<>\"\",LevenshteinSimilarity(A58,E58),\"\")","v":1},null,"Coursera",94041]
[{"$f":"SUBSTITUTE(SUBSTITUTE(Example1!A59,\"www.\",\"\"),\".com\",\"\")","v":"greenfieldlabs"},{"$f":"SLOOKUP(A59,H:H,H:H,0.6,0)","v":"Greenfield Labs"},{"$f":"IF(B59<>\"\",SimpleSim(A59,B59),\"\")","v":0.9642857142857143},null,{"$f":"LLOOKUP(A59,H:H,H:H,0.6,0)","v":"Greenfield Labs"},{"$f":"IF(E59<>\"\",LevenshteinSimilarity(A59,E59),\"\")","v":0.9285714285714286},null,"Cradlepoint",95032]
[{"$f":"SUBSTITUTE(SUBSTITUTE(Example1!A60,\"www.\",\"\"),\".com\",\"\")","v":"greylock"},{"$f":"SLOOKUP(A60,H:H,H:H,0.6,0)","v":"Greylock Partners"},{"$f":"IF(B60<>\"\",SimpleSim(A60,B60),\"\")","v":1},null,{"$f":"LLOOKUP(A60,H:H,H:H,0.6,0)","v":""},{"$f":"IF(E60<>\"\",LevenshteinSimilarity(A60,E60),\"\")","v":""},null,"Crossover Hub",94538]
[{"$f":"SUBSTITUTE(SUBSTITUTE(Example1!A61,\"www.\",\"\"),\".com\",\"\")","v":"groupon"},{"$f":"SLOOKUP(A61,H:H,H:H,0.6,0)","v":"Groupon"},{"$f":"IF(B61<>\"\",SimpleSim(A61,B61),\"\")","v":1},null,{"$f":"LLOOKUP(A61,H:H,H:H,0.6,0)","v":"Groupon"},{"$f":"IF(E61<>\"\",LevenshteinSimilarity(A61,E61),\"\")","v":1},null,"DataStax",95054]
[{"$f":"SUBSTITUTE(SUBSTITUTE(Example1!A62,\"www.\",\"\"),\".com\",\"\")","v":"hackerrank"},{"$f":"SLOOKUP(A62,H:H,H:H,0.6,0)","v":"HackerRank"},{"$f":"IF(B62<>\"\",SimpleSim(A62,B62),\"\")","v":1},null,{"$f":"LLOOKUP(A62,H:H,H:H,0.6,0)","v":"HackerRank"},{"$f":"IF(E62<>\"\",LevenshteinSimilarity(A62,E62),\"\")","v":1},null,"Datavisor",94043]
[{"$f":"SUBSTITUTE(SUBSTITUTE(Example1!A63,\"www.\",\"\"),\".com\",\"\")","v":"harmonicinc"},{"$f":"SLOOKUP(A63,H:H,H:H,0.6,0)","v":"Harmonic"},{"$f":"IF(B63<>\"\",SimpleSim(A63,B63),\"\")","v":0.83333333333333348},null,{"$f":"LLOOKUP(A63,H:H,H:H,0.6,0)","v":"Harmonic"},{"$f":"IF(E63<>\"\",LevenshteinSimilarity(A63,E63),\"\")","v":0.72727272727272729},null,"Datrium",94089]
[{"$f":"SUBSTITUTE(SUBSTITUTE(Example1!A64,\"www.\",\"\"),\".com\",\"\")","v":"healthgorilla"},{"$f":"SLOOKUP(A64,H:H,H:H,0.6,0)","v":"Health Gorilla"},{"$f":"IF(B64<>\"\",SimpleSim(A64,B64),\"\")","v":0.96153846153846156},null,{"$f":"LLOOKUP(A64,H:H,H:H,0.6,0)","v":"Health Gorilla"},{"$f":"IF(E64<>\"\",LevenshteinSimilarity(A64,E64),\"\")","v":0.92307692307692313},null,"DCM Ventures",94025]
[{"$f":"SUBSTITUTE(SUBSTITUTE(Example1!A65,\"www.\",\"\"),\".com\",\"\")","v":"heartflow"},{"$f":"SLOOKUP(A65,H:H,H:H,0.6,0)","v":"HeartFlow"},{"$f":"IF(B65<>\"\",SimpleSim(A65,B65),\"\")","v":1},null,{"$f":"LLOOKUP(A65,H:H,H:H,0.6,0)","v":"HeartFlow"},{"$f":"IF(E65<>\"\",LevenshteinSimilarity(A65,E65),\"\")","v":1},null,"Delphix",94063]
[{"$f":"SUBSTITUTE(SUBSTITUTE(Example1!A66,\"www.\",\"\"),\".com\",\"\")","v":"hivemapper"},{"$f":"SLOOKUP(A66,H:H,H:H,0.6,0)","v":"Hivemapper"},{"$f":"IF(B66<>\"\",SimpleSim(A66,B66),\"\")","v":1},null,{"$f":"LLOOKUP(A66,H:H,H:H,0.6,0)","v":"Hivemapper"},{"$f":"IF(E66<>\"\",LevenshteinSimilarity(A66,E66),\"\")","v":1},null,"DiDi Labs",94043]
[{"$f":"SUBSTITUTE(SUBSTITUTE(Example1!A67,\"www.\",\"\"),\".com\",\"\")","v":"houzz"},{"$f":"SLOOKUP(A67,H:H,H:H,0.6,0)","v":"Houzz"},{"$f":"IF(B67<>\"\",SimpleSim(A67,B67),\"\")","v":1},null,{"$f":"LLOOKUP(A67,H:H,H:H,0.6,0)","v":"Houzz"},{"$f":"IF(E67<>\"\",LevenshteinSimilarity(A67,E67),\"\")","v":1},null,"Diffbot",94025]
[{"$f":"SUBSTITUTE(SUBSTITUTE(Example1!A68,\"www.\",\"\"),\".com\",\"\")","v":"hp"},{"$f":"SLOOKUP(A68,H:H,H:H,0.6,0)","v":""},{"$f":"IF(B68<>\"\",SimpleSim(A68,B68),\"\")","v":""},null,{"$f":"LLOOKUP(A68,H:H,H:H,0.6,0)","v":""},{"$f":"IF(E68<>\"\",LevenshteinSimilarity(A68,E68),\"\")","v":""},null,"DNAnexus",94040]
[{"$f":"SUBSTITUTE(SUBSTITUTE(Example1!A69,\"www.\",\"\"),\".com\",\"\")","v":"hpe"},{"$f":"SLOOKUP(A69,H:H,H:H,0.6,0)","v":""},{"$f":"IF(B69<>\"\",SimpleSim(A69,B69),\"\")","v":""},null,{"$f":"LLOOKUP(A69,H:H,H:H,0.6,0)","v":""},{"$f":"IF(E69<>\"\",LevenshteinSimilarity(A69,E69),\"\")","v":""},null,"Dokkio",94403]
[{"$f":"SUBSTITUTE(SUBSTITUTE(Example1!A70,\"www.\",\"\"),\".com\",\"\")","v":"ibm"},{"$f":"SLOOKUP(A70,H:H,H:H,0.6,0)","v":"IBM"},{"$f":"IF(B70<>\"\",SimpleSim(A70,B70),\"\")","v":1},null,{"$f":"LLOOKUP(A70,H:H,H:H,0.6,0)","v":"IBM"},{"$f":"IF(E70<>\"\",LevenshteinSimilarity(A70,E70),\"\")","v":1},null,"Draper Fisher Jurvetson",94025]
[{"$f":"SUBSTITUTE(SUBSTITUTE(Example1!A71,\"www.\",\"\"),\".com\",\"\")","v":"imperva"},{"$f":"SLOOKUP(A71,H:H,H:H,0.6,0)","v":"Imperva"},{"$f":"IF(B71<>\"\",SimpleSim(A71,B71),\"\")","v":1},null,{"$f":"LLOOKUP(A71,H:H,H:H,0.6,0)","v":"Imperva"},{"$f":"IF(E71<>\"\",LevenshteinSimilarity(A71,E71),\"\")","v":1},null,"eBay",95125]
[{"$f":"SUBSTITUTE(SUBSTITUTE(Example1!A72,\"www.\",\"\"),\".com\",\"\")","v":"incorta"},{"$f":"SLOOKUP(A72,H:H,H:H,0.6,0)","v":"Incorta"},{"$f":"IF(B72<>\"\",SimpleSim(A72,B72),\"\")","v":1},null,{"$f":"LLOOKUP(A72,H:H,H:H,0.6,0)","v":"Incorta"},{"$f":"IF(E72<>\"\",LevenshteinSimilarity(A72,E72),\"\")","v":1},null,"Egnyte",94043]
[{"$f":"SUBSTITUTE(SUBSTITUTE(Example1!A73,\"www.\",\"\"),\".com\",\"\")","v":"inflection"},{"$f":"SLOOKUP(A73,H:H,H:H,0.6,0)","v":"Inflection.com"},{"$f":"IF(B73<>\"\",SimpleSim(A73,B73),\"\")","v":1},null,{"$f":"LLOOKUP(A73,H:H,H:H,0.6,0)","v":"Inflection.com"},{"$f":"IF(E73<>\"\",LevenshteinSimilarity(A73,E73),\"\")","v":1},null,"Elastic",94040]
[{"$f":"SUBSTITUTE(SUBSTITUTE(Example1!A74,\"www.\",\"\"),\".com\",\"\")","v":"infogain"},{"$f":"SLOOKUP(A74,H:H,H:H,0.6,0)","v":"Infogain"},{"$f":"IF(B74<>\"\",SimpleSim(A74,B74),\"\")","v":1},null,{"$f":"LLOOKUP(A74,H:H,H:H,0.6,0)","v":"Infogain"},{"$f":"IF(E74<>\"\",LevenshteinSimilarity(A74,E74),\"\")","v":1},null,"Electronic Arts",94065]
[{"$f":"SUBSTITUTE(SUBSTITUTE(Example1!A75,\"www.\",\"\"),\".com\",\"\")","v":"informatica"},{"$f":"SLOOKUP(A75,H:H,H:H,0.6,0)","v":"Informatica"},{"$f":"IF(B75<>\"\",SimpleSim(A75,B75),\"\")","v":1},null,{"$f":"LLOOKUP(A75,H:H,H:H,0.6,0)","v":"Informatica"},{"$f":"IF(E75<>\"\",LevenshteinSimilarity(A75,E75),\"\")","v":1},null,"EMC Data Domain",95054]
[{"$f":"SUBSTITUTE(SUBSTITUTE(Example1!A76,\"www.\",\"\"),\".com\",\"\")","v":"intel"},{"$f":"SLOOKUP(A76,H:H,H:H,0.6,0)","v":"Intel"},{"$f":"IF(B76<>\"\",SimpleSim(A76,B76),\"\")","v":1},null,{"$f":"LLOOKUP(A76,H:H,H:H,0.6,0)","v":"Intel"},{"$f":"IF(E76<>\"\",LevenshteinSimilarity(A76,E76),\"\")","v":1},null,"Equinix",94065]
[{"$f":"SUBSTITUTE(SUBSTITUTE(Example1!A77,\"www.\",\"\"),\".com\",\"\")","v":"intelliswift"},{"$f":"SLOOKUP(A77,H:H,H:H,0.6,0)","v":"Intelliswift"},{"$f":"IF(B77<>\"\",SimpleSim(A77,B77),\"\")","v":1},null,{"$f":"LLOOKUP(A77,H:H,H:H,0.6,0)","v":"Intelliswift"},{"$f":"IF(E77<>\"\",LevenshteinSimilarity(A77,E77),\"\")","v":1},null,"Evernote",94063]
[{"$f":"SUBSTITUTE(SUBSTITUTE(Example1!A78,\"www.\",\"\"),\".com\",\"\")","v":"jasper"},{"$f":"SLOOKUP(A78,H:H,H:H,0.6,0)","v":"Jasper Wireless"},{"$f":"IF(B78<>\"\",SimpleSim(A78,B78),\"\")","v":1},null,{"$f":"LLOOKUP(A78,H:H,H:H,0.6,0)","v":""},{"$f":"IF(E78<>\"\",LevenshteinSimilarity(A78,E78),\"\")","v":""},null,"Facebook",94025]
[{"$f":"SUBSTITUTE(SUBSTITUTE(Example1!A79,\"www.\",\"\"),\".com\",\"\")","v":"jobvite"},{"$f":"SLOOKUP(A79,H:H,H:H,0.6,0)","v":"Jobvite"},{"$f":"IF(B79<>\"\",SimpleSim(A79,B79),\"\")","v":1},null,{"$f":"LLOOKUP(A79,H:H,H:H,0.6,0)","v":"Jobvite"},{"$f":"IF(E79<>\"\",LevenshteinSimilarity(A79,E79),\"\")","v":1},null,"Fanatics",94403]
[{"$f":"SUBSTITUTE(SUBSTITUTE(Example1!A80,\"www.\",\"\"),\".com\",\"\")","v":"juniper.net"},{"$f":"SLOOKUP(A80,H:H,H:H,0.6,0)","v":"Juniper Networks"},{"$f":"IF(B80<>\"\",SimpleSim(A80,B80),\"\")","v":1},null,{"$f":"LLOOKUP(A80,H:H,H:H,0.6,0)","v":"Juniper Networks"},{"$f":"IF(E80<>\"\",LevenshteinSimilarity(A80,E80),\"\")","v":1},null,"FileMaker",95054]
[{"$f":"SUBSTITUTE(SUBSTITUTE(Example1!A81,\"www.\",\"\"),\".com\",\"\")","v":"khoslaventures"},{"$f":"SLOOKUP(A81,H:H,H:H,0.6,0)","v":"Khosla Ventures"},{"$f":"IF(B81<>\"\",SimpleSim(A81,B81),\"\")","v":0.9642857142857143},null,{"$f":"LLOOKUP(A81,H:H,H:H,0.6,0)","v":"Khosla Ventures"},{"$f":"IF(E81<>\"\",LevenshteinSimilarity(A81,E81),\"\")","v":0.9285714285714286},null,"Flipboard",94301]
[{"$f":"SUBSTITUTE(SUBSTITUTE(Example1!A82,\"www.\",\"\"),\".com\",\"\")","v":"kkr"},{"$f":"SLOOKUP(A82,H:H,H:H,0.6,0)","v":"Kohlberg Kravis Roberts"},{"$f":"IF(B82<>\"\",SimpleSim(A82,B82),\"\")","v":0.70370370370370372},null,{"$f":"LLOOKUP(A82,H:H,H:H,0.6,0)","v":""},{"$f":"IF(E82<>\"\",LevenshteinSimilarity(A82,E82),\"\")","v":""},null,"Forcepoint",95032]
[{"$f":"SUBSTITUTE(SUBSTITUTE(Example1!A83,\"www.\",\"\"),\".com\",\"\")","v":"lab126"},{"$f":"SLOOKUP(A83,H:H,H:H,0.6,0)","v":"Lab126"},{"$f":"IF(B83<>\"\",SimpleSim(A83,B83),\"\")","v":1},null,{"$f":"LLOOKUP(A83,H:H,H:H,0.6,0)","v":"Lab126"},{"$f":"IF(E83<>\"\",LevenshteinSimilarity(A83,E83),\"\")","v":1},null,"Gainsight",94065]
[{"$f":"SUBSTITUTE(SUBSTITUTE(Example1!A84,\"www.\",\"\"),\".com\",\"\")","v":"leetcode"},{"$f":"SLOOKUP(A84,H:H,H:H,0.6,0)","v":"Leetcode"},{"$f":"IF(B84<>\"\",SimpleSim(A84,B84),\"\")","v":1},null,{"$f":"LLOOKUP(A84,H:H,H:H,0.6,0)","v":"Leetcode"},{"$f":"IF(E84<>\"\",LevenshteinSimilarity(A84,E84),\"\")","v":1},null,"GarageScript",95110]
[{"$f":"SUBSTITUTE(SUBSTITUTE(Example1!A85,\"www.\",\"\"),\".com\",\"\")","v":"livongo"},{"$f":"SLOOKUP(A85,H:H,H:H,0.6,0)","v":"Livongo"},{"$f":"IF(B85<>\"\",SimpleSim(A85,B85),\"\")","v":1},null,{"$f":"LLOOKUP(A85,H:H,H:H,0.6,0)","v":"Livongo"},{"$f":"IF(E85<>\"\",LevenshteinSimilarity(A85,E85),\"\")","v":1},null,"GenapSys",94063]
[{"$f":"SUBSTITUTE(SUBSTITUTE(Example1!A86,\"www.\",\"\"),\".com\",\"\")","v":"logitech"},{"$f":"SLOOKUP(A86,H:H,H:H,0.6,0)","v":"Logitech"},{"$f":"IF(B86<>\"\",SimpleSim(A86,B86),\"\")","v":1},null,{"$f":"LLOOKUP(A86,H:H,H:H,0.6,0)","v":"Logitech"},{"$f":"IF(E86<>\"\",LevenshteinSimilarity(A86,E86),\"\")","v":1},null,"Genomic Health",94063]
[{"$f":"SUBSTITUTE(SUBSTITUTE(Example1!A87,\"www.\",\"\"),\".com\",\"\")","v":"lohika"},{"$f":"SLOOKUP(A87,H:H,H:H,0.6,0)","v":"Lohika"},{"$f":"IF(B87<>\"\",SimpleSim(A87,B87),\"\")","v":1},null,{"$f":"LLOOKUP(A87,H:H,H:H,0.6,0)","v":"Lohika"},{"$f":"IF(E87<>\"\",LevenshteinSimilarity(A87,E87),\"\")","v":1},null,"GGV Capital",94025]
[{"$f":"SUBSTITUTE(SUBSTITUTE(Example1!A88,\"www.\",\"\"),\".com\",\"\")","v":"lsvp"},{"$f":"SLOOKUP(A88,H:H,H:H,0.6,0)","v":""},{"$f":"IF(B88<>\"\",SimpleSim(A88,B88),\"\")","v":""},null,{"$f":"LLOOKUP(A88,H:H,H:H,0.6,0)","v":""},{"$f":"IF(E88<>\"\",LevenshteinSimilarity(A88,E88),\"\")","v":""},null,"GI Partners",94025]
[{"$f":"SUBSTITUTE(SUBSTITUTE(Example1!A89,\"www.\",\"\"),\".com\",\"\")","v":"mapr"},{"$f":"SLOOKUP(A89,H:H,H:H,0.6,0)","v":"MapR Technologies"},{"$f":"IF(B89<>\"\",SimpleSim(A89,B89),\"\")","v":1},null,{"$f":"LLOOKUP(A89,H:H,H:H,0.6,0)","v":""},{"$f":"IF(E89<>\"\",LevenshteinSimilarity(A89,E89),\"\")","v":""},null,"Gigya",94303]
[{"$f":"SUBSTITUTE(SUBSTITUTE(Example1!A90,\"www.\",\"\"),\".com\",\"\")","v":"marketo"},{"$f":"SLOOKUP(A90,H:H,H:H,0.6,0)","v":"Marketo"},{"$f":"IF(B90<>\"\",SimpleSim(A90,B90),\"\")","v":1},null,{"$f":"LLOOKUP(A90,H:H,H:H,0.6,0)","v":"Marketo"},{"$f":"IF(E90<>\"\",LevenshteinSimilarity(A90,E90),\"\")","v":1},null,"Globalfoundries",95054]
[{"$f":"SUBSTITUTE(SUBSTITUTE(Example1!A91,\"www.\",\"\"),\".com\",\"\")","v":"marklogic"},{"$f":"SLOOKUP(A91,H:H,H:H,0.6,0)","v":"MarkLogic"},{"$f":"IF(B91<>\"\",SimpleSim(A91,B91),\"\")","v":1},null,{"$f":"LLOOKUP(A91,H:H,H:H,0.6,0)","v":"MarkLogic"},{"$f":"IF(E91<>\"\",LevenshteinSimilarity(A91,E91),\"\")","v":1},null,"GoFundMe",94063]
[{"$f":"SUBSTITUTE(SUBSTITUTE(Example1!A92,\"www.\",\"\"),\".com\",\"\")","v":"marvell"},{"$f":"SLOOKUP(A92,H:H,H:H,0.6,0)","v":"Marvell"},{"$f":"IF(B92<>\"\",SimpleSim(A92,B92),\"\")","v":1},null,{"$f":"LLOOKUP(A92,H:H,H:H,0.6,0)","v":"Marvell"},{"$f":"IF(E92<>\"\",LevenshteinSimilarity(A92,E92),\"\")","v":1},null,"Gong.io",94403]
[{"$f":"SUBSTITUTE(SUBSTITUTE(Example1!A93,\"www.\",\"\"),\".com\",\"\")","v":"mattermost"},{"$f":"SLOOKUP(A93,H:H,H:H,0.6,0)","v":"Mattermost"},{"$f":"IF(B93<>\"\",SimpleSim(A93,B93),\"\")","v":1},null,{"$f":"LLOOKUP(A93,H:H,H:H,0.6,0)","v":"Mattermost"},{"$f":"IF(E93<>\"\",LevenshteinSimilarity(A93,E93),\"\")","v":1},null,"GoodRx",94107]
[{"$f":"SUBSTITUTE(SUBSTITUTE(Example1!A94,\"www.\",\"\"),\".com\",\"\")","v":"mcafee"},{"$f":"SLOOKUP(A94,H:H,H:H,0.6,0)","v":"McAfee"},{"$f":"IF(B94<>\"\",SimpleSim(A94,B94),\"\")","v":1},null,{"$f":"LLOOKUP(A94,H:H,H:H,0.6,0)","v":"McAfee"},{"$f":"IF(E94<>\"\",LevenshteinSimilarity(A94,E94),\"\")","v":1},null,"Google"]
[{"$f":"SUBSTITUTE(SUBSTITUTE(Example1!A95,\"www.\",\"\"),\".com\",\"\")","v":"mentor"},{"$f":"SLOOKUP(A95,H:H,H:H,0.6,0)","v":"Mentor Graphics"},{"$f":"IF(B95<>\"\",SimpleSim(A95,B95),\"\")","v":1},null,{"$f":"LLOOKUP(A95,H:H,H:H,0.6,0)","v":""},{"$f":"IF(E95<>\"\",LevenshteinSimilarity(A95,E95),\"\")","v":""},null,"Green Bits",95113]
[{"$f":"SUBSTITUTE(SUBSTITUTE(Example1!A96,\"www.\",\"\"),\".com\",\"\")","v":"metricstream"},{"$f":"SLOOKUP(A96,H:H,H:H,0.6,0)","v":"MetricStream"},{"$f":"IF(B96<>\"\",SimpleSim(A96,B96),\"\")","v":1},null,{"$f":"LLOOKUP(A96,H:H,H:H,0.6,0)","v":"MetricStream"},{"$f":"IF(E96<>\"\",LevenshteinSimilarity(A96,E96),\"\")","v":1},null,"Greenfield Labs",94304]
[{"$f":"SUBSTITUTE(SUBSTITUTE(Example1!A97,\"www.\",\"\"),\".com\",\"\")","v":"mindsource"},{"$f":"SLOOKUP(A97,H:H,H:H,0.6,0)","v":"Mindsource"},{"$f":"IF(B97<>\"\",SimpleSim(A97,B97),\"\")","v":1},null,{"$f":"LLOOKUP(A97,H:H,H:H,0.6,0)","v":"Mindsource"},{"$f":"IF(E97<>\"\",LevenshteinSimilarity(A97,E97),\"\")","v":1},null,"Greylock Partners",94025]
[{"$f":"SUBSTITUTE(SUBSTITUTE(Example1!A98,\"www.\",\"\"),\".com\",\"\")","v":"modeln"},{"$f":"SLOOKUP(A98,H:H,H:H,0.6,0)","v":"Model N"},{"$f":"IF(B98<>\"\",SimpleSim(A98,B98),\"\")","v":0.91666666666666663},null,{"$f":"LLOOKUP(A98,H:H,H:H,0.6,0)","v":"Model N"},{"$f":"IF(E98<>\"\",LevenshteinSimilarity(A98,E98),\"\")","v":0.83333333333333337},null,"Groupon",95054]
[{"$f":"SUBSTITUTE(SUBSTITUTE(Example1!A99,\"www.\",\"\"),\".com\",\"\")","v":"mongodb"},{"$f":"SLOOKUP(A99,H:H,H:H,0.6,0)","v":"MongoDB"},{"$f":"IF(B99<>\"\",SimpleSim(A99,B99),\"\")","v":1},null,{"$f":"LLOOKUP(A99,H:H,H:H,0.6,0)","v":"MongoDB"},{"$f":"IF(E99<>\"\",LevenshteinSimilarity(A99,E99),\"\")","v":1},null,"GSR Ventures",94301]
[{"$f":"SUBSTITUTE(SUBSTITUTE(Example1!A100,\"www.\",\"\"),\".com\",\"\")","v":"netapp"},{"$f":"SLOOKUP(A100,H:H,H:H,0.6,0)","v":"NetApp"},{"$f":"IF(B100<>\"\",SimpleSim(A100,B100),\"\")","v":1},null,{"$f":"LLOOKUP(A100,H:H,H:H,0.6,0)","v":"NetApp"},{"$f":"IF(E100<>\"\",LevenshteinSimilarity(A100,E100),\"\")","v":1},null,"GV"]
[{"$f":"SUBSTITUTE(SUBSTITUTE(Example1!A101,\"www.\",\"\"),\".com\",\"\")","v":"netflix"},{"$f":"SLOOKUP(A101,H:H,H:H,0.6,0)","v":"Netflix"},{"$f":"IF(B101<>\"\",SimpleSim(A101,B101),\"\")","v":1},null,{"$f":"LLOOKUP(A101,H:H,H:H,0.6,0)","v":"Netflix"},{"$f":"IF(E101<>\"\",LevenshteinSimilarity(A101,E101),\"\")","v":1},null,"HackerRank",94041]
[{"$f":"SUBSTITUTE(SUBSTITUTE(Example1!A102,\"www.\",\"\"),\".com\",\"\")","v":"netspring.io"},{"$f":"SLOOKUP(A102,H:H,H:H,0.6,0)","v":"NetSpring"},{"$f":"IF(B102<>\"\",SimpleSim(A102,B102),\"\")","v":0.76190476190476186},null,{"$f":"LLOOKUP(A102,H:H,H:H,0.6,0)","v":"NetSpring"},{"$f":"IF(E102<>\"\",LevenshteinSimilarity(A102,E102),\"\")","v":0.75},null,"Harmonic",95134]
[{"$f":"SUBSTITUTE(SUBSTITUTE(Example1!A103,\"www.\",\"\"),\".com\",\"\")","v":"nexgent"},{"$f":"SLOOKUP(A103,H:H,H:H,0.6,0)","v":"NexGenT"},{"$f":"IF(B103<>\"\",SimpleSim(A103,B103),\"\")","v":1},null,{"$f":"LLOOKUP(A103,H:H,H:H,0.6,0)","v":"NexGenT"},{"$f":"IF(E103<>\"\",LevenshteinSimilarity(A103,E103),\"\")","v":1},null,"Health Gorilla",94086]
[{"$f":"SUBSTITUTE(SUBSTITUTE(Example1!A104,\"www.\",\"\"),\".com\",\"\")","v":"nuro.ai"},{"$f":"SLOOKUP(A104,H:H,H:H,0.6,0)","v":""},{"$f":"IF(B104<>\"\",SimpleSim(A104,B104),\"\")","v":""},null,{"$f":"LLOOKUP(A104,H:H,H:H,0.6,0)","v":""},{"$f":"IF(E104<>\"\",LevenshteinSimilarity(A104,E104),\"\")","v":""},null,"HeartFlow",94063]
[{"$f":"SUBSTITUTE(SUBSTITUTE(Example1!A105,\"www.\",\"\"),\".com\",\"\")","v":"nutanix"},{"$f":"SLOOKUP(A105,H:H,H:H,0.6,0)","v":"Nutanix"},{"$f":"IF(B105<>\"\",SimpleSim(A105,B105),\"\")","v":1},null,{"$f":"LLOOKUP(A105,H:H,H:H,0.6,0)","v":"Nutanix"},{"$f":"IF(E105<>\"\",LevenshteinSimilarity(A105,E105),\"\")","v":1},null,"Hewlett Packard",94304]
[{"$f":"SUBSTITUTE(SUBSTITUTE(Example1!A106,\"www.\",\"\"),\".com\",\"\")","v":"nvidia"},{"$f":"SLOOKUP(A106,H:H,H:H,0.6,0)","v":"NVIDIA"},{"$f":"IF(B106<>\"\",SimpleSim(A106,B106),\"\")","v":1},null,{"$f":"LLOOKUP(A106,H:H,H:H,0.6,0)","v":"NVIDIA"},{"$f":"IF(E106<>\"\",LevenshteinSimilarity(A106,E106),\"\")","v":1},null,"Hewlett-Packard Enterprise",95002]
[{"$f":"SUBSTITUTE(SUBSTITUTE(Example1!A107,\"www.\",\"\"),\".com\",\"\")","v":"onesignal"},{"$f":"SLOOKUP(A107,H:H,H:H,0.6,0)","v":"Onesignal"},{"$f":"IF(B107<>\"\",SimpleSim(A107,B107),\"\")","v":1},null,{"$f":"LLOOKUP(A107,H:H,H:H,0.6,0)","v":"Onesignal"},{"$f":"IF(E107<>\"\",LevenshteinSimilarity(A107,E107),\"\")","v":1},null,"Highland Capital Partners",94025]
[{"$f":"SUBSTITUTE(SUBSTITUTE(Example1!A108,\"www.\",\"\"),\".com\",\"\")","v":"outreachcircle"},{"$f":"SLOOKUP(A108,H:H,H:H,0.6,0)","v":"OutreachCircle"},{"$f":"IF(B108<>\"\",SimpleSim(A108,B108),\"\")","v":1},null,{"$f":"LLOOKUP(A108,H:H,H:H,0.6,0)","v":"OutreachCircle"},{"$f":"IF(E108<>\"\",LevenshteinSimilarity(A108,E108),\"\")","v":1},null,"Hiretual",94043]
[{"$f":"SUBSTITUTE(SUBSTITUTE(Example1!A109,\"www.\",\"\"),\".com\",\"\")","v":"palantir"},{"$f":"SLOOKUP(A109,H:H,H:H,0.6,0)","v":"Palantir"},{"$f":"IF(B109<>\"\",SimpleSim(A109,B109),\"\")","v":1},null,{"$f":"LLOOKUP(A109,H:H,H:H,0.6,0)","v":"Palantir"},{"$f":"IF(E109<>\"\",LevenshteinSimilarity(A109,E109),\"\")","v":1},null,"Hivemapper",94010]
[{"$f":"SUBSTITUTE(SUBSTITUTE(Example1!A110,\"www.\",\"\"),\".com\",\"\")","v":"planful"},{"$f":"SLOOKUP(A110,H:H,H:H,0.6,0)","v":"Planful"},{"$f":"IF(B110<>\"\",SimpleSim(A110,B110),\"\")","v":1},null,{"$f":"LLOOKUP(A110,H:H,H:H,0.6,0)","v":"Planful"},{"$f":"IF(E110<>\"\",LevenshteinSimilarity(A110,E110),\"\")","v":1},null,"Houzz",94301]
[{"$f":"SUBSTITUTE(SUBSTITUTE(Example1!A111,\"www.\",\"\"),\".com\",\"\")","v":"poshmark"},{"$f":"SLOOKUP(A111,H:H,H:H,0.6,0)","v":"Poshmark"},{"$f":"IF(B111<>\"\",SimpleSim(A111,B111),\"\")","v":1},null,{"$f":"LLOOKUP(A111,H:H,H:H,0.6,0)","v":"Poshmark"},{"$f":"IF(E111<>\"\",LevenshteinSimilarity(A111,E111),\"\")","v":1},null,"IBM",95141]
[{"$f":"SUBSTITUTE(SUBSTITUTE(Example1!A112,\"www.\",\"\"),\".com\",\"\")","v":"proofpoint"},{"$f":"SLOOKUP(A112,H:H,H:H,0.6,0)","v":"Proofpoint"},{"$f":"IF(B112<>\"\",SimpleSim(A112,B112),\"\")","v":1},null,{"$f":"LLOOKUP(A112,H:H,H:H,0.6,0)","v":"Proofpoint"},{"$f":"IF(E112<>\"\",LevenshteinSimilarity(A112,E112),\"\")","v":1},null,"Imperva",94065]
[{"$f":"SUBSTITUTE(SUBSTITUTE(Example1!A113,\"www.\",\"\"),\".com\",\"\")","v":"qualys"},{"$f":"SLOOKUP(A113,H:H,H:H,0.6,0)","v":"Qualys"},{"$f":"IF(B113<>\"\",SimpleSim(A113,B113),\"\")","v":1},null,{"$f":"LLOOKUP(A113,H:H,H:H,0.6,0)","v":"Qualys"},{"$f":"IF(E113<>\"\",LevenshteinSimilarity(A113,E113),\"\")","v":1},null,"Incorta",94403]
[{"$f":"SUBSTITUTE(SUBSTITUTE(Example1!A114,\"www.\",\"\"),\".com\",\"\")","v":"quora"},{"$f":"SLOOKUP(A114,H:H,H:H,0.6,0)","v":"Quora"},{"$f":"IF(B114<>\"\",SimpleSim(A114,B114),\"\")","v":1},null,{"$f":"LLOOKUP(A114,H:H,H:H,0.6,0)","v":"Quora"},{"$f":"IF(E114<>\"\",LevenshteinSimilarity(A114,E114),\"\")","v":1},null,"Inflection.com",94065]
[{"$f":"SUBSTITUTE(SUBSTITUTE(Example1!A115,\"www.\",\"\"),\".com\",\"\")","v":"qwilt"},{"$f":"SLOOKUP(A115,H:H,H:H,0.6,0)","v":"Qwilt"},{"$f":"IF(B115<>\"\",SimpleSim(A115,B115),\"\")","v":1},null,{"$f":"LLOOKUP(A115,H:H,H:H,0.6,0)","v":"Qwilt"},{"$f":"IF(E115<>\"\",LevenshteinSimilarity(A115,E115),\"\")","v":1},null,"Infogain",95032]
[{"$f":"SUBSTITUTE(SUBSTITUTE(Example1!A116,\"www.\",\"\"),\".com\",\"\")","v":"reputation"},{"$f":"SLOOKUP(A116,H:H,H:H,0.6,0)","v":"reputation.com"},{"$f":"IF(B116<>\"\",SimpleSim(A116,B116),\"\")","v":1},null,{"$f":"LLOOKUP(A116,H:H,H:H,0.6,0)","v":"reputation.com"},{"$f":"IF(E116<>\"\",LevenshteinSimilarity(A116,E116),\"\")","v":1},null,"Informatica",94063]
[{"$f":"SUBSTITUTE(SUBSTITUTE(Example1!A117,\"www.\",\"\"),\".com\",\"\")","v":"robinhood"},{"$f":"SLOOKUP(A117,H:H,H:H,0.6,0)","v":"Robinhood"},{"$f":"IF(B117<>\"\",SimpleSim(A117,B117),\"\")","v":1},null,{"$f":"LLOOKUP(A117,H:H,H:H,0.6,0)","v":"Robinhood"},{"$f":"IF(E117<>\"\",LevenshteinSimilarity(A117,E117),\"\")","v":1},null,"Institutional Venture Partners",94025]
[{"$f":"SUBSTITUTE(SUBSTITUTE(Example1!A118,\"www.\",\"\"),\".com\",\"\")","v":"roblox"},{"$f":"SLOOKUP(A118,H:H,H:H,0.6,0)","v":"Roblox"},{"$f":"IF(B118<>\"\",SimpleSim(A118,B118),\"\")","v":1},null,{"$f":"LLOOKUP(A118,H:H,H:H,0.6,0)","v":"Roblox"},{"$f":"IF(E118<>\"\",LevenshteinSimilarity(A118,E118),\"\")","v":1},null,"Intel",95054]
[{"$f":"SUBSTITUTE(SUBSTITUTE(Example1!A119,\"www.\",\"\"),\".com\",\"\")","v":"roku"},{"$f":"SLOOKUP(A119,H:H,H:H,0.6,0)","v":"Roku"},{"$f":"IF(B119<>\"\",SimpleSim(A119,B119),\"\")","v":1},null,{"$f":"LLOOKUP(A119,H:H,H:H,0.6,0)","v":"Roku"},{"$f":"IF(E119<>\"\",LevenshteinSimilarity(A119,E119),\"\")","v":1},null,"Intelliswift",94560]
[{"$f":"SUBSTITUTE(SUBSTITUTE(Example1!A120,\"www.\",\"\"),\".com\",\"\")","v":"sandisk"},{"$f":"SLOOKUP(A120,H:H,H:H,0.6,0)","v":"Sandisk"},{"$f":"IF(B120<>\"\",SimpleSim(A120,B120),\"\")","v":1},null,{"$f":"LLOOKUP(A120,H:H,H:H,0.6,0)","v":"Sandisk"},{"$f":"IF(E120<>\"\",LevenshteinSimilarity(A120,E120),\"\")","v":1},null,"InterWest Partners",94025]
[{"$f":"SUBSTITUTE(SUBSTITUTE(Example1!A121,\"www.\",\"\"),\".com\",\"\")","v":"sap"},{"$f":"SLOOKUP(A121,H:H,H:H,0.6,0)","v":"SAP"},{"$f":"IF(B121<>\"\",SimpleSim(A121,B121),\"\")","v":1},null,{"$f":"LLOOKUP(A121,H:H,H:H,0.6,0)","v":"SAP"},{"$f":"IF(E121<>\"\",LevenshteinSimilarity(A121,E121),\"\")","v":1},null,"Intuit",94043]
[{"$f":"SUBSTITUTE(SUBSTITUTE(Example1!A122,\"www.\",\"\"),\".com\",\"\")","v":"scalyr"},{"$f":"SLOOKUP(A122,H:H,H:H,0.6,0)","v":"Scalyr"},{"$f":"IF(B122<>\"\",SimpleSim(A122,B122),\"\")","v":1},null,{"$f":"LLOOKUP(A122,H:H,H:H,0.6,0)","v":"Scalyr"},{"$f":"IF(E122<>\"\",LevenshteinSimilarity(A122,E122),\"\")","v":1},null,"Invoice2go",94063]
[{"$f":"SUBSTITUTE(SUBSTITUTE(Example1!A123,\"www.\",\"\"),\".com\",\"\")","v":"seagate"},{"$f":"SLOOKUP(A123,H:H,H:H,0.6,0)","v":"Seagate"},{"$f":"IF(B123<>\"\",SimpleSim(A123,B123),\"\")","v":1},null,{"$f":"LLOOKUP(A123,H:H,H:H,0.6,0)","v":"Seagate"},{"$f":"IF(E123<>\"\",LevenshteinSimilarity(A123,E123),\"\")","v":1},null,"Jasper Wireless",94043]
[{"$f":"SUBSTITUTE(SUBSTITUTE(Example1!A124,\"www.\",\"\"),\".com\",\"\")","v":"securly"},{"$f":"SLOOKUP(A124,H:H,H:H,0.6,0)","v":"Securly"},{"$f":"IF(B124<>\"\",SimpleSim(A124,B124),\"\")","v":1},null,{"$f":"LLOOKUP(A124,H:H,H:H,0.6,0)","v":"Securly"},{"$f":"IF(E124<>\"\",LevenshteinSimilarity(A124,E124),\"\")","v":1},null,"Jobvite",94402]
[{"$f":"SUBSTITUTE(SUBSTITUTE(Example1!A125,\"www.\",\"\"),\".com\",\"\")","v":"sendbird"},{"$f":"SLOOKUP(A125,H:H,H:H,0.6,0)","v":"Sendbird"},{"$f":"IF(B125<>\"\",SimpleSim(A125,B125),\"\")","v":1},null,{"$f":"LLOOKUP(A125,H:H,H:H,0.6,0)","v":"Sendbird"},{"$f":"IF(E125<>\"\",LevenshteinSimilarity(A125,E125),\"\")","v":1},null,"Juniper Networks",94089]
[{"$f":"SUBSTITUTE(SUBSTITUTE(Example1!A126,\"www.\",\"\"),\".com\",\"\")","v":"sendgrid"},{"$f":"SLOOKUP(A126,H:H,H:H,0.6,0)","v":"Sendgrid"},{"$f":"IF(B126<>\"\",SimpleSim(A126,B126),\"\")","v":1},null,{"$f":"LLOOKUP(A126,H:H,H:H,0.6,0)","v":"Sendgrid"},{"$f":"IF(E126<>\"\",LevenshteinSimilarity(A126,E126),\"\")","v":1},null,"Katerra",94025]
[{"$f":"SUBSTITUTE(SUBSTITUTE(Example1!A127,\"www.\",\"\"),\".com\",\"\")","v":"sentinelone"},{"$f":"SLOOKUP(A127,H:H,H:H,0.6,0)","v":"SentinelOne"},{"$f":"IF(B127<>\"\",SimpleSim(A127,B127),\"\")","v":1},null,{"$f":"LLOOKUP(A127,H:H,H:H,0.6,0)","v":"SentinelOne"},{"$f":"IF(E127<>\"\",LevenshteinSimilarity(A127,E127),\"\")","v":1},null,"Khan Academy",94043]
[{"$f":"SUBSTITUTE(SUBSTITUTE(Example1!A128,\"www.\",\"\"),\".com\",\"\")","v":"sequoiacap"},{"$f":"SLOOKUP(A128,H:H,H:H,0.6,0)","v":"Sequoia Capital"},{"$f":"IF(B128<>\"\",SimpleSim(A128,B128),\"\")","v":0.95},null,{"$f":"LLOOKUP(A128,H:H,H:H,0.6,0)","v":"Sequoia Capital"},{"$f":"IF(E128<>\"\",LevenshteinSimilarity(A128,E128),\"\")","v":0.9},null,"Khosla Ventures",94025]
[{"$f":"SUBSTITUTE(SUBSTITUTE(Example1!A129,\"www.\",\"\"),\".com\",\"\")","v":"shastaventures"},{"$f":"SLOOKUP(A129,H:H,H:H,0.6,0)","v":"Shasta Ventures"},{"$f":"IF(B129<>\"\",SimpleSim(A129,B129),\"\")","v":0.9642857142857143},null,{"$f":"LLOOKUP(A129,H:H,H:H,0.6,0)","v":"Shasta Ventures"},{"$f":"IF(E129<>\"\",LevenshteinSimilarity(A129,E129),\"\")","v":0.9285714285714286},null,"Kleiner Perkins",94025]
[{"$f":"SUBSTITUTE(SUBSTITUTE(Example1!A130,\"www.\",\"\"),\".com\",\"\")","v":"shazam"},{"$f":"SLOOKUP(A130,H:H,H:H,0.6,0)","v":"Shazam"},{"$f":"IF(B130<>\"\",SimpleSim(A130,B130),\"\")","v":1},null,{"$f":"LLOOKUP(A130,H:H,H:H,0.6,0)","v":"Shazam"},{"$f":"IF(E130<>\"\",LevenshteinSimilarity(A130,E130),\"\")","v":1},null,"Kohlberg Kravis Roberts",94025]
[{"$f":"SUBSTITUTE(SUBSTITUTE(Example1!A131,\"www.\",\"\"),\".com\",\"\")","v":"shutterfly"},{"$f":"SLOOKUP(A131,H:H,H:H,0.6,0)","v":"Shutterfly"},{"$f":"IF(B131<>\"\",SimpleSim(A131,B131),\"\")","v":1},null,{"$f":"LLOOKUP(A131,H:H,H:H,0.6,0)","v":"Shutterfly"},{"$f":"IF(E131<>\"\",LevenshteinSimilarity(A131,E131),\"\")","v":1},null,"Lab126",95014]
[{"$f":"SUBSTITUTE(SUBSTITUTE(Example1!A132,\"www.\",\"\"),\".com\",\"\")","v":"sibly.co"},{"$f":"SLOOKUP(A132,H:H,H:H,0.6,0)","v":"Sibly"},{"$f":"IF(B132<>\"\",SimpleSim(A132,B132),\"\")","v":0.625},null,{"$f":"LLOOKUP(A132,H:H,H:H,0.6,0)","v":"Sibly"},{"$f":"IF(E132<>\"\",LevenshteinSimilarity(A132,E132),\"\")","v":0.625},null,"Leetcode",94303]
[{"$f":"SUBSTITUTE(SUBSTITUTE(Example1!A133,\"www.\",\"\"),\".com\",\"\")","v":"signalfx"},{"$f":"SLOOKUP(A133,H:H,H:H,0.6,0)","v":"SignalFx"},{"$f":"IF(B133<>\"\",SimpleSim(A133,B133),\"\")","v":1},null,{"$f":"LLOOKUP(A133,H:H,H:H,0.6,0)","v":"SignalFx"},{"$f":"IF(E133<>\"\",LevenshteinSimilarity(A133,E133),\"\")","v":1},null,"Lightspeed Venture Partners",94025]
[{"$f":"SUBSTITUTE(SUBSTITUTE(Example1!A134,\"www.\",\"\"),\".com\",\"\")","v":"sizmek"},{"$f":"SLOOKUP(A134,H:H,H:H,0.6,0)","v":"Sizmek"},{"$f":"IF(B134<>\"\",SimpleSim(A134,B134),\"\")","v":1},null,{"$f":"LLOOKUP(A134,H:H,H:H,0.6,0)","v":"Sizmek"},{"$f":"IF(E134<>\"\",LevenshteinSimilarity(A134,E134),\"\")","v":1},null,"Livongo",94041]
[{"$f":"SUBSTITUTE(SUBSTITUTE(Example1!A135,\"www.\",\"\"),\".com\",\"\")","v":"smugmug"},{"$f":"SLOOKUP(A135,H:H,H:H,0.6,0)","v":"SmugMug"},{"$f":"IF(B135<>\"\",SimpleSim(A135,B135),\"\")","v":1},null,{"$f":"LLOOKUP(A135,H:H,H:H,0.6,0)","v":"SmugMug"},{"$f":"IF(E135<>\"\",LevenshteinSimilarity(A135,E135),\"\")","v":1},null,"Logitech",94560]
[{"$f":"SUBSTITUTE(SUBSTITUTE(Example1!A136,\"www.\",\"\"),\".com\",\"\")","v":"snaplogic"},{"$f":"SLOOKUP(A136,H:H,H:H,0.6,0)","v":"SnapLogic"},{"$f":"IF(B136<>\"\",SimpleSim(A136,B136),\"\")","v":1},null,{"$f":"LLOOKUP(A136,H:H,H:H,0.6,0)","v":"SnapLogic"},{"$f":"IF(E136<>\"\",LevenshteinSimilarity(A136,E136),\"\")","v":1},null,"Lohika",94402]
[{"$f":"SUBSTITUTE(SUBSTITUTE(Example1!A137,\"www.\",\"\"),\".com\",\"\")","v":"snowflake"},{"$f":"SLOOKUP(A137,H:H,H:H,0.6,0)","v":"Snowflake Computing"},{"$f":"IF(B137<>\"\",SimpleSim(A137,B137),\"\")","v":1},null,{"$f":"LLOOKUP(A137,H:H,H:H,0.6,0)","v":""},{"$f":"IF(E137<>\"\",LevenshteinSimilarity(A137,E137),\"\")","v":""},null,"Machine Zone",94303]
[{"$f":"SUBSTITUTE(SUBSTITUTE(Example1!A138,\"www.\",\"\"),\".com\",\"\")","v":"sslmda"},{"$f":"SLOOKUP(A138,H:H,H:H,0.6,0)","v":""},{"$f":"IF(B138<>\"\",SimpleSim(A138,B138),\"\")","v":""},null,{"$f":"LLOOKUP(A138,H:H,H:H,0.6,0)","v":""},{"$f":"IF(E138<>\"\",LevenshteinSimilarity(A138,E138),\"\")","v":""},null,"Makena Capital Management",94025]
[{"$f":"SUBSTITUTE(SUBSTITUTE(Example1!A139,\"www.\",\"\"),\".com\",\"\")","v":"sterlingpr"},{"$f":"SLOOKUP(A139,H:H,H:H,0.6,0)","v":"Sterling Communications"},{"$f":"IF(B139<>\"\",SimpleSim(A139,B139),\"\")","v":0.82499999999999996},null,{"$f":"LLOOKUP(A139,H:H,H:H,0.6,0)","v":""},{"$f":"IF(E139<>\"\",LevenshteinSimilarity(A139,E139),\"\")","v":""},null,"MapR Technologies",95134]
[{"$f":"SUBSTITUTE(SUBSTITUTE(Example1!A140,\"www.\",\"\"),\".com\",\"\")","v":"stormventures"},{"$f":"SLOOKUP(A140,H:H,H:H,0.6,0)","v":"Storm Ventures"},{"$f":"IF(B140<>\"\",SimpleSim(A140,B140),\"\")","v":0.96153846153846156},null,{"$f":"LLOOKUP(A140,H:H,H:H,0.6,0)","v":"Storm Ventures"},{"$f":"IF(E140<>\"\",LevenshteinSimilarity(A140,E140),\"\")","v":0.92307692307692313},null,"Marketo",94404]
[{"$f":"SUBSTITUTE(SUBSTITUTE(Example1!A141,\"www.\",\"\"),\".com\",\"\")","v":"sumologic"},{"$f":"SLOOKUP(A141,H:H,H:H,0.6,0)","v":"Sumo Logic"},{"$f":"IF(B141<>\"\",SimpleSim(A141,B141),\"\")","v":0.94444444444444442},null,{"$f":"LLOOKUP(A141,H:H,H:H,0.6,0)","v":"Sumo Logic"},{"$f":"IF(E141<>\"\",LevenshteinSimilarity(A141,E141),\"\")","v":0.88888888888888884},null,"MarkLogic",94070]
[{"$f":"SUBSTITUTE(SUBSTITUTE(Example1!A142,\"www.\",\"\"),\".com\",\"\")","v":"surveymonkey"},{"$f":"SLOOKUP(A142,H:H,H:H,0.6,0)","v":"SurveyMonkey"},{"$f":"IF(B142<>\"\",SimpleSim(A142,B142),\"\")","v":1},null,{"$f":"LLOOKUP(A142,H:H,H:H,0.6,0)","v":"SurveyMonkey"},{"$f":"IF(E142<>\"\",LevenshteinSimilarity(A142,E142),\"\")","v":1},null,"Marvell",95054]
[{"$f":"SUBSTITUTE(SUBSTITUTE(Example1!A143,\"www.\",\"\"),\".com\",\"\")","v":"svgventures"},{"$f":"SLOOKUP(A143,H:H,H:H,0.6,0)","v":"SVG Ventures"},{"$f":"IF(B143<>\"\",SimpleSim(A143,B143),\"\")","v":0.95454545454545459},null,{"$f":"LLOOKUP(A143,H:H,H:H,0.6,0)","v":"SVG Ventures"},{"$f":"IF(E143<>\"\",LevenshteinSimilarity(A143,E143),\"\")","v":0.90909090909090906},null,"Mattermost",94301]
[{"$f":"SUBSTITUTE(SUBSTITUTE(Example1!A144,\"www.\",\"\"),\".com\",\"\")","v":"syllable.ai"},{"$f":"SLOOKUP(A144,H:H,H:H,0.6,0)","v":"Syllable.ai"},{"$f":"IF(B144<>\"\",SimpleSim(A144,B144),\"\")","v":1},null,{"$f":"LLOOKUP(A144,H:H,H:H,0.6,0)","v":"Syllable.ai"},{"$f":"IF(E144<>\"\",LevenshteinSimilarity(A144,E144),\"\")","v":1},null,"Mayfield Fund",94025]
[{"$f":"SUBSTITUTE(SUBSTITUTE(Example1!A145,\"www.\",\"\"),\".com\",\"\")","v":"symantec"},{"$f":"SLOOKUP(A145,H:H,H:H,0.6,0)","v":"Symantec"},{"$f":"IF(B145<>\"\",SimpleSim(A145,B145),\"\")","v":1},null,{"$f":"LLOOKUP(A145,H:H,H:H,0.6,0)","v":"Symantec"},{"$f":"IF(E145<>\"\",LevenshteinSimilarity(A145,E145),\"\")","v":1},null,"McAfee",95054]
[{"$f":"SUBSTITUTE(SUBSTITUTE(Example1!A146,\"www.\",\"\"),\".com\",\"\")","v":"synopsys"},{"$f":"SLOOKUP(A146,H:H,H:H,0.6,0)","v":"Synopsys"},{"$f":"IF(B146<>\"\",SimpleSim(A146,B146),\"\")","v":1},null,{"$f":"LLOOKUP(A146,H:H,H:H,0.6,0)","v":"Synopsys"},{"$f":"IF(E146<>\"\",LevenshteinSimilarity(A146,E146),\"\")","v":1},null,"Menlo Ventures",94025]
[{"$f":"SUBSTITUTE(SUBSTITUTE(Example1!A147,\"www.\",\"\"),\".com\",\"\")","v":"talentseer"},{"$f":"SLOOKUP(A147,H:H,H:H,0.6,0)","v":"TalentSeer"},{"$f":"IF(B147<>\"\",SimpleSim(A147,B147),\"\")","v":1},null,{"$f":"LLOOKUP(A147,H:H,H:H,0.6,0)","v":"TalentSeer"},{"$f":"IF(E147<>\"\",LevenshteinSimilarity(A147,E147),\"\")","v":1},null,"Mentor Graphics",94538]
[{"$f":"SUBSTITUTE(SUBSTITUTE(Example1!A148,\"www.\",\"\"),\".com\",\"\")","v":"taos"},{"$f":"SLOOKUP(A148,H:H,H:H,0.6,0)","v":"Taos"},{"$f":"IF(B148<>\"\",SimpleSim(A148,B148),\"\")","v":1},null,{"$f":"LLOOKUP(A148,H:H,H:H,0.6,0)","v":"Taos"},{"$f":"IF(E148<>\"\",LevenshteinSimilarity(A148,E148),\"\")","v":1},null,"MetaVision",94403]
[{"$f":"SUBSTITUTE(SUBSTITUTE(Example1!A149,\"www.\",\"\"),\".com\",\"\")","v":"tascent"},{"$f":"SLOOKUP(A149,H:H,H:H,0.6,0)","v":"Tascent"},{"$f":"IF(B149<>\"\",SimpleSim(A149,B149),\"\")","v":1},null,{"$f":"LLOOKUP(A149,H:H,H:H,0.6,0)","v":"Tascent"},{"$f":"IF(E149<>\"\",LevenshteinSimilarity(A149,E149),\"\")","v":1},null,"MetricStream",94303]
[{"$f":"SUBSTITUTE(SUBSTITUTE(Example1!A150,\"www.\",\"\"),\".com\",\"\")","v":"tcs"},{"$f":"SLOOKUP(A150,H:H,H:H,0.6,0)","v":""},{"$f":"IF(B150<>\"\",SimpleSim(A150,B150),\"\")","v":""},null,{"$f":"LLOOKUP(A150,H:H,H:H,0.6,0)","v":""},{"$f":"IF(E150<>\"\",LevenshteinSimilarity(A150,E150),\"\")","v":""},null,"Miles",95113]
[{"$f":"SUBSTITUTE(SUBSTITUTE(Example1!A151,\"www.\",\"\"),\".com\",\"\")","v":"tibco"},{"$f":"SLOOKUP(A151,H:H,H:H,0.6,0)","v":"TIBCO Software"},{"$f":"IF(B151<>\"\",SimpleSim(A151,B151),\"\")","v":1},null,{"$f":"LLOOKUP(A151,H:H,H:H,0.6,0)","v":"Cisco"},{"$f":"IF(E151<>\"\",LevenshteinSimilarity(A151,E151),\"\")","v":0.6},null,"Mindsource",94043]
[{"$f":"SUBSTITUTE(SUBSTITUTE(Example1!A152,\"www.\",\"\"),\".com\",\"\")","v":"triplepointcapital"},{"$f":"SLOOKUP(A152,H:H,H:H,0.6,0)","v":"TriplePoint Capital"},{"$f":"IF(B152<>\"\",SimpleSim(A152,B152),\"\")","v":0.97222222222222221},null,{"$f":"LLOOKUP(A152,H:H,H:H,0.6,0)","v":"TriplePoint Capital"},{"$f":"IF(E152<>\"\",LevenshteinSimilarity(A152,E152),\"\")","v":0.94444444444444442},null,"Model N",94404]
[{"$f":"SUBSTITUTE(SUBSTITUTE(Example1!A153,\"www.\",\"\"),\".com\",\"\")","v":"tryascend"},{"$f":"SLOOKUP(A153,H:H,H:H,0.6,0)","v":"Ascend"},{"$f":"IF(B153<>\"\",SimpleSim(A153,B153),\"\")","v":0.66666666666666663},null,{"$f":"LLOOKUP(A153,H:H,H:H,0.6,0)","v":"Ascend"},{"$f":"IF(E153<>\"\",LevenshteinSimilarity(A153,E153),\"\")","v":0.66666666666666663},null,"Mohr Davidow Ventures",94025]
[{"$f":"SUBSTITUTE(SUBSTITUTE(Example1!A154,\"www.\",\"\"),\".com\",\"\")","v":"tunein"},{"$f":"SLOOKUP(A154,H:H,H:H,0.6,0)","v":"TuneIn"},{"$f":"IF(B154<>\"\",SimpleSim(A154,B154),\"\")","v":1},null,{"$f":"LLOOKUP(A154,H:H,H:H,0.6,0)","v":"TuneIn"},{"$f":"IF(E154<>\"\",LevenshteinSimilarity(A154,E154),\"\")","v":1},null,"MongoDB",94301]
[{"$f":"SUBSTITUTE(SUBSTITUTE(Example1!A155,\"www.\",\"\"),\".com\",\"\")","v":"unitq"},{"$f":"SLOOKUP(A155,H:H,H:H,0.6,0)","v":"unitQ"},{"$f":"IF(B155<>\"\",SimpleSim(A155,B155),\"\")","v":1},null,{"$f":"LLOOKUP(A155,H:H,H:H,0.6,0)","v":"unitQ"},{"$f":"IF(E155<>\"\",LevenshteinSimilarity(A155,E155),\"\")","v":1},null,"Morgenthaler",94025]
[{"$f":"SUBSTITUTE(SUBSTITUTE(Example1!A156,\"www.\",\"\"),\".com\",\"\")","v":"usa.baidu"},{"$f":"SLOOKUP(A156,H:H,H:H,0.6,0)","v":"Baidu USA"},{"$f":"IF(B156<>\"\",SimpleSim(A156,B156),\"\")","v":0.65291005291005288},null,{"$f":"LLOOKUP(A156,H:H,H:H,0.6,0)","v":""},{"$f":"IF(E156<>\"\",LevenshteinSimilarity(A156,E156),\"\")","v":""},null,"Mountain View Staffing",94303]
[{"$f":"SUBSTITUTE(SUBSTITUTE(Example1!A157,\"www.\",\"\"),\".com\",\"\")","v":"usa.visa"},{"$f":"SLOOKUP(A157,H:H,H:H,0.6,0)","v":"Virtusa"},{"$f":"IF(B157<>\"\",SimpleSim(A157,B157),\"\")","v":0.68125000000000002},null,{"$f":"LLOOKUP(A157,H:H,H:H,0.6,0)","v":""},{"$f":"IF(E157<>\"\",LevenshteinSimilarity(A157,E157),\"\")","v":""},null,"NetApp",94089]
[{"$f":"SUBSTITUTE(SUBSTITUTE(Example1!A158,\"www.\",\"\"),\".com\",\"\")","v":"verkada"},{"$f":"SLOOKUP(A158,H:H,H:H,0.6,0)","v":"Verkada"},{"$f":"IF(B158<>\"\",SimpleSim(A158,B158),\"\")","v":1},null,{"$f":"LLOOKUP(A158,H:H,H:H,0.6,0)","v":"Verkada"},{"$f":"IF(E158<>\"\",LevenshteinSimilarity(A158,E158),\"\")","v":1},null,"Netflix",95032]
[{"$f":"SUBSTITUTE(SUBSTITUTE(Example1!A159,\"www.\",\"\"),\".com\",\"\")","v":"virtusa"},{"$f":"SLOOKUP(A159,H:H,H:H,0.6,0)","v":"Virtusa"},{"$f":"IF(B159<>\"\",SimpleSim(A159,B159),\"\")","v":1},null,{"$f":"LLOOKUP(A159,H:H,H:H,0.6,0)","v":"Virtusa"},{"$f":"IF(E159<>\"\",LevenshteinSimilarity(A159,E159),\"\")","v":1},null,"NetSpring",94040]
[{"$f":"SUBSTITUTE(SUBSTITUTE(Example1!A160,\"www.\",\"\"),\".com\",\"\")","v":"wealthfront"},{"$f":"SLOOKUP(A160,H:H,H:H,0.6,0)","v":"Wealthfront"},{"$f":"IF(B160<>\"\",SimpleSim(A160,B160),\"\")","v":1},null,{"$f":"LLOOKUP(A160,H:H,H:H,0.6,0)","v":"Wealthfront"},{"$f":"IF(E160<>\"\",LevenshteinSimilarity(A160,E160),\"\")","v":1},null,"New Enterprise Associates",94025]
[{"$f":"SUBSTITUTE(SUBSTITUTE(Example1!A161,\"www.\",\"\"),\".com\",\"\")","v":"whatsapp"},{"$f":"SLOOKUP(A161,H:H,H:H,0.6,0)","v":"WhatsApp"},{"$f":"IF(B161<>\"\",SimpleSim(A161,B161),\"\")","v":1},null,{"$f":"LLOOKUP(A161,H:H,H:H,0.6,0)","v":"WhatsApp"},{"$f":"IF(E161<>\"\",LevenshteinSimilarity(A161,E161),\"\")","v":1},null,"NexGenT",95110]
[{"$f":"SUBSTITUTE(SUBSTITUTE(Example1!A162,\"www.\",\"\"),\".com\",\"\")","v":"wiser"},{"$f":"SLOOKUP(A162,H:H,H:H,0.6,0)","v":"Wiser Solutions"},{"$f":"IF(B162<>\"\",SimpleSim(A162,B162),\"\")","v":1},null,{"$f":"LLOOKUP(A162,H:H,H:H,0.6,0)","v":""},{"$f":"IF(E162<>\"\",LevenshteinSimilarity(A162,E162),\"\")","v":""},null,"Nextgen Technologies",95112]
[{"$f":"SUBSTITUTE(SUBSTITUTE(Example1!A163,\"www.\",\"\"),\".com\",\"\")","v":"workboard"},{"$f":"SLOOKUP(A163,H:H,H:H,0.6,0)","v":"WorkBoard"},{"$f":"IF(B163<>\"\",SimpleSim(A163,B163),\"\")","v":1},null,{"$f":"LLOOKUP(A163,H:H,H:H,0.6,0)","v":"WorkBoard"},{"$f":"IF(E163<>\"\",LevenshteinSimilarity(A163,E163),\"\")","v":1},null,"Nexus Venture Partners",94025]
[{"$f":"SUBSTITUTE(SUBSTITUTE(Example1!A164,\"www.\",\"\"),\".com\",\"\")","v":"accel"},{"$f":"SLOOKUP(A164,H:H,H:H,0.6,0)","v":"Accel"},{"$f":"IF(B164<>\"\",SimpleSim(A164,B164),\"\")","v":1},null,{"$f":"LLOOKUP(A164,H:H,H:H,0.6,0)","v":"Accel"},{"$f":"IF(E164<>\"\",LevenshteinSimilarity(A164,E164),\"\")","v":1},null,"Nuance Communications",94085]
[{"$f":"SUBSTITUTE(SUBSTITUTE(Example1!A165,\"www.\",\"\"),\".com\",\"\")","v":"adeccogroup"},{"$f":"SLOOKUP(A165,H:H,H:H,0.6,0)","v":"Adecco Group"},{"$f":"IF(B165<>\"\",SimpleSim(A165,B165),\"\")","v":0.95454545454545459},null,{"$f":"LLOOKUP(A165,H:H,H:H,0.6,0)","v":"Adecco Group"},{"$f":"IF(E165<>\"\",LevenshteinSimilarity(A165,E165),\"\")","v":0.90909090909090906},null,"Nuro",94043]
[{"$f":"SUBSTITUTE(SUBSTITUTE(Example1!A166,\"www.\",\"\"),\".com\",\"\")","v":"adobe"},{"$f":"SLOOKUP(A166,H:H,H:H,0.6,0)","v":"Adobe"},{"$f":"IF(B166<>\"\",SimpleSim(A166,B166),\"\")","v":1},null,{"$f":"LLOOKUP(A166,H:H,H:H,0.6,0)","v":"Adobe"},{"$f":"IF(E166<>\"\",LevenshteinSimilarity(A166,E166),\"\")","v":1},null,"Nutanix",95112]
[{"$f":"SUBSTITUTE(SUBSTITUTE(Example1!A167,\"www.\",\"\"),\".com\",\"\")","v":"alienvault"},{"$f":"SLOOKUP(A167,H:H,H:H,0.6,0)","v":"AlienVault"},{"$f":"IF(B167<>\"\",SimpleSim(A167,B167),\"\")","v":1},null,{"$f":"LLOOKUP(A167,H:H,H:H,0.6,0)","v":"AlienVault"},{"$f":"IF(E167<>\"\",LevenshteinSimilarity(A167,E167),\"\")","v":1},null,"NVIDIA",95050]
[{"$f":"SUBSTITUTE(SUBSTITUTE(Example1!A168,\"www.\",\"\"),\".com\",\"\")","v":"amd"},{"$f":"SLOOKUP(A168,H:H,H:H,0.6,0)","v":"AMD"},{"$f":"IF(B168<>\"\",SimpleSim(A168,B168),\"\")","v":1},null,{"$f":"LLOOKUP(A168,H:H,H:H,0.6,0)","v":"AMD"},{"$f":"IF(E168<>\"\",LevenshteinSimilarity(A168,E168),\"\")","v":1},null,"Onesignal",94402]
[{"$f":"SUBSTITUTE(SUBSTITUTE(Example1!A169,\"www.\",\"\"),\".com\",\"\")","v":"amplypower"},{"$f":"SLOOKUP(A169,H:H,H:H,0.6,0)","v":"Amply Power"},{"$f":"IF(B169<>\"\",SimpleSim(A169,B169),\"\")","v":0.95},null,{"$f":"LLOOKUP(A169,H:H,H:H,0.6,0)","v":"Amply Power"},{"$f":"IF(E169<>\"\",LevenshteinSimilarity(A169,E169),\"\")","v":0.9},null,"Onset Ventures",94025]
[{"$f":"SUBSTITUTE(SUBSTITUTE(Example1!A170,\"www.\",\"\"),\".com\",\"\")","v":"apple"},{"$f":"SLOOKUP(A170,H:H,H:H,0.6,0)","v":"Apple"},{"$f":"IF(B170<>\"\",SimpleSim(A170,B170),\"\")","v":1},null,{"$f":"LLOOKUP(A170,H:H,H:H,0.6,0)","v":"Apple"},{"$f":"IF(E170<>\"\",LevenshteinSimilarity(A170,E170),\"\")","v":1},null,"Oracle",94065]
[{"$f":"SUBSTITUTE(SUBSTITUTE(Example1!A171,\"www.\",\"\"),\".com\",\"\")","v":"armory.io"},{"$f":"SLOOKUP(A171,H:H,H:H,0.6,0)","v":"Armory"},{"$f":"IF(B171<>\"\",SimpleSim(A171,B171),\"\")","v":0.69444444444444442},null,{"$f":"LLOOKUP(A171,H:H,H:H,0.6,0)","v":"Armory"},{"$f":"IF(E171<>\"\",LevenshteinSimilarity(A171,E171),\"\")","v":0.66666666666666663},null,"OutreachCircle",94022]
[{"$f":"SUBSTITUTE(SUBSTITUTE(Example1!A172,\"www.\",\"\"),\".com\",\"\")","v":"asus"},{"$f":"SLOOKUP(A172,H:H,H:H,0.6,0)","v":"ASUS"},{"$f":"IF(B172<>\"\",SimpleSim(A172,B172),\"\")","v":1},null,{"$f":"LLOOKUP(A172,H:H,H:H,0.6,0)","v":"ASUS"},{"$f":"IF(E172<>\"\",LevenshteinSimilarity(A172,E172),\"\")","v":1},null,"Palantir",94301]
[{"$f":"SUBSTITUTE(SUBSTITUTE(Example1!A173,\"www.\",\"\"),\".com\",\"\")","v":"barracuda"},{"$f":"SLOOKUP(A173,H:H,H:H,0.6,0)","v":"Barracuda"},{"$f":"IF(B173<>\"\",SimpleSim(A173,B173),\"\")","v":1},null,{"$f":"LLOOKUP(A173,H:H,H:H,0.6,0)","v":"Barracuda"},{"$f":"IF(E173<>\"\",LevenshteinSimilarity(A173,E173),\"\")","v":1},null,"Palo Alto Staffing",94303]
[{"$f":"SUBSTITUTE(SUBSTITUTE(Example1!A174,\"www.\",\"\"),\".com\",\"\")","v":"bluejeans"},{"$f":"SLOOKUP(A174,H:H,H:H,0.6,0)","v":"BlueJeans"},{"$f":"IF(B174<>\"\",SimpleSim(A174,B174),\"\")","v":1},null,{"$f":"LLOOKUP(A174,H:H,H:H,0.6,0)","v":"BlueJeans"},{"$f":"IF(E174<>\"\",LevenshteinSimilarity(A174,E174),\"\")","v":1},null,"PayPal",95131]
[{"$f":"SUBSTITUTE(SUBSTITUTE(Example1!A175,\"www.\",\"\"),\".com\",\"\")","v":"bluerivertechnology"},{"$f":"SLOOKUP(A175,H:H,H:H,0.6,0)","v":"Blue River Technology"},{"$f":"IF(B175<>\"\",SimpleSim(A175,B175),\"\")","v":0.94736842105263153},null,{"$f":"LLOOKUP(A175,H:H,H:H,0.6,0)","v":"Blue River Technology"},{"$f":"IF(E175<>\"\",LevenshteinSimilarity(A175,E175),\"\")","v":0.89473684210526316},null,"Planful",94065]
[{"$f":"SUBSTITUTE(SUBSTITUTE(Example1!A176,\"www.\",\"\"),\".com\",\"\")","v":"brillio"},{"$f":"SLOOKUP(A176,H:H,H:H,0.6,0)","v":"Brillio"},{"$f":"IF(B176<>\"\",SimpleSim(A176,B176),\"\")","v":1},null,{"$f":"LLOOKUP(A176,H:H,H:H,0.6,0)","v":"Brillio"},{"$f":"IF(E176<>\"\",LevenshteinSimilarity(A176,E176),\"\")","v":1},null,"Poshmark",94065]
[{"$f":"SUBSTITUTE(SUBSTITUTE(Example1!A177,\"www.\",\"\"),\".com\",\"\")","v":"broadcom"},{"$f":"SLOOKUP(A177,H:H,H:H,0.6,0)","v":"Broadcom"},{"$f":"IF(B177<>\"\",SimpleSim(A177,B177),\"\")","v":1},null,{"$f":"LLOOKUP(A177,H:H,H:H,0.6,0)","v":"Broadcom"},{"$f":"IF(E177<>\"\",LevenshteinSimilarity(A177,E177),\"\")","v":1},null,"Proofpoint",94089]
[{"$f":"SUBSTITUTE(SUBSTITUTE(Example1!A178,\"www.\",\"\"),\".com\",\"\")","v":"cadence"},{"$f":"SLOOKUP(A178,H:H,H:H,0.6,0)","v":"Cadence Design Systems"},{"$f":"IF(B178<>\"\",SimpleSim(A178,B178),\"\")","v":1},null,{"$f":"LLOOKUP(A178,H:H,H:H,0.6,0)","v":""},{"$f":"IF(E178<>\"\",LevenshteinSimilarity(A178,E178),\"\")","v":""},null,"Proteus Digital Health",94065]
[{"$f":"SUBSTITUTE(SUBSTITUTE(Example1!A179,\"www.\",\"\"),\".com\",\"\")","v":"chegg"},{"$f":"SLOOKUP(A179,H:H,H:H,0.6,0)","v":"Chegg"},{"$f":"IF(B179<>\"\",SimpleSim(A179,B179),\"\")","v":1},null,{"$f":"LLOOKUP(A179,H:H,H:H,0.6,0)","v":"Chegg"},{"$f":"IF(E179<>\"\",LevenshteinSimilarity(A179,E179),\"\")","v":1},null,"Qualys",94404]
[{"$f":"SUBSTITUTE(SUBSTITUTE(Example1!A180,\"www.\",\"\"),\".com\",\"\")","v":"claraanalytics"},{"$f":"SLOOKUP(A180,H:H,H:H,0.6,0)","v":"Clara Analytics"},{"$f":"IF(B180<>\"\",SimpleSim(A180,B180),\"\")","v":0.9642857142857143},null,{"$f":"LLOOKUP(A180,H:H,H:H,0.6,0)","v":"Clara Analytics"},{"$f":"IF(E180<>\"\",LevenshteinSimilarity(A180,E180),\"\")","v":0.9285714285714286},null,"Quora",94041]
[{"$f":"SUBSTITUTE(SUBSTITUTE(Example1!A181,\"www.\",\"\"),\".com\",\"\")","v":"cloudbees"},{"$f":"SLOOKUP(A181,H:H,H:H,0.6,0)","v":"Cloudbees"},{"$f":"IF(B181<>\"\",SimpleSim(A181,B181),\"\")","v":1},null,{"$f":"LLOOKUP(A181,H:H,H:H,0.6,0)","v":"Cloudbees"},{"$f":"IF(E181<>\"\",LevenshteinSimilarity(A181,E181),\"\")","v":1},null,"Qwilt",94065]
[{"$f":"SUBSTITUTE(SUBSTITUTE(Example1!A182,\"www.\",\"\"),\".com\",\"\")","v":"coursehero"},{"$f":"SLOOKUP(A182,H:H,H:H,0.6,0)","v":"Course Hero"},{"$f":"IF(B182<>\"\",SimpleSim(A182,B182),\"\")","v":0.95},null,{"$f":"LLOOKUP(A182,H:H,H:H,0.6,0)","v":"Course Hero"},{"$f":"IF(E182<>\"\",LevenshteinSimilarity(A182,E182),\"\")","v":0.9},null,"Red Oak Technologies",95110]
[{"$f":"SUBSTITUTE(SUBSTITUTE(Example1!A183,\"www.\",\"\"),\".com\",\"\")","v":"coursera.org"},{"$f":"SLOOKUP(A183,H:H,H:H,0.6,0)","v":"Coursera"},{"$f":"IF(B183<>\"\",SimpleSim(A183,B183),\"\")","v":0.75},null,{"$f":"LLOOKUP(A183,H:H,H:H,0.6,0)","v":"Coursera"},{"$f":"IF(E183<>\"\",LevenshteinSimilarity(A183,E183),\"\")","v":0.66666666666666663},null,"Redpoint Ventures",94107]
[{"$f":"SUBSTITUTE(SUBSTITUTE(Example1!A184,\"www.\",\"\"),\".com\",\"\")","v":"diffbot"},{"$f":"SLOOKUP(A184,H:H,H:H,0.6,0)","v":"Diffbot"},{"$f":"IF(B184<>\"\",SimpleSim(A184,B184),\"\")","v":1},null,{"$f":"LLOOKUP(A184,H:H,H:H,0.6,0)","v":"Diffbot"},{"$f":"IF(E184<>\"\",LevenshteinSimilarity(A184,E184),\"\")","v":1},null,"Relay Ventures",94025]
[{"$f":"SUBSTITUTE(SUBSTITUTE(Example1!A185,\"www.\",\"\"),\".com\",\"\")","v":"ebay"},{"$f":"SLOOKUP(A185,H:H,H:H,0.6,0)","v":"eBay"},{"$f":"IF(B185<>\"\",SimpleSim(A185,B185),\"\")","v":1},null,{"$f":"LLOOKUP(A185,H:H,H:H,0.6,0)","v":"eBay"},{"$f":"IF(E185<>\"\",LevenshteinSimilarity(A185,E185),\"\")","v":1},null,"reputation.com",94063]
[{"$f":"SUBSTITUTE(SUBSTITUTE(Example1!A186,\"www.\",\"\"),\".com\",\"\")","v":"facebook"},{"$f":"SLOOKUP(A186,H:H,H:H,0.6,0)","v":"Facebook"},{"$f":"IF(B186<>\"\",SimpleSim(A186,B186),\"\")","v":1},null,{"$f":"LLOOKUP(A186,H:H,H:H,0.6,0)","v":"Facebook"},{"$f":"IF(E186<>\"\",LevenshteinSimilarity(A186,E186),\"\")","v":1},null,"RingCentral",94002]
[{"$f":"SUBSTITUTE(SUBSTITUTE(Example1!A187,\"www.\",\"\"),\".com\",\"\")","v":"filemaker"},{"$f":"SLOOKUP(A187,H:H,H:H,0.6,0)","v":"FileMaker"},{"$f":"IF(B187<>\"\",SimpleSim(A187,B187),\"\")","v":1},null,{"$f":"LLOOKUP(A187,H:H,H:H,0.6,0)","v":"FileMaker"},{"$f":"IF(E187<>\"\",LevenshteinSimilarity(A187,E187),\"\")","v":1},null,"Robinhood",94306]
[{"$f":"SUBSTITUTE(SUBSTITUTE(Example1!A188,\"www.\",\"\"),\".com\",\"\")","v":"gofundme"},{"$f":"SLOOKUP(A188,H:H,H:H,0.6,0)","v":"GoFundMe"},{"$f":"IF(B188<>\"\",SimpleSim(A188,B188),\"\")","v":1},null,{"$f":"LLOOKUP(A188,H:H,H:H,0.6,0)","v":"GoFundMe"},{"$f":"IF(E188<>\"\",LevenshteinSimilarity(A188,E188),\"\")","v":1},null,"Roblox",94403]
[{"$f":"SUBSTITUTE(SUBSTITUTE(Example1!A189,\"www.\",\"\"),\".com\",\"\")","v":"gong.io"},{"$f":"SLOOKUP(A189,H:H,H:H,0.6,0)","v":"Gong.io"},{"$f":"IF(B189<>\"\",SimpleSim(A189,B189),\"\")","v":1},null,{"$f":"LLOOKUP(A189,H:H,H:H,0.6,0)","v":"Gong.io"},{"$f":"IF(E189<>\"\",LevenshteinSimilarity(A189,E189),\"\")","v":1},null,"Roku",95032]
[{"$f":"SUBSTITUTE(SUBSTITUTE(Example1!A190,\"www.\",\"\"),\".com\",\"\")","v":"greenbits"},{"$f":"SLOOKUP(A190,H:H,H:H,0.6,0)","v":"Green Bits"},{"$f":"IF(B190<>\"\",SimpleSim(A190,B190),\"\")","v":0.94444444444444442},null,{"$f":"LLOOKUP(A190,H:H,H:H,0.6,0)","v":"Green Bits"},{"$f":"IF(E190<>\"\",LevenshteinSimilarity(A190,E190),\"\")","v":0.88888888888888884},null,"Sandisk",95035]
[{"$f":"SUBSTITUTE(SUBSTITUTE(Example1!A191,\"www.\",\"\"),\".com\",\"\")","v":"gsrventures"},{"$f":"SLOOKUP(A191,H:H,H:H,0.6,0)","v":"GSR Ventures"},{"$f":"IF(B191<>\"\",SimpleSim(A191,B191),\"\")","v":0.95454545454545459},null,{"$f":"LLOOKUP(A191,H:H,H:H,0.6,0)","v":"GSR Ventures"},{"$f":"IF(E191<>\"\",LevenshteinSimilarity(A191,E191),\"\")","v":0.90909090909090906},null,"SAP",94304]
[{"$f":"SUBSTITUTE(SUBSTITUTE(Example1!A192,\"www.\",\"\"),\".com\",\"\")","v":"gv"},{"$f":"SLOOKUP(A192,H:H,H:H,0.6,0)","v":"GV"},{"$f":"IF(B192<>\"\",SimpleSim(A192,B192),\"\")","v":1},null,{"$f":"LLOOKUP(A192,H:H,H:H,0.6,0)","v":"GV"},{"$f":"IF(E192<>\"\",LevenshteinSimilarity(A192,E192),\"\")","v":1},null,"Scalyr",94401]
[{"$f":"SUBSTITUTE(SUBSTITUTE(Example1!A193,\"www.\",\"\"),\".com\",\"\")","v":"hiretual"},{"$f":"SLOOKUP(A193,H:H,H:H,0.6,0)","v":"Hiretual"},{"$f":"IF(B193<>\"\",SimpleSim(A193,B193),\"\")","v":1},null,{"$f":"LLOOKUP(A193,H:H,H:H,0.6,0)","v":"Hiretual"},{"$f":"IF(E193<>\"\",LevenshteinSimilarity(A193,E193),\"\")","v":1},null,"Seagate",95014]
[{"$f":"SUBSTITUTE(SUBSTITUTE(Example1!A194,\"www.\",\"\"),\".com\",\"\")","v":"intuit"},{"$f":"SLOOKUP(A194,H:H,H:H,0.6,0)","v":"Intuit"},{"$f":"IF(B194<>\"\",SimpleSim(A194,B194),\"\")","v":1},null,{"$f":"LLOOKUP(A194,H:H,H:H,0.6,0)","v":"Intuit"},{"$f":"IF(E194<>\"\",LevenshteinSimilarity(A194,E194),\"\")","v":1},null,"Securly",95113]
[{"$f":"SUBSTITUTE(SUBSTITUTE(Example1!A195,\"www.\",\"\"),\".com\",\"\")","v":"katerra"},{"$f":"SLOOKUP(A195,H:H,H:H,0.6,0)","v":"Katerra"},{"$f":"IF(B195<>\"\",SimpleSim(A195,B195),\"\")","v":1},null,{"$f":"LLOOKUP(A195,H:H,H:H,0.6,0)","v":"Katerra"},{"$f":"IF(E195<>\"\",LevenshteinSimilarity(A195,E195),\"\")","v":1},null,"Sendbird",94401]
[{"$f":"SUBSTITUTE(SUBSTITUTE(Example1!A196,\"www.\",\"\"),\".com\",\"\")","v":"khanacademy.org"},{"$f":"SLOOKUP(A196,H:H,H:H,0.6,0)","v":"Khan Academy"},{"$f":"IF(B196<>\"\",SimpleSim(A196,B196),\"\")","v":0.70740740740740737},null,{"$f":"LLOOKUP(A196,H:H,H:H,0.6,0)","v":"Khan Academy"},{"$f":"IF(E196<>\"\",LevenshteinSimilarity(A196,E196),\"\")","v":0.66666666666666663},null,"Sendgrid",94063]
[{"$f":"SUBSTITUTE(SUBSTITUTE(Example1!A197,\"www.\",\"\"),\".com\",\"\")","v":"menlovc"},{"$f":"SLOOKUP(A197,H:H,H:H,0.6,0)","v":"Menlo Ventures"},{"$f":"IF(B197<>\"\",SimpleSim(A197,B197),\"\")","v":0.7857142857142857},null,{"$f":"LLOOKUP(A197,H:H,H:H,0.6,0)","v":""},{"$f":"IF(E197<>\"\",LevenshteinSimilarity(A197,E197),\"\")","v":""},null,"SentinelOne",94043]
[{"$f":"SUBSTITUTE(SUBSTITUTE(Example1!A198,\"www.\",\"\"),\".com\",\"\")","v":"metavision"},{"$f":"SLOOKUP(A198,H:H,H:H,0.6,0)","v":"MetaVision"},{"$f":"IF(B198<>\"\",SimpleSim(A198,B198),\"\")","v":1},null,{"$f":"LLOOKUP(A198,H:H,H:H,0.6,0)","v":"MetaVision"},{"$f":"IF(E198<>\"\",LevenshteinSimilarity(A198,E198),\"\")","v":1},null,"Sequoia Capital",94025]
[{"$f":"SUBSTITUTE(SUBSTITUTE(Example1!A199,\"www.\",\"\"),\".com\",\"\")","v":"mountainviewstaffing"},{"$f":"SLOOKUP(A199,H:H,H:H,0.6,0)","v":"Mountain View Staffing"},{"$f":"IF(B199<>\"\",SimpleSim(A199,B199),\"\")","v":0.95},null,{"$f":"LLOOKUP(A199,H:H,H:H,0.6,0)","v":"Mountain View Staffing"},{"$f":"IF(E199<>\"\",LevenshteinSimilarity(A199,E199),\"\")","v":0.9},null,"Shasta Ventures",94025]
[{"$f":"SUBSTITUTE(SUBSTITUTE(Example1!A200,\"www.\",\"\"),\".com\",\"\")","v":"mz"},{"$f":"SLOOKUP(A200,H:H,H:H,0.6,0)","v":""},{"$f":"IF(B200<>\"\",SimpleSim(A200,B200),\"\")","v":""},null,{"$f":"LLOOKUP(A200,H:H,H:H,0.6,0)","v":""},{"$f":"IF(E200<>\"\",LevenshteinSimilarity(A200,E200),\"\")","v":""},null,"Shazam",94063]
[{"$f":"SUBSTITUTE(SUBSTITUTE(Example1!A201,\"www.\",\"\"),\".com\",\"\")","v":"nextgentechinc"},{"$f":"SLOOKUP(A201,H:H,H:H,0.6,0)","v":"Nextgen Technologies"},{"$f":"IF(B201<>\"\",SimpleSim(A201,B201),\"\")","v":0.78996598639455773},null,{"$f":"LLOOKUP(A201,H:H,H:H,0.6,0)","v":"Nextgen Technologies"},{"$f":"IF(E201<>\"\",LevenshteinSimilarity(A201,E201),\"\")","v":0.7857142857142857},null,"Shutterfly",94065]
[{"$f":"SUBSTITUTE(SUBSTITUTE(Example1!A202,\"www.\",\"\"),\".com\",\"\")","v":"nuance"},{"$f":"SLOOKUP(A202,H:H,H:H,0.6,0)","v":"Nuance Communications"},{"$f":"IF(B202<>\"\",SimpleSim(A202,B202),\"\")","v":1},null,{"$f":"LLOOKUP(A202,H:H,H:H,0.6,0)","v":""},{"$f":"IF(E202<>\"\",LevenshteinSimilarity(A202,E202),\"\")","v":""},null,"Sibly",94063]
[{"$f":"SUBSTITUTE(SUBSTITUTE(Example1!A203,\"www.\",\"\"),\".com\",\"\")","v":"oracle"},{"$f":"SLOOKUP(A203,H:H,H:H,0.6,0)","v":"Oracle"},{"$f":"IF(B203<>\"\",SimpleSim(A203,B203),\"\")","v":1},null,{"$f":"LLOOKUP(A203,H:H,H:H,0.6,0)","v":"Oracle"},{"$f":"IF(E203<>\"\",LevenshteinSimilarity(A203,E203),\"\")","v":1},null,"Sierra Ventures",94025]
[{"$f":"SUBSTITUTE(SUBSTITUTE(Example1!A204,\"www.\",\"\"),\".com\",\"\")","v":"paloaltostaffing"},{"$f":"SLOOKUP(A204,H:H,H:H,0.6,0)","v":"Palo Alto Staffing"},{"$f":"IF(B204<>\"\",SimpleSim(A204,B204),\"\")","v":0.9375},null,{"$f":"LLOOKUP(A204,H:H,H:H,0.6,0)","v":"Palo Alto Staffing"},{"$f":"IF(E204<>\"\",LevenshteinSimilarity(A204,E204),\"\")","v":0.875},null,"SignalFx",94401]
[{"$f":"SUBSTITUTE(SUBSTITUTE(Example1!A205,\"www.\",\"\"),\".com\",\"\")","v":"paypal"},{"$f":"SLOOKUP(A205,H:H,H:H,0.6,0)","v":"PayPal"},{"$f":"IF(B205<>\"\",SimpleSim(A205,B205),\"\")","v":1},null,{"$f":"LLOOKUP(A205,H:H,H:H,0.6,0)","v":"PayPal"},{"$f":"IF(E205<>\"\",LevenshteinSimilarity(A205,E205),\"\")","v":1},null,"Silver Lake Partners",94025]
[{"$f":"SUBSTITUTE(SUBSTITUTE(Example1!A206,\"www.\",\"\"),\".com\",\"\")","v":"proteus"},{"$f":"SLOOKUP(A206,H:H,H:H,0.6,0)","v":"Proteus Digital Health"},{"$f":"IF(B206<>\"\",SimpleSim(A206,B206),\"\")","v":1},null,{"$f":"LLOOKUP(A206,H:H,H:H,0.6,0)","v":""},{"$f":"IF(E206<>\"\",LevenshteinSimilarity(A206,E206),\"\")","v":""},null,"Sizmek",94063]
[{"$f":"SUBSTITUTE(SUBSTITUTE(Example1!A207,\"www.\",\"\"),\".com\",\"\")","v":"redoaktech"},{"$f":"SLOOKUP(A207,H:H,H:H,0.6,0)","v":"Red Oak Technologies"},{"$f":"IF(B207<>\"\",SimpleSim(A207,B207),\"\")","v":0.9},null,{"$f":"LLOOKUP(A207,H:H,H:H,0.6,0)","v":""},{"$f":"IF(E207<>\"\",LevenshteinSimilarity(A207,E207),\"\")","v":""},null,"SmugMug",94041]
[{"$f":"SUBSTITUTE(SUBSTITUTE(Example1!A208,\"www.\",\"\"),\".com\",\"\")","v":"redpoint"},{"$f":"SLOOKUP(A208,H:H,H:H,0.6,0)","v":"Redpoint Ventures"},{"$f":"IF(B208<>\"\",SimpleSim(A208,B208),\"\")","v":1},null,{"$f":"LLOOKUP(A208,H:H,H:H,0.6,0)","v":"Cradlepoint"},{"$f":"IF(E208<>\"\",LevenshteinSimilarity(A208,E208),\"\")","v":0.75},null,"SnapLogic",94402]
[{"$f":"SUBSTITUTE(SUBSTITUTE(Example1!A209,\"www.\",\"\"),\".com\",\"\")","v":"ringcentral"},{"$f":"SLOOKUP(A209,H:H,H:H,0.6,0)","v":"RingCentral"},{"$f":"IF(B209<>\"\",SimpleSim(A209,B209),\"\")","v":1},null,{"$f":"LLOOKUP(A209,H:H,H:H,0.6,0)","v":"RingCentral"},{"$f":"IF(E209<>\"\",LevenshteinSimilarity(A209,E209),\"\")","v":1},null,"Snowflake Computing",94401]
[{"$f":"SUBSTITUTE(SUBSTITUTE(Example1!A210,\"www.\",\"\"),\".com\",\"\")","v":"socialcapital"},{"$f":"SLOOKUP(A210,H:H,H:H,0.6,0)","v":"Social Capital"},{"$f":"IF(B210<>\"\",SimpleSim(A210,B210),\"\")","v":0.96153846153846156},null,{"$f":"LLOOKUP(A210,H:H,H:H,0.6,0)","v":"Social Capital"},{"$f":"IF(E210<>\"\",LevenshteinSimilarity(A210,E210),\"\")","v":0.92307692307692313},null,"Social Capital",94301]
[{"$f":"SUBSTITUTE(SUBSTITUTE(Example1!A211,\"www.\",\"\"),\".com\",\"\")","v":"sparkcapital"},{"$f":"SLOOKUP(A211,H:H,H:H,0.6,0)","v":"Spark Capital"},{"$f":"IF(B211<>\"\",SimpleSim(A211,B211),\"\")","v":0.95833333333333337},null,{"$f":"LLOOKUP(A211,H:H,H:H,0.6,0)","v":"Spark Capital"},{"$f":"IF(E211<>\"\",LevenshteinSimilarity(A211,E211),\"\")","v":0.91666666666666663},null,"Sofinnova Ventures",94025]
[{"$f":"SUBSTITUTE(SUBSTITUTE(Example1!A212,\"www.\",\"\"),\".com\",\"\")","v":"tenable"},{"$f":"SLOOKUP(A212,H:H,H:H,0.6,0)","v":"Tenable"},{"$f":"IF(B212<>\"\",SimpleSim(A212,B212),\"\")","v":1},null,{"$f":"LLOOKUP(A212,H:H,H:H,0.6,0)","v":"Tenable"},{"$f":"IF(E212<>\"\",LevenshteinSimilarity(A212,E212),\"\")","v":1},null,"Space Systems Loral",94303]
[{"$f":"SUBSTITUTE(SUBSTITUTE(Example1!A213,\"www.\",\"\"),\".com\",\"\")","v":"tesla"},{"$f":"SLOOKUP(A213,H:H,H:H,0.6,0)","v":"Tesla"},{"$f":"IF(B213<>\"\",SimpleSim(A213,B213),\"\")","v":1},null,{"$f":"LLOOKUP(A213,H:H,H:H,0.6,0)","v":"Tesla"},{"$f":"IF(E213<>\"\",LevenshteinSimilarity(A213,E213),\"\")","v":1},null,"Spark Capital",94104]
[{"$f":"SUBSTITUTE(SUBSTITUTE(Example1!A214,\"www.\",\"\"),\".com\",\"\")","v":"tynker"},{"$f":"SLOOKUP(A214,H:H,H:H,0.6,0)","v":"Tynker"},{"$f":"IF(B214<>\"\",SimpleSim(A214,B214),\"\")","v":1},null,{"$f":"LLOOKUP(A214,H:H,H:H,0.6,0)","v":"Tynker"},{"$f":"IF(E214<>\"\",LevenshteinSimilarity(A214,E214),\"\")","v":1},null,"Sterling Communications",95032]
[{"$f":"SUBSTITUTE(SUBSTITUTE(Example1!A215,\"www.\",\"\"),\".com\",\"\")","v":"udacity"},{"$f":"SLOOKUP(A215,H:H,H:H,0.6,0)","v":"Udacity"},{"$f":"IF(B215<>\"\",SimpleSim(A215,B215),\"\")","v":1},null,{"$f":"LLOOKUP(A215,H:H,H:H,0.6,0)","v":"Udacity"},{"$f":"IF(E215<>\"\",LevenshteinSimilarity(A215,E215),\"\")","v":1},null,"Storm Ventures",94025]
[{"$f":"SUBSTITUTE(SUBSTITUTE(Example1!A216,\"www.\",\"\"),\".com\",\"\")","v":"veev"},{"$f":"SLOOKUP(A216,H:H,H:H,0.6,0)","v":"Veev"},{"$f":"IF(B216<>\"\",SimpleSim(A216,B216),\"\")","v":1},null,{"$f":"LLOOKUP(A216,H:H,H:H,0.6,0)","v":"Veev"},{"$f":"IF(E216<>\"\",LevenshteinSimilarity(A216,E216),\"\")","v":1},null,"Sumo Logic",94063]
[{"$f":"SUBSTITUTE(SUBSTITUTE(Example1!A217,\"www.\",\"\"),\".com\",\"\")","v":"vmware"},{"$f":"SLOOKUP(A217,H:H,H:H,0.6,0)","v":"VMWare"},{"$f":"IF(B217<>\"\",SimpleSim(A217,B217),\"\")","v":1},null,{"$f":"LLOOKUP(A217,H:H,H:H,0.6,0)","v":"VMWare"},{"$f":"IF(E217<>\"\",LevenshteinSimilarity(A217,E217),\"\")","v":1},null,"SurveyMonkey",94301]
[{"$f":"SUBSTITUTE(SUBSTITUTE(Example1!A218,\"www.\",\"\"),\".com\",\"\")","v":"volt"},{"$f":"SLOOKUP(A218,H:H,H:H,0.6,0)","v":"Volt Workforce Solutions"},{"$f":"IF(B218<>\"\",SimpleSim(A218,B218),\"\")","v":1},null,{"$f":"LLOOKUP(A218,H:H,H:H,0.6,0)","v":""},{"$f":"IF(E218<>\"\",LevenshteinSimilarity(A218,E218),\"\")","v":""},null,"SVG Ventures",95032]
[{"$f":"SUBSTITUTE(SUBSTITUTE(Example1!A219,\"www.\",\"\"),\".com\",\"\")","v":"walmartlabs"},{"$f":"SLOOKUP(A219,H:H,H:H,0.6,0)","v":"Walmart Labs"},{"$f":"IF(B219<>\"\",SimpleSim(A219,B219),\"\")","v":0.95454545454545459},null,{"$f":"LLOOKUP(A219,H:H,H:H,0.6,0)","v":"Walmart Labs"},{"$f":"IF(E219<>\"\",LevenshteinSimilarity(A219,E219),\"\")","v":0.90909090909090906},null,"Syllable.ai",94087]
[{"$f":"SUBSTITUTE(SUBSTITUTE(Example1!A220,\"www.\",\"\"),\".com\",\"\")","v":"wellpay.care"},{"$f":"SLOOKUP(A220,H:H,H:H,0.6,0)","v":"WellPay"},{"$f":"IF(B220<>\"\",SimpleSim(A220,B220),\"\")","v":0.63888888888888895},null,{"$f":"LLOOKUP(A220,H:H,H:H,0.6,0)","v":""},{"$f":"IF(E220<>\"\",LevenshteinSimilarity(A220,E220),\"\")","v":""},null,"Symantec",94043]
[{"$f":"SUBSTITUTE(SUBSTITUTE(Example1!A221,\"www.\",\"\"),\".com\",\"\")","v":"workato"},{"$f":"SLOOKUP(A221,H:H,H:H,0.6,0)","v":"Workato"},{"$f":"IF(B221<>\"\",SimpleSim(A221,B221),\"\")","v":1},null,{"$f":"LLOOKUP(A221,H:H,H:H,0.6,0)","v":"Workato"},{"$f":"IF(E221<>\"\",LevenshteinSimilarity(A221,E221),\"\")","v":1},null,"Synopsys",94043]
[{"$f":"SUBSTITUTE(SUBSTITUTE(Example1!A222,\"www.\",\"\"),\".com\",\"\")","v":"yummly"},{"$f":"SLOOKUP(A222,H:H,H:H,0.6,0)","v":"Yummly"},{"$f":"IF(B222<>\"\",SimpleSim(A222,B222),\"\")","v":1},null,{"$f":"LLOOKUP(A222,H:H,H:H,0.6,0)","v":"Yummly"},{"$f":"IF(E222<>\"\",LevenshteinSimilarity(A222,E222),\"\")","v":1},null,"TalentSeer",94085]
[{"$f":"SUBSTITUTE(SUBSTITUTE(Example1!A223,\"www.\",\"\"),\".com\",\"\")","v":"xilinx"},{"$f":"SLOOKUP(A223,H:H,H:H,0.6,0)","v":"Xilinx"},{"$f":"IF(B223<>\"\",SimpleSim(A223,B223),\"\")","v":1},null,{"$f":"LLOOKUP(A223,H:H,H:H,0.6,0)","v":"Xilinx"},{"$f":"IF(E223<>\"\",LevenshteinSimilarity(A223,E223),\"\")","v":1},null,"Taos",95134]
[{"$f":"SUBSTITUTE(SUBSTITUTE(Example1!A224,\"www.\",\"\"),\".com\",\"\")","v":"xoriant"},{"$f":"SLOOKUP(A224,H:H,H:H,0.6,0)","v":"Xoriant"},{"$f":"IF(B224<>\"\",SimpleSim(A224,B224),\"\")","v":1},null,{"$f":"LLOOKUP(A224,H:H,H:H,0.6,0)","v":"Xoriant"},{"$f":"IF(E224<>\"\",LevenshteinSimilarity(A224,E224),\"\")","v":1},null,"Tascent",95032]
[{"$f":"SUBSTITUTE(SUBSTITUTE(Example1!A225,\"www.\",\"\"),\".com\",\"\")","v":"yahoo"},{"$f":"SLOOKUP(A225,H:H,H:H,0.6,0)","v":"Yahoo"},{"$f":"IF(B225<>\"\",SimpleSim(A225,B225),\"\")","v":1},null,{"$f":"LLOOKUP(A225,H:H,H:H,0.6,0)","v":"Yahoo"},{"$f":"IF(E225<>\"\",LevenshteinSimilarity(A225,E225),\"\")","v":1},null,"Tata Consultancy Services",95054]
[{"$f":"SUBSTITUTE(SUBSTITUTE(Example1!A226,\"www.\",\"\"),\".com\",\"\")","v":"yodlee"},{"$f":"SLOOKUP(A226,H:H,H:H,0.6,0)","v":"Yodlee"},{"$f":"IF(B226<>\"\",SimpleSim(A226,B226),\"\")","v":1},null,{"$f":"LLOOKUP(A226,H:H,H:H,0.6,0)","v":"Yodlee"},{"$f":"IF(E226<>\"\",LevenshteinSimilarity(A226,E226),\"\")","v":1},null,"Tenable",95113]
[{"$f":"SUBSTITUTE(SUBSTITUTE(Example1!A227,\"www.\",\"\"),\".com\",\"\")","v":"youtube"},{"$f":"SLOOKUP(A227,H:H,H:H,0.6,0)","v":"YouTube"},{"$f":"IF(B227<>\"\",SimpleSim(A227,B227),\"\")","v":1},null,{"$f":"LLOOKUP(A227,H:H,H:H,0.6,0)","v":"YouTube"},{"$f":"IF(E227<>\"\",LevenshteinSimilarity(A227,E227),\"\")","v":1},null,"Tesla",94304]
[{"$f":"SUBSTITUTE(SUBSTITUTE(Example1!A228,\"www.\",\"\"),\".com\",\"\")","v":"zazzle"},{"$f":"SLOOKUP(A228,H:H,H:H,0.6,0)","v":"Zazzle"},{"$f":"IF(B228<>\"\",SimpleSim(A228,B228),\"\")","v":1},null,{"$f":"LLOOKUP(A228,H:H,H:H,0.6,0)","v":"Zazzle"},{"$f":"IF(E228<>\"\",LevenshteinSimilarity(A228,E228),\"\")","v":1},null,"The Blackstone Group",94025]
[{"$f":"SUBSTITUTE(SUBSTITUTE(Example1!A229,\"www.\",\"\"),\".com\",\"\")","v":"zicasso"},{"$f":"SLOOKUP(A229,H:H,H:H,0.6,0)","v":"Zicasso"},{"$f":"IF(B229<>\"\",SimpleSim(A229,B229),\"\")","v":1},null,{"$f":"LLOOKUP(A229,H:H,H:H,0.6,0)","v":"Zicasso"},{"$f":"IF(E229<>\"\",LevenshteinSimilarity(A229,E229),\"\")","v":1},null,"The Westly Group",94025]
[{"$f":"SUBSTITUTE(SUBSTITUTE(Example1!A230,\"www.\",\"\"),\".com\",\"\")","v":"zipcar"},{"$f":"SLOOKUP(A230,H:H,H:H,0.6,0)","v":"Zipcar"},{"$f":"IF(B230<>\"\",SimpleSim(A230,B230),\"\")","v":1},null,{"$f":"LLOOKUP(A230,H:H,H:H,0.6,0)","v":"Zipcar"},{"$f":"IF(E230<>\"\",LevenshteinSimilarity(A230,E230),\"\")","v":1},null,"TIBCO Software",94304]
[{"$f":"SUBSTITUTE(SUBSTITUTE(Example1!A231,\"www.\",\"\"),\".com\",\"\")","v":"zscaler"},{"$f":"SLOOKUP(A231,H:H,H:H,0.6,0)","v":"Zscaler"},{"$f":"IF(B231<>\"\",SimpleSim(A231,B231),\"\")","v":1},null,{"$f":"LLOOKUP(A231,H:H,H:H,0.6,0)","v":"Zscaler"},{"$f":"IF(E231<>\"\",LevenshteinSimilarity(A231,E231),\"\")","v":1},null,"Trinity Ventures",94025]
[{"$f":"SUBSTITUTE(SUBSTITUTE(Example1!A232,\"www.\",\"\"),\".com\",\"\")","v":"zumepizza"},{"$f":"SLOOKUP(A232,H:H,H:H,0.6,0)","v":"Zume Pizza"},{"$f":"IF(B232<>\"\",SimpleSim(A232,B232),\"\")","v":0.94444444444444442},null,{"$f":"LLOOKUP(A232,H:H,H:H,0.6,0)","v":"Zume Pizza"},{"$f":"IF(E232<>\"\",LevenshteinSimilarity(A232,E232),\"\")","v":0.88888888888888884},null,"TriplePoint Capital",94025]
[{"$f":"SUBSTITUTE(SUBSTITUTE(Example1!A233,\"www.\",\"\"),\".com\",\"\")","v":"zuora"},{"$f":"SLOOKUP(A233,H:H,H:H,0.6,0)","v":"Zuora"},{"$f":"IF(B233<>\"\",SimpleSim(A233,B233),\"\")","v":1},null,{"$f":"LLOOKUP(A233,H:H,H:H,0.6,0)","v":"Zuora"},{"$f":"IF(E233<>\"\",LevenshteinSimilarity(A233,E233),\"\")","v":1},null,"TuneIn",94107]
[null,null,null,null,null,{"$f":"IF(E234<>\"\",LevenshteinSimilarity(A234,E234),\"\")","v":""},null,"Tynker",94040]
[null,null,null,null,null,{"$f":"IF(E235<>\"\",LevenshteinSimilarity(A235,E235),\"\")","v":""},null,"U.S. Venture Partners",94025]
[null,null,null,null,null,{"$f":"IF(E236<>\"\",LevenshteinSimilarity(A236,E236),\"\")","v":""},null,"Udacity",94040]
[null,null,null,null,null,{"$f":"IF(E237<>\"\",LevenshteinSimilarity(A237,E237),\"\")","v":""},null,"unitQ",94401]
[null,null,null,null,null,{"$f":"IF(E238<>\"\",LevenshteinSimilarity(A238,E238),\"\")","v":""},null,"Veev",94404]
[null,null,null,null,null,{"$f":"IF(E239<>\"\",LevenshteinSimilarity(A239,E239),\"\")","v":""},null,"Verkada",94401]
[null,null,null,null,null,{"$f":"IF(E240<>\"\",LevenshteinSimilarity(A240,E240),\"\")","v":""},null,"Virtusa",94555]
[null,{"$f":"SLOOKUP(A241,H:H,H:H,0.5)","v":""},null,null,null,{"$f":"IF(E241<>\"\",LevenshteinSimilarity(A241,E241),\"\")","v":""},null,"Visa",94404]
[null,{"$f":"SLOOKUP(A242,H:H,H:H,0.5)","v":""},null,null,null,{"$f":"IF(E242<>\"\",LevenshteinSimilarity(A242,E242),\"\")","v":""},null,"VMWare",94304]
[null,{"$f":"SLOOKUP(A243,H:H,H:H,0.5)","v":""},null,null,null,{"$f":"IF(E243<>\"\",LevenshteinSimilarity(A243,E243),\"\")","v":""},null,"Volt Workforce Solutions",94538]
[null,{"$f":"SLOOKUP(A244,H:H,H:H,0.5)","v":""},null,null,null,{"$f":"IF(E244<>\"\",LevenshteinSimilarity(A244,E244),\"\")","v":""},null,"Walmart Labs",94086]
[null,{"$f":"SLOOKUP(A245,H:H,H:H,0.5)","v":""},null,null,null,{"$f":"IF(E245<>\"\",LevenshteinSimilarity(A245,E245),\"\")","v":""},null,"Wealthfront",94063]
[null,{"$f":"SLOOKUP(A246,H:H,H:H,0.5)","v":""},null,null,null,{"$f":"IF(E246<>\"\",LevenshteinSimilarity(A246,E246),\"\")","v":""},null,"WellPay"]
[null,{"$f":"SLOOKUP(A247,H:H,H:H,0.5)","v":""},null,null,null,{"$f":"IF(E247<>\"\",LevenshteinSimilarity(A247,E247),\"\")","v":""},null,"WePay",94063]
[null,{"$f":"SLOOKUP(A248,H:H,H:H,0.5)","v":""},null,null,null,{"$f":"IF(E248<>\"\",LevenshteinSimilarity(A248,E248),\"\")","v":""},null,"WhatsApp",94041]
[null,{"$f":"SLOOKUP(A249,H:H,H:H,0.5)","v":""},null,null,null,{"$f":"IF(E249<>\"\",LevenshteinSimilarity(A249,E249),\"\")","v":""},null,"Wiser Solutions",94402]
[null,{"$f":"SLOOKUP(A250,H:H,H:H,0.5)","v":""},null,null,null,{"$f":"IF(E250<>\"\",LevenshteinSimilarity(A250,E250),\"\")","v":""},null,"Workato",94041]
[null,{"$f":"SLOOKUP(A251,H:H,H:H,0.5)","v":""},null,null,null,{"$f":"IF(E251<>\"\",LevenshteinSimilarity(A251,E251),\"\")","v":""},null,"WorkBoard",94063]
[null,{"$f":"SLOOKUP(A252,H:H,H:H,0.5)","v":""},null,null,null,{"$f":"IF(E252<>\"\",LevenshteinSimilarity(A252,E252),\"\")","v":""},null,"Xilinx",95124]
[null,{"$f":"SLOOKUP(A253,H:H,H:H,0.5)","v":""},null,null,null,{"$f":"IF(E253<>\"\",LevenshteinSimilarity(A253,E253),\"\")","v":""},null,"Xoriant",94089]
[null,{"$f":"SLOOKUP(A254,H:H,H:H,0.5)","v":""},null,null,null,{"$f":"IF(E254<>\"\",LevenshteinSimilarity(A254,E254),\"\")","v":""},null,"Yahoo",94089]
[null,{"$f":"SLOOKUP(A255,H:H,H:H,0.5)","v":""},null,null,null,{"$f":"IF(E255<>\"\",LevenshteinSimilarity(A255,E255),\"\")","v":""},null,"Yodlee",94065]
[null,{"$f":"SLOOKUP(A256,H:H,H:H,0.5)","v":""},null,null,null,{"$f":"IF(E256<>\"\",LevenshteinSimilarity(A256,E256),\"\")","v":""},null,"YouTube",94066]
[null,{"$f":"SLOOKUP(A257,H:H,H:H,0.5)","v":""},null,null,null,{"$f":"IF(E257<>\"\",LevenshteinSimilarity(A257,E257),\"\")","v":""},null,"Yummly",94306]
[null,{"$f":"SLOOKUP(A258,H:H,H:H,0.5)","v":""},null,null,null,{"$f":"IF(E258<>\"\",LevenshteinSimilarity(A258,E258),\"\")","v":""},null,"Zazzle",94063]
[null,{"$f":"SLOOKUP(A259,H:H,H:H,0.5)","v":""},null,null,null,{"$f":"IF(E259<>\"\",LevenshteinSimilarity(A259,E259),\"\")","v":""},null,"Zicasso",94040]
[null,{"$f":"SLOOKUP(A260,H:H,H:H,0.5)","v":""},null,null,null,{"$f":"IF(E260<>\"\",LevenshteinSimilarity(A260,E260),\"\")","v":""},null,"Zipcar",94401]
[null,{"$f":"SLOOKUP(A261,H:H,H:H,0.5)","v":""},null,null,null,{"$f":"IF(E261<>\"\",LevenshteinSimilarity(A261,E261),\"\")","v":""},null,"Zscaler",95134]
[null,{"$f":"SLOOKUP(A262,H:H,H:H,0.5)","v":""},null,null,null,{"$f":"IF(E262<>\"\",LevenshteinSimilarity(A262,E262),\"\")","v":""},null,"Zume Pizza",94043]
[null,{"$f":"SLOOKUP(A263,H:H,H:H,0.5)","v":""},null,null,null,{"$f":"IF(E263<>\"\",LevenshteinSimilarity(A263,E263),\"\")","v":""},null,"Zuora",94403]
[null,{"$f":"SLOOKUP(A264,H:H,H:H,0.5)","v":""}]
[null,{"$f":"SLOOKUP(A265,H:H,H:H,0.5)","v":""}]
[null,{"$f":"SLOOKUP(A266,H:H,H:H,0.5)","v":""}]

{"sheet":"Example3","index":3,"n_rows":102,"n_cols":14,"rows_kept":102,"cut":false,"hidden":false,"merged":[]}
["Titel1","Autor1","Key",null,"=SLOOKUP(A1,I:I,I:I)","=SLOOKUP(C1,I:I,I:I,0.75,0)","=LLOOKUP(A1,I:I,I:I)","=LLOOKUP(C1,I:I,I:I,0.75,0)","Books"]
["1984","George Orwell",{"$f":"A2&\",\"&B2","v":"1984,George Orwell"},null,{"$f":"SLOOKUP(A2,I:I,I:I)","v":"1984, George Orwell"},{"$f":"SLOOKUP(C2,I:I,I:I,0.75,0)","v":"1984, George Orwell"},{"$f":"LLOOKUP(A2,I:I,I:I)","v":"1984, George Orwell"},{"$f":"LLOOKUP(C2,I:I,I:I,0.75,0)","v":"1984, George Orwell"},"1984, George Orwell",null,null,null,null,"Example 3 compares two book title lists"]
["Alibi","Agatha Christie","Alibi,Agatha Christie",null,{"$f":"SLOOKUP(A3,I:I,I:I)","v":""},{"$f":"SLOOKUP(C3,I:I,I:I,0.75,0)","v":""},{"$f":"LLOOKUP(A3,I:I,I:I)","v":""},{"$f":"LLOOKUP(C3,I:I,I:I,0.75,0)","v":""},"Aimee & Jaguar, Erica Fischer",null,null,null,null,"There aren't many matches because these are not the same books"]
["Alkohol","Guillaume Apollinaire","Alkohol,Guillaume Apollinaire",null,{"$f":"SLOOKUP(A4,I:I,I:I)","v":""},{"$f":"SLOOKUP(C4,I:I,I:I,0.75,0)","v":""},{"$f":"LLOOKUP(A4,I:I,I:I)","v":""},{"$f":"LLOOKUP(C4,I:I,I:I,0.75,0)","v":""},"Auf der Suche nach der verlorenen Zeit, Marcel Proust",null,null,null,null,"Both SLOOKUP and LLOOKUP find all results."]
["Am Nullpunkt der Literatur","Roland Barthes","Am Nullpunkt der Literatur,Roland Barthes",null,{"$f":"SLOOKUP(A5,I:I,I:I)","v":""},{"$f":"SLOOKUP(C5,I:I,I:I,0.75,0)","v":""},{"$f":"LLOOKUP(A5,I:I,I:I)","v":""},{"$f":"LLOOKUP(C5,I:I,I:I,0.75,0)","v":""},"Berlin Alexanderplatz, Alfred Döblin",null,null,null,null,"But LLOOKUP has one false positive (yellow)"]
["Asterix der Gallier","René Goscinny und Albert Uderzo","Asterix der Gallier,René Goscinny und Albert Uderzo",null,{"$f":"SLOOKUP(A6,I:I,I:I)","v":""},{"$f":"SLOOKUP(C6,I:I,I:I,0.75,0)","v":""},{"$f":"LLOOKUP(A6,I:I,I:I)","v":""},{"$f":"LLOOKUP(C6,I:I,I:I,0.75,0)","v":""},"Buddenbrooks: Verfall einer Familie, Thomas Mann"]
["Auf der Suche nach der verlorenen Zeit","Marcel Proust","Auf der Suche nach der verlorenen Zeit,Marcel Proust",null,{"$f":"SLOOKUP(A7,I:I,I:I)","v":"Auf der Suche nach der verlorenen Zeit, Marcel Proust"},{"$f":"SLOOKUP(C7,I:I,I:I,0.75,0)","v":"Auf der Suche nach der verlorenen Zeit, Marcel Proust"},{"$f":"LLOOKUP(A7,I:I,I:I)","v":"Auf der Suche nach der verlorenen Zeit, Marcel Proust"},{"$f":"LLOOKUP(C7,I:I,I:I,0.75,0)","v":"Auf der Suche nach der verlorenen Zeit, Marcel Proust"},"Casanovas Heimfahrt, Arthur Schnitzler"]
["Aurélien","Louis Aragon","Aurélien,Louis Aragon",null,{"$f":"SLOOKUP(A8,I:I,I:I)","v":""},{"$f":"SLOOKUP(C8,I:I,I:I,0.75,0)","v":""},{"$f":"LLOOKUP(A8,I:I,I:I)","v":""},{"$f":"LLOOKUP(C8,I:I,I:I,0.75,0)","v":""},"Das Boot, Lothar-Günther Buchheim"]
["Bonjour tristesse","Françoise Sagan","Bonjour tristesse,Françoise Sagan",null,{"$f":"SLOOKUP(A9,I:I,I:I)","v":""},{"$f":"SLOOKUP(C9,I:I,I:I,0.75,0)","v":""},{"$f":"LLOOKUP(A9,I:I,I:I)","v":""},{"$f":"LLOOKUP(C9,I:I,I:I,0.75,0)","v":""},"Das Geisterhaus, Isabell Allende"]
["Das andere Geschlecht","Simone de Beauvoir","Das andere Geschlecht,Simone de Beauvoir",null,{"$f":"SLOOKUP(A10,I:I,I:I)","v":""},{"$f":"SLOOKUP(C10,I:I,I:I,0.75,0)","v":""},{"$f":"LLOOKUP(A10,I:I,I:I)","v":""},{"$f":"LLOOKUP(C10,I:I,I:I,0.75,0)","v":""},"Das goldene Notizbuch, Doris Lessing"]
["Das Leben Gebrauchsanweisung","Georges Perec","Das Leben Gebrauchsanweisung,Georges Perec",null,{"$f":"SLOOKUP(A11,I:I,I:I)","v":""},{"$f":"SLOOKUP(C11,I:I,I:I,0.75,0)","v":""},{"$f":"LLOOKUP(A11,I:I,I:I)","v":""},{"$f":"LLOOKUP(C11,I:I,I:I,0.75,0)","v":""},"Das Parfüm, Patrick Süskind"]
["Das Protokoll","Jean-Marie Gustave Le Clézio","Das Protokoll,Jean-Marie Gustave Le Clézio",null,{"$f":"SLOOKUP(A12,I:I,I:I)","v":""},{"$f":"SLOOKUP(C12,I:I,I:I,0.75,0)","v":""},{"$f":"LLOOKUP(A12,I:I,I:I)","v":""},{"$f":"LLOOKUP(C12,I:I,I:I,0.75,0)","v":""},"Das wüste Land, T.S. Eliot"]
["Das Schweigen des Meeres","Vercors","Das Schweigen des Meeres,Vercors",null,{"$f":"SLOOKUP(A13,I:I,I:I)","v":""},{"$f":"SLOOKUP(C13,I:I,I:I,0.75,0)","v":""},{"$f":"LLOOKUP(A13,I:I,I:I)","v":""},{"$f":"LLOOKUP(C13,I:I,I:I,0.75,0)","v":""},"Der Alchemist, Paulo Coelho"]
["Das Sein und das Nichts","Jean-Paul Sartre","Das Sein und das Nichts,Jean-Paul Sartre",null,{"$f":"SLOOKUP(A14,I:I,I:I)","v":""},{"$f":"SLOOKUP(C14,I:I,I:I,0.75,0)","v":""},{"$f":"LLOOKUP(A14,I:I,I:I)","v":""},{"$f":"LLOOKUP(C14,I:I,I:I,0.75,0)","v":""},"Der Baader-Meinhof Komplex, Stefan Aust"]
["Das Theater und sein Double","Antonin Artaud","Das Theater und sein Double,Antonin Artaud",null,{"$f":"SLOOKUP(A15,I:I,I:I)","v":""},{"$f":"SLOOKUP(C15,I:I,I:I,0.75,0)","v":""},{"$f":"LLOOKUP(A15,I:I,I:I)","v":""},{"$f":"LLOOKUP(C15,I:I,I:I,0.75,0)","v":""},"Der Dieb, Georg Heym"]
["Das Ufer der Syrten","Julien Gracq","Das Ufer der Syrten,Julien Gracq",null,{"$f":"SLOOKUP(A16,I:I,I:I)","v":""},{"$f":"SLOOKUP(C16,I:I,I:I,0.75,0)","v":""},{"$f":"LLOOKUP(A16,I:I,I:I)","v":""},{"$f":"LLOOKUP(C16,I:I,I:I,0.75,0)","v":""},"Der Ekel, Jean Paul Sartre"]
["Der Archipel Gulag","Alexander Solschenizyn","Der Archipel Gulag,Alexander Solschenizyn",null,{"$f":"SLOOKUP(A17,I:I,I:I)","v":""},{"$f":"SLOOKUP(C17,I:I,I:I,0.75,0)","v":""},{"$f":"LLOOKUP(A17,I:I,I:I)","v":""},{"$f":"LLOOKUP(C17,I:I,I:I,0.75,0)","v":""},"Der Fall Deruga, Ricarda Huch"]
["Der aufhaltsame Aufstieg des Arturo Ui","Bertolt Brecht","Der aufhaltsame Aufstieg des Arturo Ui,Bertolt Brecht",null,{"$f":"SLOOKUP(A18,I:I,I:I)","v":""},{"$f":"SLOOKUP(C18,I:I,I:I,0.75,0)","v":""},{"$f":"LLOOKUP(A18,I:I,I:I)","v":""},{"$f":"LLOOKUP(C18,I:I,I:I,0.75,0)","v":""},"Der Fremde, Albert Camus"]
["Der Blaue Lotos","Hergé","Der Blaue Lotos,Hergé",null,{"$f":"SLOOKUP(A19,I:I,I:I)","v":""},{"$f":"SLOOKUP(C19,I:I,I:I,0.75,0)","v":""},{"$f":"LLOOKUP(A19,I:I,I:I)","v":""},{"$f":"LLOOKUP(C19,I:I,I:I,0.75,0)","v":""},"Der Gehülfe, Robert Walser"]
["Der Fänger im Roggen","J. D. Salinger","Der Fänger im Roggen,J. D. Salinger",null,{"$f":"SLOOKUP(A20,I:I,I:I)","v":""},{"$f":"SLOOKUP(C20,I:I,I:I,0.75,0)","v":""},{"$f":"LLOOKUP(A20,I:I,I:I)","v":""},{"$f":"LLOOKUP(C20,I:I,I:I,0.75,0)","v":""},"Der Geisterseher, Julien Green"]
["Der Fremde","Albert Camus","Der Fremde,Albert Camus",null,{"$f":"SLOOKUP(A21,I:I,I:I)","v":"Der Fremde, Albert Camus"},{"$f":"SLOOKUP(C21,I:I,I:I,0.75,0)","v":"Der Fremde, Albert Camus"},{"$f":"LLOOKUP(A21,I:I,I:I)","v":"Der Fremde, Albert Camus"},{"$f":"LLOOKUP(C21,I:I,I:I,0.75,0)","v":"Der Fremde, Albert Camus"},"Der große Gatsby, F. Scott Fitzgerald"]
["Der General der toten Armee","Ismail Kadare","Der General der toten Armee,Ismail Kadare",null,{"$f":"SLOOKUP(A22,I:I,I:I)","v":""},{"$f":"SLOOKUP(C22,I:I,I:I,0.75,0)","v":""},{"$f":"LLOOKUP(A22,I:I,I:I)","v":""},{"$f":"LLOOKUP(C22,I:I,I:I,0.75,0)","v":""},"Der Herr der Ringe, J.R.R. Tolkien"]
["Der große Gatsby","F. Scott Fitzgerald","Der große Gatsby,F. Scott Fitzgerald",null,{"$f":"SLOOKUP(A23,I:I,I:I)","v":"Der große Gatsby, F. Scott Fitzgerald"},{"$f":"SLOOKUP(C23,I:I,I:I,0.75,0)","v":"Der große Gatsby, F. Scott Fitzgerald"},{"$f":"LLOOKUP(A23,I:I,I:I)","v":"Der große Gatsby, F. Scott Fitzgerald"},{"$f":"LLOOKUP(C23,I:I,I:I,0.75,0)","v":"Der große Gatsby, F. Scott Fitzgerald"},"Der kleine Hobbit, J.R.R. Tolkien"]
["Der große Meaulnes","Alain-Fournier","Der große Meaulnes,Alain-Fournier",null,{"$f":"SLOOKUP(A24,I:I,I:I)","v":""},{"$f":"SLOOKUP(C24,I:I,I:I,0.75,0)","v":""},{"$f":"LLOOKUP(A24,I:I,I:I)","v":""},{"$f":"LLOOKUP(C24,I:I,I:I,0.75,0)","v":""},"Der kleine Prinz, Antoine de Saint-Exupéry"]
["Der große Schlaf","Raymond Chandler","Der große Schlaf,Raymond Chandler",null,{"$f":"SLOOKUP(A25,I:I,I:I)","v":""},{"$f":"SLOOKUP(C25,I:I,I:I,0.75,0)","v":""},{"$f":"LLOOKUP(A25,I:I,I:I)","v":""},{"$f":"LLOOKUP(C25,I:I,I:I,0.75,0)","v":""},"Der Mann ohne Eigenschaften, Robert Musil"]
["Der Herr der Ringe","J. R. R. Tolkien","Der Herr der Ringe,J. R. R. Tolkien",null,{"$f":"SLOOKUP(A26,I:I,I:I)","v":"Der Herr der Ringe, J.R.R. Tolkien"},{"$f":"SLOOKUP(C26,I:I,I:I,0.75,0)","v":"Der Herr der Ringe, J.R.R. Tolkien"},{"$f":"LLOOKUP(A26,I:I,I:I)","v":"Der Herr der Ringe, J.R.R. Tolkien"},{"$f":"LLOOKUP(C26,I:I,I:I,0.75,0)","v":"Der Herr der Ringe, J.R.R. Tolkien"},"Der Medicus, Noah Gordon"]
["Der Hund von Baskerville","Arthur Conan Doyle","Der Hund von Baskerville,Arthur Conan Doyle",null,{"$f":"SLOOKUP(A27,I:I,I:I)","v":""},{"$f":"SLOOKUP(C27,I:I,I:I,0.75,0)","v":""},{"$f":"LLOOKUP(A27,I:I,I:I)","v":""},{"$f":"LLOOKUP(C27,I:I,I:I,0.75,0)","v":""},"Der Name der Rose, Umberto Eco"]
["Der Husar auf dem Dach","Jean Giono","Der Husar auf dem Dach,Jean Giono",null,{"$f":"SLOOKUP(A28,I:I,I:I)","v":""},{"$f":"SLOOKUP(C28,I:I,I:I,0.75,0)","v":""},{"$f":"LLOOKUP(A28,I:I,I:I)","v":""},{"$f":"LLOOKUP(C28,I:I,I:I,0.75,0)","v":""},"Der Pate, Mario Puzo"]
["Der kleine Prinz","Antoine de Saint-Exupéry","Der kleine Prinz,Antoine de Saint-Exupéry",null,{"$f":"SLOOKUP(A29,I:I,I:I)","v":"Der kleine Prinz, Antoine de Saint-Exupéry"},{"$f":"SLOOKUP(C29,I:I,I:I,0.75,0)","v":"Der kleine Prinz, Antoine de Saint-Exupéry"},{"$f":"LLOOKUP(A29,I:I,I:I)","v":"Der kleine Prinz, Antoine de Saint-Exupéry"},{"$f":"LLOOKUP(C29,I:I,I:I,0.75,0)","v":"Der kleine Prinz, Antoine de Saint-Exupéry"},"Der Prozeß, Franz Kafka"]
["Der Krieg der Welten","H. G. Wells","Der Krieg der Welten,H. G. Wells",null,{"$f":"SLOOKUP(A30,I:I,I:I)","v":""},{"$f":"SLOOKUP(C30,I:I,I:I,0.75,0)","v":""},{"$f":"LLOOKUP(A30,I:I,I:I)","v":""},{"$f":"LLOOKUP(C30,I:I,I:I,0.75,0)","v":""},"Der Regenbogenfisch, Marcus Pfister"]
["Der Mann ohne Eigenschaften","Robert Musil","Der Mann ohne Eigenschaften,Robert Musil",null,{"$f":"SLOOKUP(A31,I:I,I:I)","v":"Der Mann ohne Eigenschaften, Robert Musil"},{"$f":"SLOOKUP(C31,I:I,I:I,0.75,0)","v":"Der Mann ohne Eigenschaften, Robert Musil"},{"$f":"LLOOKUP(A31,I:I,I:I)","v":"Der Mann ohne Eigenschaften, Robert Musil"},{"$f":"LLOOKUP(C31,I:I,I:I,0.75,0)","v":"Der Mann ohne Eigenschaften, Robert Musil"},"Der talentierte Mr.Ripley, Patricia Highsmith"]
["Der Meister und Margarita","Michail Bulgakow","Der Meister und Margarita,Michail Bulgakow",null,{"$f":"SLOOKUP(A32,I:I,I:I)","v":""},{"$f":"SLOOKUP(C32,I:I,I:I,0.75,0)","v":""},{"$f":"LLOOKUP(A32,I:I,I:I)","v":""},{"$f":"LLOOKUP(C32,I:I,I:I,0.75,0)","v":""},"Der Untertan, Heinrich Mann"]
["Der Name der Rose","Umberto Eco","Der Name der Rose,Umberto Eco",null,{"$f":"SLOOKUP(A33,I:I,I:I)","v":"Der Name der Rose, Umberto Eco"},{"$f":"SLOOKUP(C33,I:I,I:I,0.75,0)","v":"Der Name der Rose, Umberto Eco"},{"$f":"LLOOKUP(A33,I:I,I:I)","v":"Der Name der Rose, Umberto Eco"},{"$f":"LLOOKUP(C33,I:I,I:I,0.75,0)","v":"Der Name der Rose, Umberto Eco"},"Der Vorleser, Bernhard Schlink"]
["Der Prozess","Franz Kafka",{"$f":"A34&\",\"&B34","v":"Der Prozess,Franz Kafka"},null,{"$f":"SLOOKUP(A34,I:I,I:I)","v":"Der Prozeß, Franz Kafka"},{"$f":"SLOOKUP(C34,I:I,I:I,0.75,0)","v":"Der Prozeß, Franz Kafka"},{"$f":"LLOOKUP(A34,I:I,I:I)","v":"Der Prozeß, Franz Kafka"},{"$f":"LLOOKUP(C34,I:I,I:I,0.75,0)","v":"Der Prozeß, Franz Kafka"},"Der Wind in den Weiden, Kenneth Grahame"]
["Der Schaum der Tage","Boris Vian","Der Schaum der Tage,Boris Vian",null,{"$f":"SLOOKUP(A35,I:I,I:I)","v":""},{"$f":"SLOOKUP(C35,I:I,I:I,0.75,0)","v":""},{"$f":"LLOOKUP(A35,I:I,I:I)","v":""},{"$f":"LLOOKUP(C35,I:I,I:I,0.75,0)","v":""},"Der Wüstenplanet, Frank Herbert"]
["Der Scherz","Milan Kundera","Der Scherz,Milan Kundera",null,{"$f":"SLOOKUP(A36,I:I,I:I)","v":""},{"$f":"SLOOKUP(C36,I:I,I:I,0.75,0)","v":""},{"$f":"LLOOKUP(A36,I:I,I:I)","v":""},{"$f":"LLOOKUP(C36,I:I,I:I,0.75,0)","v":""},"Der Zementgarten, Ian McEwan"]
["Der seidene Schuh","Paul Claudel","Der seidene Schuh,Paul Claudel",null,{"$f":"SLOOKUP(A37,I:I,I:I)","v":""},{"$f":"SLOOKUP(C37,I:I,I:I,0.75,0)","v":""},{"$f":"LLOOKUP(A37,I:I,I:I)","v":""},{"$f":"LLOOKUP(C37,I:I,I:I,0.75,0)","v":""},"Die andere Seite, Alfred Kubin"]
["Der Zauberberg","Thomas Mann","Der Zauberberg,Thomas Mann",null,{"$f":"SLOOKUP(A38,I:I,I:I)","v":""},{"$f":"SLOOKUP(C38,I:I,I:I,0.75,0)","v":""},{"$f":"LLOOKUP(A38,I:I,I:I)","v":""},{"$f":"LLOOKUP(C38,I:I,I:I,0.75,0)","v":""},"Die Aufzeichnung des Malte Laurids Brigge, Rainer Maria Rilke"]
["Die Abenteuer von Blake und Mortimer","Edgar P. Jacobs","Die Abenteuer von Blake und Mortimer,Edgar P. Jacobs",null,{"$f":"SLOOKUP(A39,I:I,I:I)","v":""},{"$f":"SLOOKUP(C39,I:I,I:I,0.75,0)","v":""},{"$f":"LLOOKUP(A39,I:I,I:I)","v":""},{"$f":"LLOOKUP(C39,I:I,I:I,0.75,0)","v":""},"Die Ballade vom traurigen Café, Carson McCullers"]
["Die Aufzeichnungen des Malte Laurids Brigge","Rainer Maria Rilke","Die Aufzeichnungen des Malte Laurids Brigge,Rainer Maria Rilke",null,{"$f":"SLOOKUP(A40,I:I,I:I)","v":"Die Aufzeichnung des Malte Laurids Brigge, Rainer Maria Rilke"},{"$f":"SLOOKUP(C40,I:I,I:I,0.75,0)","v":"Die Aufzeichnung des Malte Laurids Brigge, Rainer Maria Rilke"},{"$f":"LLOOKUP(A40,I:I,I:I)","v":"Die Aufzeichnung des Malte Laurids Brigge, Rainer Maria Rilke"},{"$f":"LLOOKUP(C40,I:I,I:I,0.75,0)","v":"Die Aufzeichnung des Malte Laurids Brigge, Rainer Maria Rilke"},"Die Blechtrommel, Günter Grass"]
["Die Falschmünzer","André Gide","Die Falschmünzer,André Gide",null,{"$f":"SLOOKUP(A41,I:I,I:I)","v":""},{"$f":"SLOOKUP(C41,I:I,I:I,0.75,0)","v":""},{"$f":"LLOOKUP(A41,I:I,I:I)","v":""},{"$f":"LLOOKUP(C41,I:I,I:I,0.75,0)","v":""},"Die Blendung, Elias Canetti"]
["Die kahle Sängerin","Eugène Ionesco","Die kahle Sängerin,Eugène Ionesco",null,{"$f":"SLOOKUP(A42,I:I,I:I)","v":""},{"$f":"SLOOKUP(C42,I:I,I:I,0.75,0)","v":""},{"$f":"LLOOKUP(A42,I:I,I:I)","v":""},{"$f":"LLOOKUP(C42,I:I,I:I,0.75,0)","v":""},"Die Fahrt hinaus, Virginia Woolf"]
["Die Mars-Chroniken","Ray Bradbury","Die Mars-Chroniken,Ray Bradbury",null,{"$f":"SLOOKUP(A43,I:I,I:I)","v":""},{"$f":"SLOOKUP(C43,I:I,I:I,0.75,0)","v":""},{"$f":"LLOOKUP(A43,I:I,I:I)","v":""},{"$f":"LLOOKUP(C43,I:I,I:I,0.75,0)","v":""},"Die goldene Schale, Henry James"]
["Die Ordnung der Dinge","Michel Foucault","Die Ordnung der Dinge,Michel Foucault",null,{"$f":"SLOOKUP(A44,I:I,I:I)","v":""},{"$f":"SLOOKUP(C44,I:I,I:I,0.75,0)","v":""},{"$f":"LLOOKUP(A44,I:I,I:I)","v":""},{"$f":"LLOOKUP(C44,I:I,I:I,0.75,0)","v":""},"Die größere Hoffnung, Ilse Aichinger"]
["Die Schöne des Herrn","Albert Cohen","Die Schöne des Herrn,Albert Cohen",null,{"$f":"SLOOKUP(A45,I:I,I:I)","v":""},{"$f":"SLOOKUP(C45,I:I,I:I,0.75,0)","v":""},{"$f":"LLOOKUP(A45,I:I,I:I)","v":""},{"$f":"LLOOKUP(C45,I:I,I:I,0.75,0)","v":""},"Die kleine Hexe, Otfried Preußler"]
["Die schwarze Flamme","Marguerite Yourcenar","Die schwarze Flamme,Marguerite Yourcenar",null,{"$f":"SLOOKUP(A46,I:I,I:I)","v":""},{"$f":"SLOOKUP(C46,I:I,I:I,0.75,0)","v":""},{"$f":"LLOOKUP(A46,I:I,I:I)","v":""},{"$f":"LLOOKUP(C46,I:I,I:I,0.75,0)","v":""},"Die kleine Raupe Nimmersatt, Eric Carle"]
["Die Sonne Satans","Georges Bernanos","Die Sonne Satans,Georges Bernanos",null,{"$f":"SLOOKUP(A47,I:I,I:I)","v":""},{"$f":"SLOOKUP(C47,I:I,I:I,0.75,0)","v":""},{"$f":"LLOOKUP(A47,I:I,I:I)","v":""},{"$f":"LLOOKUP(C47,I:I,I:I,0.75,0)","v":""},"Die Mutter, Maxim Gorki"]
["Die Tat der Thérèse Desqueyroux","François Mauriac","Die Tat der Thérèse Desqueyroux,François Mauriac",null,{"$f":"SLOOKUP(A48,I:I,I:I)","v":""},{"$f":"SLOOKUP(C48,I:I,I:I,0.75,0)","v":""},{"$f":"LLOOKUP(A48,I:I,I:I)","v":""},{"$f":"LLOOKUP(C48,I:I,I:I,0.75,0)","v":""},"Die Nebel von Avalon, Marion Zimmer Bradley"]
["Die Tatarenwüste","Dino Buzzati","Die Tatarenwüste,Dino Buzzati",null,{"$f":"SLOOKUP(A49,I:I,I:I)","v":""},{"$f":"SLOOKUP(C49,I:I,I:I,0.75,0)","v":""},{"$f":"LLOOKUP(A49,I:I,I:I)","v":""},{"$f":"LLOOKUP(C49,I:I,I:I,0.75,0)","v":""},"Die Päpstin, Donna Woolfolk Cross"]
["Die Verachtung","Alberto Moravia","Die Verachtung,Alberto Moravia",null,{"$f":"SLOOKUP(A50,I:I,I:I)","v":""},{"$f":"SLOOKUP(C50,I:I,I:I,0.75,0)","v":""},{"$f":"LLOOKUP(A50,I:I,I:I)","v":""},{"$f":"LLOOKUP(C50,I:I,I:I,0.75,0)","v":""},"Die Physiker, Friedrich Dürrenmatt"]
["Die verlorene Ehre der Katharina Blum","Heinrich Böll","Die verlorene Ehre der Katharina Blum,Heinrich Böll",null,{"$f":"SLOOKUP(A51,I:I,I:I)","v":""},{"$f":"SLOOKUP(C51,I:I,I:I,0.75,0)","v":""},{"$f":"LLOOKUP(A51,I:I,I:I)","v":""},{"$f":"LLOOKUP(C51,I:I,I:I,0.75,0)","v":""},"Die rote Zora und ihre Bande, Kurt Held"]
["Die Verzückung der Lol V. Stein","Marguerite Duras","Die Verzückung der Lol V. Stein,Marguerite Duras",null,{"$f":"SLOOKUP(A52,I:I,I:I)","v":""},{"$f":"SLOOKUP(C52,I:I,I:I,0.75,0)","v":""},{"$f":"LLOOKUP(A52,I:I,I:I)","v":""},{"$f":"LLOOKUP(C52,I:I,I:I,0.75,0)","v":""},"Die Säulen der Erde, Ken Follett"]
["Die wunderbare Reise des kleinen Nils Holgersson","Selma Lagerlöf","Die wunderbare Reise des kleinen Nils Holgersson,Selma Lagerlöf",null,{"$f":"SLOOKUP(A53,I:I,I:I)","v":""},{"$f":"SLOOKUP(C53,I:I,I:I,0.75,0)","v":""},{"$f":"LLOOKUP(A53,I:I,I:I)","v":""},{"$f":"LLOOKUP(C53,I:I,I:I,0.75,0)","v":""},"Die Stadt der Blinden, José Saramago"]
["Drei Abhandlungen zur Sexualtheorie","Sigmund Freud","Drei Abhandlungen zur Sexualtheorie,Sigmund Freud",null,{"$f":"SLOOKUP(A54,I:I,I:I)","v":""},{"$f":"SLOOKUP(C54,I:I,I:I,0.75,0)","v":""},{"$f":"LLOOKUP(A54,I:I,I:I)","v":""},{"$f":"LLOOKUP(C54,I:I,I:I,0.75,0)","v":""},"Die unendliche Geschichte, Michael Ende"]
["Ein Zimmer für sich allein","Virginia Woolf","Ein Zimmer für sich allein,Virginia Woolf",null,{"$f":"SLOOKUP(A55,I:I,I:I)","v":""},{"$f":"SLOOKUP(C55,I:I,I:I,0.75,0)","v":""},{"$f":"LLOOKUP(A55,I:I,I:I)","v":""},{"$f":"LLOOKUP(C55,I:I,I:I,0.75,0)","v":""},"Die unerträgliche Leichtigkeit des Seins, Milan Kundera"]
["Elemente und Ursprünge totaler Herrschaft","Hannah Arendt","Elemente und Ursprünge totaler Herrschaft,Hannah Arendt",null,{"$f":"SLOOKUP(A56,I:I,I:I)","v":""},{"$f":"SLOOKUP(C56,I:I,I:I,0.75,0)","v":""},{"$f":"LLOOKUP(A56,I:I,I:I)","v":""},{"$f":"LLOOKUP(C56,I:I,I:I,0.75,0)","v":""},"Die vergessene Welt, Arthur Conan Doyle"]
["Fiktionen","Jorge Luis Borges","Fiktionen,Jorge Luis Borges",null,{"$f":"SLOOKUP(A57,I:I,I:I)","v":""},{"$f":"SLOOKUP(C57,I:I,I:I,0.75,0)","v":""},{"$f":"LLOOKUP(A57,I:I,I:I)","v":""},{"$f":"LLOOKUP(C57,I:I,I:I,0.75,0)","v":""},"Die Verwandlung, Franz Kafka"]
["Freitag oder Im Schoss des Pazifik","Michel Tournier","Freitag oder Im Schoss des Pazifik,Michel Tournier",null,{"$f":"SLOOKUP(A58,I:I,I:I)","v":""},{"$f":"SLOOKUP(C58,I:I,I:I,0.75,0)","v":""},{"$f":"LLOOKUP(A58,I:I,I:I)","v":""},{"$f":"LLOOKUP(C58,I:I,I:I,0.75,0)","v":""},"Die Welle, Morton Rhue"]
["Früchte des Zorns","John Steinbeck","Früchte des Zorns,John Steinbeck",null,{"$f":"SLOOKUP(A59,I:I,I:I)","v":""},{"$f":"SLOOKUP(C59,I:I,I:I,0.75,0)","v":""},{"$f":"LLOOKUP(A59,I:I,I:I)","v":""},{"$f":"LLOOKUP(C59,I:I,I:I,0.75,0)","v":""},"Die Welt von gestern, Stefan Zweig"]
["Fureur et mystère","René Char","Fureur et mystère,René Char",null,{"$f":"SLOOKUP(A60,I:I,I:I)","v":""},{"$f":"SLOOKUP(C60,I:I,I:I,0.75,0)","v":""},{"$f":"LLOOKUP(A60,I:I,I:I)","v":""},{"$f":"LLOOKUP(C60,I:I,I:I,0.75,0)","v":""},"Ediths Tagebuch, Patricia Highsmith"]
["Gaston","André Franquin","Gaston,André Franquin",null,{"$f":"SLOOKUP(A61,I:I,I:I)","v":""},{"$f":"SLOOKUP(C61,I:I,I:I,0.75,0)","v":""},{"$f":"LLOOKUP(A61,I:I,I:I)","v":""},{"$f":"LLOOKUP(C61,I:I,I:I,0.75,0)","v":""},"Ein Kind unserer Zeit, Ödön Horvath"]
["Hauptstadt der Schmerzen","Paul Éluard","Hauptstadt der Schmerzen,Paul Éluard",null,{"$f":"SLOOKUP(A62,I:I,I:I)","v":""},{"$f":"SLOOKUP(C62,I:I,I:I,0.75,0)","v":""},{"$f":"LLOOKUP(A62,I:I,I:I)","v":""},{"$f":"LLOOKUP(C62,I:I,I:I,0.75,0)","v":""},"Ein Pfund Orangen, Marieluise Fleißer"]
["Hundert Jahre Einsamkeit","Gabriel García Márquez","Hundert Jahre Einsamkeit,Gabriel García Márquez",null,{"$f":"SLOOKUP(A63,I:I,I:I)","v":"Hundert Jahre Einsamkeit, Gabriel García Márquez"},{"$f":"SLOOKUP(C63,I:I,I:I,0.75,0)","v":"Hundert Jahre Einsamkeit, Gabriel García Márquez"},{"$f":"LLOOKUP(A63,I:I,I:I)","v":"Hundert Jahre Einsamkeit, Gabriel García Márquez"},{"$f":"LLOOKUP(C63,I:I,I:I,0.75,0)","v":"Hundert Jahre Einsamkeit, Gabriel García Márquez"},"Eine kurze Geschichte der Zeit, Stephen Hawking"]
["Ist das ein Mensch?","Primo Levi","Ist das ein Mensch?,Primo Levi",null,{"$f":"SLOOKUP(A64,I:I,I:I)","v":""},{"$f":"SLOOKUP(C64,I:I,I:I,0.75,0)","v":""},{"$f":"LLOOKUP(A64,I:I,I:I)","v":""},{"$f":"LLOOKUP(C64,I:I,I:I,0.75,0)","v":""},"Elementarteilchen, Michel Houellebecq"]
["Keine Orchideen für Mrs. Blandish","James Hadley Chase","Keine Orchideen für Mrs. Blandish,James Hadley Chase",null,{"$f":"SLOOKUP(A65,I:I,I:I)","v":""},{"$f":"SLOOKUP(C65,I:I,I:I,0.75,0)","v":""},{"$f":"LLOOKUP(A65,I:I,I:I)","v":""},{"$f":"LLOOKUP(C65,I:I,I:I,0.75,0)","v":""},"Felidae, Akif Pirinçci"]
["Lady Chatterleys Liebhaber","D. H. Lawrence",{"$f":"A66&\",\"&B66","v":"Lady Chatterleys Liebhaber,D. H. Lawrence"},null,{"$f":"SLOOKUP(A66,I:I,I:I)","v":""},{"$f":"SLOOKUP(C66,I:I,I:I,0.75,0)","v":""},{"$f":"LLOOKUP(A66,I:I,I:I)","v":""},{"$f":"LLOOKUP(C66,I:I,I:I,0.75,0)","v":""},"Feuer und Stein, Diana Gabaldon"]
["Les Vrilles de la vigne","Sidonie-Gabrielle Colette","Les Vrilles de la vigne,Sidonie-Gabrielle Colette",null,{"$f":"SLOOKUP(A67,I:I,I:I)","v":""},{"$f":"SLOOKUP(C67,I:I,I:I,0.75,0)","v":""},{"$f":"LLOOKUP(A67,I:I,I:I)","v":""},{"$f":"LLOOKUP(C67,I:I,I:I,0.75,0)","v":""},"Frühstück bei Tiffany, Truman Capote"]
["Lolita","Vladimir Nabokov","Lolita,Vladimir Nabokov",null,{"$f":"SLOOKUP(A68,I:I,I:I)","v":"Lolita, Vladimir Nabokov"},{"$f":"SLOOKUP(C68,I:I,I:I,0.75,0)","v":"Lolita, Vladimir Nabokov"},{"$f":"LLOOKUP(A68,I:I,I:I)","v":"Lolita, Vladimir Nabokov"},{"$f":"LLOOKUP(C68,I:I,I:I,0.75,0)","v":"Lolita, Vladimir Nabokov"},"Hallo, Mister Gott, hier spricht Anna, Fynn"]
["Lord Jim","Joseph Conrad","Lord Jim,Joseph Conrad",null,{"$f":"SLOOKUP(A69,I:I,I:I)","v":""},{"$f":"SLOOKUP(C69,I:I,I:I,0.75,0)","v":""},{"$f":"LLOOKUP(A69,I:I,I:I)","v":""},{"$f":"LLOOKUP(C69,I:I,I:I,0.75,0)","v":""},"Harry Potter, J.K. Rowling"]
["Maigret und Pietr der Lette","Georges Simenon","Maigret und Pietr der Lette,Georges Simenon",null,{"$f":"SLOOKUP(A70,I:I,I:I)","v":""},{"$f":"SLOOKUP(C70,I:I,I:I,0.75,0)","v":""},{"$f":"LLOOKUP(A70,I:I,I:I)","v":""},{"$f":"LLOOKUP(C70,I:I,I:I,0.75,0)","v":""},"Herr der Fliegen, William Golding"]
["Manhattan Transfer","John Dos Passos","Manhattan Transfer,John Dos Passos",null,{"$f":"SLOOKUP(A71,I:I,I:I)","v":""},{"$f":"SLOOKUP(C71,I:I,I:I,0.75,0)","v":""},{"$f":"LLOOKUP(A71,I:I,I:I)","v":""},{"$f":"LLOOKUP(C71,I:I,I:I,0.75,0)","v":""},"Homo Faber, Max Frisch"]
["Martin Eden","Jack London","Martin Eden,Jack London",null,{"$f":"SLOOKUP(A72,I:I,I:I)","v":""},{"$f":"SLOOKUP(C72,I:I,I:I,0.75,0)","v":""},{"$f":"LLOOKUP(A72,I:I,I:I)","v":""},{"$f":"LLOOKUP(C72,I:I,I:I,0.75,0)","v":""},"Hundert Jahre Einsamkeit, Gabriel García Márquez"]
["Mitternachtskinder","Salman Rushdie","Mitternachtskinder,Salman Rushdie",null,{"$f":"SLOOKUP(A73,I:I,I:I)","v":""},{"$f":"SLOOKUP(C73,I:I,I:I,0.75,0)","v":""},{"$f":"LLOOKUP(A73,I:I,I:I)","v":""},{"$f":"LLOOKUP(C73,I:I,I:I,0.75,0)","v":""},"Im Westen nichts Neues, Erich Maria Remarque"]
["Moloch. Das Leben des Moravagine","Blaise Cendrars","Moloch. Das Leben des Moravagine,Blaise Cendrars",null,{"$f":"SLOOKUP(A74,I:I,I:I)","v":""},{"$f":"SLOOKUP(C74,I:I,I:I,0.75,0)","v":""},{"$f":"LLOOKUP(A74,I:I,I:I)","v":""},{"$f":"LLOOKUP(C74,I:I,I:I,0.75,0)","v":""},"Jakob der Lügner, Jurek Becker"]
["Nadja","André Breton","Nadja,André Breton",null,{"$f":"SLOOKUP(A75,I:I,I:I)","v":""},{"$f":"SLOOKUP(C75,I:I,I:I,0.75,0)","v":""},{"$f":"LLOOKUP(A75,I:I,I:I)","v":""},{"$f":"LLOOKUP(C75,I:I,I:I,0.75,0)","v":""},"Lolita, Vladimir Nabokov"]
["Notre-Dame-des-Fleurs","Jean Genet","Notre-Dame-des-Fleurs,Jean Genet",null,{"$f":"SLOOKUP(A76,I:I,I:I)","v":""},{"$f":"SLOOKUP(C76,I:I,I:I,0.75,0)","v":""},{"$f":"LLOOKUP(A76,I:I,I:I)","v":""},{"$f":"LLOOKUP(C76,I:I,I:I,0.75,0)","v":""},"Menschheitsdämmerung, Kurt Pinthus"]
["Paris-Rom oder Die Modifikation","Michel Butor","Paris-Rom oder Die Modifikation,Michel Butor",null,{"$f":"SLOOKUP(A77,I:I,I:I)","v":""},{"$f":"SLOOKUP(C77,I:I,I:I,0.75,0)","v":""},{"$f":"LLOOKUP(A77,I:I,I:I)","v":""},{"$f":"LLOOKUP(C77,I:I,I:I,0.75,0)","v":""},"Mephisto, Klaus Mann"]
["Paroles","Jacques Prévert","Paroles,Jacques Prévert",null,{"$f":"SLOOKUP(A78,I:I,I:I)","v":""},{"$f":"SLOOKUP(C78,I:I,I:I,0.75,0)","v":""},{"$f":"LLOOKUP(A78,I:I,I:I)","v":""},{"$f":"LLOOKUP(C78,I:I,I:I,0.75,0)","v":""},"Mitsou, Sidonie-Gabrielle Colette"]
["Reise ans Ende der Nacht","Louis-Ferdinand Céline","Reise ans Ende der Nacht,Louis-Ferdinand Céline",null,{"$f":"SLOOKUP(A79,I:I,I:I)","v":""},{"$f":"SLOOKUP(C79,I:I,I:I,0.75,0)","v":""},{"$f":"LLOOKUP(A79,I:I,I:I)","v":""},{"$f":"LLOOKUP(C79,I:I,I:I,0.75,0)","v":""},"Momo, Michael Ende"]
["Schall und Wahn","William Faulkner","Schall und Wahn,William Faulkner",null,{"$f":"SLOOKUP(A80,I:I,I:I)","v":""},{"$f":"SLOOKUP(C80,I:I,I:I,0.75,0)","v":""},{"$f":"LLOOKUP(A80,I:I,I:I)","v":""},{"$f":"LLOOKUP(C80,I:I,I:I,0.75,0)","v":""},"Nachdenken über Christa T., Christa Wolf"]
["Schöne neue Welt","Aldous Huxley","Schöne neue Welt,Aldous Huxley",null,{"$f":"SLOOKUP(A81,I:I,I:I)","v":"Schöne neue Welt, Aldous Huxley"},{"$f":"SLOOKUP(C81,I:I,I:I,0.75,0)","v":"Schöne neue Welt, Aldous Huxley"},{"$f":"LLOOKUP(A81,I:I,I:I)","v":"Schöne neue Welt, Aldous Huxley"},{"$f":"LLOOKUP(C81,I:I,I:I,0.75,0)","v":"Schöne neue Welt, Aldous Huxley"},"New York Trilogie, Paul Auster"]
["Schriften","Jacques Lacan","Schriften,Jacques Lacan",null,{"$f":"SLOOKUP(A82,I:I,I:I)","v":""},{"$f":"SLOOKUP(C82,I:I,I:I,0.75,0)","v":""},{"$f":"LLOOKUP(A82,I:I,I:I)","v":"Der Mann ohne Eigenschaften, Robert Musil"},{"$f":"LLOOKUP(C82,I:I,I:I,0.75,0)","v":""},"Oh, wie schön ist Panama, Janosch"]
["Sechs Personen suchen einen Autor","Luigi Pirandello","Sechs Personen suchen einen Autor,Luigi Pirandello",null,{"$f":"SLOOKUP(A83,I:I,I:I)","v":""},{"$f":"SLOOKUP(C83,I:I,I:I,0.75,0)","v":""},{"$f":"LLOOKUP(A83,I:I,I:I)","v":""},{"$f":"LLOOKUP(C83,I:I,I:I,0.75,0)","v":""},"Per Anhalter durch die Galaxis, Douglas Adams"]
["Seemarken","Saint-John Perse","Seemarken,Saint-John Perse",null,{"$f":"SLOOKUP(A84,I:I,I:I)","v":""},{"$f":"SLOOKUP(C84,I:I,I:I,0.75,0)","v":""},{"$f":"LLOOKUP(A84,I:I,I:I)","v":""},{"$f":"LLOOKUP(C84,I:I,I:I,0.75,0)","v":""},"Pippi Langstrumpf, Astrid Lindgren"]
["So lebt der Mensch","André Malraux","So lebt der Mensch,André Malraux",null,{"$f":"SLOOKUP(A85,I:I,I:I)","v":""},{"$f":"SLOOKUP(C85,I:I,I:I,0.75,0)","v":""},{"$f":"LLOOKUP(A85,I:I,I:I)","v":""},{"$f":"LLOOKUP(C85,I:I,I:I,0.75,0)","v":""},"Professor Unrat, Heinrich Mann"]
["Sophies Entscheidung","William Styron","Sophies Entscheidung,William Styron",null,{"$f":"SLOOKUP(A86,I:I,I:I)","v":""},{"$f":"SLOOKUP(C86,I:I,I:I,0.75,0)","v":""},{"$f":"LLOOKUP(A86,I:I,I:I)","v":""},{"$f":"LLOOKUP(C86,I:I,I:I,0.75,0)","v":""},"Reigen, Arthur Schnitzler"]
["Südseeballade","Hugo Pratt","Südseeballade,Hugo Pratt",null,{"$f":"SLOOKUP(A87,I:I,I:I)","v":""},{"$f":"SLOOKUP(C87,I:I,I:I,0.75,0)","v":""},{"$f":"LLOOKUP(A87,I:I,I:I)","v":""},{"$f":"LLOOKUP(C87,I:I,I:I,0.75,0)","v":""},"Schachnovelle, Stefan Zweig"]
["Tagebuch der Anne Frank","Anne Frank","Tagebuch der Anne Frank,Anne Frank",null,{"$f":"SLOOKUP(A88,I:I,I:I)","v":"Tagebuch der Anne Frank, Anne Frank"},{"$f":"SLOOKUP(C88,I:I,I:I,0.75,0)","v":"Tagebuch der Anne Frank, Anne Frank"},{"$f":"LLOOKUP(A88,I:I,I:I)","v":"Tagebuch der Anne Frank, Anne Frank"},{"$f":"LLOOKUP(C88,I:I,I:I,0.75,0)","v":"Tagebuch der Anne Frank, Anne Frank"},"Schloß Gripsholm, Kurt Tucholsky"]
["Tagebücher 1887-1910","Jules Renard","Tagebücher 1887-1910,Jules Renard",null,{"$f":"SLOOKUP(A89,I:I,I:I)","v":""},{"$f":"SLOOKUP(C89,I:I,I:I,0.75,0)","v":""},{"$f":"LLOOKUP(A89,I:I,I:I)","v":""},{"$f":"LLOOKUP(C89,I:I,I:I,0.75,0)","v":""},"Schöne neue Welt, Aldous Huxley"]
["Traurige Tropen","Claude Lévi-Strauss","Traurige Tropen,Claude Lévi-Strauss",null,{"$f":"SLOOKUP(A90,I:I,I:I)","v":""},{"$f":"SLOOKUP(C90,I:I,I:I,0.75,0)","v":""},{"$f":"LLOOKUP(A90,I:I,I:I)","v":""},{"$f":"LLOOKUP(C90,I:I,I:I,0.75,0)","v":""},"Sofies Welt, Jostein Gaarder"]
["Trilogie: Sexus, Plexus und Nexus","Henry Miller","Trilogie: Sexus, Plexus und Nexus,Henry Miller",null,{"$f":"SLOOKUP(A91,I:I,I:I)","v":""},{"$f":"SLOOKUP(C91,I:I,I:I,0.75,0)","v":""},{"$f":"LLOOKUP(A91,I:I,I:I)","v":""},{"$f":"LLOOKUP(C91,I:I,I:I,0.75,0)","v":""},"Solaris, Stanislaw Lem"]
["Tropismen","Nathalie Sarraute","Tropismen,Nathalie Sarraute",null,{"$f":"SLOOKUP(A92,I:I,I:I)","v":""},{"$f":"SLOOKUP(C92,I:I,I:I,0.75,0)","v":""},{"$f":"LLOOKUP(A92,I:I,I:I)","v":""},{"$f":"LLOOKUP(C92,I:I,I:I,0.75,0)","v":""},"Tagebuch der Anne Frank, Anne Frank"]
["Ulysses","James Joyce","Ulysses,James Joyce",null,{"$f":"SLOOKUP(A93,I:I,I:I)","v":"Ulysses, James Joyce"},{"$f":"SLOOKUP(C93,I:I,I:I,0.75,0)","v":"Ulysses, James Joyce"},{"$f":"LLOOKUP(A93,I:I,I:I)","v":"Ulysses, James Joyce"},{"$f":"LLOOKUP(C93,I:I,I:I,0.75,0)","v":"Ulysses, James Joyce"},"Ulysses, James Joyce"]
["Unter dem Vulkan","Malcolm Lowry","Unter dem Vulkan,Malcolm Lowry",null,{"$f":"SLOOKUP(A94,I:I,I:I)","v":""},{"$f":"SLOOKUP(C94,I:I,I:I,0.75,0)","v":""},{"$f":"LLOOKUP(A94,I:I,I:I)","v":""},{"$f":"LLOOKUP(C94,I:I,I:I,0.75,0)","v":""},"Und sagte kein einziges Wort, Heinrich Böll"]
["Unterwegs","Jack Kerouac","Unterwegs,Jack Kerouac",null,{"$f":"SLOOKUP(A95,I:I,I:I)","v":""},{"$f":"SLOOKUP(C95,I:I,I:I,0.75,0)","v":""},{"$f":"LLOOKUP(A95,I:I,I:I)","v":""},{"$f":"LLOOKUP(C95,I:I,I:I,0.75,0)","v":""},"Unterm Rad, Hermann Hesse"]
["Verwirrung der Gefühle","Stefan Zweig","Verwirrung der Gefühle,Stefan Zweig",null,{"$f":"SLOOKUP(A96,I:I,I:I)","v":""},{"$f":"SLOOKUP(C96,I:I,I:I,0.75,0)","v":""},{"$f":"LLOOKUP(A96,I:I,I:I)","v":""},{"$f":"LLOOKUP(C96,I:I,I:I,0.75,0)","v":""},"Vom Winde verweht, Margaret Mitchell"]
["Vom Winde verweht","Margaret Mitchell","Vom Winde verweht,Margaret Mitchell",null,{"$f":"SLOOKUP(A97,I:I,I:I)","v":"Vom Winde verweht, Margaret Mitchell"},{"$f":"SLOOKUP(C97,I:I,I:I,0.75,0)","v":"Vom Winde verweht, Margaret Mitchell"},{"$f":"LLOOKUP(A97,I:I,I:I)","v":"Vom Winde verweht, Margaret Mitchell"},{"$f":"LLOOKUP(C97,I:I,I:I,0.75,0)","v":"Vom Winde verweht, Margaret Mitchell"},"Von Paul zu Pedro, Franziska zu Reventlow"]
["Warten auf Godot","Samuel Beckett",{"$f":"A98&\",\"&B98","v":"Warten auf Godot,Samuel Beckett"},null,{"$f":"SLOOKUP(A98,I:I,I:I)","v":""},{"$f":"SLOOKUP(C98,I:I,I:I,0.75,0)","v":""},{"$f":"LLOOKUP(A98,I:I,I:I)","v":""},{"$f":"LLOOKUP(C98,I:I,I:I,0.75,0)","v":""},"Wein und Brot, Ignazio Silone"]
["Wem die Stunde schlägt","Ernest Hemingway","Wem die Stunde schlägt,Ernest Hemingway",null,{"$f":"SLOOKUP(A99,I:I,I:I)","v":"Wem die Stunde schlägt, Ernest Hemingway"},{"$f":"SLOOKUP(C99,I:I,I:I,0.75,0)","v":"Wem die Stunde schlägt, Ernest Hemingway"},{"$f":"LLOOKUP(A99,I:I,I:I)","v":"Wem die Stunde schlägt, Ernest Hemingway"},{"$f":"LLOOKUP(C99,I:I,I:I,0.75,0)","v":"Wem die Stunde schlägt, Ernest Hemingway"},"Wem die Stunde schlägt, Ernest Hemingway"]
["Zazie in der Metro","Raymond Queneau","Zazie in der Metro,Raymond Queneau",null,{"$f":"SLOOKUP(A100,I:I,I:I)","v":""},{"$f":"SLOOKUP(C100,I:I,I:I,0.75,0)","v":""},{"$f":"LLOOKUP(A100,I:I,I:I)","v":""},{"$f":"LLOOKUP(C100,I:I,I:I,0.75,0)","v":""},"Wendekreis des Steinbocks, Henry Miller"]
["Zigeunerromanzen","Federico García Lorca","Zigeunerromanzen,Federico García Lorca",null,{"$f":"SLOOKUP(A101,I:I,I:I)","v":""},{"$f":"SLOOKUP(C101,I:I,I:I,0.75,0)","v":""},{"$f":"LLOOKUP(A101,I:I,I:I)","v":""},{"$f":"LLOOKUP(C101,I:I,I:I,0.75,0)","v":""},"Wir Kinder vom Bahnhof Zoo, Horst Rieck"]
[null,null,null,null,{"$f":"SLOOKUP(A102,I:I,I:I)","v":""},{"$f":"SLOOKUP(C102,I:I,I:I,0.75,0)","v":""},{"$f":"LLOOKUP(A102,I:I,I:I,0.7)","v":""},{"$f":"LLOOKUP(C102,I:I,I:I,0.75,0)","v":""},"Wo die wilden Kerle wohnen, Maurice Sendak"]

{"sheet":"Example4","index":4,"n_rows":101,"n_cols":15,"rows_kept":101,"cut":false,"hidden":false,"merged":[]}
["Titel1","Noise1","Noise2","=SLOOKUP(C1,A:A,A:A)","=LLOOKUP(C1,A:A,A:A)","Noise3","Noise4","=SLOOKUP(G1,A:A,A:A)","=LLOOKUP(G1,A:A,A:A)","Noise5","Noise5","=SLOOKUP(K1,A:A,A:A)","=LLOOKUP(K1,A:A,A:A)"]
["1984",{"$f":"REPLACE(A2,RANDBETWEEN(1,LEN(A2)),1,CHAR(RANDBETWEEN(97,122)))","v":"198q"},{"$f":"REPLACE(B2,RANDBETWEEN(1,LEN(B2)),1,CHAR(RANDBETWEEN(97,122)))","v":"19uq"},{"$f":"SLOOKUP(C2,A:A,A:A)","v":""},{"$f":"LLOOKUP(C2,A:A,A:A)","v":""},{"$f":"REPLACE(C2,RANDBETWEEN(1,LEN(C2)),1,CHAR(RANDBETWEEN(97,122)))","v":"1nuq"},{"$f":"REPLACE(F2,RANDBETWEEN(1,LEN(F2)),1,CHAR(RANDBETWEEN(97,122)))","v":"xnuq"},{"$f":"SLOOKUP(G2,A:A,A:A)","v":""},{"$f":"LLOOKUP(G2,A:A,A:A)","v":""},{"$f":"REPLACE(G2,RANDBETWEEN(1,LEN(G2)),1,CHAR(RANDBETWEEN(97,122)))","v":"xnzq"},{"$f":"REPLACE(J2,RANDBETWEEN(1,LEN(J2)),1,CHAR(RANDBETWEEN(97,122)))","v":"xizq"},{"$f":"SLOOKUP(K2,A:A,A:A)","v":""},{"$f":"LLOOKUP(K2,A:A,A:A)","v":""},null,"Example 4 uses a list of books in column A,"]
["Alibi","Alibr","Aliar",{"$f":"SLOOKUP(C3,A:A,A:A)","v":""},{"$f":"LLOOKUP(C3,A:A,A:A)","v":""},"Alcar","klcar",{"$f":"SLOOKUP(G3,A:A,A:A)","v":""},{"$f":"LLOOKUP(G3,A:A,A:A)","v":""},"klcxr","klcxj",{"$f":"SLOOKUP(K3,A:A,A:A)","v":""},{"$f":"LLOOKUP(K3,A:A,A:A)","v":""},null,"Random character noise is added in B, C, F, G, J K"]
["Alkohol","Alkoxol","Afkoxol",{"$f":"SLOOKUP(C4,A:A,A:A)","v":""},{"$f":"LLOOKUP(C4,A:A,A:A)","v":""},"ffkoxol","ffpoxol",{"$f":"SLOOKUP(G4,A:A,A:A)","v":""},{"$f":"LLOOKUP(G4,A:A,A:A)","v":""},"ffpoxdl","ffeoxdl",{"$f":"SLOOKUP(K4,A:A,A:A)","v":""},{"$f":"LLOOKUP(K4,A:A,A:A)","v":""},null,"After each second noise, SLOOKUP and LLOOKUP try to reconstruct"]
["Am Nullpunkt der Literatur","Am Nullpunkt der Literapur","Am Nullpunkt der Lhterapur",{"$f":"SLOOKUP(C5,A:A,A:A)","v":"Am Nullpunkt der Literatur"},{"$f":"LLOOKUP(C5,A:A,A:A)","v":"Am Nullpunkt der Literatur"},"Am Nullsunkt der Lhterapur","Am fullsunkt der Lhterapur",{"$f":"SLOOKUP(G5,A:A,A:A)","v":""},{"$f":"LLOOKUP(G5,A:A,A:A)","v":"Am Nullpunkt der Literatur"},"Am ftllsunkt der Lhterapur","Amdftllsunkt der Lhterapur",{"$f":"SLOOKUP(K5,A:A,A:A)","v":""},{"$f":"LLOOKUP(K5,A:A,A:A)","v":"Am Nullpunkt der Literatur"}]
["Asterix der Gallier","Asterix ier Gallier","Astevix ier Gallier",{"$f":"SLOOKUP(C6,A:A,A:A)","v":""},{"$f":"LLOOKUP(C6,A:A,A:A)","v":"Asterix der Gallier"},"Astevix ier Gallivr","Astevix ier Gwllivr",{"$f":"SLOOKUP(G6,A:A,A:A)","v":""},{"$f":"LLOOKUP(G6,A:A,A:A)","v":"Asterix der Gallier"},"Astevix ieg Gwllivr","Aseevix ieg Gwllivr",{"$f":"SLOOKUP(K6,A:A,A:A)","v":""},{"$f":"LLOOKUP(K6,A:A,A:A)","v":""},null,"The standard threshold 0.75 limits resuts quickly"]
["Auf der Suche nach der verlorenen Zeit","Auf der Suche nach dwr verlorenen Zeit","Auf der Sucpe nach dwr verlorenen Zeit",{"$f":"SLOOKUP(C7,A:A,A:A)","v":"Auf der Suche nach der verlorenen Zeit"},{"$f":"LLOOKUP(C7,A:A,A:A)","v":"Auf der Suche nach der verlorenen Zeit"},"Auf drr Sucpe nach dwr verlorenen Zeit","Auf drr Sucpz nach dwr verlorenen Zeit",{"$f":"SLOOKUP(G7,A:A,A:A)","v":"Auf der Suche nach der verlorenen Zeit"},{"$f":"LLOOKUP(G7,A:A,A:A)","v":"Auf der Suche nach der verlorenen Zeit"},"Auf drr Sucpz rach dwr verlorenen Zeit","Auf dkr Sucpz rach dwr verlorenen Zeit",{"$f":"SLOOKUP(K7,A:A,A:A)","v":"Auf der Suche nach der verlorenen Zeit"},{"$f":"LLOOKUP(K7,A:A,A:A)","v":"Auf der Suche nach der verlorenen Zeit"},null,"With 4 characters modified, you get less than half of the titles back"]
["Aurélien","Aurélivn","Aorélivn",{"$f":"SLOOKUP(C8,A:A,A:A)","v":""},{"$f":"LLOOKUP(C8,A:A,A:A)","v":"Aurélien"},"Aorélion","Aorélivn",{"$f":"SLOOKUP(G8,A:A,A:A)","v":""},{"$f":"LLOOKUP(G8,A:A,A:A)","v":"Aurélien"},"Aorqlivn","Aorqlpvn",{"$f":"SLOOKUP(K8,A:A,A:A)","v":""},{"$f":"LLOOKUP(K8,A:A,A:A)","v":""}]
["Bonjour tristesse","Bonjour trishesse","Bonjour trishessk",{"$f":"SLOOKUP(C9,A:A,A:A)","v":"Bonjour tristesse"},{"$f":"LLOOKUP(C9,A:A,A:A)","v":"Bonjour tristesse"},"Bonjour grishessk","Bonjourngrishessk",{"$f":"SLOOKUP(G9,A:A,A:A)","v":""},{"$f":"LLOOKUP(G9,A:A,A:A)","v":"Bonjour tristesse"},"Bonjourngrcshessk","Bonjourlgrcshessk",{"$f":"SLOOKUP(K9,A:A,A:A)","v":""},{"$f":"LLOOKUP(K9,A:A,A:A)","v":""}]
["Das andere Geschlecht","Das anderezGeschlecht","Das anderezGehchlecht",{"$f":"SLOOKUP(C10,A:A,A:A)","v":"Das andere Geschlecht"},{"$f":"LLOOKUP(C10,A:A,A:A)","v":"Das andere Geschlecht"},"Dax anderezGehchlecht","Dax gnderezGehchlecht",{"$f":"SLOOKUP(G10,A:A,A:A)","v":""},{"$f":"LLOOKUP(G10,A:A,A:A)","v":"Das andere Geschlecht"},"Dax gndetezGehchlecht","Dax gndeoezGehchlecht",{"$f":"SLOOKUP(K10,A:A,A:A)","v":""},{"$f":"LLOOKUP(K10,A:A,A:A)","v":"Das andere Geschlecht"}]
["Das Leben Gebrauchsanweisung","Das Leben Gewrauchsanweisung","pas Leben Gewrauchsanweisung",{"$f":"SLOOKUP(C11,A:A,A:A)","v":"Das Leben Gebrauchsanweisung"},{"$f":"LLOOKUP(C11,A:A,A:A)","v":"Das Leben Gebrauchsanweisung"},"pas Leben Gewrauchsanweisuns","pas Leben Ghwrauchsanweisuns",{"$f":"SLOOKUP(G11,A:A,A:A)","v":"Das Leben Gebrauchsanweisung"},{"$f":"LLOOKUP(G11,A:A,A:A)","v":"Das Leben Gebrauchsanweisung"},"pas Leben Ghwrauchsanweiswns","pas Lebeh Ghwrauchsanweiswns",{"$f":"SLOOKUP(K11,A:A,A:A)","v":""},{"$f":"LLOOKUP(K11,A:A,A:A)","v":"Das Leben Gebrauchsanweisung"}]
["Das Protokoll","Das Prvtokoll","vas Prvtokoll",{"$f":"SLOOKUP(C12,A:A,A:A)","v":""},{"$f":"LLOOKUP(C12,A:A,A:A)","v":"Das Protokoll"},"vasdPrvtokoll","vasdwrvtokoll",{"$f":"SLOOKUP(G12,A:A,A:A)","v":""},{"$f":"LLOOKUP(G12,A:A,A:A)","v":""},"vaudwrvtokoll","vaudwrvtokozl",{"$f":"SLOOKUP(K12,A:A,A:A)","v":""},{"$f":"LLOOKUP(K12,A:A,A:A)","v":""}]
["Das Schweigen des Meeres","Das Schweigen dos Meeres","Das Schweigen dos Meeres",{"$f":"SLOOKUP(C13,A:A,A:A)","v":"Das Schweigen des Meeres"},{"$f":"LLOOKUP(C13,A:A,A:A)","v":"Das Schweigen des Meeres"},"Das Schweigen dos Meerds","Das Schweigen dos Meefds",{"$f":"SLOOKUP(G13,A:A,A:A)","v":"Das Schweigen des Meeres"},{"$f":"LLOOKUP(G13,A:A,A:A)","v":"Das Schweigen des Meeres"},"Das jchweigen dos Meefds","ias jchweigen dos Meefds",{"$f":"SLOOKUP(K13,A:A,A:A)","v":""},{"$f":"LLOOKUP(K13,A:A,A:A)","v":"Das Schweigen des Meeres"}]
["Das Sein und das Nichts","Djs Sein und das Nichts","Dis Sein und das Nichts",{"$f":"SLOOKUP(C14,A:A,A:A)","v":"Das Sein und das Nichts"},{"$f":"LLOOKUP(C14,A:A,A:A)","v":"Das Sein und das Nichts"},"Dis Sein und das Nickts","Dis Sein unf das Nickts",{"$f":"SLOOKUP(G14,A:A,A:A)","v":""},{"$f":"LLOOKUP(G14,A:A,A:A)","v":"Das Sein und das Nichts"},"Dhs Sein unf das Nickts","Dhs Sein unf vas Nickts",{"$f":"SLOOKUP(K14,A:A,A:A)","v":""},{"$f":"LLOOKUP(K14,A:A,A:A)","v":"Das Sein und das Nichts"}]
["Das Theater und sein Double","Das Theater end sein Double","Das Theater end setn Double",{"$f":"SLOOKUP(C15,A:A,A:A)","v":"Das Theater und sein Double"},{"$f":"LLOOKUP(C15,A:A,A:A)","v":"Das Theater und sein Double"},"Das Theater end setnpDouble","tas Theater end setnpDouble",{"$f":"SLOOKUP(G15,A:A,A:A)","v":""},{"$f":"LLOOKUP(G15,A:A,A:A)","v":"Das Theater und sein Double"},"tas Theater end seonpDouble","tas Theater qnd seonpDouble",{"$f":"SLOOKUP(K15,A:A,A:A)","v":""},{"$f":"LLOOKUP(K15,A:A,A:A)","v":"Das Theater und sein Double"}]
["Das Ufer der Syrten","Das Uferfder Syrten","Das Ufgrfder Syrten",{"$f":"SLOOKUP(C16,A:A,A:A)","v":"Das Ufer der Syrten"},{"$f":"LLOOKUP(C16,A:A,A:A)","v":"Das Ufer der Syrten"},"Das Ufgcfder Syrten","Das Ufgcfber Syrten",{"$f":"SLOOKUP(G16,A:A,A:A)","v":""},{"$f":"LLOOKUP(G16,A:A,A:A)","v":"Das Ufer der Syrten"},"Das Ufgcfber Syrtej","Das Ufgcfbeh Syrtej",{"$f":"SLOOKUP(K16,A:A,A:A)","v":""},{"$f":"LLOOKUP(K16,A:A,A:A)","v":""}]
["Der Archipel Gulag","ter Archipel Gulag","ter Arcxipel Gulag",{"$f":"SLOOKUP(C17,A:A,A:A)","v":"Der Archipel Gulag"},{"$f":"LLOOKUP(C17,A:A,A:A)","v":"Der Archipel Gulag"},"teo Arcxipel Gulag","teo Arcxipek Gulag",{"$f":"SLOOKUP(G17,A:A,A:A)","v":""},{"$f":"LLOOKUP(G17,A:A,A:A)","v":"Der Archipel Gulag"},"teo Arcxmpek Gulag","teo Arcdmpek Gulag",{"$f":"SLOOKUP(K17,A:A,A:A)","v":""},{"$f":"LLOOKUP(K17,A:A,A:A)","v":""}]
["Der aufhaltsame Aufstieg des Arturo Ui","Der aufhaltsame Aufstieg kes Arturo Ui","Der tufhaltsame Aufstieg kes Arturo Ui",{"$f":"SLOOKUP(C18,A:A,A:A)","v":"Der aufhaltsame Aufstieg des Arturo Ui"},{"$f":"LLOOKUP(C18,A:A,A:A)","v":"Der aufhaltsame Aufstieg des Arturo Ui"},"Der tufhaltsame Aufstieg kep Arturo Ui","Der tufhaltsame Audstieg kep Arturo Ui",{"$f":"SLOOKUP(G18,A:A,A:A)","v":""},{"$f":"LLOOKUP(G18,A:A,A:A)","v":"Der aufhaltsame Aufstieg des Arturo Ui"},"Der ttfhaltsame Audstieg kep Arturo Ui","Der ttfhaltsameqAudstieg kep Arturo Ui",{"$f":"SLOOKUP(K18,A:A,A:A)","v":""},{"$f":"LLOOKUP(K18,A:A,A:A)","v":"Der aufhaltsame Aufstieg des Arturo Ui"}]
["Der Blaue Lotos","Der BlauesLotos","Dcr BlauesLotos",{"$f":"SLOOKUP(C19,A:A,A:A)","v":"Der Blaue Lotos"},{"$f":"LLOOKUP(C19,A:A,A:A)","v":"Der Blaue Lotos"},"ecr BlauesLotos","ecr BlauesLotoi",{"$f":"SLOOKUP(G19,A:A,A:A)","v":""},{"$f":"LLOOKUP(G19,A:A,A:A)","v":"Der Blaue Lotos"},"ecr BlauesLotoc","ecr BlauesLotod",{"$f":"SLOOKUP(K19,A:A,A:A)","v":""},{"$f":"LLOOKUP(K19,A:A,A:A)","v":"Der Blaue Lotos"}]
["Der Fänger im Roggen","Der Fänger im aoggen","Der Fänger im aoggmn",{"$f":"SLOOKUP(C20,A:A,A:A)","v":"Der Fänger im Roggen"},{"$f":"LLOOKUP(C20,A:A,A:A)","v":"Der Fänger im Roggen"},"Dir Fänger im aoggmn","Dir Fänger im aoggmn",{"$f":"SLOOKUP(G20,A:A,A:A)","v":""},{"$f":"LLOOKUP(G20,A:A,A:A)","v":"Der Fänger im Roggen"},"Dir Fänger imbaoggmn","Dir Fänger imbeoggmn",{"$f":"SLOOKUP(K20,A:A,A:A)","v":""},{"$f":"LLOOKUP(K20,A:A,A:A)","v":"Der Fänger im Roggen"}]
["Der Fremde","oer Fremde","oer Faemde",{"$f":"SLOOKUP(C21,A:A,A:A)","v":""},{"$f":"LLOOKUP(C21,A:A,A:A)","v":"Der Fremde"},"oer Faemee","oer Fqemee",{"$f":"SLOOKUP(G21,A:A,A:A)","v":""},{"$f":"LLOOKUP(G21,A:A,A:A)","v":""},"oes Fqemee","ous Fqemee",{"$f":"SLOOKUP(K21,A:A,A:A)","v":""},{"$f":"LLOOKUP(K21,A:A,A:A)","v":""}]
["Der General der toten Armee","Der General dtr toten Armee","Der Genesal dtr toten Armee",{"$f":"SLOOKUP(C22,A:A,A:A)","v":"Der General der toten Armee"},{"$f":"LLOOKUP(C22,A:A,A:A)","v":"Der General der toten Armee"},"Der Genpsal dtr toten Armee","Der Genpsal dtr toten Arxee",{"$f":"SLOOKUP(G22,A:A,A:A)","v":"Der General der toten Armee"},{"$f":"LLOOKUP(G22,A:A,A:A)","v":"Der General der toten Armee"},"Dec Genpsal dtr toten Arxee","qec Genpsal dtr toten Arxee",{"$f":"SLOOKUP(K22,A:A,A:A)","v":""},{"$f":"LLOOKUP(K22,A:A,A:A)","v":"Der General der toten Armee"}]
["Der große Gatsby","Der aroße Gatsby","Der aroßj Gatsby",{"$f":"SLOOKUP(C23,A:A,A:A)","v":""},{"$f":"LLOOKUP(C23,A:A,A:A)","v":"Der große Gatsby"},"Der uroßj Gatsby","Der uroßj Gatsvy",{"$f":"SLOOKUP(G23,A:A,A:A)","v":""},{"$f":"LLOOKUP(G23,A:A,A:A)","v":"Der große Gatsby"},"Dex uroßj Gatsvy","uex uroßj Gatsvy",{"$f":"SLOOKUP(K23,A:A,A:A)","v":""},{"$f":"LLOOKUP(K23,A:A,A:A)","v":""}]
["Der große Meaulnes","ger große Meaulnes","ger großerMeaulnes",{"$f":"SLOOKUP(C24,A:A,A:A)","v":""},{"$f":"LLOOKUP(C24,A:A,A:A)","v":"Der große Meaulnes"},"aer großerMeaulnes","aer großerMeaulwes",{"$f":"SLOOKUP(G24,A:A,A:A)","v":""},{"$f":"LLOOKUP(G24,A:A,A:A)","v":"Der große Meaulnes"},"aer grkßerMeaulwes","aer grkßerMaaulwes",{"$f":"SLOOKUP(K24,A:A,A:A)","v":""},{"$f":"LLOOKUP(K24,A:A,A:A)","v":""}]
["Der große Schlaf","Dur große Schlaf","Dur gioße Schlaf",{"$f":"SLOOKUP(C25,A:A,A:A)","v":"Der große Schlaf"},{"$f":"LLOOKUP(C25,A:A,A:A)","v":"Der große Schlaf"},"Dur gioße Schsaf","Dur gioße rchsaf",{"$f":"SLOOKUP(G25,A:A,A:A)","v":""},{"$f":"LLOOKUP(G25,A:A,A:A)","v":"Der große Schlaf"},"Dur gioßn rchsaf","Dur gioßn rchsal",{"$f":"SLOOKUP(K25,A:A,A:A)","v":""},{"$f":"LLOOKUP(K25,A:A,A:A)","v":""}]
["Der Herr der Ringe","Der Heqr der Ringe","Der Heqr der Riuge",{"$f":"SLOOKUP(C26,A:A,A:A)","v":""},{"$f":"LLOOKUP(C26,A:A,A:A)","v":"Der Herr der Ringe"},"DeruHeqr der Riuge","Deruleqr der Riuge",{"$f":"SLOOKUP(G26,A:A,A:A)","v":""},{"$f":"LLOOKUP(G26,A:A,A:A)","v":"Der Herr der Ringe"},"Deruleqrgder Riuge","DeruleqrgderlRiuge",{"$f":"SLOOKUP(K26,A:A,A:A)","v":""},{"$f":"LLOOKUP(K26,A:A,A:A)","v":""}]
["Der Hund von Baskerville","Der Hund von Baskvrville","Der Hunx von Baskvrville",{"$f":"SLOOKUP(C27,A:A,A:A)","v":"Der Hund von Baskerville"},{"$f":"LLOOKUP(C27,A:A,A:A)","v":"Der Hund von Baskerville"},"Der Hunx von Baskvrnille","Der Hunx von saskvrnille",{"$f":"SLOOKUP(G27,A:A,A:A)","v":""},{"$f":"LLOOKUP(G27,A:A,A:A)","v":"Der Hund von Baskerville"},"Der Hunq von saskvrnille","wer Hunq von saskvrnille",{"$f":"SLOOKUP(K27,A:A,A:A)","v":""},{"$f":"LLOOKUP(K27,A:A,A:A)","v":"Der Hund von Baskerville"}]
["Der Husar auf dem Dach","Der Husar aufodem Dach","DerhHusar aufodem Dach",{"$f":"SLOOKUP(C28,A:A,A:A)","v":"Der Husar auf dem Dach"},{"$f":"LLOOKUP(C28,A:A,A:A)","v":"Der Husar auf dem Dach"},"DerhHusaa aufodem Dach","DxrhHusaa aufodem Dach",{"$f":"SLOOKUP(G28,A:A,A:A)","v":""},{"$f":"LLOOKUP(G28,A:A,A:A)","v":"Der Husar auf dem Dach"},"DxrhHusaa affodem Dach","DxrhHusaa affoaem Dach",{"$f":"SLOOKUP(K28,A:A,A:A)","v":""},{"$f":"LLOOKUP(K28,A:A,A:A)","v":""}]
["Der kleine Prinz","Der kleinc Prinz","Der klefnc Prinz",{"$f":"SLOOKUP(C29,A:A,A:A)","v":""},{"$f":"LLOOKUP(C29,A:A,A:A)","v":"Der kleine Prinz"},"Der ylefnc Prinz","Der ylefnc Pripz",{"$f":"SLOOKUP(G29,A:A,A:A)","v":""},{"$f":"LLOOKUP(G29,A:A,A:A)","v":"Der kleine Prinz"},"Der ylefnc Priez","zer ylefnc Priez",{"$f":"SLOOKUP(K29,A:A,A:A)","v":""},{"$f":"LLOOKUP(K29,A:A,A:A)","v":""}]
["Der Krieg der Welten","Dhr Krieg der Welten","Dhr Kriek der Welten",{"$f":"SLOOKUP(C30,A:A,A:A)","v":"Der Krieg der Welten"},{"$f":"LLOOKUP(C30,A:A,A:A)","v":"Der Krieg der Welten"},"Dhr Kbiek der Welten","Dhr Kbiek der Welfen",{"$f":"SLOOKUP(G30,A:A,A:A)","v":""},{"$f":"LLOOKUP(G30,A:A,A:A)","v":"Der Krieg der Welten"},"Dhr Kbiek der selfen","Dhr Kbiek der telfen",{"$f":"SLOOKUP(K30,A:A,A:A)","v":""},{"$f":"LLOOKUP(K30,A:A,A:A)","v":"Der Krieg der Welten"}]
["Der Mann ohne Eigenschaften","Der Mann ohni Eigenschaften","ier Mann ohni Eigenschaften",{"$f":"SLOOKUP(C31,A:A,A:A)","v":"Der Mann ohne Eigenschaften"},{"$f":"LLOOKUP(C31,A:A,A:A)","v":"Der Mann ohne Eigenschaften"},"ier Mann ohni Eigenschafeen","ier Manniohni Eigenschafeen",{"$f":"SLOOKUP(G31,A:A,A:A)","v":""},{"$f":"LLOOKUP(G31,A:A,A:A)","v":"Der Mann ohne Eigenschaften"},"ier Manniohni Eizenschafeen","ier Minniohni Eizenschafeen",{"$f":"SLOOKUP(K31,A:A,A:A)","v":""},{"$f":"LLOOKUP(K31,A:A,A:A)","v":"Der Mann ohne Eigenschaften"}]
["Der Meister und Margarita","Der Meister uny Margarita","Der Meister und Margarita",{"$f":"SLOOKUP(C32,A:A,A:A)","v":"Der Meister und Margarita"},{"$f":"LLOOKUP(C32,A:A,A:A)","v":"Der Meister und Margarita"},"Der Meistez und Margarita","Der Meistez und Margbrita",{"$f":"SLOOKUP(G32,A:A,A:A)","v":""},{"$f":"LLOOKUP(G32,A:A,A:A)","v":"Der Meister und Margarita"},"Der Meistez und qargbrita","Der Meistez und qargbriha",{"$f":"SLOOKUP(K32,A:A,A:A)","v":""},{"$f":"LLOOKUP(K32,A:A,A:A)","v":"Der Meister und Margarita"}]
["Der Name der Rose","Der Name der aose","Dcr Name der aose",{"$f":"SLOOKUP(C33,A:A,A:A)","v":"Der Name der Rose"},{"$f":"LLOOKUP(C33,A:A,A:A)","v":"Der Name der Rose"},"Dcr Naml der aose","Dcr Naml dzr aose",{"$f":"SLOOKUP(G33,A:A,A:A)","v":""},{"$f":"LLOOKUP(G33,A:A,A:A)","v":"Der Name der Rose"},"Dcr paml dzr aose","ucr paml dzr aose",{"$f":"SLOOKUP(K33,A:A,A:A)","v":""},{"$f":"LLOOKUP(K33,A:A,A:A)","v":""}]
["Der Prozess","Der Prozesz","DerrProzesz",{"$f":"SLOOKUP(C34,A:A,A:A)","v":"Der Prozess"},{"$f":"LLOOKUP(C34,A:A,A:A)","v":"Der Prozess"},"DerrPrzzesz","DerrPrzzjsz",{"$f":"SLOOKUP(G34,A:A,A:A)","v":""},{"$f":"LLOOKUP(G34,A:A,A:A)","v":""},"DerrPrzxjsz","DerrPrvxjsz",{"$f":"SLOOKUP(K34,A:A,A:A)","v":""},{"$f":"LLOOKUP(K34,A:A,A:A)","v":""}]
["Der Schaum der Tage","Der Schaum derbTage","Der Schaum derbvage",{"$f":"SLOOKUP(C35,A:A,A:A)","v":"Der Schaum der Tage"},{"$f":"LLOOKUP(C35,A:A,A:A)","v":"Der Schaum der Tage"},"Der Schaum derbvege","Der Schaum derbiege",{"$f":"SLOOKUP(G35,A:A,A:A)","v":"Der Schaum der Tage"},{"$f":"LLOOKUP(G35,A:A,A:A)","v":"Der Schaum der Tage"},"DertSchaum derbiege","DertSchaumrderbiege",{"$f":"SLOOKUP(K35,A:A,A:A)","v":""},{"$f":"LLOOKUP(K35,A:A,A:A)","v":""}]
["Der Scherz","Del Scherz","sel Scherz",{"$f":"SLOOKUP(C36,A:A,A:A)","v":""},{"$f":"LLOOKUP(C36,A:A,A:A)","v":"Der Scherz"},"sel Schere","sel Schede",{"$f":"SLOOKUP(G36,A:A,A:A)","v":""},{"$f":"LLOOKUP(G36,A:A,A:A)","v":""},"seq Schede","seq Schedr",{"$f":"SLOOKUP(K36,A:A,A:A)","v":""},{"$f":"LLOOKUP(K36,A:A,A:A)","v":""}]
["Der seidene Schuh","cer seidene Schuh","cer seidene Schuv",{"$f":"SLOOKUP(C37,A:A,A:A)","v":"Der seidene Schuh"},{"$f":"LLOOKUP(C37,A:A,A:A)","v":"Der seidene Schuh"},"eer seidene Schuv","eeo seidene Schuv",{"$f":"SLOOKUP(G37,A:A,A:A)","v":"Der seidene Schuh"},{"$f":"LLOOKUP(G37,A:A,A:A)","v":"Der seidene Schuh"},"eeo seidpne Schuv","eeo seidpge Schuv",{"$f":"SLOOKUP(K37,A:A,A:A)","v":""},{"$f":"LLOOKUP(K37,A:A,A:A)","v":""}]
["Der Zauberberg","her Zauberberg","her Zauberbecg",{"$f":"SLOOKUP(C38,A:A,A:A)","v":"Der Zauberberg"},{"$f":"LLOOKUP(C38,A:A,A:A)","v":"Der Zauberberg"},"her Zauberbeeg","her Znuberbeeg",{"$f":"SLOOKUP(G38,A:A,A:A)","v":""},{"$f":"LLOOKUP(G38,A:A,A:A)","v":"Der Zauberberg"},"ker Znuberbeeg","ker Znuferbeeg",{"$f":"SLOOKUP(K38,A:A,A:A)","v":""},{"$f":"LLOOKUP(K38,A:A,A:A)","v":""}]
["Die Abenteuer von Blake und Mortimer","Die Abenteuer von Blake und Mortimed","Die Abenteuer von Blaxe und Mortimed",{"$f":"SLOOKUP(C39,A:A,A:A)","v":"Die Abenteuer von Blake und Mortimer"},{"$f":"LLOOKUP(C39,A:A,A:A)","v":"Die Abenteuer von Blake und Mortimer"},"Die Abenteuer von Blaxe undbMortimed","Die Abenteuer von Blaxe undmMortimed",{"$f":"SLOOKUP(G39,A:A,A:A)","v":"Die Abenteuer von Blake und Mortimer"},{"$f":"LLOOKUP(G39,A:A,A:A)","v":"Die Abenteuer von Blake und Mortimer"},"Die Abenteuer von Blaxe undmMoktimed","pie Abenteuer von Blaxe undmMoktimed",{"$f":"SLOOKUP(K39,A:A,A:A)","v":""},{"$f":"LLOOKUP(K39,A:A,A:A)","v":"Die Abenteuer von Blake und Mortimer"}]
["Die Aufzeichnungen des Malte Laurids Brigge","Die Aufzeschnungen des Malte Laurids Brigge","Die Aufzeschnungen des ualte Laurids Brigge",{"$f":"SLOOKUP(C40,A:A,A:A)","v":"Die Aufzeichnungen des Malte Laurids Brigge"},{"$f":"LLOOKUP(C40,A:A,A:A)","v":"Die Aufzeichnungen des Malte Laurids Brigge"},"Dbe Aufzeschnungen des ualte Laurids Brigge","Dbe Aufveschnungen des ualte Laurids Brigge",{"$f":"SLOOKUP(G40,A:A,A:A)","v":""},{"$f":"LLOOKUP(G40,A:A,A:A)","v":"Die Aufzeichnungen des Malte Laurids Brigge"},"Dbe Aufveschnungen des ualte Laurids Brqgge","Dbe Aufveschnunien des ualte Laurids Brqgge",{"$f":"SLOOKUP(K40,A:A,A:A)","v":""},{"$f":"LLOOKUP(K40,A:A,A:A)","v":"Die Aufzeichnungen des Malte Laurids Brigge"}]
["Die Falschmünzer","Die Falkchmünzer","Din Falkchmünzer",{"$f":"SLOOKUP(C41,A:A,A:A)","v":""},{"$f":"LLOOKUP(C41,A:A,A:A)","v":"Die Falschmünzer"},"Din Falkchmünzsr","lin Falkchmünzsr",{"$f":"SLOOKUP(G41,A:A,A:A)","v":""},{"$f":"LLOOKUP(G41,A:A,A:A)","v":"Die Falschmünzer"},"linsFalkchmünzsr","lqnsFalkchmünzsr",{"$f":"SLOOKUP(K41,A:A,A:A)","v":""},{"$f":"LLOOKUP(K41,A:A,A:A)","v":""}]
["Die kahle Sängerin","Dme kahle Sängerin","Dme kahye Sängerin",{"$f":"SLOOKUP(C42,A:A,A:A)","v":"Die kahle Sängerin"},{"$f":"LLOOKUP(C42,A:A,A:A)","v":"Die kahle Sängerin"},"Dve kahye Sängerin","Dve kthye Sängerin",{"$f":"SLOOKUP(G42,A:A,A:A)","v":""},{"$f":"LLOOKUP(G42,A:A,A:A)","v":"Die kahle Sängerin"},"Dve kthye Sängeyin","Dve kthye Sängeyin",{"$f":"SLOOKUP(K42,A:A,A:A)","v":""},{"$f":"LLOOKUP(K42,A:A,A:A)","v":"Die kahle Sängerin"}]
["Die Mars-Chroniken","Die zars-Chroniken","Die zaks-Chroniken",{"$f":"SLOOKUP(C43,A:A,A:A)","v":"Die Mars-Chroniken"},{"$f":"LLOOKUP(C43,A:A,A:A)","v":"Die Mars-Chroniken"},"Die zaks-Chroniker","Dme zaks-Chroniker",{"$f":"SLOOKUP(G43,A:A,A:A)","v":""},{"$f":"LLOOKUP(G43,A:A,A:A)","v":"Die Mars-Chroniken"},"Dme zaks-Chroniler","Dme zais-Chroniler",{"$f":"SLOOKUP(K43,A:A,A:A)","v":""},{"$f":"LLOOKUP(K43,A:A,A:A)","v":""}]
["Die Ordnung der Dinge","DieoOrdnung der Dinge","DieoOrdnung der Dirge",{"$f":"SLOOKUP(C44,A:A,A:A)","v":"Die Ordnung der Dinge"},{"$f":"LLOOKUP(C44,A:A,A:A)","v":"Die Ordnung der Dinge"},"DieoOrdnang der Dirge","DieoOrdnanx der Dirge",{"$f":"SLOOKUP(G44,A:A,A:A)","v":""},{"$f":"LLOOKUP(G44,A:A,A:A)","v":"Die Ordnung der Dinge"},"DieoOrdnanx der Dirgk","DiaoOrdnanx der Dirgk",{"$f":"SLOOKUP(K44,A:A,A:A)","v":""},{"$f":"LLOOKUP(K44,A:A,A:A)","v":""}]
["Die Schöne des Herrn","Die Slhöne des Herrn","Dre Slhöne des Herrn",{"$f":"SLOOKUP(C45,A:A,A:A)","v":"Die Schöne des Herrn"},{"$f":"LLOOKUP(C45,A:A,A:A)","v":"Die Schöne des Herrn"},"Dce Slhöne des Herrn","Dce Skhöne des Herrn",{"$f":"SLOOKUP(G45,A:A,A:A)","v":"Die Schöne des Herrn"},{"$f":"LLOOKUP(G45,A:A,A:A)","v":"Die Schöne des Herrn"},"gce Skhöne des Herrn","gce Skhöne des Herqn",{"$f":"SLOOKUP(K45,A:A,A:A)","v":""},{"$f":"LLOOKUP(K45,A:A,A:A)","v":"Die Schöne des Herrn"}]
["Die schwarze Flamme","Die schwarze Flfmme","Dre schwarze Flfmme",{"$f":"SLOOKUP(C46,A:A,A:A)","v":"Die schwarze Flamme"},{"$f":"LLOOKUP(C46,A:A,A:A)","v":"Die schwarze Flamme"},"Dre schwaree Flfmme","Dre schwadee Flfmme",{"$f":"SLOOKUP(G46,A:A,A:A)","v":""},{"$f":"LLOOKUP(G46,A:A,A:A)","v":"Die schwarze Flamme"},"Dre uchwadee Flfmme","Dre uchwadev Flfmme",{"$f":"SLOOKUP(K46,A:A,A:A)","v":""},{"$f":"LLOOKUP(K46,A:A,A:A)","v":""}]
["Die Sonne Satans","Die Sonne Satams","Dih Sonne Satams",{"$f":"SLOOKUP(C47,A:A,A:A)","v":"Die Sonne Satans"},{"$f":"LLOOKUP(C47,A:A,A:A)","v":"Die Sonne Satans"},"Dih Sonne satams","Dih Sonne sutams",{"$f":"SLOOKUP(G47,A:A,A:A)","v":""},{"$f":"LLOOKUP(G47,A:A,A:A)","v":"Die Sonne Satans"},"Dih vonne sutams","Dih vonne sutays",{"$f":"SLOOKUP(K47,A:A,A:A)","v":""},{"$f":"LLOOKUP(K47,A:A,A:A)","v":"Die Sonne Satans"}]
["Die Tat der Thérèse Desqueyroux","Die Tad der Thérèse Desqueyroux","Dee Tad der Thérèse Desqueyroux",{"$f":"SLOOKUP(C48,A:A,A:A)","v":"Die Tat der Thérèse Desqueyroux"},{"$f":"LLOOKUP(C48,A:A,A:A)","v":"Die Tat der Thérèse Desqueyroux"},"Dee Tad der Thérèse Dosqueyroux","Dee Tad der Thérèse nosqueyroux",{"$f":"SLOOKUP(G48,A:A,A:A)","v":"Die Tat der Thérèse Desqueyroux"},{"$f":"LLOOKUP(G48,A:A,A:A)","v":"Die Tat der Thérèse Desqueyroux"},"Dee Tadrder Thérèse nosqueyroux","Dee Tadrder Thérèse nosquexroux",{"$f":"SLOOKUP(K48,A:A,A:A)","v":""},{"$f":"LLOOKUP(K48,A:A,A:A)","v":"Die Tat der Thérèse Desqueyroux"}]
["Die Tatarenwüste","Die patarenwüste","Die patarenwühte",{"$f":"SLOOKUP(C49,A:A,A:A)","v":""},{"$f":"LLOOKUP(C49,A:A,A:A)","v":"Die Tatarenwüste"},"Diu patarenwühte","Dhu patarenwühte",{"$f":"SLOOKUP(G49,A:A,A:A)","v":""},{"$f":"LLOOKUP(G49,A:A,A:A)","v":"Die Tatarenwüste"},"Dhu patacenwühte","Dhu paaacenwühte",{"$f":"SLOOKUP(K49,A:A,A:A)","v":""},{"$f":"LLOOKUP(K49,A:A,A:A)","v":""}]
["Die Verachtung","Dih Verachtung","Dih Verajhtung",{"$f":"SLOOKUP(C50,A:A,A:A)","v":""},{"$f":"LLOOKUP(C50,A:A,A:A)","v":"Die Verachtung"},"Dih Verajheung","Dbh Verajheung",{"$f":"SLOOKUP(G50,A:A,A:A)","v":""},{"$f":"LLOOKUP(G50,A:A,A:A)","v":""},"Dbh Verijheung","Dbh Verijhefng",{"$f":"SLOOKUP(K50,A:A,A:A)","v":""},{"$f":"LLOOKUP(K50,A:A,A:A)","v":""}]
["Die verlorene Ehre der Katharina Blum","Die verloreve Ehre der Katharina Blum","Die verloreve thre der Katharina Blum",{"$f":"SLOOKUP(C51,A:A,A:A)","v":"Die verlorene Ehre der Katharina Blum"},{"$f":"LLOOKUP(C51,A:A,A:A)","v":"Die verlorene Ehre der Katharina Blum"},"Die verloreve zhre der Katharina Blum","Die verloreve zhre der datharina Blum",{"$f":"SLOOKUP(G51,A:A,A:A)","v":"Die verlorene Ehre der Katharina Blum"},{"$f":"LLOOKUP(G51,A:A,A:A)","v":"Die verlorene Ehre der Katharina Blum"},"Die verloreve zhre der dathdrina Blum","Die verloreve zhre der dathxrina Blum",{"$f":"SLOOKUP(K51,A:A,A:A)","v":""},{"$f":"LLOOKUP(K51,A:A,A:A)","v":"Die verlorene Ehre der Katharina Blum"}]
["Die Verzückung der Lol V. Stein","Die Verzückufg der Lol V. Stein","Die Verzückufg der LollV. Stein",{"$f":"SLOOKUP(C52,A:A,A:A)","v":"Die Verzückung der Lol V. Stein"},{"$f":"LLOOKUP(C52,A:A,A:A)","v":"Die Verzückung der Lol V. Stein"},"Die Verzückufg dfr LollV. Stein","Die Verzücaufg dfr LollV. Stein",{"$f":"SLOOKUP(G52,A:A,A:A)","v":""},{"$f":"LLOOKUP(G52,A:A,A:A)","v":"Die Verzückung der Lol V. Stein"},"Die Verzpcaufg dfr LollV. Stein","Die Verzpcaufghdfr LollV. Stein",{"$f":"SLOOKUP(K52,A:A,A:A)","v":""},{"$f":"LLOOKUP(K52,A:A,A:A)","v":"Die Verzückung der Lol V. Stein"}]
["Die wunderbare Reise des kleinen Nils Holgersson","Die wunderbare Reise des kleinengNils Holgersson","Die wunderbare Reide des kleinengNils Holgersson",{"$f":"SLOOKUP(C53,A:A,A:A)","v":"Die wunderbare Reise des kleinen Nils Holgersson"},{"$f":"LLOOKUP(C53,A:A,A:A)","v":"Die wunderbare Reise des kleinen Nils Holgersson"},"Dik wunderbare Reide des kleinengNils Holgersson","Dik wundekbare Reide des kleinengNils Holgersson",{"$f":"SLOOKUP(G53,A:A,A:A)","v":"Die wunderbare Reise des kleinen Nils Holgersson"},{"$f":"LLOOKUP(G53,A:A,A:A)","v":"Die wunderbare Reise des kleinen Nils Holgersson"},"Dik wendekbare Reide des kleinengNils Holgersson","Dik wendekbare Reide des kleinengNilp Holgersson",{"$f":"SLOOKUP(K53,A:A,A:A)","v":""},{"$f":"LLOOKUP(K53,A:A,A:A)","v":"Die wunderbare Reise des kleinen Nils Holgersson"}]
["Drei Abhandlungen zur Sexualtheorie","Drei Abhandlungen zurtSexualtheorie","wrei Abhandlungen zurtSexualtheorie",{"$f":"SLOOKUP(C54,A:A,A:A)","v":"Drei Abhandlungen zur Sexualtheorie"},{"$f":"LLOOKUP(C54,A:A,A:A)","v":"Drei Abhandlungen zur Sexualtheorie"},"wrei Abhandlungen zuruSexualtheorie","wrei AbhandlungenszuruSexualtheorie",{"$f":"SLOOKUP(G54,A:A,A:A)","v":"Drei Abhandlungen zur Sexualtheorie"},{"$f":"LLOOKUP(G54,A:A,A:A)","v":"Drei Abhandlungen zur Sexualtheorie"},"wrei AbhandlungenszuruSexuaztheorie","wrei AbhandyungenszuruSexuaztheorie",{"$f":"SLOOKUP(K54,A:A,A:A)","v":"Drei Abhandlungen zur Sexualtheorie"},{"$f":"LLOOKUP(K54,A:A,A:A)","v":"Drei Abhandlungen zur Sexualtheorie"}]
["Ein Zimmer für sich allein","Ein Zimmez für sich allein","Ein Zimmez ftr sich allein",{"$f":"SLOOKUP(C55,A:A,A:A)","v":"Ein Zimmer für sich allein"},{"$f":"LLOOKUP(C55,A:A,A:A)","v":"Ein Zimmer für sich allein"},"Ein Zimmez ftr sich allein","Ein Zimmez ftr sich ablein",{"$f":"SLOOKUP(G55,A:A,A:A)","v":""},{"$f":"LLOOKUP(G55,A:A,A:A)","v":"Ein Zimmer für sich allein"},"Epn Zimmez ftr sich ablein","Epn Zimmez ftr sichzablein",{"$f":"SLOOKUP(K55,A:A,A:A)","v":""},{"$f":"LLOOKUP(K55,A:A,A:A)","v":"Ein Zimmer für sich allein"}]
["Elemente und Ursprünge totaler Herrschaft","Elemente und Ursprünge totaler Herrwchaft","Elemente und Ursprvnge totaler Herrwchaft",{"$f":"SLOOKUP(C56,A:A,A:A)","v":"Elemente und Ursprünge totaler Herrschaft"},{"$f":"LLOOKUP(C56,A:A,A:A)","v":"Elemente und Ursprünge totaler Herrschaft"},"Elemente und Ursprvngestotaler Herrwchaft","Elemente und Ursprvngestotader Herrwchaft",{"$f":"SLOOKUP(G56,A:A,A:A)","v":""},{"$f":"LLOOKUP(G56,A:A,A:A)","v":"Elemente und Ursprünge totaler Herrschaft"},"Elemente und Ursprvngestotader terrwchaft","Elemente und Ursprvcgestotader terrwchaft",{"$f":"SLOOKUP(K56,A:A,A:A)","v":""},{"$f":"LLOOKUP(K56,A:A,A:A)","v":"Elemente und Ursprünge totaler Herrschaft"}]
["Fiktionen","Fiktioneb","Fintioneb",{"$f":"SLOOKUP(C57,A:A,A:A)","v":""},{"$f":"LLOOKUP(C57,A:A,A:A)","v":"Fiktionen"},"Fintioieb","Ftntioieb",{"$f":"SLOOKUP(G57,A:A,A:A)","v":""},{"$f":"LLOOKUP(G57,A:A,A:A)","v":""},"Ftniioieb","Fcniioieb",{"$f":"SLOOKUP(K57,A:A,A:A)","v":""},{"$f":"LLOOKUP(K57,A:A,A:A)","v":""}]
["Freitag oder Im Schoss des Pazifik","Freitag oder Im Syhoss des Pazifik","Freitag oder Im Syhois des Pazifik",{"$f":"SLOOKUP(C58,A:A,A:A)","v":"Freitag oder Im Schoss des Pazifik"},{"$f":"LLOOKUP(C58,A:A,A:A)","v":"Freitag oder Im Schoss des Pazifik"},"Fremtag oder Im Syhois des Pazifik","Fremtag oder Im Syhois des Pazifik",{"$f":"SLOOKUP(G58,A:A,A:A)","v":""},{"$f":"LLOOKUP(G58,A:A,A:A)","v":"Freitag oder Im Schoss des Pazifik"},"Fremtag oder Im Syhovs des Pazifik","Fremtag oder Im Syhovs des Pazimik",{"$f":"SLOOKUP(K58,A:A,A:A)","v":""},{"$f":"LLOOKUP(K58,A:A,A:A)","v":"Freitag oder Im Schoss des Pazifik"}]
["Früchte des Zorns","Früchte des Zouns","Früchte dds Zouns",{"$f":"SLOOKUP(C59,A:A,A:A)","v":"Früchte des Zorns"},{"$f":"LLOOKUP(C59,A:A,A:A)","v":"Früchte des Zorns"},"Früchte dds Zounu","Früchte dds Zoutu",{"$f":"SLOOKUP(G59,A:A,A:A)","v":""},{"$f":"LLOOKUP(G59,A:A,A:A)","v":"Früchte des Zorns"},"Früchte dds noutu","Frücqte dds noutu",{"$f":"SLOOKUP(K59,A:A,A:A)","v":""},{"$f":"LLOOKUP(K59,A:A,A:A)","v":""}]
["Fureur et mystère","Furtur et mystère","Furtur et mystème",{"$f":"SLOOKUP(C60,A:A,A:A)","v":"Fureur et mystère"},{"$f":"LLOOKUP(C60,A:A,A:A)","v":"Fureur et mystère"},"Furtur et mystèxe","Furtut et mystèxe",{"$f":"SLOOKUP(G60,A:A,A:A)","v":""},{"$f":"LLOOKUP(G60,A:A,A:A)","v":"Fureur et mystère"},"Furtut etkmystèxe","Furtug etkmystèxe",{"$f":"SLOOKUP(K60,A:A,A:A)","v":""},{"$f":"LLOOKUP(K60,A:A,A:A)","v":"Fureur et mystère"}]
["Gaston","maston","mastoj",{"$f":"SLOOKUP(C61,A:A,A:A)","v":""},{"$f":"LLOOKUP(C61,A:A,A:A)","v":""},"mustoj","mustok",{"$f":"SLOOKUP(G61,A:A,A:A)","v":""},{"$f":"LLOOKUP(G61,A:A,A:A)","v":""},"musgok","zusgok",{"$f":"SLOOKUP(K61,A:A,A:A)","v":""},{"$f":"LLOOKUP(K61,A:A,A:A)","v":""}]
["Hauptstadt der Schmerzen","Hauptstadt der Sthmerzen","Hauptstadt der Sthmerzed",{"$f":"SLOOKUP(C62,A:A,A:A)","v":"Hauptstadt der Schmerzen"},{"$f":"LLOOKUP(C62,A:A,A:A)","v":"Hauptstadt der Schmerzen"},"Hauztstadt der Sthmerzed","Hauzdstadt der Sthmerzed",{"$f":"SLOOKUP(G62,A:A,A:A)","v":""},{"$f":"LLOOKUP(G62,A:A,A:A)","v":"Hauptstadt der Schmerzen"},"Hauzdstadt del Sthmerzed","Hauzdstadt del Sthmeczed",{"$f":"SLOOKUP(K62,A:A,A:A)","v":""},{"$f":"LLOOKUP(K62,A:A,A:A)","v":"Hauptstadt der Schmerzen"}]
["Hundert Jahre Einsamkeit","Hundert Jahre Eilsamkeit","qundert Jahre Eilsamkeit",{"$f":"SLOOKUP(C63,A:A,A:A)","v":"Hundert Jahre Einsamkeit"},{"$f":"LLOOKUP(C63,A:A,A:A)","v":"Hundert Jahre Einsamkeit"},"qundert Jahre Eilsamkedt","qundort Jahre Eilsamkedt",{"$f":"SLOOKUP(G63,A:A,A:A)","v":""},{"$f":"LLOOKUP(G63,A:A,A:A)","v":"Hundert Jahre Einsamkeit"},"qundort Jahrs Eilsamkedt","qundort Jmhrs Eilsamkedt",{"$f":"SLOOKUP(K63,A:A,A:A)","v":""},{"$f":"LLOOKUP(K63,A:A,A:A)","v":"Hundert Jahre Einsamkeit"}]
["Ist das ein Mensch?","Ist das ein Mensth?","Ist das eih Mensth?",{"$f":"SLOOKUP(C64,A:A,A:A)","v":"Ist das ein Mensch?"},{"$f":"LLOOKUP(C64,A:A,A:A)","v":"Ist das ein Mensch?"},"Istydas eih Mensth?","Iptydas eih Mensth?",{"$f":"SLOOKUP(G64,A:A,A:A)","v":""},{"$f":"LLOOKUP(G64,A:A,A:A)","v":"Ist das ein Mensch?"},"Ietydas eih Mensth?","Ietydas enh Mensth?",{"$f":"SLOOKUP(K64,A:A,A:A)","v":""},{"$f":"LLOOKUP(K64,A:A,A:A)","v":""}]
["Keine Orchideen für Mrs. Blandish","Keine Orchideen für Mrs. Blondish","Keine Orchideei für Mrs. Blondish",{"$f":"SLOOKUP(C65,A:A,A:A)","v":"Keine Orchideen für Mrs. Blandish"},{"$f":"LLOOKUP(C65,A:A,A:A)","v":"Keine Orchideen für Mrs. Blandish"},"Keive Orchideei für Mrs. Blondish","Keive Orchideei fsr Mrs. Blondish",{"$f":"SLOOKUP(G65,A:A,A:A)","v":""},{"$f":"LLOOKUP(G65,A:A,A:A)","v":"Keine Orchideen für Mrs. Blandish"},"Keive Orchidnei fsr Mrs. Blondish","Keivi Orchidnei fsr Mrs. Blondish",{"$f":"SLOOKUP(K65,A:A,A:A)","v":""},{"$f":"LLOOKUP(K65,A:A,A:A)","v":"Keine Orchideen für Mrs. Blandish"}]
["Lady Chatterleys Liebhaber","Lady Chattmrleys Liebhaber","Lady Chattmrleys Liabhaber",{"$f":"SLOOKUP(C66,A:A,A:A)","v":"Lady Chatterleys Liebhaber"},{"$f":"LLOOKUP(C66,A:A,A:A)","v":"Lady Chatterleys Liebhaber"},"Lady Chattmrkeys Liabhaber","Lady Chattmrdeys Liabhaber",{"$f":"SLOOKUP(G66,A:A,A:A)","v":"Lady Chatterleys Liebhaber"},{"$f":"LLOOKUP(G66,A:A,A:A)","v":"Lady Chatterleys Liebhaber"},"Lady Chattmrdeys wiabhaber","Lady Chattmrdnys wiabhaber",{"$f":"SLOOKUP(K66,A:A,A:A)","v":""},{"$f":"LLOOKUP(K66,A:A,A:A)","v":"Lady Chatterleys Liebhaber"}]
["Les Vrilles de la vigne","Lej Vrilles de la vigne","Lej frilles de la vigne",{"$f":"SLOOKUP(C67,A:A,A:A)","v":"Les Vrilles de la vigne"},{"$f":"LLOOKUP(C67,A:A,A:A)","v":"Les Vrilles de la vigne"},"Lej frieles de la vigne","Lej frieles de la vigae",{"$f":"SLOOKUP(G67,A:A,A:A)","v":""},{"$f":"LLOOKUP(G67,A:A,A:A)","v":"Les Vrilles de la vigne"},"Lej frixles de la vigae","Lej frixles de la vigau",{"$f":"SLOOKUP(K67,A:A,A:A)","v":""},{"$f":"LLOOKUP(K67,A:A,A:A)","v":"Les Vrilles de la vigne"}]
["Lolita","yolita","yojita",{"$f":"SLOOKUP(C68,A:A,A:A)","v":""},{"$f":"LLOOKUP(C68,A:A,A:A)","v":""},"yojila","yojilg",{"$f":"SLOOKUP(G68,A:A,A:A)","v":""},{"$f":"LLOOKUP(G68,A:A,A:A)","v":""},"yobilg","yobilg",{"$f":"SLOOKUP(K68,A:A,A:A)","v":""},{"$f":"LLOOKUP(K68,A:A,A:A)","v":""}]
["Lord Jim","Lord mim","Lord mlm",{"$f":"SLOOKUP(C69,A:A,A:A)","v":""},{"$f":"LLOOKUP(C69,A:A,A:A)","v":"Lord Jim"},"Lorc mlm","uorc mlm",{"$f":"SLOOKUP(G69,A:A,A:A)","v":""},{"$f":"LLOOKUP(G69,A:A,A:A)","v":""},"uorc mlm","uorb mlm",{"$f":"SLOOKUP(K69,A:A,A:A)","v":""},{"$f":"LLOOKUP(K69,A:A,A:A)","v":""}]
["Maigret und Pietr der Lette","Maigret und Pietr derfLette","Maigret und PietrhderfLette",{"$f":"SLOOKUP(C70,A:A,A:A)","v":"Maigret und Pietr der Lette"},{"$f":"LLOOKUP(C70,A:A,A:A)","v":"Maigret und Pietr der Lette"},"Maigret und PiezrhderfLette","Maigretxund PiezrhderfLette",{"$f":"SLOOKUP(G70,A:A,A:A)","v":""},{"$f":"LLOOKUP(G70,A:A,A:A)","v":"Maigret und Pietr der Lette"},"Maigretxund PiezrhdbrfLette","Maigretxund PiezrhdwrfLette",{"$f":"SLOOKUP(K70,A:A,A:A)","v":""},{"$f":"LLOOKUP(K70,A:A,A:A)","v":"Maigret und Pietr der Lette"}]
["Manhattan Transfer","Manhattan Transfnr","nanhattan Transfnr",{"$f":"SLOOKUP(C71,A:A,A:A)","v":"Manhattan Transfer"},{"$f":"LLOOKUP(C71,A:A,A:A)","v":"Manhattan Transfer"},"nanhatkan Transfnr","nfnhatkan Transfnr",{"$f":"SLOOKUP(G71,A:A,A:A)","v":""},{"$f":"LLOOKUP(G71,A:A,A:A)","v":"Manhattan Transfer"},"nfnhmtkan Transfnr","sfnhmtkan Transfnr",{"$f":"SLOOKUP(K71,A:A,A:A)","v":""},{"$f":"LLOOKUP(K71,A:A,A:A)","v":""}]
["Martin Eden","MartinlEden","MartinhEden",{"$f":"SLOOKUP(C72,A:A,A:A)","v":"Martin Eden"},{"$f":"LLOOKUP(C72,A:A,A:A)","v":"Martin Eden"},"MartpnhEden","MartpnhEoen",{"$f":"SLOOKUP(G72,A:A,A:A)","v":""},{"$f":"LLOOKUP(G72,A:A,A:A)","v":""},"MabtpnhEoen","MaktpnhEoen",{"$f":"SLOOKUP(K72,A:A,A:A)","v":""},{"$f":"LLOOKUP(K72,A:A,A:A)","v":""}]
["Mitternachtskinder","Mitternachtskiwder","Mittfrnachtskiwder",{"$f":"SLOOKUP(C73,A:A,A:A)","v":"Mitternachtskinder"},{"$f":"LLOOKUP(C73,A:A,A:A)","v":"Mitternachtskinder"},"Mittfrnarhtskiwder","Mittfrnarhmskiwder",{"$f":"SLOOKUP(G73,A:A,A:A)","v":""},{"$f":"LLOOKUP(G73,A:A,A:A)","v":"Mitternachtskinder"},"Mittfrnarhmskywder","Mittfrsarhmskywder",{"$f":"SLOOKUP(K73,A:A,A:A)","v":""},{"$f":"LLOOKUP(K73,A:A,A:A)","v":""}]
["Moloch. Das Leben des Moravagine","Moloch.pDas Leben des Moravagine","Molocf.pDas Leben des Moravagine",{"$f":"SLOOKUP(C74,A:A,A:A)","v":"Moloch. Das Leben des Moravagine"},{"$f":"LLOOKUP(C74,A:A,A:A)","v":"Moloch. Das Leben des Moravagine"},"Molocf.pDas weben des Moravagine","Molocf.pDas weben dcs Moravagine",{"$f":"SLOOKUP(G74,A:A,A:A)","v":""},{"$f":"LLOOKUP(G74,A:A,A:A)","v":"Moloch. Das Leben des Moravagine"},"Molocf.pDas weben dcshMoravagine","Molocf.pDasaweben dcshMoravagine",{"$f":"SLOOKUP(K74,A:A,A:A)","v":""},{"$f":"LLOOKUP(K74,A:A,A:A)","v":"Moloch. Das Leben des Moravagine"}]
["Nadja","Nadjb","radjb",{"$f":"SLOOKUP(C75,A:A,A:A)","v":""},{"$f":"LLOOKUP(C75,A:A,A:A)","v":""},"radjk","rabjk",{"$f":"SLOOKUP(G75,A:A,A:A)","v":""},{"$f":"LLOOKUP(G75,A:A,A:A)","v":""},"fabjk","fajjk",{"$f":"SLOOKUP(K75,A:A,A:A)","v":""},{"$f":"LLOOKUP(K75,A:A,A:A)","v":""}]
["Notre-Dame-des-Fleurs","Notre-Dame-des-Flqurs","Notrr-Dame-des-Flqurs",{"$f":"SLOOKUP(C76,A:A,A:A)","v":""},{"$f":"LLOOKUP(C76,A:A,A:A)","v":"Notre-Dame-des-Fleurs"},"Notrr-Dame-des-Flqyrs","Notrp-Dame-des-Flqyrs",{"$f":"SLOOKUP(G76,A:A,A:A)","v":""},{"$f":"LLOOKUP(G76,A:A,A:A)","v":"Notre-Dame-des-Fleurs"},"Notrp-Dami-des-Flqyrs","Notrp-Damo-des-Flqyrs",{"$f":"SLOOKUP(K76,A:A,A:A)","v":""},{"$f":"LLOOKUP(K76,A:A,A:A)","v":"Notre-Dame-des-Fleurs"}]
["Paris-Rom oder Die Modifikation","Paris-Rom oder Dwe Modifikation","Paris-Rom oder Dwe Modifixation",{"$f":"SLOOKUP(C77,A:A,A:A)","v":"Paris-Rom oder Die Modifikation"},{"$f":"LLOOKUP(C77,A:A,A:A)","v":"Paris-Rom oder Die Modifikation"},"Paris-Rom oder Dwe Modifixytion","Paris-Rom orer Dwe Modifixytion",{"$f":"SLOOKUP(G77,A:A,A:A)","v":"Paris-Rom oder Die Modifikation"},{"$f":"LLOOKUP(G77,A:A,A:A)","v":"Paris-Rom oder Die Modifikation"},"Paris-Rom oreg Dwe Modifixytion","Parii-Rom oreg Dwe Modifixytion",{"$f":"SLOOKUP(K77,A:A,A:A)","v":""},{"$f":"LLOOKUP(K77,A:A,A:A)","v":"Paris-Rom oder Die Modifikation"}]
["Paroles","iaroles","izroles",{"$f":"SLOOKUP(C78,A:A,A:A)","v":""},{"$f":"LLOOKUP(C78,A:A,A:A)","v":""},"izriles","izbiles",{"$f":"SLOOKUP(G78,A:A,A:A)","v":""},{"$f":"LLOOKUP(G78,A:A,A:A)","v":""},"izbilet","izwilet",{"$f":"SLOOKUP(K78,A:A,A:A)","v":""},{"$f":"LLOOKUP(K78,A:A,A:A)","v":""}]
["Reise ans Ende der Nacht","Reise ans Endr der Nacht","Reise ansrEndr der Nacht",{"$f":"SLOOKUP(C79,A:A,A:A)","v":"Reise ans Ende der Nacht"},{"$f":"LLOOKUP(C79,A:A,A:A)","v":"Reise ans Ende der Nacht"},"Reise ansrEndrsder Nacht","Reise ansrEndrsder eacht",{"$f":"SLOOKUP(G79,A:A,A:A)","v":""},{"$f":"LLOOKUP(G79,A:A,A:A)","v":"Reise ans Ende der Nacht"},"Reise ansrEndrpder eacht","Reise ansrEndipder eacht",{"$f":"SLOOKUP(K79,A:A,A:A)","v":""},{"$f":"LLOOKUP(K79,A:A,A:A)","v":"Reise ans Ende der Nacht"}]
["Schall und Wahn","Sghall und Wahn","Sghall ugd Wahn",{"$f":"SLOOKUP(C80,A:A,A:A)","v":"Schall und Wahn"},{"$f":"LLOOKUP(C80,A:A,A:A)","v":"Schall und Wahn"},"Sghall ugv Wahn","Sghatl ugv Wahn",{"$f":"SLOOKUP(G80,A:A,A:A)","v":""},{"$f":"LLOOKUP(G80,A:A,A:A)","v":""},"Sghatl ugv Waln","Sghakl ugv Waln",{"$f":"SLOOKUP(K80,A:A,A:A)","v":""},{"$f":"LLOOKUP(K80,A:A,A:A)","v":""}]
["Schöne neue Welt","Schönetneue Welt","Schönetneus Welt",{"$f":"SLOOKUP(C81,A:A,A:A)","v":""},{"$f":"LLOOKUP(C81,A:A,A:A)","v":"Schöne neue Welt"},"Schönetneus Welt","Sihönetneus Welt",{"$f":"SLOOKUP(G81,A:A,A:A)","v":""},{"$f":"LLOOKUP(G81,A:A,A:A)","v":"Schöne neue Welt"},"Sihönetneus Welx","Sihönetzeus Welx",{"$f":"SLOOKUP(K81,A:A,A:A)","v":""},{"$f":"LLOOKUP(K81,A:A,A:A)","v":""}]
["Schriften","schriften","scjriften",{"$f":"SLOOKUP(C82,A:A,A:A)","v":"Schriften"},{"$f":"LLOOKUP(C82,A:A,A:A)","v":"Schriften"},"tcjriften","tujriften",{"$f":"SLOOKUP(G82,A:A,A:A)","v":""},{"$f":"LLOOKUP(G82,A:A,A:A)","v":""},"ttjriften","tteriften",{"$f":"SLOOKUP(K82,A:A,A:A)","v":""},{"$f":"LLOOKUP(K82,A:A,A:A)","v":""}]
["Sechs Personen suchen einen Autor","Sechs Personen suchen einen nutor","Sechs Personen suchen einen nutor",{"$f":"SLOOKUP(C83,A:A,A:A)","v":"Sechs Personen suchen einen Autor"},{"$f":"LLOOKUP(C83,A:A,A:A)","v":"Sechs Personen suchen einen Autor"},"Sechs dersonen suchen einen nutor","Snchs dersonen suchen einen nutor",{"$f":"SLOOKUP(G83,A:A,A:A)","v":"Sechs Personen suchen einen Autor"},{"$f":"LLOOKUP(G83,A:A,A:A)","v":"Sechs Personen suchen einen Autor"},"Snchs dersonen suehen einen nutor","Snchs dersonen suehen einem nutor",{"$f":"SLOOKUP(K83,A:A,A:A)","v":""},{"$f":"LLOOKUP(K83,A:A,A:A)","v":"Sechs Personen suchen einen Autor"}]
["Seemarken","Sesmarken","Sesmirken",{"$f":"SLOOKUP(C84,A:A,A:A)","v":""},{"$f":"LLOOKUP(C84,A:A,A:A)","v":"Seemarken"},"Sesmiaken","Seamiaken",{"$f":"SLOOKUP(G84,A:A,A:A)","v":""},{"$f":"LLOOKUP(G84,A:A,A:A)","v":""},"Sramiaken","vramiaken",{"$f":"SLOOKUP(K84,A:A,A:A)","v":""},{"$f":"LLOOKUP(K84,A:A,A:A)","v":""}]
["So lebt der Mensch","So lebv der Mensch","So lebvlder Mensch",{"$f":"SLOOKUP(C85,A:A,A:A)","v":"So lebt der Mensch"},{"$f":"LLOOKUP(C85,A:A,A:A)","v":"So lebt der Mensch"},"So lebvldqr Mensch","So lebvldqr Meusch",{"$f":"SLOOKUP(G85,A:A,A:A)","v":""},{"$f":"LLOOKUP(G85,A:A,A:A)","v":"So lebt der Mensch"},"So lebvldqr Meuech","So lebvldqr Meuecv",{"$f":"SLOOKUP(K85,A:A,A:A)","v":""},{"$f":"LLOOKUP(K85,A:A,A:A)","v":""}]
["Sophies Entscheidung","Sophies Entscheidqng","Sophies vntscheidqng",{"$f":"SLOOKUP(C86,A:A,A:A)","v":"Sophies Entscheidung"},{"$f":"LLOOKUP(C86,A:A,A:A)","v":"Sophies Entscheidung"},"Sophies vntscdeidqng","Sophies vntscdeidqnz",{"$f":"SLOOKUP(G86,A:A,A:A)","v":""},{"$f":"LLOOKUP(G86,A:A,A:A)","v":"Sophies Entscheidung"},"Sophiec vntscdeidqnz","Sophiec vntscveidqnz",{"$f":"SLOOKUP(K86,A:A,A:A)","v":""},{"$f":"LLOOKUP(K86,A:A,A:A)","v":"Sophies Entscheidung"}]
["Südseeballade","Süzseeballade","Süzsreballade",{"$f":"SLOOKUP(C87,A:A,A:A)","v":""},{"$f":"LLOOKUP(C87,A:A,A:A)","v":"Südseeballade"},"Süzsreballame","Syzsreballame",{"$f":"SLOOKUP(G87,A:A,A:A)","v":""},{"$f":"LLOOKUP(G87,A:A,A:A)","v":""},"jyzsreballame","jyzsteballame",{"$f":"SLOOKUP(K87,A:A,A:A)","v":""},{"$f":"LLOOKUP(K87,A:A,A:A)","v":""}]
["Tagebuch der Anne Frank","Tagebuchwder Anne Frank","Taiebuchwder Anne Frank",{"$f":"SLOOKUP(C88,A:A,A:A)","v":"Tagebuch der Anne Frank"},{"$f":"LLOOKUP(C88,A:A,A:A)","v":"Tagebuch der Anne Frank"},"Taiebuchwder Ance Frank","Taiebuchwder AncenFrank",{"$f":"SLOOKUP(G88,A:A,A:A)","v":""},{"$f":"LLOOKUP(G88,A:A,A:A)","v":"Tagebuch der Anne Frank"},"Taiebuchwder mncenFrank","Taiebuchwder mncenFradk",{"$f":"SLOOKUP(K88,A:A,A:A)","v":""},{"$f":"LLOOKUP(K88,A:A,A:A)","v":""}]
["Tagebücher 1887-1910","Tagebüchjr 1887-1910","Tagebüchjr 18z7-1910",{"$f":"SLOOKUP(C89,A:A,A:A)","v":"Tagebücher 1887-1910"},{"$f":"LLOOKUP(C89,A:A,A:A)","v":"Tagebücher 1887-1910"},"Tagebüchjr u8z7-1910","Tagebüchjr usz7-1910",{"$f":"SLOOKUP(G89,A:A,A:A)","v":""},{"$f":"LLOOKUP(G89,A:A,A:A)","v":"Tagebücher 1887-1910"},"Tagebüchjw usz7-1910","Tagebüchjw usz7-1l10",{"$f":"SLOOKUP(K89,A:A,A:A)","v":""},{"$f":"LLOOKUP(K89,A:A,A:A)","v":""}]
["Traurige Tropen","Trzurige Tropen","Tszurige Tropen",{"$f":"SLOOKUP(C90,A:A,A:A)","v":"Traurige Tropen"},{"$f":"LLOOKUP(C90,A:A,A:A)","v":"Traurige Tropen"},"Tszurigh Tropen","Tsourigh Tropen",{"$f":"SLOOKUP(G90,A:A,A:A)","v":""},{"$f":"LLOOKUP(G90,A:A,A:A)","v":"Traurige Tropen"},"Tsourigh Troptn","Tsburigh Troptn",{"$f":"SLOOKUP(K90,A:A,A:A)","v":""},{"$f":"LLOOKUP(K90,A:A,A:A)","v":""}]
["Trilogie: Sexus, Plexus und Nexus","Trilvgie: Sexus, Plexus und Nexus","Trilvgie: Sexus, wlexus und Nexus",{"$f":"SLOOKUP(C91,A:A,A:A)","v":"Trilogie: Sexus, Plexus und Nexus"},{"$f":"LLOOKUP(C91,A:A,A:A)","v":"Trilogie: Sexus, Plexus und Nexus"},"Trilvgie: Sexus, wlebus und Nexus","Trilvgie: Sexusf wlebus und Nexus",{"$f":"SLOOKUP(G91,A:A,A:A)","v":""},{"$f":"LLOOKUP(G91,A:A,A:A)","v":"Trilogie: Sexus, Plexus und Nexus"},"Trilvgie: Sebusf wlebus und Nexus","Trzlvgie: Sebusf wlebus und Nexus",{"$f":"SLOOKUP(K91,A:A,A:A)","v":""},{"$f":"LLOOKUP(K91,A:A,A:A)","v":"Trilogie: Sexus, Plexus und Nexus"}]
["Tropismen","Trohismen","grohismen",{"$f":"SLOOKUP(C92,A:A,A:A)","v":""},{"$f":"LLOOKUP(C92,A:A,A:A)","v":"Tropismen"},"vrohismen","vrvhismen",{"$f":"SLOOKUP(G92,A:A,A:A)","v":""},{"$f":"LLOOKUP(G92,A:A,A:A)","v":""},"vrvhismed","trvhismed",{"$f":"SLOOKUP(K92,A:A,A:A)","v":""},{"$f":"LLOOKUP(K92,A:A,A:A)","v":""}]
["Ulysses","Ulysves","Ulynves",{"$f":"SLOOKUP(C93,A:A,A:A)","v":""},{"$f":"LLOOKUP(C93,A:A,A:A)","v":""},"Ulynvos","Ulynzos",{"$f":"SLOOKUP(G93,A:A,A:A)","v":""},{"$f":"LLOOKUP(G93,A:A,A:A)","v":""},"qlynzos","qlynbos",{"$f":"SLOOKUP(K93,A:A,A:A)","v":""},{"$f":"LLOOKUP(K93,A:A,A:A)","v":""}]
["Unter dem Vulkan","Unter dem Vulkap","Unter dem Vulkap",{"$f":"SLOOKUP(C94,A:A,A:A)","v":"Unter dem Vulkan"},{"$f":"LLOOKUP(C94,A:A,A:A)","v":"Unter dem Vulkan"},"Unteredem Vulkap","Unteredem Vhlkap",{"$f":"SLOOKUP(G94,A:A,A:A)","v":""},{"$f":"LLOOKUP(G94,A:A,A:A)","v":"Unter dem Vulkan"},"Unteredem Vhlkan","Unteredem Vhlsan",{"$f":"SLOOKUP(K94,A:A,A:A)","v":""},{"$f":"LLOOKUP(K94,A:A,A:A)","v":"Unter dem Vulkan"}]
["Unterwegs","Uoterwegs","koterwegs",{"$f":"SLOOKUP(C95,A:A,A:A)","v":""},{"$f":"LLOOKUP(C95,A:A,A:A)","v":"Unterwegs"},"koteroegs","kotmroegs",{"$f":"SLOOKUP(G95,A:A,A:A)","v":""},{"$f":"LLOOKUP(G95,A:A,A:A)","v":""},"kotmroggs","kotmrxggs",{"$f":"SLOOKUP(K95,A:A,A:A)","v":""},{"$f":"LLOOKUP(K95,A:A,A:A)","v":""}]
["Verwirrung der Gefühle","Vergirrung der Gefühle","Vjrgirrung der Gefühle",{"$f":"SLOOKUP(C96,A:A,A:A)","v":"Verwirrung der Gefühle"},{"$f":"LLOOKUP(C96,A:A,A:A)","v":"Verwirrung der Gefühle"},"Vjrgirrujg der Gefühle","Vsrgirrujg der Gefühle",{"$f":"SLOOKUP(G96,A:A,A:A)","v":"Verwirrung der Gefühle"},{"$f":"LLOOKUP(G96,A:A,A:A)","v":"Verwirrung der Gefühle"},"Vsrgirruju der Gefühle","Vsrgirrujr der Gefühle",{"$f":"SLOOKUP(K96,A:A,A:A)","v":""},{"$f":"LLOOKUP(K96,A:A,A:A)","v":"Verwirrung der Gefühle"}]
["Vom Winde verweht","Vom Winde verfeht","Vom Winds verfeht",{"$f":"SLOOKUP(C97,A:A,A:A)","v":""},{"$f":"LLOOKUP(C97,A:A,A:A)","v":"Vom Winde verweht"},"Vom Windsmverfeht","Vom Wintsmverfeht",{"$f":"SLOOKUP(G97,A:A,A:A)","v":""},{"$f":"LLOOKUP(G97,A:A,A:A)","v":"Vom Winde verweht"},"Vom Wintsmverfehm","Vom Wsntsmverfehm",{"$f":"SLOOKUP(K97,A:A,A:A)","v":""},{"$f":"LLOOKUP(K97,A:A,A:A)","v":""}]
["Warten auf Godot","Warten auf Godjt","Warten auf Godjt",{"$f":"SLOOKUP(C98,A:A,A:A)","v":"Warten auf Godot"},{"$f":"LLOOKUP(C98,A:A,A:A)","v":"Warten auf Godot"},"Warcen auf Godjt","Warcen auf Godjk",{"$f":"SLOOKUP(G98,A:A,A:A)","v":"Warten auf Godot"},{"$f":"LLOOKUP(G98,A:A,A:A)","v":"Warten auf Godot"},"Warcen auf Godjm","Warcen auf Gddjm",{"$f":"SLOOKUP(K98,A:A,A:A)","v":""},{"$f":"LLOOKUP(K98,A:A,A:A)","v":"Warten auf Godot"}]
["Wem die Stunde schlägt","Wem die Stunde scglägt","Wem die stunde scglägt",{"$f":"SLOOKUP(C99,A:A,A:A)","v":"Wem die Stunde schlägt"},{"$f":"LLOOKUP(C99,A:A,A:A)","v":"Wem die Stunde schlägt"},"Wem die stujde scglägt","Wem die stujde scguägt",{"$f":"SLOOKUP(G99,A:A,A:A)","v":""},{"$f":"LLOOKUP(G99,A:A,A:A)","v":"Wem die Stunde schlägt"},"Wem die stujde shguägt","Wem die stujde shguägt",{"$f":"SLOOKUP(K99,A:A,A:A)","v":""},{"$f":"LLOOKUP(K99,A:A,A:A)","v":"Wem die Stunde schlägt"}]
["Zazie in der Metro","Zazieyin der Metro","Zazieyil der Metro",{"$f":"SLOOKUP(C100,A:A,A:A)","v":"Zazie in der Metro"},{"$f":"LLOOKUP(C100,A:A,A:A)","v":"Zazie in der Metro"},"Zazieyil ded Metro","Zazieyil dedkMetro",{"$f":"SLOOKUP(G100,A:A,A:A)","v":""},{"$f":"LLOOKUP(G100,A:A,A:A)","v":"Zazie in der Metro"},"Zazieyil dedlMetro","Zaziqyil dedlMetro",{"$f":"SLOOKUP(K100,A:A,A:A)","v":""},{"$f":"LLOOKUP(K100,A:A,A:A)","v":""}]
["Zigeunerromanzen","Zigeuneoromanzen","Zigeunexromanzen",{"$f":"SLOOKUP(C101,A:A,A:A)","v":"Zigeunerromanzen"},{"$f":"LLOOKUP(C101,A:A,A:A)","v":"Zigeunerromanzen"},"Zigxunexromanzen","Zigxuneiromanzen",{"$f":"SLOOKUP(G101,A:A,A:A)","v":"Zigeunerromanzen"},{"$f":"LLOOKUP(G101,A:A,A:A)","v":"Zigeunerromanzen"},"Zigxuneiromaneen","Zigxuneiromsneen",{"$f":"SLOOKUP(K101,A:A,A:A)","v":""},{"$f":"LLOOKUP(K101,A:A,A:A)","v":"Zigeunerromanzen"}]

{"sheet":"Example5","index":5,"n_rows":101,"n_cols":15,"rows_kept":101,"cut":false,"hidden":false,"merged":[]}
["Titel1","Noise1","Noise2","=SLOOKUP(C1,A:A,A:A,0.5)","=LLOOKUP(C1,A:A,A:A,0.5)","Noise3","Noise4","=SLOOKUP(G1,A:A,A:A,0.5)","=SLOOKUP(G1,A:A,A:A,0.5)","Noise5","Noise5","=SLOOKUP(K1,A:A,A:A,0.5)","=SLOOKUP(K1,A:A,A:A,0.5)"]
["1984",{"$f":"REPLACE(A2,RANDBETWEEN(1,LEN(A2)),1,CHAR(RANDBETWEEN(97,122)))","v":"1m84"},{"$f":"REPLACE(B2,RANDBETWEEN(1,LEN(B2)),1,CHAR(RANDBETWEEN(97,122)))","v":"1mf4"},{"$f":"SLOOKUP(C2,A:A,A:A,0.5)","v":""},{"$f":"LLOOKUP(C2,A:A,A:A,0.5)","v":"1984"},{"$f":"REPLACE(C2,RANDBETWEEN(1,LEN(C2)),1,CHAR(RANDBETWEEN(97,122)))","v":"wmf4"},{"$f":"REPLACE(F2,RANDBETWEEN(1,LEN(F2)),1,CHAR(RANDBETWEEN(97,122)))","v":"omf4"},{"$f":"SLOOKUP(G2,A:A,A:A,0.5)","v":""},{"$f":"LLOOKUP(G2,A:A,A:A,0.5)","v":"Paris-Rom oder Die Modifikation"},{"$f":"REPLACE(G2,RANDBETWEEN(1,LEN(G2)),1,CHAR(RANDBETWEEN(97,122)))","v":"smf4"},{"$f":"REPLACE(J2,RANDBETWEEN(1,LEN(J2)),1,CHAR(RANDBETWEEN(97,122)))","v":"smy4"},{"$f":"SLOOKUP(K2,A:A,A:A,0.5)","v":""},{"$f":"LLOOKUP(K2,A:A,A:A,0.5)","v":"Das Ufer der Syrten"},null,"Example 5 reduced the threshold to 0.5 "]
["Alibi","flibi","llibi",{"$f":"SLOOKUP(C3,A:A,A:A,0.5)","v":"Alibi"},{"$f":"LLOOKUP(C3,A:A,A:A,0.5)","v":"Alibi"},"clibi","olibi",{"$f":"SLOOKUP(G3,A:A,A:A,0.5)","v":"Alibi"},{"$f":"LLOOKUP(G3,A:A,A:A,0.5)","v":"Alibi"},"olzbi","olzti",{"$f":"SLOOKUP(K3,A:A,A:A,0.5)","v":""},{"$f":"LLOOKUP(K3,A:A,A:A,0.5)","v":"Die Abenteuer von Blake und Mortimer"},null,"You get more results and they seem still correct"]
["Alkohol","Alkoeol","Alkoqol",{"$f":"SLOOKUP(C4,A:A,A:A,0.5)","v":"Alkohol"},{"$f":"LLOOKUP(C4,A:A,A:A,0.5)","v":"Alkohol"},"Alkoqon","Aykoqon",{"$f":"SLOOKUP(G4,A:A,A:A,0.5)","v":""},{"$f":"LLOOKUP(G4,A:A,A:A,0.5)","v":"Alkohol"},"Aykkqon","Aykkqon",{"$f":"SLOOKUP(K4,A:A,A:A,0.5)","v":""},{"$f":"LLOOKUP(K4,A:A,A:A,0.5)","v":""}]
["Am Nullpunkt der Literatur","Am Nullpunkz der Literatur","lm Nullpunkz der Literatur",{"$f":"SLOOKUP(C5,A:A,A:A,0.5)","v":"Am Nullpunkt der Literatur"},{"$f":"LLOOKUP(C5,A:A,A:A,0.5)","v":"Am Nullpunkt der Literatur"},"lm Nkllpunkz der Literatur","lm Nkllpunkz der Litiratur",{"$f":"SLOOKUP(G5,A:A,A:A,0.5)","v":"Am Nullpunkt der Literatur"},{"$f":"LLOOKUP(G5,A:A,A:A,0.5)","v":"Am Nullpunkt der Literatur"},"Am Nullpunkt der Literatur","Am Nullpunkt der Literatur",{"$f":"SLOOKUP(K5,A:A,A:A,0.5)","v":"Am Nullpunkt der Literatur"},{"$f":"LLOOKUP(K5,A:A,A:A,0.5)","v":"Am Nullpunkt der Literatur"}]
["Asterix der Gallier","Asterix der Gmllier","Asterix der Gmllker",{"$f":"SLOOKUP(C6,A:A,A:A,0.5)","v":"Asterix der Gallier"},{"$f":"LLOOKUP(C6,A:A,A:A,0.5)","v":"Asterix der Gallier"},"Asterix der Gmllker","Asterix der Gpllker",{"$f":"SLOOKUP(G6,A:A,A:A,0.5)","v":"Asterix der Gallier"},{"$f":"LLOOKUP(G6,A:A,A:A,0.5)","v":"Asterix der Gallier"},"Asterix der Gallier","Asterix der Gallier",{"$f":"SLOOKUP(K6,A:A,A:A,0.5)","v":"Asterix der Gallier"},{"$f":"LLOOKUP(K6,A:A,A:A,0.5)","v":"Asterix der Gallier"}]
["Auf der Suche nach der verlorenen Zeit","Auf der Suche nach der verlorentn Zeit","Auf der Suche nach det verlorentn Zeit",{"$f":"SLOOKUP(C7,A:A,A:A,0.5)","v":"Auf der Suche nach der verlorenen Zeit"},{"$f":"LLOOKUP(C7,A:A,A:A,0.5)","v":"Auf der Suche nach der verlorenen Zeit"},"Auf der Suche nach detlverlorentn Zeit","Auf der Suche nach detlverlorentnuZeit",{"$f":"SLOOKUP(G7,A:A,A:A,0.5)","v":"Auf der Suche nach der verlorenen Zeit"},{"$f":"LLOOKUP(G7,A:A,A:A,0.5)","v":"Auf der Suche nach der verlorenen Zeit"},"Auf der Suche nach der verlorenen Zeit","Auf der Suche nach der verlorenen Zeit",{"$f":"SLOOKUP(K7,A:A,A:A,0.5)","v":"Auf der Suche nach der verlorenen Zeit"},{"$f":"LLOOKUP(K7,A:A,A:A,0.5)","v":"Auf der Suche nach der verlorenen Zeit"}]
["Aurélien","Auréliei","Alréliei",{"$f":"SLOOKUP(C8,A:A,A:A,0.5)","v":"Aurélien"},{"$f":"LLOOKUP(C8,A:A,A:A,0.5)","v":"Aurélien"},"Alréliei","Alrwliei",{"$f":"SLOOKUP(G8,A:A,A:A,0.5)","v":"Aurélien"},{"$f":"LLOOKUP(G8,A:A,A:A,0.5)","v":"Asterix der Gallier"},"Aurélien","Aurélien",{"$f":"SLOOKUP(K8,A:A,A:A,0.5)","v":"Aurélien"},{"$f":"LLOOKUP(K8,A:A,A:A,0.5)","v":"Aurélien"}]
["Bonjour tristesse","Bonjour tristdsse","Bonjour tristdsme",{"$f":"SLOOKUP(C9,A:A,A:A,0.5)","v":"Bonjour tristesse"},{"$f":"LLOOKUP(C9,A:A,A:A,0.5)","v":"Bonjour tristesse"},"Bonjour triutdsme","Bontour triutdsme",{"$f":"SLOOKUP(G9,A:A,A:A,0.5)","v":"Bonjour tristesse"},{"$f":"LLOOKUP(G9,A:A,A:A,0.5)","v":"Bonjour tristesse"},"Bonjour tristesse","Bonjour tristesse",{"$f":"SLOOKUP(K9,A:A,A:A,0.5)","v":"Bonjour tristesse"},{"$f":"LLOOKUP(K9,A:A,A:A,0.5)","v":"Bonjour tristesse"}]
["Das andere Geschlecht","Das andere Gesvhlecht","eas andere Gesvhlecht",{"$f":"SLOOKUP(C10,A:A,A:A,0.5)","v":"Das andere Geschlecht"},{"$f":"LLOOKUP(C10,A:A,A:A,0.5)","v":"Das andere Geschlecht"},"eas andere Gesvhlecgt","eas anderj Gesvhlecgt",{"$f":"SLOOKUP(G10,A:A,A:A,0.5)","v":"Das andere Geschlecht"},{"$f":"LLOOKUP(G10,A:A,A:A,0.5)","v":"Das andere Geschlecht"},"Das andere Geschlecht","Das andere Geschlecht",{"$f":"SLOOKUP(K10,A:A,A:A,0.5)","v":"Das andere Geschlecht"},{"$f":"LLOOKUP(K10,A:A,A:A,0.5)","v":"Das andere Geschlecht"}]
["Das Leben Gebrauchsanweisung","Das Lebpn Gebrauchsanweisung","Das Lkbpn Gebrauchsanweisung",{"$f":"SLOOKUP(C11,A:A,A:A,0.5)","v":"Das Leben Gebrauchsanweisung"},{"$f":"LLOOKUP(C11,A:A,A:A,0.5)","v":"Das Leben Gebrauchsanweisung"},"Das Lkbpn Gpbrauchsanweisung","Das Lkbpn Gpbrauchsanwoisung",{"$f":"SLOOKUP(G11,A:A,A:A,0.5)","v":"Das Leben Gebrauchsanweisung"},{"$f":"LLOOKUP(G11,A:A,A:A,0.5)","v":"Das Leben Gebrauchsanweisung"},"Das Leben Gebrauchsanweisung","Das Leben Gebrauchsanweisung",{"$f":"SLOOKUP(K11,A:A,A:A,0.5)","v":"Das Leben Gebrauchsanweisung"},{"$f":"LLOOKUP(K11,A:A,A:A,0.5)","v":"Das Leben Gebrauchsanweisung"}]
["Das Protokoll","Das Protokogl","Das Protekogl",{"$f":"SLOOKUP(C12,A:A,A:A,0.5)","v":"Das Protokoll"},{"$f":"LLOOKUP(C12,A:A,A:A,0.5)","v":"Das Protokoll"},"Das Protwkogl","Drs Protwkogl",{"$f":"SLOOKUP(G12,A:A,A:A,0.5)","v":"Das Protokoll"},{"$f":"LLOOKUP(G12,A:A,A:A,0.5)","v":"Das Protokoll"},"Das Protokoll","Das Protokoll",{"$f":"SLOOKUP(K12,A:A,A:A,0.5)","v":"Das Protokoll"},{"$f":"LLOOKUP(K12,A:A,A:A,0.5)","v":"Das Protokoll"}]
["Das Schweigen des Meeres","Das Schweigen des Meires","Das Schweigen des Meirns",{"$f":"SLOOKUP(C13,A:A,A:A,0.5)","v":"Das Schweigen des Meeres"},{"$f":"LLOOKUP(C13,A:A,A:A,0.5)","v":"Das Schweigen des Meeres"},"Dgs Schweigen des Meirns","Dgs Scqweigen des Meirns",{"$f":"SLOOKUP(G13,A:A,A:A,0.5)","v":"Das Schweigen des Meeres"},{"$f":"LLOOKUP(G13,A:A,A:A,0.5)","v":"Das Schweigen des Meeres"},"Das Schweigen des Meeres","Das Schweigen des Meeres",{"$f":"SLOOKUP(K13,A:A,A:A,0.5)","v":"Das Schweigen des Meeres"},{"$f":"LLOOKUP(K13,A:A,A:A,0.5)","v":"Das Schweigen des Meeres"}]
["Das Sein und das Nichts","Dus Sein und das Nichts","Dus Sein und dah Nichts",{"$f":"SLOOKUP(C14,A:A,A:A,0.5)","v":"Das Sein und das Nichts"},{"$f":"LLOOKUP(C14,A:A,A:A,0.5)","v":"Das Sein und das Nichts"},"Dus Sein und dae Nichts","Dus Sein und dae Nizhts",{"$f":"SLOOKUP(G14,A:A,A:A,0.5)","v":"Das Sein und das Nichts"},{"$f":"LLOOKUP(G14,A:A,A:A,0.5)","v":"Das Sein und das Nichts"},"Das Sein und das Nichts","Das Sein und das Nichts",{"$f":"SLOOKUP(K14,A:A,A:A,0.5)","v":"Das Sein und das Nichts"},{"$f":"LLOOKUP(K14,A:A,A:A,0.5)","v":"Das Sein und das Nichts"}]
["Das Theater und sein Double","Das Theater und sein bouble","Das Theater pnd sein bouble",{"$f":"SLOOKUP(C15,A:A,A:A,0.5)","v":"Das Theater und sein Double"},{"$f":"LLOOKUP(C15,A:A,A:A,0.5)","v":"Das Theater und sein Double"},"Das Theater pnd sein bouvle","Das Theater pnd sein bouvll",{"$f":"SLOOKUP(G15,A:A,A:A,0.5)","v":"Das Theater und sein Double"},{"$f":"LLOOKUP(G15,A:A,A:A,0.5)","v":"Das Theater und sein Double"},"Das Theater und sein Double","Das Theater und sein Double",{"$f":"SLOOKUP(K15,A:A,A:A,0.5)","v":"Das Theater und sein Double"},{"$f":"LLOOKUP(K15,A:A,A:A,0.5)","v":"Das Theater und sein Double"}]
["Das Ufer der Syrten","Das Ufer der Syrten","Das Ufcr der Syrten",{"$f":"SLOOKUP(C16,A:A,A:A,0.5)","v":"Das Ufer der Syrten"},{"$f":"LLOOKUP(C16,A:A,A:A,0.5)","v":"Das Ufer der Syrten"},"Das Ufcr deriSyrten","Das Uycr deriSyrten",{"$f":"SLOOKUP(G16,A:A,A:A,0.5)","v":"Das Ufer der Syrten"},{"$f":"LLOOKUP(G16,A:A,A:A,0.5)","v":"Das Ufer der Syrten"},"Das Ufer der Syrten","Das Ufer der Syrten",{"$f":"SLOOKUP(K16,A:A,A:A,0.5)","v":"Das Ufer der Syrten"},{"$f":"LLOOKUP(K16,A:A,A:A,0.5)","v":"Das Ufer der Syrten"}]
["Der Archipel Gulag","Der Arcgipel Gulag","Der Arcgipel Gulbg",{"$f":"SLOOKUP(C17,A:A,A:A,0.5)","v":"Der Archipel Gulag"},{"$f":"LLOOKUP(C17,A:A,A:A,0.5)","v":"Der Archipel Gulag"},"Dcr Arcgipel Gulbg","Dcr ArcgipeljGulbg",{"$f":"SLOOKUP(G17,A:A,A:A,0.5)","v":"Der Archipel Gulag"},{"$f":"LLOOKUP(G17,A:A,A:A,0.5)","v":"Der Archipel Gulag"},"Der Archipel Gulag","Der Archipel Gulag",{"$f":"SLOOKUP(K17,A:A,A:A,0.5)","v":"Der Archipel Gulag"},{"$f":"LLOOKUP(K17,A:A,A:A,0.5)","v":"Der Archipel Gulag"}]
["Der aufhaltsame Aufstieg des Arturo Ui","Der aufhaltsame Aufstieg dks Arturo Ui","mer aufhaltsame Aufstieg dks Arturo Ui",{"$f":"SLOOKUP(C18,A:A,A:A,0.5)","v":"Der aufhaltsame Aufstieg des Arturo Ui"},{"$f":"LLOOKUP(C18,A:A,A:A,0.5)","v":"Der aufhaltsame Aufstieg des Arturo Ui"},"mer aufhaltsame Aufstizg dks Arturo Ui","mer aufhaltsame Aufotizg dks Arturo Ui",{"$f":"SLOOKUP(G18,A:A,A:A,0.5)","v":"Der aufhaltsame Aufstieg des Arturo Ui"},{"$f":"LLOOKUP(G18,A:A,A:A,0.5)","v":"Der aufhaltsame Aufstieg des Arturo Ui"},"Der aufhaltsame Aufstieg des Arturo Ui","Der aufhaltsame Aufstieg des Arturo Ui",{"$f":"SLOOKUP(K18,A:A,A:A,0.5)","v":"Der aufhaltsame Aufstieg des Arturo Ui"},{"$f":"LLOOKUP(K18,A:A,A:A,0.5)","v":"Der aufhaltsame Aufstieg des Arturo Ui"}]
["Der Blaue Lotos","Der Blaue wotos","Der Blame wotos",{"$f":"SLOOKUP(C19,A:A,A:A,0.5)","v":"Der Blaue Lotos"},{"$f":"LLOOKUP(C19,A:A,A:A,0.5)","v":"Der Blaue Lotos"},"Der zlame wotos","Der zlamg wotos",{"$f":"SLOOKUP(G19,A:A,A:A,0.5)","v":"Der Blaue Lotos"},{"$f":"LLOOKUP(G19,A:A,A:A,0.5)","v":"Der Blaue Lotos"},"Der Blaue Lotos","Der Blaue Lotos",{"$f":"SLOOKUP(K19,A:A,A:A,0.5)","v":"Der Blaue Lotos"},{"$f":"LLOOKUP(K19,A:A,A:A,0.5)","v":"Der Blaue Lotos"}]
["Der Fänger im Roggen","Der Fänger im Roggen","Der Fänger ig Roggen",{"$f":"SLOOKUP(C20,A:A,A:A,0.5)","v":"Der Fänger im Roggen"},{"$f":"LLOOKUP(C20,A:A,A:A,0.5)","v":"Der Fänger im Roggen"},"Der Fänger ig ooggen","Der Fänger ig oogger",{"$f":"SLOOKUP(G20,A:A,A:A,0.5)","v":"Der Fänger im Roggen"},{"$f":"LLOOKUP(G20,A:A,A:A,0.5)","v":"Der Fänger im Roggen"},"Der Fänger im Roggen","Der Fänger im Roggen",{"$f":"SLOOKUP(K20,A:A,A:A,0.5)","v":"Der Fänger im Roggen"},{"$f":"LLOOKUP(K20,A:A,A:A,0.5)","v":"Der Fänger im Roggen"}]
["Der Fremde","Der Feemde","Der Fepmde",{"$f":"SLOOKUP(C21,A:A,A:A,0.5)","v":"Der Fremde"},{"$f":"LLOOKUP(C21,A:A,A:A,0.5)","v":"Der Fremde"},"Der eepmde","Der eeqmde",{"$f":"SLOOKUP(G21,A:A,A:A,0.5)","v":"Der seidene Schuh"},{"$f":"LLOOKUP(G21,A:A,A:A,0.5)","v":"Der Fremde"},"Der Fremde","Der Fremde",{"$f":"SLOOKUP(K21,A:A,A:A,0.5)","v":"Der Fremde"},{"$f":"LLOOKUP(K21,A:A,A:A,0.5)","v":"Der Fremde"}]
["Der General der toten Armee","Der General der totan Armee","Der General deritotan Armee",{"$f":"SLOOKUP(C22,A:A,A:A,0.5)","v":"Der General der toten Armee"},{"$f":"LLOOKUP(C22,A:A,A:A,0.5)","v":"Der General der toten Armee"},"Der General deretotan Armee","Der Gsneral deretotan Armee",{"$f":"SLOOKUP(G22,A:A,A:A,0.5)","v":"Der General der toten Armee"},{"$f":"LLOOKUP(G22,A:A,A:A,0.5)","v":"Der General der toten Armee"},"Der General der toten Armee","Der General der toten Armee",{"$f":"SLOOKUP(K22,A:A,A:A,0.5)","v":"Der General der toten Armee"},{"$f":"LLOOKUP(K22,A:A,A:A,0.5)","v":"Der General der toten Armee"}]
["Der große Gatsby","Der große Gatsbl","Der groie Gatsbl",{"$f":"SLOOKUP(C23,A:A,A:A,0.5)","v":"Der große Gatsby"},{"$f":"LLOOKUP(C23,A:A,A:A,0.5)","v":"Der große Gatsby"},"Der groie Gajsbl","Der groie Gajwbl",{"$f":"SLOOKUP(G23,A:A,A:A,0.5)","v":"Der große Gatsby"},{"$f":"LLOOKUP(G23,A:A,A:A,0.5)","v":"Der große Gatsby"},"Der große Gatsby","Der große Gatsby",{"$f":"SLOOKUP(K23,A:A,A:A,0.5)","v":"Der große Gatsby"},{"$f":"LLOOKUP(K23,A:A,A:A,0.5)","v":"Der große Gatsby"}]
["Der große Meaulnes","Der große Meaulnus","mer große Meaulnus",{"$f":"SLOOKUP(C24,A:A,A:A,0.5)","v":"Der große Meaulnes"},{"$f":"LLOOKUP(C24,A:A,A:A,0.5)","v":"Der große Meaulnes"},"mer großemMeaulnus","mer großemMeaulnis",{"$f":"SLOOKUP(G24,A:A,A:A,0.5)","v":"Der große Meaulnes"},{"$f":"LLOOKUP(G24,A:A,A:A,0.5)","v":"Der große Meaulnes"},"Der große Meaulnes","Der große Meaulnes",{"$f":"SLOOKUP(K24,A:A,A:A,0.5)","v":"Der große Meaulnes"},{"$f":"LLOOKUP(K24,A:A,A:A,0.5)","v":"Der große Meaulnes"}]
["Der große Schlaf","Der großm Schlaf","Dep großm Schlaf",{"$f":"SLOOKUP(C25,A:A,A:A,0.5)","v":"Der große Schlaf"},{"$f":"LLOOKUP(C25,A:A,A:A,0.5)","v":"Der große Schlaf"},"Dep großm Schlap","Dep großm Schrap",{"$f":"SLOOKUP(G25,A:A,A:A,0.5)","v":"Der große Schlaf"},{"$f":"LLOOKUP(G25,A:A,A:A,0.5)","v":"Der große Schlaf"},"Der große Schlaf","Der große Schlaf",{"$f":"SLOOKUP(K25,A:A,A:A,0.5)","v":"Der große Schlaf"},{"$f":"LLOOKUP(K25,A:A,A:A,0.5)","v":"Der große Schlaf"}]
["Der Herr der Ringe","Der Herr dtr Ringe","Der Horr dtr Ringe",{"$f":"SLOOKUP(C26,A:A,A:A,0.5)","v":"Der Herr der Ringe"},{"$f":"LLOOKUP(C26,A:A,A:A,0.5)","v":"Der Herr der Ringe"},"Der Horr der Ringe","Der Hotr der Ringe",{"$f":"SLOOKUP(G26,A:A,A:A,0.5)","v":"Der Herr der Ringe"},{"$f":"LLOOKUP(G26,A:A,A:A,0.5)","v":"Der Herr der Ringe"},"Der Herr der Ringe","Der Herr der Ringe",{"$f":"SLOOKUP(K26,A:A,A:A,0.5)","v":"Der Herr der Ringe"},{"$f":"LLOOKUP(K26,A:A,A:A,0.5)","v":"Der Herr der Ringe"}]
["Der Hund von Baskerville","Der Hxnd von Baskerville","Der Hxnd von Basierville",{"$f":"SLOOKUP(C27,A:A,A:A,0.5)","v":"Der Hund von Baskerville"},{"$f":"LLOOKUP(C27,A:A,A:A,0.5)","v":"Der Hund von Baskerville"},"Der Hxhd von Basierville","Der Hxhd hon Basierville",{"$f":"SLOOKUP(G27,A:A,A:A,0.5)","v":"Der Hund von Baskerville"},{"$f":"LLOOKUP(G27,A:A,A:A,0.5)","v":"Der Hund von Baskerville"},"Der Hund von Baskerville","Der Hund von Baskerville",{"$f":"SLOOKUP(K27,A:A,A:A,0.5)","v":"Der Hund von Baskerville"},{"$f":"LLOOKUP(K27,A:A,A:A,0.5)","v":"Der Hund von Baskerville"}]
["Der Husar auf dem Dach","Der Husar auf demmDach","Der Husar auf demmkach",{"$f":"SLOOKUP(C28,A:A,A:A,0.5)","v":"Der Husar auf dem Dach"},{"$f":"LLOOKUP(C28,A:A,A:A,0.5)","v":"Der Husar auf dem Dach"},"Der Husartauf demmkach","Der Husartauf dempkach",{"$f":"SLOOKUP(G28,A:A,A:A,0.5)","v":"Der Husar auf dem Dach"},{"$f":"LLOOKUP(G28,A:A,A:A,0.5)","v":"Der Husar auf dem Dach"},"Der Husar auf dem Dach","Der Husar auf dem Dach",{"$f":"SLOOKUP(K28,A:A,A:A,0.5)","v":"Der Husar auf dem Dach"},{"$f":"LLOOKUP(K28,A:A,A:A,0.5)","v":"Der Husar auf dem Dach"}]
["Der kleine Prinz","Der klvine Prinz","Der klvone Prinz",{"$f":"SLOOKUP(C29,A:A,A:A,0.5)","v":"Der kleine Prinz"},{"$f":"LLOOKUP(C29,A:A,A:A,0.5)","v":"Der kleine Prinz"},"Der qlvone Prinz","Der qlvtne Prinz",{"$f":"SLOOKUP(G29,A:A,A:A,0.5)","v":"Der kleine Prinz"},{"$f":"LLOOKUP(G29,A:A,A:A,0.5)","v":"Der kleine Prinz"},"Der kleine Prinz","Der kleine Prinz",{"$f":"SLOOKUP(K29,A:A,A:A,0.5)","v":"Der kleine Prinz"},{"$f":"LLOOKUP(K29,A:A,A:A,0.5)","v":"Der kleine Prinz"}]
["Der Krieg der Welten","Der Krieg der Weltpn","Der Krieg der Welbpn",{"$f":"SLOOKUP(C30,A:A,A:A,0.5)","v":"Der Krieg der Welten"},{"$f":"LLOOKUP(C30,A:A,A:A,0.5)","v":"Der Krieg der Welten"},"Der Krieg dfr Welbpn","Der Krieg dfr Welbrn",{"$f":"SLOOKUP(G30,A:A,A:A,0.5)","v":"Der Krieg der Welten"},{"$f":"LLOOKUP(G30,A:A,A:A,0.5)","v":"Der Krieg der Welten"},"Der Krieg der Welten","Der Krieg der Welten",{"$f":"SLOOKUP(K30,A:A,A:A,0.5)","v":"Der Krieg der Welten"},{"$f":"LLOOKUP(K30,A:A,A:A,0.5)","v":"Der Krieg der Welten"}]
["Der Mann ohne Eigenschaften","Der Mane ohne Eigenschaften","Der Mane ohne Eiglnschaften",{"$f":"SLOOKUP(C31,A:A,A:A,0.5)","v":"Der Mann ohne Eigenschaften"},{"$f":"LLOOKUP(C31,A:A,A:A,0.5)","v":"Der Mann ohne Eigenschaften"},"Der Mane ohne Eiglnschaften","Der Mane ohne ciglnschaften",{"$f":"SLOOKUP(G31,A:A,A:A,0.5)","v":"Der Mann ohne Eigenschaften"},{"$f":"LLOOKUP(G31,A:A,A:A,0.5)","v":"Der Mann ohne Eigenschaften"},"Der Mann ohne Eigenschaften","Der Mann ohne Eigenschaften",{"$f":"SLOOKUP(K31,A:A,A:A,0.5)","v":"Der Mann ohne Eigenschaften"},{"$f":"LLOOKUP(K31,A:A,A:A,0.5)","v":"Der Mann ohne Eigenschaften"}]
["Der Meister und Margarita","Der Meifter und Margarita","Der Meifter uud Margarita",{"$f":"SLOOKUP(C32,A:A,A:A,0.5)","v":"Der Meister und Margarita"},{"$f":"LLOOKUP(C32,A:A,A:A,0.5)","v":"Der Meister und Margarita"},"Der Meifter uud Margahita","Der Meifter uud qargahita",{"$f":"SLOOKUP(G32,A:A,A:A,0.5)","v":"Der Meister und Margarita"},{"$f":"LLOOKUP(G32,A:A,A:A,0.5)","v":"Der Meister und Margarita"},"Der Meister und Margarita","Der Meister und Margarita",{"$f":"SLOOKUP(K32,A:A,A:A,0.5)","v":"Der Meister und Margarita"},{"$f":"LLOOKUP(K32,A:A,A:A,0.5)","v":"Der Meister und Margarita"}]
["Der Name der Rose","Der Name dqr Rose","DerwName dqr Rose",{"$f":"SLOOKUP(C33,A:A,A:A,0.5)","v":"Der Name der Rose"},{"$f":"LLOOKUP(C33,A:A,A:A,0.5)","v":"Der Name der Rose"},"DerwName dpr Rose","DerwNjme dpr Rose",{"$f":"SLOOKUP(G33,A:A,A:A,0.5)","v":"Der Name der Rose"},{"$f":"LLOOKUP(G33,A:A,A:A,0.5)","v":"Der Name der Rose"},"Der Name der Rose","Der Name der Rose",{"$f":"SLOOKUP(K33,A:A,A:A,0.5)","v":"Der Name der Rose"},{"$f":"LLOOKUP(K33,A:A,A:A,0.5)","v":"Der Name der Rose"}]
["Der Prozess","Der Prozesr","Der Phozesr",{"$f":"SLOOKUP(C34,A:A,A:A,0.5)","v":"Der Prozess"},{"$f":"LLOOKUP(C34,A:A,A:A,0.5)","v":"Der Prozess"},"Der Peozesr","Der Peozemr",{"$f":"SLOOKUP(G34,A:A,A:A,0.5)","v":"Der Prozess"},{"$f":"LLOOKUP(G34,A:A,A:A,0.5)","v":"Der Prozess"},"Der Prozess","Der Prozess",{"$f":"SLOOKUP(K34,A:A,A:A,0.5)","v":"Der Prozess"},{"$f":"LLOOKUP(K34,A:A,A:A,0.5)","v":"Der Prozess"}]
["Der Schaum der Tage","Der Schanm der Tage","Der Schanm deu Tage",{"$f":"SLOOKUP(C35,A:A,A:A,0.5)","v":"Der Schaum der Tage"},{"$f":"LLOOKUP(C35,A:A,A:A,0.5)","v":"Der Schaum der Tage"},"Der Schvnm deu Tage","Der Schvnm deukTage",{"$f":"SLOOKUP(G35,A:A,A:A,0.5)","v":"Der Schaum der Tage"},{"$f":"LLOOKUP(G35,A:A,A:A,0.5)","v":"Der Schaum der Tage"},"Der Schaum der Tage","Der Schaum der Tage",{"$f":"SLOOKUP(K35,A:A,A:A,0.5)","v":"Der Schaum der Tage"},{"$f":"LLOOKUP(K35,A:A,A:A,0.5)","v":"Der Schaum der Tage"}]
["Der Scherz","Der Scherb","Der Scherj",{"$f":"SLOOKUP(C36,A:A,A:A,0.5)","v":"Der Scherz"},{"$f":"LLOOKUP(C36,A:A,A:A,0.5)","v":"Der Scherz"},"Der vcherj","Derpvcherj",{"$f":"SLOOKUP(G36,A:A,A:A,0.5)","v":"Der Scherz"},{"$f":"LLOOKUP(G36,A:A,A:A,0.5)","v":"Der Scherz"},"Der Scherz","Der Scherz",{"$f":"SLOOKUP(K36,A:A,A:A,0.5)","v":"Der Scherz"},{"$f":"LLOOKUP(K36,A:A,A:A,0.5)","v":"Der Scherz"}]
["Der seidene Schuh","Deo seidene Schuh","Deo seidese Schuh",{"$f":"SLOOKUP(C37,A:A,A:A,0.5)","v":"Der seidene Schuh"},{"$f":"LLOOKUP(C37,A:A,A:A,0.5)","v":"Der seidene Schuh"},"Deo seidese Scyuh","Deo serdese Scyuh",{"$f":"SLOOKUP(G37,A:A,A:A,0.5)","v":"Der seidene Schuh"},{"$f":"LLOOKUP(G37,A:A,A:A,0.5)","v":"Der seidene Schuh"},"Der Scherz","Der Scherz",{"$f":"SLOOKUP(K37,A:A,A:A,0.5)","v":"Der Scherz"},{"$f":"LLOOKUP(K37,A:A,A:A,0.5)","v":"Der Scherz"}]
["Der Zauberberg","Der Zapberberg","Der Zapblrberg",{"$f":"SLOOKUP(C38,A:A,A:A,0.5)","v":"Der Zauberberg"},{"$f":"LLOOKUP(C38,A:A,A:A,0.5)","v":"Der Zauberberg"},"Der aapblrberg","Der aapblrberg",{"$f":"SLOOKUP(G38,A:A,A:A,0.5)","v":"Der Zauberberg"},{"$f":"LLOOKUP(G38,A:A,A:A,0.5)","v":"Der Zauberberg"},"Der Zauberberg","Der Zauberberg",{"$f":"SLOOKUP(K38,A:A,A:A,0.5)","v":"Der Zauberberg"},{"$f":"LLOOKUP(K38,A:A,A:A,0.5)","v":"Der Zauberberg"}]
["Die Abenteuer von Blake und Mortimer","Die Abenteuer von Blakk und Mortimer","Die Abenteuer von Blakk und Mxrtimer",{"$f":"SLOOKUP(C39,A:A,A:A,0.5)","v":"Die Abenteuer von Blake und Mortimer"},{"$f":"LLOOKUP(C39,A:A,A:A,0.5)","v":"Die Abenteuer von Blake und Mortimer"},"Die Abenteuerrvon Blakk und Mxrtimer","Die Abetteuerrvon Blakk und Mxrtimer",{"$f":"SLOOKUP(G39,A:A,A:A,0.5)","v":"Die Abenteuer von Blake und Mortimer"},{"$f":"LLOOKUP(G39,A:A,A:A,0.5)","v":"Die Abenteuer von Blake und Mortimer"},"Die Abenteuer von Blake und Mortimer","Die Abenteuer von Blake und Mortimer",{"$f":"SLOOKUP(K39,A:A,A:A,0.5)","v":"Die Abenteuer von Blake und Mortimer"},{"$f":"LLOOKUP(K39,A:A,A:A,0.5)","v":"Die Abenteuer von Blake und Mortimer"}]
["Die Aufzeichnungen des Malte Laurids Brigge","Die Aufzeichnungen des Malte jaurids Brigge","Die Aufzeichningen des Malte jaurids Brigge",{"$f":"SLOOKUP(C40,A:A,A:A,0.5)","v":"Die Aufzeichnungen des Malte Laurids Brigge"},{"$f":"LLOOKUP(C40,A:A,A:A,0.5)","v":"Die Aufzeichnungen des Malte Laurids Brigge"},"Die Aufzeichningen des Mplte jaurids Brigge","Die Aufzeichningen des Mplte jaugids Brigge",{"$f":"SLOOKUP(G40,A:A,A:A,0.5)","v":"Die Aufzeichnungen des Malte Laurids Brigge"},{"$f":"LLOOKUP(G40,A:A,A:A,0.5)","v":"Die Aufzeichnungen des Malte Laurids Brigge"},"Die Aufzeichnungen des Malte Laurids Brigge","Die Aufzeichnungen des Malte Laurids Brigge",{"$f":"SLOOKUP(K40,A:A,A:A,0.5)","v":"Die Aufzeichnungen des Malte Laurids Brigge"},{"$f":"LLOOKUP(K40,A:A,A:A,0.5)","v":"Die Aufzeichnungen des Malte Laurids Brigge"}]
["Die Falschmünzer","Dre Falschmünzer","Drm Falschmünzer",{"$f":"SLOOKUP(C41,A:A,A:A,0.5)","v":"Die Falschmünzer"},{"$f":"LLOOKUP(C41,A:A,A:A,0.5)","v":"Die Falschmünzer"},"Drm Falsckmünzer","Drm Falsckmünzew",{"$f":"SLOOKUP(G41,A:A,A:A,0.5)","v":"Die Falschmünzer"},{"$f":"LLOOKUP(G41,A:A,A:A,0.5)","v":"Die Falschmünzer"},"Die Falschmünzer","Die Falschmünzer",{"$f":"SLOOKUP(K41,A:A,A:A,0.5)","v":"Die Falschmünzer"},{"$f":"LLOOKUP(K41,A:A,A:A,0.5)","v":"Die Falschmünzer"}]
["Die kahle Sängerin","Die sahle Sängerin","Dae sahle Sängerin",{"$f":"SLOOKUP(C42,A:A,A:A,0.5)","v":"Die kahle Sängerin"},{"$f":"LLOOKUP(C42,A:A,A:A,0.5)","v":"Die kahle Sängerin"},"Dae sayle Sängerin","Dae aayle Sängerin",{"$f":"SLOOKUP(G42,A:A,A:A,0.5)","v":"Die kahle Sängerin"},{"$f":"LLOOKUP(G42,A:A,A:A,0.5)","v":"Die kahle Sängerin"},"Die kahle Sängerin","Die kahle Sängerin",{"$f":"SLOOKUP(K42,A:A,A:A,0.5)","v":"Die kahle Sängerin"},{"$f":"LLOOKUP(K42,A:A,A:A,0.5)","v":"Die kahle Sängerin"}]
["Die Mars-Chroniken","Die Marc-Chroniken","Die Marc-Chtoniken",{"$f":"SLOOKUP(C43,A:A,A:A,0.5)","v":"Die Mars-Chroniken"},{"$f":"LLOOKUP(C43,A:A,A:A,0.5)","v":"Die Mars-Chroniken"},"Die Marc-vhtoniken","Die oarc-vhtoniken",{"$f":"SLOOKUP(G43,A:A,A:A,0.5)","v":"Die Mars-Chroniken"},{"$f":"LLOOKUP(G43,A:A,A:A,0.5)","v":"Die Mars-Chroniken"},"Die Mars-Chroniken","Die Mars-Chroniken",{"$f":"SLOOKUP(K43,A:A,A:A,0.5)","v":"Die Mars-Chroniken"},{"$f":"LLOOKUP(K43,A:A,A:A,0.5)","v":"Die Mars-Chroniken"}]
["Die Ordnung der Dinge","Die Ordjung der Dinge","Die Ordjung der uinge",{"$f":"SLOOKUP(C44,A:A,A:A,0.5)","v":"Die Ordnung der Dinge"},{"$f":"LLOOKUP(C44,A:A,A:A,0.5)","v":"Die Ordnung der Dinge"},"Die Ordjung der uingm","Die Ordjung der uinim",{"$f":"SLOOKUP(G44,A:A,A:A,0.5)","v":"Die Ordnung der Dinge"},{"$f":"LLOOKUP(G44,A:A,A:A,0.5)","v":"Die Ordnung der Dinge"},"Die Ordnung der Dinge","Die Ordnung der Dinge",{"$f":"SLOOKUP(K44,A:A,A:A,0.5)","v":"Die Ordnung der Dinge"},{"$f":"LLOOKUP(K44,A:A,A:A,0.5)","v":"Die Ordnung der Dinge"}]
["Die Schöne des Herrn","Die Schöze des Herrn","Dae Schöze des Herrn",{"$f":"SLOOKUP(C45,A:A,A:A,0.5)","v":"Die Schöne des Herrn"},{"$f":"LLOOKUP(C45,A:A,A:A,0.5)","v":"Die Schöne des Herrn"},"Dae ychöze des Herrn","Dae ychöze des Heern",{"$f":"SLOOKUP(G45,A:A,A:A,0.5)","v":""},{"$f":"LLOOKUP(G45,A:A,A:A,0.5)","v":"Die Schöne des Herrn"},"Die Schöne des Herrn","Die Schöne des Herrn",{"$f":"SLOOKUP(K45,A:A,A:A,0.5)","v":"Die Schöne des Herrn"},{"$f":"LLOOKUP(K45,A:A,A:A,0.5)","v":"Die Schöne des Herrn"}]
["Die schwarze Flamme","Die schyarze Flamme","Die schyarze Fyamme",{"$f":"SLOOKUP(C46,A:A,A:A,0.5)","v":"Die schwarze Flamme"},{"$f":"LLOOKUP(C46,A:A,A:A,0.5)","v":"Die schwarze Flamme"},"fie schyarze Fyamme","fie schyarze Fyrmme",{"$f":"SLOOKUP(G46,A:A,A:A,0.5)","v":"Die schwarze Flamme"},{"$f":"LLOOKUP(G46,A:A,A:A,0.5)","v":"Die schwarze Flamme"},"Die schwarze Flamme","Die schwarze Flamme",{"$f":"SLOOKUP(K46,A:A,A:A,0.5)","v":"Die schwarze Flamme"},{"$f":"LLOOKUP(K46,A:A,A:A,0.5)","v":"Die schwarze Flamme"}]
["Die Sonne Satans","Die SonnewSatans","Dre SonnewSatans",{"$f":"SLOOKUP(C47,A:A,A:A,0.5)","v":"Die Sonne Satans"},{"$f":"LLOOKUP(C47,A:A,A:A,0.5)","v":"Die Sonne Satans"},"DrejSonnewSatans","DrejSonneaSatans",{"$f":"SLOOKUP(G47,A:A,A:A,0.5)","v":"Die Sonne Satans"},{"$f":"LLOOKUP(G47,A:A,A:A,0.5)","v":"Die Sonne Satans"},"Die Sonne Satans","Die Sonne Satans",{"$f":"SLOOKUP(K47,A:A,A:A,0.5)","v":"Die Sonne Satans"},{"$f":"LLOOKUP(K47,A:A,A:A,0.5)","v":"Die Sonne Satans"}]
["Die Tat der Thérèse Desqueyroux","Dye Tat der Thérèse Desqueyroux","Dye Tat der Tzérèse Desqueyroux",{"$f":"SLOOKUP(C48,A:A,A:A,0.5)","v":"Die Tat der Thérèse Desqueyroux"},{"$f":"LLOOKUP(C48,A:A,A:A,0.5)","v":"Die Tat der Thérèse Desqueyroux"},"pye Tat der Tzérèse Desqueyroux","pye Tat der Tzérène Desqueyroux",{"$f":"SLOOKUP(G48,A:A,A:A,0.5)","v":"Die Tat der Thérèse Desqueyroux"},{"$f":"LLOOKUP(G48,A:A,A:A,0.5)","v":"Die Tat der Thérèse Desqueyroux"},"Die Tat der Thérèse Desqueyroux","Die Tat der Thérèse Desqueyroux",{"$f":"SLOOKUP(K48,A:A,A:A,0.5)","v":"Die Tat der Thérèse Desqueyroux"},{"$f":"LLOOKUP(K48,A:A,A:A,0.5)","v":"Die Tat der Thérèse Desqueyroux"}]
["Die Tatarenwüste","Diw Tatarenwüste","Diw Tatarenwüsto",{"$f":"SLOOKUP(C49,A:A,A:A,0.5)","v":"Die Tatarenwüste"},{"$f":"LLOOKUP(C49,A:A,A:A,0.5)","v":"Die Tatarenwüste"},"DiwcTatarenwüsto","DilcTatarenwüsto",{"$f":"SLOOKUP(G49,A:A,A:A,0.5)","v":"Die Tatarenwüste"},{"$f":"LLOOKUP(G49,A:A,A:A,0.5)","v":"Die Tatarenwüste"},"Die Tatarenwüste","Die Tatarenwüste",{"$f":"SLOOKUP(K49,A:A,A:A,0.5)","v":"Die Tatarenwüste"},{"$f":"LLOOKUP(K49,A:A,A:A,0.5)","v":"Die Tatarenwüste"}]
["Die Verachtung","Did Verachtung","Ded Verachtung",{"$f":"SLOOKUP(C50,A:A,A:A,0.5)","v":"Die Verachtung"},{"$f":"LLOOKUP(C50,A:A,A:A,0.5)","v":"Die Verachtung"},"Ded Veracmtung","Dek Veracmtung",{"$f":"SLOOKUP(G50,A:A,A:A,0.5)","v":"Die Verachtung"},{"$f":"LLOOKUP(G50,A:A,A:A,0.5)","v":"Die Verachtung"},"Die Verachtung","Die Verachtung",{"$f":"SLOOKUP(K50,A:A,A:A,0.5)","v":"Die Verachtung"},{"$f":"LLOOKUP(K50,A:A,A:A,0.5)","v":"Die Verachtung"}]
["Die verlorene Ehre der Katharina Blum","Die verlorene Ehre der Katharioa Blum","Die verlorene Ehrejder Katharioa Blum",{"$f":"SLOOKUP(C51,A:A,A:A,0.5)","v":"Die verlorene Ehre der Katharina Blum"},{"$f":"LLOOKUP(C51,A:A,A:A,0.5)","v":"Die verlorene Ehre der Katharina Blum"},"Die verlorene EhrejderxKatharioa Blum","Diedverlorene EhrejderxKatharioa Blum",{"$f":"SLOOKUP(G51,A:A,A:A,0.5)","v":"Die verlorene Ehre der Katharina Blum"},{"$f":"LLOOKUP(G51,A:A,A:A,0.5)","v":"Die verlorene Ehre der Katharina Blum"},"Die verlorene Ehre der Katharina Blum","Die verlorene Ehre der Katharina Blum",{"$f":"SLOOKUP(K51,A:A,A:A,0.5)","v":"Die verlorene Ehre der Katharina Blum"},{"$f":"LLOOKUP(K51,A:A,A:A,0.5)","v":"Die verlorene Ehre der Katharina Blum"}]
["Die Verzückung der Lol V. Stein","Die Verzückung der Lol V. ptein","Die Verzückung der Lol V. pjein",{"$f":"SLOOKUP(C52,A:A,A:A,0.5)","v":"Die Verzückung der Lol V. Stein"},{"$f":"LLOOKUP(C52,A:A,A:A,0.5)","v":"Die Verzückung der Lol V. Stein"},"Die Verzückung dvr Lol V. pjein","Die Verzückdng dvr Lol V. pjein",{"$f":"SLOOKUP(G52,A:A,A:A,0.5)","v":"Die Verzückung der Lol V. Stein"},{"$f":"LLOOKUP(G52,A:A,A:A,0.5)","v":"Die Verzückung der Lol V. Stein"},"Die Verzückung der Lol V. Stein","Die Verzückung der Lol V. Stein",{"$f":"SLOOKUP(K52,A:A,A:A,0.5)","v":"Die Verzückung der Lol V. Stein"},{"$f":"LLOOKUP(K52,A:A,A:A,0.5)","v":"Die Verzückung der Lol V. Stein"}]
["Die wunderbare Reise des kleinen Nils Holgersson","Die wunderbare Reise des kleinen Nils Holgeryson","Die wunderbare Reise res kleinen Nils Holgeryson",{"$f":"SLOOKUP(C53,A:A,A:A,0.5)","v":"Die wunderbare Reise des kleinen Nils Holgersson"},{"$f":"LLOOKUP(C53,A:A,A:A,0.5)","v":"Die wunderbare Reise des kleinen Nils Holgersson"},"Die wunderbare Reise res kleinen Nils Holgeryson","Dip wunderbare Reise res kleinen Nils Holgeryson",{"$f":"SLOOKUP(G53,A:A,A:A,0.5)","v":"Die wunderbare Reise des kleinen Nils Holgersson"},{"$f":"LLOOKUP(G53,A:A,A:A,0.5)","v":"Die wunderbare Reise des kleinen Nils Holgersson"},"Die wunderbare Reise des kleinen Nils Holgersson","Die wunderbare Reise des kleinen Nils Holgersson",{"$f":"SLOOKUP(K53,A:A,A:A,0.5)","v":"Die wunderbare Reise des kleinen Nils Holgersson"},{"$f":"LLOOKUP(K53,A:A,A:A,0.5)","v":"Die wunderbare Reise des kleinen Nils Holgersson"}]
["Drei Abhandlungen zur Sexualtheorie","Drei Abhandmungen zur Sexualtheorie","Drei Abwandmungen zur Sexualtheorie",{"$f":"SLOOKUP(C54,A:A,A:A,0.5)","v":"Drei Abhandlungen zur Sexualtheorie"},{"$f":"LLOOKUP(C54,A:A,A:A,0.5)","v":"Drei Abhandlungen zur Sexualtheorie"},"Drei Abwandmungen zur Smxualtheorie","Drei Abwandmungen zur Smyualtheorie",{"$f":"SLOOKUP(G54,A:A,A:A,0.5)","v":"Drei Abhandlungen zur Sexualtheorie"},{"$f":"LLOOKUP(G54,A:A,A:A,0.5)","v":"Drei Abhandlungen zur Sexualtheorie"},"Drei Abhandlungen zur Sexualtheorie","Drei Abhandlungen zur Sexualtheorie",{"$f":"SLOOKUP(K54,A:A,A:A,0.5)","v":"Drei Abhandlungen zur Sexualtheorie"},{"$f":"LLOOKUP(K54,A:A,A:A,0.5)","v":"Drei Abhandlungen zur Sexualtheorie"}]
["Ein Zimmer für sich allein","Ein Zimmer für sich aulein","Ein Zimmer für sidh aulein",{"$f":"SLOOKUP(C55,A:A,A:A,0.5)","v":"Ein Zimmer für sich allein"},{"$f":"LLOOKUP(C55,A:A,A:A,0.5)","v":"Ein Zimmer für sich allein"},"Ein Zimmer für sidh aulrin","Ein Zimmer fhr sidh aulrin",{"$f":"SLOOKUP(G55,A:A,A:A,0.5)","v":"Ein Zimmer für sich allein"},{"$f":"LLOOKUP(G55,A:A,A:A,0.5)","v":"Ein Zimmer für sich allein"},"Ein Zimmer für sich allein","Ein Zimmer für sich allein",{"$f":"SLOOKUP(K55,A:A,A:A,0.5)","v":"Ein Zimmer für sich allein"},{"$f":"LLOOKUP(K55,A:A,A:A,0.5)","v":"Ein Zimmer für sich allein"}]
["Elemente und Ursprünge totaler Herrschaft","Elemente und Ursprünge totaler Herrschaft","Elemente uld Ursprünge totaler Herrschaft",{"$f":"SLOOKUP(C56,A:A,A:A,0.5)","v":"Elemente und Ursprünge totaler Herrschaft"},{"$f":"LLOOKUP(C56,A:A,A:A,0.5)","v":"Elemente und Ursprünge totaler Herrschaft"},"Elemente uld Utsprünge totaler Herrschaft","Elementg uld Utsprünge totaler Herrschaft",{"$f":"SLOOKUP(G56,A:A,A:A,0.5)","v":"Elemente und Ursprünge totaler Herrschaft"},{"$f":"LLOOKUP(G56,A:A,A:A,0.5)","v":"Elemente und Ursprünge totaler Herrschaft"},"Elemente und Ursprünge totaler Herrschaft","Elemente und Ursprünge totaler Herrschaft",{"$f":"SLOOKUP(K56,A:A,A:A,0.5)","v":"Elemente und Ursprünge totaler Herrschaft"},{"$f":"LLOOKUP(K56,A:A,A:A,0.5)","v":"Elemente und Ursprünge totaler Herrschaft"}]
["Fiktionen","Fiktinnen","Fiktineen",{"$f":"SLOOKUP(C57,A:A,A:A,0.5)","v":"Fiktionen"},{"$f":"LLOOKUP(C57,A:A,A:A,0.5)","v":"Fiktionen"},"Fikgineen","zikgineen",{"$f":"SLOOKUP(G57,A:A,A:A,0.5)","v":"Zigeunerromanzen"},{"$f":"LLOOKUP(G57,A:A,A:A,0.5)","v":"Fiktionen"},"Zigeunerromanzen","Zigeunerromanzen",{"$f":"SLOOKUP(K57,A:A,A:A,0.5)","v":"Zigeunerromanzen"},{"$f":"LLOOKUP(K57,A:A,A:A,0.5)","v":"Zigeunerromanzen"}]
["Freitag oder Im Schoss des Pazifik","Freitag oder Im cchoss des Pazifik","Freitag oder Im ccmoss des Pazifik",{"$f":"SLOOKUP(C58,A:A,A:A,0.5)","v":"Freitag oder Im Schoss des Pazifik"},{"$f":"LLOOKUP(C58,A:A,A:A,0.5)","v":"Freitag oder Im Schoss des Pazifik"},"Freitag oder Im ccyoss des Pazifik","Freitag oder Im ccyoss tes Pazifik",{"$f":"SLOOKUP(G58,A:A,A:A,0.5)","v":"Freitag oder Im Schoss des Pazifik"},{"$f":"LLOOKUP(G58,A:A,A:A,0.5)","v":"Freitag oder Im Schoss des Pazifik"},"Freitag oder Im Schoss des Pazifik","Freitag oder Im Schoss des Pazifik",{"$f":"SLOOKUP(K58,A:A,A:A,0.5)","v":"Freitag oder Im Schoss des Pazifik"},{"$f":"LLOOKUP(K58,A:A,A:A,0.5)","v":"Freitag oder Im Schoss des Pazifik"}]
["Früchte des Zorns","Früjhte des Zorns","Früjhte des Zornf",{"$f":"SLOOKUP(C59,A:A,A:A,0.5)","v":"Früchte des Zorns"},{"$f":"LLOOKUP(C59,A:A,A:A,0.5)","v":"Früchte des Zorns"},"Früjhte des bornf","Früjhtewdes bornf",{"$f":"SLOOKUP(G59,A:A,A:A,0.5)","v":"Früchte des Zorns"},{"$f":"LLOOKUP(G59,A:A,A:A,0.5)","v":"Früchte des Zorns"},"Früchte des Zorns","Früchte des Zorns",{"$f":"SLOOKUP(K59,A:A,A:A,0.5)","v":"Früchte des Zorns"},{"$f":"LLOOKUP(K59,A:A,A:A,0.5)","v":"Früchte des Zorns"}]
["Fureur et mystère","Fureur et mystèro","Fureur etvmystèro",{"$f":"SLOOKUP(C60,A:A,A:A,0.5)","v":"Fureur et mystère"},{"$f":"LLOOKUP(C60,A:A,A:A,0.5)","v":"Fureur et mystère"},"Furlur etvmystèro","Furlur etvmystèrv",{"$f":"SLOOKUP(G60,A:A,A:A,0.5)","v":"Fureur et mystère"},{"$f":"LLOOKUP(G60,A:A,A:A,0.5)","v":"Fureur et mystère"},"Fureur et mystère","Fureur et mystère",{"$f":"SLOOKUP(K60,A:A,A:A,0.5)","v":"Fureur et mystère"},{"$f":"LLOOKUP(K60,A:A,A:A,0.5)","v":"Fureur et mystère"}]
["Gaston","Gaston","Gastzn",{"$f":"SLOOKUP(C61,A:A,A:A,0.5)","v":"Gaston"},{"$f":"LLOOKUP(C61,A:A,A:A,0.5)","v":"Gaston"},"Gastzu","Gaslzu",{"$f":"SLOOKUP(G61,A:A,A:A,0.5)","v":"Gaston"},{"$f":"LLOOKUP(G61,A:A,A:A,0.5)","v":"Asterix der Gallier"},"Gaston","Gaston",{"$f":"SLOOKUP(K61,A:A,A:A,0.5)","v":"Gaston"},{"$f":"LLOOKUP(K61,A:A,A:A,0.5)","v":"Gaston"}]
["Hauptstadt der Schmerzen","Hauptstadt der Schmlrzen","Hauftstadt der Schmlrzen",{"$f":"SLOOKUP(C62,A:A,A:A,0.5)","v":"Hauptstadt der Schmerzen"},{"$f":"LLOOKUP(C62,A:A,A:A,0.5)","v":"Hauptstadt der Schmerzen"},"Haufnstadt der Schmlrzen","Haufnstadt der Schmlrken",{"$f":"SLOOKUP(G62,A:A,A:A,0.5)","v":"Hauptstadt der Schmerzen"},{"$f":"LLOOKUP(G62,A:A,A:A,0.5)","v":"Hauptstadt der Schmerzen"},"Hauptstadt der Schmerzen","Hauptstadt der Schmerzen",{"$f":"SLOOKUP(K62,A:A,A:A,0.5)","v":"Hauptstadt der Schmerzen"},{"$f":"LLOOKUP(K62,A:A,A:A,0.5)","v":"Hauptstadt der Schmerzen"}]
["Hundert Jahre Einsamkeit","Hundert Jahre vinsamkeit","Hunqert Jahre vinsamkeit",{"$f":"SLOOKUP(C63,A:A,A:A,0.5)","v":"Hundert Jahre Einsamkeit"},{"$f":"LLOOKUP(C63,A:A,A:A,0.5)","v":"Hundert Jahre Einsamkeit"},"Huoqert Jahre vinsamkeit","Huoqert Jahre vinsamkvit",{"$f":"SLOOKUP(G63,A:A,A:A,0.5)","v":"Hundert Jahre Einsamkeit"},{"$f":"LLOOKUP(G63,A:A,A:A,0.5)","v":"Hundert Jahre Einsamkeit"},"Hundert Jahre Einsamkeit","Hundert Jahre Einsamkeit",{"$f":"SLOOKUP(K63,A:A,A:A,0.5)","v":"Hundert Jahre Einsamkeit"},{"$f":"LLOOKUP(K63,A:A,A:A,0.5)","v":"Hundert Jahre Einsamkeit"}]
["Ist das ein Mensch?","Isd das ein Mensch?","Isd das ein Mensoh?",{"$f":"SLOOKUP(C64,A:A,A:A,0.5)","v":"Ist das ein Mensch?"},{"$f":"LLOOKUP(C64,A:A,A:A,0.5)","v":"Ist das ein Mensch?"},"Isd das ein Mrnsoh?","Isd das cin Mrnsoh?",{"$f":"SLOOKUP(G64,A:A,A:A,0.5)","v":"Ist das ein Mensch?"},{"$f":"LLOOKUP(G64,A:A,A:A,0.5)","v":"Ist das ein Mensch?"},"Ist das ein Mensch?","Ist das ein Mensch?",{"$f":"SLOOKUP(K64,A:A,A:A,0.5)","v":"Ist das ein Mensch?"},{"$f":"LLOOKUP(K64,A:A,A:A,0.5)","v":"Ist das ein Mensch?"}]
["Keine Orchideen für Mrs. Blandish","Keine Orchidmen für Mrs. Blandish","Keine Orchidmen für ors. Blandish",{"$f":"SLOOKUP(C65,A:A,A:A,0.5)","v":"Keine Orchideen für Mrs. Blandish"},{"$f":"LLOOKUP(C65,A:A,A:A,0.5)","v":"Keine Orchideen für Mrs. Blandish"},"Keine Orchidmen für ors. Blanrish","Keine Orcdidmen für ors. Blanrish",{"$f":"SLOOKUP(G65,A:A,A:A,0.5)","v":"Keine Orchideen für Mrs. Blandish"},{"$f":"LLOOKUP(G65,A:A,A:A,0.5)","v":"Keine Orchideen für Mrs. Blandish"},"Keine Orchideen für Mrs. Blandish","Keine Orchideen für Mrs. Blandish",{"$f":"SLOOKUP(K65,A:A,A:A,0.5)","v":"Keine Orchideen für Mrs. Blandish"},{"$f":"LLOOKUP(K65,A:A,A:A,0.5)","v":"Keine Orchideen für Mrs. Blandish"}]
["Lady Chatterleys Liebhaber","Lady Chatterleys Liebhabex","Lady Chatterleys Liebhgbex",{"$f":"SLOOKUP(C66,A:A,A:A,0.5)","v":"Lady Chatterleys Liebhaber"},{"$f":"LLOOKUP(C66,A:A,A:A,0.5)","v":"Lady Chatterleys Liebhaber"},"Lady Chatterheys Liebhgbex","Lady Chatterheys Liebhgbyx",{"$f":"SLOOKUP(G66,A:A,A:A,0.5)","v":"Lady Chatterleys Liebhaber"},{"$f":"LLOOKUP(G66,A:A,A:A,0.5)","v":"Lady Chatterleys Liebhaber"},"Lady Chatterleys Liebhaber","Lady Chatterleys Liebhaber",{"$f":"SLOOKUP(K66,A:A,A:A,0.5)","v":"Lady Chatterleys Liebhaber"},{"$f":"LLOOKUP(K66,A:A,A:A,0.5)","v":"Lady Chatterleys Liebhaber"}]
["Les Vrilles de la vigne","Les Vrioles de la vigne","Les Vrioles de la vigwe",{"$f":"SLOOKUP(C67,A:A,A:A,0.5)","v":"Les Vrilles de la vigne"},{"$f":"LLOOKUP(C67,A:A,A:A,0.5)","v":"Les Vrilles de la vigne"},"Les Vrioles de lx vigwe","Les Vrioles de lx vagwe",{"$f":"SLOOKUP(G67,A:A,A:A,0.5)","v":"Les Vrilles de la vigne"},{"$f":"LLOOKUP(G67,A:A,A:A,0.5)","v":"Les Vrilles de la vigne"},"Les Vrilles de la vigne","Les Vrilles de la vigne",{"$f":"SLOOKUP(K67,A:A,A:A,0.5)","v":"Les Vrilles de la vigne"},{"$f":"LLOOKUP(K67,A:A,A:A,0.5)","v":"Les Vrilles de la vigne"}]
["Lolita","Lolitd","Lokitd",{"$f":"SLOOKUP(C68,A:A,A:A,0.5)","v":"Lolita"},{"$f":"LLOOKUP(C68,A:A,A:A,0.5)","v":"Lolita"},"Lokitr","Lokltr",{"$f":"SLOOKUP(G68,A:A,A:A,0.5)","v":"Lord Jim"},{"$f":"LLOOKUP(G68,A:A,A:A,0.5)","v":"Auf der Suche nach der verlorenen Zeit"},"Lolita","Lolita",{"$f":"SLOOKUP(K68,A:A,A:A,0.5)","v":"Lolita"},{"$f":"LLOOKUP(K68,A:A,A:A,0.5)","v":"Lolita"}]
["Lord Jim","Lord wim","Lorx wim",{"$f":"SLOOKUP(C69,A:A,A:A,0.5)","v":"Lord Jim"},{"$f":"LLOOKUP(C69,A:A,A:A,0.5)","v":"Lord Jim"},"Lorn wim","Lorn vim",{"$f":"SLOOKUP(G69,A:A,A:A,0.5)","v":"Lord Jim"},{"$f":"LLOOKUP(G69,A:A,A:A,0.5)","v":"Lord Jim"},"Lord Jim","Lord Jim",{"$f":"SLOOKUP(K69,A:A,A:A,0.5)","v":"Lord Jim"},{"$f":"LLOOKUP(K69,A:A,A:A,0.5)","v":"Lord Jim"}]
["Maigret und Pietr der Lette","Maigret und Pietr der Lrtte","Maigret und Piegr der Lrtte",{"$f":"SLOOKUP(C70,A:A,A:A,0.5)","v":"Maigret und Pietr der Lette"},{"$f":"LLOOKUP(C70,A:A,A:A,0.5)","v":"Maigret und Pietr der Lette"},"Maigret und Piegr der Lrtte","Maigrec und Piegr der Lrtte",{"$f":"SLOOKUP(G70,A:A,A:A,0.5)","v":"Maigret und Pietr der Lette"},{"$f":"LLOOKUP(G70,A:A,A:A,0.5)","v":"Maigret und Pietr der Lette"},"Maigret und Pietr der Lette","Maigret und Pietr der Lette",{"$f":"SLOOKUP(K70,A:A,A:A,0.5)","v":"Maigret und Pietr der Lette"},{"$f":"LLOOKUP(K70,A:A,A:A,0.5)","v":"Maigret und Pietr der Lette"}]
["Manhattan Transfer","Manpattan Transfer","Mafpattan Transfer",{"$f":"SLOOKUP(C71,A:A,A:A,0.5)","v":"Manhattan Transfer"},{"$f":"LLOOKUP(C71,A:A,A:A,0.5)","v":"Manhattan Transfer"},"Mdfpattan Transfer","Mdfpattan Transfer",{"$f":"SLOOKUP(G71,A:A,A:A,0.5)","v":"Manhattan Transfer"},{"$f":"LLOOKUP(G71,A:A,A:A,0.5)","v":"Manhattan Transfer"},"Manhattan Transfer","Manhattan Transfer",{"$f":"SLOOKUP(K71,A:A,A:A,0.5)","v":"Manhattan Transfer"},{"$f":"LLOOKUP(K71,A:A,A:A,0.5)","v":"Manhattan Transfer"}]
["Martin Eden","Martit Eden","Martit gden",{"$f":"SLOOKUP(C72,A:A,A:A,0.5)","v":"Martin Eden"},{"$f":"LLOOKUP(C72,A:A,A:A,0.5)","v":"Martin Eden"},"Martit gdee","Mautit gdee",{"$f":"SLOOKUP(G72,A:A,A:A,0.5)","v":""},{"$f":"LLOOKUP(G72,A:A,A:A,0.5)","v":"Martin Eden"},"Martin Eden","Martin Eden",{"$f":"SLOOKUP(K72,A:A,A:A,0.5)","v":"Martin Eden"},{"$f":"LLOOKUP(K72,A:A,A:A,0.5)","v":"Martin Eden"}]
["Mitternachtskinder","Mytternachtskinder","Mytteknachtskinder",{"$f":"SLOOKUP(C73,A:A,A:A,0.5)","v":"Mitternachtskinder"},{"$f":"LLOOKUP(C73,A:A,A:A,0.5)","v":"Mitternachtskinder"},"Mytteknachcskinder","Mytteknachcskindeb",{"$f":"SLOOKUP(G73,A:A,A:A,0.5)","v":"Mitternachtskinder"},{"$f":"LLOOKUP(G73,A:A,A:A,0.5)","v":"Mitternachtskinder"},"Mitternachtskinder","Mitternachtskinder",{"$f":"SLOOKUP(K73,A:A,A:A,0.5)","v":"Mitternachtskinder"},{"$f":"LLOOKUP(K73,A:A,A:A,0.5)","v":"Mitternachtskinder"}]
["Moloch. Das Leben des Moravagine","Moloch. DasyLeben des Moravagine","Moloch. DasyLeien des Moravagine",{"$f":"SLOOKUP(C74,A:A,A:A,0.5)","v":"Moloch. Das Leben des Moravagine"},{"$f":"LLOOKUP(C74,A:A,A:A,0.5)","v":"Moloch. Das Leben des Moravagine"},"Moloch. DasyLeien des Moravagine","Moloch. DaoyLeien des Moravagine",{"$f":"SLOOKUP(G74,A:A,A:A,0.5)","v":"Moloch. Das Leben des Moravagine"},{"$f":"LLOOKUP(G74,A:A,A:A,0.5)","v":"Moloch. Das Leben des Moravagine"},"Moloch. Das Leben des Moravagine","Moloch. Das Leben des Moravagine",{"$f":"SLOOKUP(K74,A:A,A:A,0.5)","v":"Moloch. Das Leben des Moravagine"},{"$f":"LLOOKUP(K74,A:A,A:A,0.5)","v":"Moloch. Das Leben des Moravagine"}]
["Nadja","Nadma","ladma",{"$f":"SLOOKUP(C75,A:A,A:A,0.5)","v":"Lady Chatterleys Liebhaber"},{"$f":"LLOOKUP(C75,A:A,A:A,0.5)","v":"Die schwarze Flamme"},"ladmz","laxmz",{"$f":"SLOOKUP(G75,A:A,A:A,0.5)","v":""},{"$f":"LLOOKUP(G75,A:A,A:A,0.5)","v":"Die schwarze Flamme"},"","",{"$f":"SLOOKUP(K75,A:A,A:A,0.5)","v":""},{"$f":"LLOOKUP(K75,A:A,A:A,0.5)","v":""}]
["Notre-Dame-des-Fleurs","wotre-Dame-des-Fleurs","wotre-Dame-des-kleurs",{"$f":"SLOOKUP(C76,A:A,A:A,0.5)","v":"Notre-Dame-des-Fleurs"},{"$f":"LLOOKUP(C76,A:A,A:A,0.5)","v":"Notre-Dame-des-Fleurs"},"wotre-Dafe-des-kleurs","wotre-Dafe-ies-kleurs",{"$f":"SLOOKUP(G76,A:A,A:A,0.5)","v":"Notre-Dame-des-Fleurs"},{"$f":"LLOOKUP(G76,A:A,A:A,0.5)","v":"Notre-Dame-des-Fleurs"},"Notre-Dame-des-Fleurs","Notre-Dame-des-Fleurs",{"$f":"SLOOKUP(K76,A:A,A:A,0.5)","v":"Notre-Dame-des-Fleurs"},{"$f":"LLOOKUP(K76,A:A,A:A,0.5)","v":"Notre-Dame-des-Fleurs"}]
["Paris-Rom oder Die Modifikation","Paris-Ram oder Die Modifikation","Parns-Ram oder Die Modifikation",{"$f":"SLOOKUP(C77,A:A,A:A,0.5)","v":"Paris-Rom oder Die Modifikation"},{"$f":"LLOOKUP(C77,A:A,A:A,0.5)","v":"Paris-Rom oder Die Modifikation"},"Parns-Ram oder Die Modifiqation","Parns-Ram qder Die Modifiqation",{"$f":"SLOOKUP(G77,A:A,A:A,0.5)","v":"Paris-Rom oder Die Modifikation"},{"$f":"LLOOKUP(G77,A:A,A:A,0.5)","v":"Paris-Rom oder Die Modifikation"},"Paris-Rom oder Die Modifikation","Paris-Rom oder Die Modifikation",{"$f":"SLOOKUP(K77,A:A,A:A,0.5)","v":"Paris-Rom oder Die Modifikation"},{"$f":"LLOOKUP(K77,A:A,A:A,0.5)","v":"Paris-Rom oder Die Modifikation"}]
["Paroles","Parolcs","parolcs",{"$f":"SLOOKUP(C78,A:A,A:A,0.5)","v":"Paroles"},{"$f":"LLOOKUP(C78,A:A,A:A,0.5)","v":"Paroles"},"paroucs","parovcs",{"$f":"SLOOKUP(G78,A:A,A:A,0.5)","v":"Paroles"},{"$f":"LLOOKUP(G78,A:A,A:A,0.5)","v":"Paroles"},"Paroles","Paroles",{"$f":"SLOOKUP(K78,A:A,A:A,0.5)","v":"Paroles"},{"$f":"LLOOKUP(K78,A:A,A:A,0.5)","v":"Paroles"}]
["Reise ans Ende der Nacht","Reise ans Ende der Nacht","Reise uns Ende der Nacht",{"$f":"SLOOKUP(C79,A:A,A:A,0.5)","v":"Reise ans Ende der Nacht"},{"$f":"LLOOKUP(C79,A:A,A:A,0.5)","v":"Reise ans Ende der Nacht"},"Reise uns Ende der cacht","Rsise uns Ende der cacht",{"$f":"SLOOKUP(G79,A:A,A:A,0.5)","v":"Reise ans Ende der Nacht"},{"$f":"LLOOKUP(G79,A:A,A:A,0.5)","v":"Reise ans Ende der Nacht"},"Reise ans Ende der Nacht","Reise ans Ende der Nacht",{"$f":"SLOOKUP(K79,A:A,A:A,0.5)","v":"Reise ans Ende der Nacht"},{"$f":"LLOOKUP(K79,A:A,A:A,0.5)","v":"Reise ans Ende der Nacht"}]
["Schall und Wahn","Schmll und Wahn","Schmll und vahn",{"$f":"SLOOKUP(C80,A:A,A:A,0.5)","v":"Schall und Wahn"},{"$f":"LLOOKUP(C80,A:A,A:A,0.5)","v":"Schall und Wahn"},"Schmll und vnhn","Schmll und anhn",{"$f":"SLOOKUP(G80,A:A,A:A,0.5)","v":"Schall und Wahn"},{"$f":"LLOOKUP(G80,A:A,A:A,0.5)","v":"Schall und Wahn"},"Schall und Wahn","Schall und Wahn",{"$f":"SLOOKUP(K80,A:A,A:A,0.5)","v":"Schall und Wahn"},{"$f":"LLOOKUP(K80,A:A,A:A,0.5)","v":"Schall und Wahn"}]
["Schöne neue Welt","Schönn neue Welt","Schönn heue Welt",{"$f":"SLOOKUP(C81,A:A,A:A,0.5)","v":"Schöne neue Welt"},{"$f":"LLOOKUP(C81,A:A,A:A,0.5)","v":"Schöne neue Welt"},"Schönnkheue Welt","Schöankheue Welt",{"$f":"SLOOKUP(G81,A:A,A:A,0.5)","v":"Schöne neue Welt"},{"$f":"LLOOKUP(G81,A:A,A:A,0.5)","v":"Schöne neue Welt"},"Schöne neue Welt","Schöne neue Welt",{"$f":"SLOOKUP(K81,A:A,A:A,0.5)","v":"Schöne neue Welt"},{"$f":"LLOOKUP(K81,A:A,A:A,0.5)","v":"Schöne neue Welt"}]
["Schriften","Scgriften","Scgrtften",{"$f":"SLOOKUP(C82,A:A,A:A,0.5)","v":"Schriften"},{"$f":"LLOOKUP(C82,A:A,A:A,0.5)","v":"Schriften"},"Scgrtfaen","Shgrtfaen",{"$f":"SLOOKUP(G82,A:A,A:A,0.5)","v":""},{"$f":"LLOOKUP(G82,A:A,A:A,0.5)","v":"Das Ufer der Syrten"},"","",{"$f":"SLOOKUP(K82,A:A,A:A,0.5)","v":""},{"$f":"LLOOKUP(K82,A:A,A:A,0.5)","v":""}]
["Sechs Personen suchen einen Autor","Sechs Pzrsonen suchen einen Autor","Sechs Pzrsonen suchen etnen Autor",{"$f":"SLOOKUP(C83,A:A,A:A,0.5)","v":"Sechs Personen suchen einen Autor"},{"$f":"LLOOKUP(C83,A:A,A:A,0.5)","v":"Sechs Personen suchen einen Autor"},"Sechs Pzrsoned suchen etnen Autor","Sechs Pzrsoned suchmn etnen Autor",{"$f":"SLOOKUP(G83,A:A,A:A,0.5)","v":"Sechs Personen suchen einen Autor"},{"$f":"LLOOKUP(G83,A:A,A:A,0.5)","v":"Sechs Personen suchen einen Autor"},"Sechs Personen suchen einen Autor","Sechs Personen suchen einen Autor",{"$f":"SLOOKUP(K83,A:A,A:A,0.5)","v":"Sechs Personen suchen einen Autor"},{"$f":"LLOOKUP(K83,A:A,A:A,0.5)","v":"Sechs Personen suchen einen Autor"}]
["Seemarken","Syemarken","Spemarken",{"$f":"SLOOKUP(C84,A:A,A:A,0.5)","v":"Seemarken"},{"$f":"LLOOKUP(C84,A:A,A:A,0.5)","v":"Seemarken"},"Sqemarken","Sqemarksn",{"$f":"SLOOKUP(G84,A:A,A:A,0.5)","v":"Seemarken"},{"$f":"LLOOKUP(G84,A:A,A:A,0.5)","v":"Seemarken"},"Seemarken","Seemarken",{"$f":"SLOOKUP(K84,A:A,A:A,0.5)","v":"Seemarken"},{"$f":"LLOOKUP(K84,A:A,A:A,0.5)","v":"Seemarken"}]
["So lebt der Mensch","So lebt der Mznsch","ko lebt der Mznsch",{"$f":"SLOOKUP(C85,A:A,A:A,0.5)","v":"So lebt der Mensch"},{"$f":"LLOOKUP(C85,A:A,A:A,0.5)","v":"So lebt der Mensch"},"ko lebt der Mlnsch","ko lvbt der Mlnsch",{"$f":"SLOOKUP(G85,A:A,A:A,0.5)","v":"So lebt der Mensch"},{"$f":"LLOOKUP(G85,A:A,A:A,0.5)","v":"So lebt der Mensch"},"So lebt der Mensch","So lebt der Mensch",{"$f":"SLOOKUP(K85,A:A,A:A,0.5)","v":"So lebt der Mensch"},{"$f":"LLOOKUP(K85,A:A,A:A,0.5)","v":"So lebt der Mensch"}]
["Sophies Entscheidung","Sophies Entscheidlng","SophiesfEntscheidlng",{"$f":"SLOOKUP(C86,A:A,A:A,0.5)","v":"Sophies Entscheidung"},{"$f":"LLOOKUP(C86,A:A,A:A,0.5)","v":"Sophies Entscheidung"},"SophiesfEntdcheidlng","SophiesfEnadcheidlng",{"$f":"SLOOKUP(G86,A:A,A:A,0.5)","v":"Sophies Entscheidung"},{"$f":"LLOOKUP(G86,A:A,A:A,0.5)","v":"Sophies Entscheidung"},"Sophies Entscheidung","Sophies Entscheidung",{"$f":"SLOOKUP(K86,A:A,A:A,0.5)","v":"Sophies Entscheidung"},{"$f":"LLOOKUP(K86,A:A,A:A,0.5)","v":"Sophies Entscheidung"}]
["Südseeballade","Südseebalgade","Srdseebalgade",{"$f":"SLOOKUP(C87,A:A,A:A,0.5)","v":"Südseeballade"},{"$f":"LLOOKUP(C87,A:A,A:A,0.5)","v":"Südseeballade"},"Srdsecbalgade","Srdsecbalgaze",{"$f":"SLOOKUP(G87,A:A,A:A,0.5)","v":""},{"$f":"LLOOKUP(G87,A:A,A:A,0.5)","v":"Südseeballade"},"Südseeballade","Südseeballade",{"$f":"SLOOKUP(K87,A:A,A:A,0.5)","v":"Südseeballade"},{"$f":"LLOOKUP(K87,A:A,A:A,0.5)","v":"Südseeballade"}]
["Tagebuch der Anne Frank","Tagebuch der Annn Frank","Tagebuch dar Annn Frank",{"$f":"SLOOKUP(C88,A:A,A:A,0.5)","v":"Tagebuch der Anne Frank"},{"$f":"LLOOKUP(C88,A:A,A:A,0.5)","v":"Tagebuch der Anne Frank"},"Tqgebuch dar Annn Frank","Tqgebuch dar Annn Frcnk",{"$f":"SLOOKUP(G88,A:A,A:A,0.5)","v":"Tagebuch der Anne Frank"},{"$f":"LLOOKUP(G88,A:A,A:A,0.5)","v":"Tagebuch der Anne Frank"},"Tagebuch der Anne Frank","Tagebuch der Anne Frank",{"$f":"SLOOKUP(K88,A:A,A:A,0.5)","v":"Tagebuch der Anne Frank"},{"$f":"LLOOKUP(K88,A:A,A:A,0.5)","v":"Tagebuch der Anne Frank"}]
["Tagebücher 1887-1910","Tagebüchpr 1887-1910","lagebüchpr 1887-1910",{"$f":"SLOOKUP(C89,A:A,A:A,0.5)","v":"Tagebücher 1887-1910"},{"$f":"LLOOKUP(C89,A:A,A:A,0.5)","v":"Tagebücher 1887-1910"},"ljgebüchpr 1887-1910","ljoebüchpr 1887-1910",{"$f":"SLOOKUP(G89,A:A,A:A,0.5)","v":"Tagebücher 1887-1910"},{"$f":"LLOOKUP(G89,A:A,A:A,0.5)","v":"Tagebücher 1887-1910"},"Tagebücher 1887-1910","Tagebücher 1887-1910",{"$f":"SLOOKUP(K89,A:A,A:A,0.5)","v":"Tagebücher 1887-1910"},{"$f":"LLOOKUP(K89,A:A,A:A,0.5)","v":"Tagebücher 1887-1910"}]
["Traurige Tropen","Traurkge Tropen","Tmaurkge Tropen",{"$f":"SLOOKUP(C90,A:A,A:A,0.5)","v":"Traurige Tropen"},{"$f":"LLOOKUP(C90,A:A,A:A,0.5)","v":"Traurige Tropen"},"Tmaurkgx Tropen","rmaurkgx Tropen",{"$f":"SLOOKUP(G90,A:A,A:A,0.5)","v":"Traurige Tropen"},{"$f":"LLOOKUP(G90,A:A,A:A,0.5)","v":"Traurige Tropen"},"Traurige Tropen","Traurige Tropen",{"$f":"SLOOKUP(K90,A:A,A:A,0.5)","v":"Traurige Tropen"},{"$f":"LLOOKUP(K90,A:A,A:A,0.5)","v":"Traurige Tropen"}]
["Trilogie: Sexus, Plexus und Nexus","Trilogie: Sexus, Plexus und Nlxus","Trilcgie: Sexus, Plexus und Nlxus",{"$f":"SLOOKUP(C91,A:A,A:A,0.5)","v":"Trilogie: Sexus, Plexus und Nexus"},{"$f":"LLOOKUP(C91,A:A,A:A,0.5)","v":"Trilogie: Sexus, Plexus und Nexus"},"Trilcgie: Sexus, Plexus und blxus","Trilcgie: Sexus, Plexus uny blxus",{"$f":"SLOOKUP(G91,A:A,A:A,0.5)","v":"Trilogie: Sexus, Plexus und Nexus"},{"$f":"LLOOKUP(G91,A:A,A:A,0.5)","v":"Trilogie: Sexus, Plexus und Nexus"},"Trilogie: Sexus, Plexus und Nexus","Trilogie: Sexus, Plexus und Nexus",{"$f":"SLOOKUP(K91,A:A,A:A,0.5)","v":"Trilogie: Sexus, Plexus und Nexus"},{"$f":"LLOOKUP(K91,A:A,A:A,0.5)","v":"Trilogie: Sexus, Plexus und Nexus"}]
["Tropismen","Tromismen","Tromizmen",{"$f":"SLOOKUP(C92,A:A,A:A,0.5)","v":"Tropismen"},{"$f":"LLOOKUP(C92,A:A,A:A,0.5)","v":"Tropismen"},"Tromizken","rromizken",{"$f":"SLOOKUP(G92,A:A,A:A,0.5)","v":""},{"$f":"LLOOKUP(G92,A:A,A:A,0.5)","v":"Die Mars-Chroniken"},"Zigeunerromanzen","Zigeunerromanzen",{"$f":"SLOOKUP(K92,A:A,A:A,0.5)","v":"Zigeunerromanzen"},{"$f":"LLOOKUP(K92,A:A,A:A,0.5)","v":"Zigeunerromanzen"}]
["Ulysses","Ulyssez","Ulyssez",{"$f":"SLOOKUP(C93,A:A,A:A,0.5)","v":"Ulysses"},{"$f":"LLOOKUP(C93,A:A,A:A,0.5)","v":"Ulysses"},"Ulysseg","Ulysseg",{"$f":"SLOOKUP(G93,A:A,A:A,0.5)","v":"Ulysses"},{"$f":"LLOOKUP(G93,A:A,A:A,0.5)","v":"Ulysses"},"Ulysses","Ulysses",{"$f":"SLOOKUP(K93,A:A,A:A,0.5)","v":"Ulysses"},{"$f":"LLOOKUP(K93,A:A,A:A,0.5)","v":"Ulysses"}]
["Unter dem Vulkan","Unter demaVulkan","Unter kemaVulkan",{"$f":"SLOOKUP(C94,A:A,A:A,0.5)","v":"Unter dem Vulkan"},{"$f":"LLOOKUP(C94,A:A,A:A,0.5)","v":"Unter dem Vulkan"},"Unber kemaVulkan","Unber kemoVulkan",{"$f":"SLOOKUP(G94,A:A,A:A,0.5)","v":"Unter dem Vulkan"},{"$f":"LLOOKUP(G94,A:A,A:A,0.5)","v":"Unter dem Vulkan"},"Unter dem Vulkan","Unter dem Vulkan",{"$f":"SLOOKUP(K94,A:A,A:A,0.5)","v":"Unter dem Vulkan"},{"$f":"LLOOKUP(K94,A:A,A:A,0.5)","v":"Unter dem Vulkan"}]
["Unterwegs","Ueterwegs","Ueterweqs",{"$f":"SLOOKUP(C95,A:A,A:A,0.5)","v":"Unterwegs"},{"$f":"LLOOKUP(C95,A:A,A:A,0.5)","v":"Unterwegs"},"Ueterweqs","veterweqs",{"$f":"SLOOKUP(G95,A:A,A:A,0.5)","v":"Verwirrung der Gefühle"},{"$f":"LLOOKUP(G95,A:A,A:A,0.5)","v":"Unterwegs"},"Unterwegs","Unterwegs",{"$f":"SLOOKUP(K95,A:A,A:A,0.5)","v":"Unterwegs"},{"$f":"LLOOKUP(K95,A:A,A:A,0.5)","v":"Unterwegs"}]
["Verwirrung der Gefühle","Verwisrung der Gefühle","Verwisxung der Gefühle",{"$f":"SLOOKUP(C96,A:A,A:A,0.5)","v":"Verwirrung der Gefühle"},{"$f":"LLOOKUP(C96,A:A,A:A,0.5)","v":"Verwirrung der Gefühle"},"Verwisxunx der Gefühle","Verwisxunx dbr Gefühle",{"$f":"SLOOKUP(G96,A:A,A:A,0.5)","v":"Verwirrung der Gefühle"},{"$f":"LLOOKUP(G96,A:A,A:A,0.5)","v":"Verwirrung der Gefühle"},"Verwirrung der Gefühle","Verwirrung der Gefühle",{"$f":"SLOOKUP(K96,A:A,A:A,0.5)","v":"Verwirrung der Gefühle"},{"$f":"LLOOKUP(K96,A:A,A:A,0.5)","v":"Verwirrung der Gefühle"}]
["Vom Winde verweht","Vsm Winde verweht","Vsm Winde veoweht",{"$f":"SLOOKUP(C97,A:A,A:A,0.5)","v":"Vom Winde verweht"},{"$f":"LLOOKUP(C97,A:A,A:A,0.5)","v":"Vom Winde verweht"},"Vsm Windh veoweht","Vsm Windh veowwht",{"$f":"SLOOKUP(G97,A:A,A:A,0.5)","v":"Vom Winde verweht"},{"$f":"LLOOKUP(G97,A:A,A:A,0.5)","v":"Vom Winde verweht"},"Vom Winde verweht","Vom Winde verweht",{"$f":"SLOOKUP(K97,A:A,A:A,0.5)","v":"Vom Winde verweht"},{"$f":"LLOOKUP(K97,A:A,A:A,0.5)","v":"Vom Winde verweht"}]
["Warten auf Godot","Warten aufqGodot","Warten jufqGodot",{"$f":"SLOOKUP(C98,A:A,A:A,0.5)","v":"Warten auf Godot"},{"$f":"LLOOKUP(C98,A:A,A:A,0.5)","v":"Warten auf Godot"},"Warten jutqGodot","Warten jutqGodot",{"$f":"SLOOKUP(G98,A:A,A:A,0.5)","v":"Warten auf Godot"},{"$f":"LLOOKUP(G98,A:A,A:A,0.5)","v":"Warten auf Godot"},"Warten auf Godot","Warten auf Godot",{"$f":"SLOOKUP(K98,A:A,A:A,0.5)","v":"Warten auf Godot"},{"$f":"LLOOKUP(K98,A:A,A:A,0.5)","v":"Warten auf Godot"}]
["Wem die Stunde schlägt","Wem die Stunde schlägt","Wbm die Stunde schlägt",{"$f":"SLOOKUP(C99,A:A,A:A,0.5)","v":"Wem die Stunde schlägt"},{"$f":"LLOOKUP(C99,A:A,A:A,0.5)","v":"Wem die Stunde schlägt"},"Wdm die Stunde schlägt","Wdm die Stunde sehlägt",{"$f":"SLOOKUP(G99,A:A,A:A,0.5)","v":"Wem die Stunde schlägt"},{"$f":"LLOOKUP(G99,A:A,A:A,0.5)","v":"Wem die Stunde schlägt"},"Wem die Stunde schlägt","Wem die Stunde schlägt",{"$f":"SLOOKUP(K99,A:A,A:A,0.5)","v":"Wem die Stunde schlägt"},{"$f":"LLOOKUP(K99,A:A,A:A,0.5)","v":"Wem die Stunde schlägt"}]
["Zazie in der Metro","Zazie in der Memro","Zazie in der Memzo",{"$f":"SLOOKUP(C100,A:A,A:A,0.5)","v":"Zazie in der Metro"},{"$f":"LLOOKUP(C100,A:A,A:A,0.5)","v":"Zazie in der Metro"},"Zhzie in der Memzo","Zhzie in der Meczo",{"$f":"SLOOKUP(G100,A:A,A:A,0.5)","v":"Zazie in der Metro"},{"$f":"LLOOKUP(G100,A:A,A:A,0.5)","v":"Zazie in der Metro"},"Zazie in der Metro","Zazie in der Metro",{"$f":"SLOOKUP(K100,A:A,A:A,0.5)","v":"Zazie in der Metro"},{"$f":"LLOOKUP(K100,A:A,A:A,0.5)","v":"Zazie in der Metro"}]
["Zigeunerromanzen","Zigeunerroxanzen","Zigeunerroxanzea",{"$f":"SLOOKUP(C101,A:A,A:A,0.5)","v":"Zigeunerromanzen"},{"$f":"LLOOKUP(C101,A:A,A:A,0.5)","v":"Zigeunerromanzen"},"Zigeundrroxanzea","Zigeundtroxanzea",{"$f":"SLOOKUP(G101,A:A,A:A,0.5)","v":"Zigeunerromanzen"},{"$f":"LLOOKUP(G101,A:A,A:A,0.5)","v":"Zigeunerromanzen"},"Zigeunerromanzen","Zigeunerromanzen",{"$f":"SLOOKUP(K101,A:A,A:A,0.5)","v":"Zigeunerromanzen"},{"$f":"LLOOKUP(K101,A:A,A:A,0.5)","v":"Zigeunerromanzen"}]

{"sheet":"Screenshot","index":6,"n_rows":17,"n_cols":5,"rows_kept":17,"cut":false,"hidden":false,"merged":[]}
["Needle","SLOOKUP","LLOOKUP",null,"Haystack"]
["#FEMALE PLEASURE",{"$f":"SLOOKUP(A2,E$2:E$17,E$2:E$17,0.35)","v":"#Female Pleasure"},{"$f":"LLOOKUP(A2,E$2:E$17,E$2:E$17,0.55)","v":"#Female Pleasure"},null,"Heidi"]
["ALPZYT",{"$f":"SLOOKUP(A3,E$2:E$17,E$2:E$17,0.35)","v":"Alpzyt"},{"$f":"LLOOKUP(A3,E$2:E$17,E$2:E$17,0.55)","v":"Alpzyt"},null,"Die göttliche Ordnung"]
["Bruno Manser - Die Stimme des Regenwaldes",{"$f":"SLOOKUP(A4,E$2:E$17,E$2:E$17,0.35)","v":"Bruno Manser"},{"$f":"LLOOKUP(A4,E$2:E$17,E$2:E$17,0.55)","v":""},null,"Wolkenbruch"]
["Chli Häx, Di",{"$f":"SLOOKUP(A5,E$2:E$17,E$2:E$17,0.35)","v":"Die göttliche Ordnung"},{"$f":"LLOOKUP(A5,E$2:E$17,E$2:E$17,0.55)","v":""},null,"Zwingli"]
["Dames, Les",{"$f":"SLOOKUP(A6,E$2:E$17,E$2:E$17,0.35)","v":"Les dames"},{"$f":"LLOOKUP(A6,E$2:E$17,E$2:E$17,0.55)","v":""},null,"Bruno Manser"]
["FLITZER",{"$f":"SLOOKUP(A7,E$2:E$17,E$2:E$17,0.35)","v":"Flitzer"},{"$f":"LLOOKUP(A7,E$2:E$17,E$2:E$17,0.55)","v":"Flitzer"},null,"Ma vie de Courgette"]
["Giovanni Segantini - Magie des Lichts",{"$f":"SLOOKUP(A8,E$2:E$17,E$2:E$17,0.35)","v":"Giovanni Segantini"},{"$f":"LLOOKUP(A8,E$2:E$17,E$2:E$17,0.55)","v":""},null,"Papa Moll"]
["GÖTTLICHE ORDNUNG, DIE",{"$f":"SLOOKUP(A9,E$2:E$17,E$2:E$17,0.35)","v":"Die göttliche Ordnung"},{"$f":"LLOOKUP(A9,E$2:E$17,E$2:E$17,0.55)","v":"Die göttliche Ordnung"},null,"Die kleine Hexe"]
["GROSSE SOMMER; DER",{"$f":"SLOOKUP(A10,E$2:E$17,E$2:E$17,0.35)","v":"Der grosse Sommer"},{"$f":"LLOOKUP(A10,E$2:E$17,E$2:E$17,0.55)","v":"Der grosse Sommer"},null,"Die letzte Pointe"]
["HEIDI",{"$f":"SLOOKUP(A11,E$2:E$17,E$2:E$17,0.35)","v":"Heidi"},{"$f":"LLOOKUP(A11,E$2:E$17,E$2:E$17,0.55)","v":"Heidi"},null,"Der grosse Sommer"]
["Letzte Pointe, Die",{"$f":"SLOOKUP(A12,E$2:E$17,E$2:E$17,0.35)","v":"Die letzte Pointe"},{"$f":"LLOOKUP(A12,E$2:E$17,E$2:E$17,0.55)","v":"Die letzte Pointe"},null,"Giovanni Segantini"]
["LOVING VINCENT",{"$f":"SLOOKUP(A13,E$2:E$17,E$2:E$17,0.35)","v":"Loving Vincent"},{"$f":"LLOOKUP(A13,E$2:E$17,E$2:E$17,0.55)","v":"Loving Vincent"},null,"#Female Pleasure"]
["MA VIE DE COURGETTE",{"$f":"SLOOKUP(A14,E$2:E$17,E$2:E$17,0.35)","v":"Ma vie de Courgette"},{"$f":"LLOOKUP(A14,E$2:E$17,E$2:E$17,0.55)","v":"Ma vie de Courgette"},null,"Flitzer"]
["PAPA MOLL",{"$f":"SLOOKUP(A15,E$2:E$17,E$2:E$17,0.35)","v":"Papa Moll"},{"$f":"LLOOKUP(A15,E$2:E$17,E$2:E$17,0.55)","v":"Papa Moll"},null,"Alpzyt"]
["WOLKENBRUCHS WUNDERLICHE REISE IN DIE ARME EINER SCHICKSE",{"$f":"SLOOKUP(A16,E$2:E$17,E$2:E$17,0.35)","v":""},{"$f":"LLOOKUP(A16,E$2:E$17,E$2:E$17,0.55)","v":""},null,"Loving Vincent"]
["Zwingli",{"$f":"SLOOKUP(A17,E$2:E$17,E$2:E$17,0.35)","v":"Zwingli"},{"$f":"LLOOKUP(A17,E$2:E$17,E$2:E$17,0.55)","v":"Zwingli"},null,"Les dames"]